Workbook

Sheet Version Notes
B2: ANSI/IES TM-30-18 Basic Calculation Tool
B4: This document has been approved and copyrighted by the Illuminating Engineering Society (IES) for use in conjunction with ANSI/IES TM-30-18. In the event of any discrepancy between the calculation tool and the procedure described in ANSI/IES TM-30-18, the standard takes precedence. This version of the calculation tool uses limited VBA sheet macros (to compute CCT, reference illuminant, and chromaticity). It is designed for SPDs having a 1 nm resolution, ranging from 380 to 780 nm. For other resolutions, please use the ANSI/IES TM-30-18 Advanced Calculation Tool. Questions and feedback about this tool should be directed to Pat McGillicuddy at pmcgillicuddy@ies.org. The input values within this worksheet may be modified by the user, but the formulas and VBA code should not be changed—the results are only valid if no changes are made. Do not distribute modified versions.
B6: Version Number | C6: Release Date | D6: Notes
B7: 1.0 | C7: 2015-09-14 | D7: Initial public release with IES TM-30-15.
B8: 1.01 | C8: 2015-10-02 | D8: Corrected to apply equation 3.12.4 as specified in IES TM-30-15.
B9: 1.02 | C9: 2015-06-09 | D9: Correctred formula for Color Distortion Icon. Clarification of index abbreviations. Correction of hue composition formula.
B10: 2.00 | C10: 2018-08-10 | D10: Implements ANSI/IES TM-30-18 changes, with new formatting.
B12: PLEASE CHECK FOR UPDATES PRIOR TO USE AT: http://www.ies.org/redirect/tm-30/

Sheet Instructions
B2: ='Version Notes'!B2 -> ANSI/IES TM-30-18 Basic Calculation Tool
B4: ='Version Notes'!B4:D4 -> This document has been approved and copyrighted by the Illuminating Engineering Society (IES) for use in conjunction with ANSI/IES TM-30-18. In the event of any discrepancy between the calculation tool and the procedure described in ANSI/IES TM-30-18, the standard takes precedence. This version of the calculation tool uses limited VBA sheet macros (to compute CCT, reference illuminant, and chromaticity). It is designed for SPDs having a 1 nm resolution, ranging from 380 to 780 nm. For other resolutions, please use the ANSI/IES TM-30-18 Advanced Calculation Tool. Questions and feedback about this tool should be directed to Pat McGillicuddy at pmcgillicuddy@ies.org. The input values within this worksheet may be modified by the user, but the formulas and VBA code should not be changed—the results are only valid if no changes are made. Do not distribute modified versions.
B6: Instructions
B8: 1) | C8: Make sure macros are enabled. This tool uses three sheet macros (but no VBA code).
B10: 2) | C10: The SPD can be input in two ways: (a) in the Calculator sheet, or (b) in the SPD Library sheet. The SPD must always have a resolution of 1 nm and a range of 380 to 780 nm. For other increments, it is suggested to use the TM-30 Advanced Calculation Tool instead.
C12: 2a) | D12: To enter an SPD manually in the Calculator sheet:
D13: - Enter 0 as the selected SPD (cell C3).
D14: - Paste the SPD in the shaded area of column C.
C16: 2b) | D16: To select an SPD from the SPD Library sheet, enter the corresponding SPD number in cell C1.
D17: - Additional SPDs can be added to the SPD library. They must have a resolution of 1 nm and a range of 380 to 780 nm.
B20: Sheet Descriptions
C22: Calculator
C23: This sheet serves as the main user interface. Use this page to paste or recall SPDs and view the calculation results.
C25: CalcEngine
C26: This sheet includes the formulas and detailed numerical results for the ANSI/IES TM-30-18 calculations.
C28: CVG
C29: This sheet includes acceptable alternative version of the Color Vector Graphic. It also stores data used to generate the graphics.
C31: CVG (Dynamic) [Hidden]
C32: Includes data for the CVG that reflects the selected viewing options.
C34: SimpleReport
C35: This sheet provides a printable 1/4 page layout, as described in ANSI/IES TM-30-18 Annex D. Note: the aspect ratio on this sheet is formatted for printing; verify that that CVG prints square.
C37: IntermediateReport
C38: This sheet provides a printable 1/2 page layout, as described in ANSI/IES TM-30-18 Annex D. Note: the aspect ratio on this sheet is formatted for printing; verify that that CVG prints square.
C40: FullReport
C41: This sheet provides a printable full page layout, as described in ANSI/IES TM-30-18 Annex D. Note: the aspect ratio on this sheet is formatted for printing; verify that that CVG prints square.
C43: SPD Library
C44: This sheet allows SPDs to be stored for recall from the Calculator sheet. The default library includes a set of SPDs intended to help users understand ANSI/IES TM-30-18. This Library has been populated with a subset of SPDs used in: Kevin W. Houser, Minchen Wei, Aurélien David, Michael R. Krames, and Xiangyou Sharon Shen. Optics Express, Vol. 21, Issue 8, pp. 10393-10411 (2013) - http://dx.doi.org/10.1364/OE.21.010393. Please refer to this manuscript for additional specifics and citations regarding the origins of the SPDs. These SPDs serve only as examples and should not be considered official representations of any lamp technology or manufacturer. The dataset is not intended to be a statistical sample for use in analyses.
C46: CES
C47: This sheet provides the 99 color evaluation samples (CES) specified in ANSI/IES TM-30-18.
C49: CMF [Hidden]
C50: This sheet stores the CIE 1931 2° CMFs and CIE 1964 10° CMFs used in the calculations.
C52: RefCalc [Hidden]
C53: This sheet calculates the SPD of the appropriate reference illuminant based on the CCT of the test source.
C55: CCTCalc [Hidden]
C56: This sheet calculates the CCT of the test source.
B59: Contributions
C61: General engine: Aurelien David
C62: CCT, chromaticity, reference illuminant: Yoshi Ohno
C63: CAM02-UCS engine: Lorne Whitehead, Kevin Smet

Sheet Calculator
B1: DATA INPUT [See Instructions sheet for additional information] PLEASE CHECK FOR UPDATES PRIOR TO USE AT: http://www.ies.org/redirect/tm-30/ | E1: BASIC RESULTS [Printable results in other sheets]
B3: Select Library SPD: [Enter 0 for Use SPD] | C3: 350 | E3: =IF(C3,OFFSET('SPD Library'!B3,0,$C$3-1),"User SPD") -> PC Amber - Manf 1
B5: Wavelength (nm) | C5: User SPD (0)
B6: 380 | C6: 1 | Q6: TRUE
B7: 381 | C7: 1 | Q7: TRUE
B8: 382 | C8: 1 | Q8: TRUE
B9: 383 | C9: 1
B10: 384 | C10: 1
B11: 385 | C11: 1
B12: 386 | C12: 1
B13: 387 | C13: 1
B14: 388 | C14: 1
B15: 389 | C15: 1
B16: 390 | C16: 1
B17: 391 | C17: 1
B18: 392 | C18: 1
B19: 393 | C19: 1
B20: 394 | C20: 1
B21: 395 | C21: 1
B22: 396 | C22: 1
B23: 397 | C23: 1
B24: 398 | C24: 1
B25: 399 | C25: 1
B26: 400 | C26: 1
B27: 401 | C27: 1
B28: 402 | C28: 1
B29: 403 | C29: 1
B30: 404 | C30: 1
B31: 405 | C31: 1
B32: 406 | C32: 1
B33: 407 | C33: 1
B34: 408 | C34: 1
B35: 409 | C35: 1
B36: 410 | C36: 1
B37: 411 | C37: 1
B38: 412 | C38: 1
B39: 413 | C39: 1
B40: 414 | C40: 1
B41: 415 | C41: 1
B42: 416 | C42: 1
B43: 417 | C43: 1
B44: 418 | C44: 1
B45: 419 | C45: 1
B46: 420 | C46: 1
B47: 421 | C47: 1
B48: 422 | C48: 1
B49: 423 | C49: 1
B50: 424 | C50: 1
B51: 425 | C51: 1
B52: 426 | C52: 1
B53: 427 | C53: 1
B54: 428 | C54: 1
B55: 429 | C55: 1
B56: 430 | C56: 1
B57: 431 | C57: 1
B58: 432 | C58: 1
B59: 433 | C59: 1
B60: 434 | C60: 1
B61: 435 | C61: 1
B62: 436 | C62: 1
B63: 437 | C63: 1
B64: 438 | C64: 1
B65: 439 | C65: 1
B66: 440 | C66: 1
B67: 441 | C67: 1
B68: 442 | C68: 1
B69: 443 | C69: 1
B70: 444 | C70: 1
B71: 445 | C71: 1
B72: 446 | C72: 1
B73: 447 | C73: 1
B74: 448 | C74: 1
B75: 449 | C75: 1
B76: 450 | C76: 1
B77: 451 | C77: 1
B78: 452 | C78: 1
B79: 453 | C79: 1
B80: 454 | C80: 1 | I80: 0 | J80: 0
B81: 455 | C81: 1 | I81: 100 | J81: 100
B82: 456 | C82: 1 | I82: 0 | J82: 200
B83: 457 | C83: 1
B84: 458 | C84: 1
B85: 459 | C85: 1
B86: 460 | C86: 1
B87: 461 | C87: 1
B88: 462 | C88: 1
B89: 463 | C89: 1
B90: 464 | C90: 1
B91: 465 | C91: 1
B92: 466 | C92: 1
B93: 467 | C93: 1
B94: 468 | C94: 1
B95: 469 | C95: 1
B96: 470 | C96: 1
B97: 471 | C97: 1
B98: 472 | C98: 1
B99: 473 | C99: 1
B100: 474 | C100: 1
B101: 475 | C101: 1
B102: 476 | C102: 1
B103: 477 | C103: 1
B104: 478 | C104: 1
B105: 479 | C105: 1
B106: 480 | C106: 1
B107: 481 | C107: 1
B108: 482 | C108: 1
B109: 483 | C109: 1
B110: 484 | C110: 1
B111: 485 | C111: 1
B112: 486 | C112: 1
B113: 487 | C113: 1
B114: 488 | C114: 1
B115: 489 | C115: 1
B116: 490 | C116: 1
B117: 491 | C117: 1
B118: 492 | C118: 1
B119: 493 | C119: 1
B120: 494 | C120: 1
B121: 495 | C121: 1
B122: 496 | C122: 1
B123: 497 | C123: 1
B124: 498 | C124: 1
B125: 499 | C125: 1
B126: 500 | C126: 1
B127: 501 | C127: 1
B128: 502 | C128: 1
B129: 503 | C129: 1
B130: 504 | C130: 1
B131: 505 | C131: 1
B132: 506 | C132: 1
B133: 507 | C133: 1
B134: 508 | C134: 1
B135: 509 | C135: 1
B136: 510 | C136: 1
B137: 511 | C137: 1
B138: 512 | C138: 1
B139: 513 | C139: 1
B140: 514 | C140: 1
B141: 515 | C141: 1
B142: 516 | C142: 1
B143: 517 | C143: 1
B144: 518 | C144: 1
B145: 519 | C145: 1
B146: 520 | C146: 1
B147: 521 | C147: 1
B148: 522 | C148: 1
B149: 523 | C149: 1
B150: 524 | C150: 1
B151: 525 | C151: 1
B152: 526 | C152: 1
B153: 527 | C153: 1
B154: 528 | C154: 1
B155: 529 | C155: 1
B156: 530 | C156: 1
B157: 531 | C157: 1
B158: 532 | C158: 1
B159: 533 | C159: 1
B160: 534 | C160: 1
B161: 535 | C161: 1
B162: 536 | C162: 1
B163: 537 | C163: 1
B164: 538 | C164: 1
B165: 539 | C165: 1
B166: 540 | C166: 1
B167: 541 | C167: 1
B168: 542 | C168: 1
B169: 543 | C169: 1
B170: 544 | C170: 1
B171: 545 | C171: 1
B172: 546 | C172: 1
B173: 547 | C173: 1
B174: 548 | C174: 1
B175: 549 | C175: 1
B176: 550 | C176: 1
B177: 551 | C177: 1
B178: 552 | C178: 1
B179: 553 | C179: 1
B180: 554 | C180: 1
B181: 555 | C181: 1
B182: 556 | C182: 1
B183: 557 | C183: 1
B184: 558 | C184: 1
B185: 559 | C185: 1
B186: 560 | C186: 1
B187: 561 | C187: 1
B188: 562 | C188: 1
B189: 563 | C189: 1
B190: 564 | C190: 1
B191: 565 | C191: 1
B192: 566 | C192: 1
B193: 567 | C193: 1
B194: 568 | C194: 1
B195: 569 | C195: 1
B196: 570 | C196: 1
B197: 571 | C197: 1
B198: 572 | C198: 1
B199: 573 | C199: 1
B200: 574 | C200: 1
B201: 575 | C201: 1
B202: 576 | C202: 1
... 204 more rows

Sheet NWL Specification
B2: This sheet can be used to determine non-white light specifications
B3: [Reference: Esposito T, Radetsky L. 2022. Specifying non-white light sources in outdoor applications to reduce light pollution. Submitted to LEUKOS.]
B5: Instructions | G5: Figure 1. Test and reference SPDs. | M5: Figure 2. Example SPDs for selected lighting technology
B6: STEP 1 | C6: Load a TEST spectral power distribution (SPD) using the IES TM-30 interface on the 'Calculator' tab. Refer to the 'Instructions' tab for assistance. Return to this tab after SPD has been loaded. Note: SPDs have been added to the 'SPD Library' tab for PC Amber, Amber, Red, Far Red, and PC 2000 L and PC 1800 K LEDs. SPDs for high- and low-pressure sodium have also been added. These SPDs have SPD #'s from 350 to 362.
B7: STEP 2 | C7: Choose the lighting technology for the TEST SPD from the drop-down menu in cell C11. There are three choices: (1) Phosphor-Converted (PC) Amber LEDs: these have a peak wavleneght near 590 nm, a wide distribution, and a small or no hump between 400 - 500 nm. See Figure 2 for example SPDs when this technology is selected. (2) Direct-Emission (DE) LEDs: these have a very narrow distribution, typically less than 25 nm at their half-maximum. See Figure 2 for example SPDs when this technology is selected. (3) Other: this includes other SPDs such as those from phosphor-converted white LEDs, high pressure sodium, etc. See Figure 2 for example SPDs when this technology is selected.
B8: STEP 3 | C8: If the technology type is properly selected and no error message is displayed, the lighting specification will be provided in cell C15. Note: a nominal color name is automatically added to Direct-Emission (DE) LEDs. These color names are noteably subjective and my vary from person to person. The limits for the color names can be modified in cells N30:O35 of the 'RefNWL' tab which is hidden by default. | G8: Figure 3. An enlarged portion of the CIE 1931 xy chromaticity diagram showing the ANSI C78.377-2017 7-step Basic and Extended CCT Quadrangles, the proposed Expanded Basic and Expanded Extended quadrangles for nominal CCT designations of 2000 K and 1800 K from Esposito and Radetsky [2022], and the proposed PC Amber bin (yellow) from Esposito and Radetsky [2022].
C10: Step 2 (manual): | D10: Choose your lighting technology below ¯¯¯¯¯
C11: Technology dropdown menu:
C12: Technology description: | D12: =RefNWL!D82 -> Direct Emission LEDs have narrow SPDs and a very saturated visual appearance
C14: Step 3 (automatic): | D14: Specification
C15: Specification: | D15: =RefNWL!F40 -> DE Amber – 595 nm
C17: Error Message: | D17: =RefNWL!F49 -> NOTE: SPD does not appear to be narrowband. Please check.
G22: Figure 4. An enlarged portion of the CIE 1931 xy chromaticity diagram showing select ANSI C78.377-2017 7-step Basic and Extended CCT Quadrangles, the proposed Expanded Basic and Expanded Extended quadrangles for nominal CCT designations of 2000 K and 1800 K from Esposito and Radetsky [2022], and the proposed PC Amber bin (yellow) from Esposito and Radetsky [2022]. Chromaticity diagram is enlarged to emphasize the spectrum locus at wavelengths longer than approximately 580 nm.

Sheet RefNWL
B3: SPD | C3: x | D3: y
C4: ='Results Numerical'!J5 -> 0.5679782958 | D4: ='Results Numerical'!J6 -> 0.4265337796
AB5: Determine ANSI | AE5: Determine ANSI Expansion
B6: CCT | C6: 1800 K | E6: 2000 K | G6: 2200 K | I6: 2500 K | K6: 2700 K | M6: 3000 K | O6: 3500 K | Q6: 4000 K | S6: 4500 K | U6: 5000 K | W6: 5700 K | Y6: 6500 K | AB6: =IF(PtInPoly($C$4,$D$4,G9:H13),1,0) -> 0 | AC6: 2200 K - Basic
C7: x | D7: y | E7: x | F7: y | G7: X | H7: y | I7: X | J7: y | K7: x | L7: y | M7: X | N7: y | O7: X | P7: y | Q7: X | R7: y | S7: X | T7: y | U7: X | V7: y | W7: x | X7: y | Y7: x | Z7: y | AB7: =IF(PtInPoly($C$4,$D$4,I9:J13),1,0) -> 0 | AC7: 2500 K - Basic | AE7: =IF(PtInPoly($C$4,$D$4,C9:D13),1,0) -> 1 | AF7: 1800 K - Expanded Basic
B8: Center | C8: 0.5424762632 | D8: 0.4100576849 | E8: 0.5221700982 | F8: 0.4139006765 | G8: 0.5018 | H8: 0.4153 | I8: 0.4806 | J8: 0.4141 | K8: 0.4578 | L8: 0.4101 | M8: 0.4339 | N8: 0.4033 | O8: 0.4078 | P8: 0.393 | Q8: 0.3818 | R8: 0.3797 | S8: 0.3613 | T8: 0.367 | U8: 0.3446 | V8: 0.3551 | W8: 0.3287 | X8: 0.3425 | Y8: 0.3123 | Z8: 0.3283 | AB8: =IF(PtInPoly($C$4,$D$4,K9:L13),1,0) -> 0 | AC8: 2700 K - Basic | AE8: =IF(PtInPoly($C$4,$D$4,E9:F13),1,0) -> 0 | AF8: 2000 K - Expanded Basic
A9: A | B9: (x,y) tolerance quadrangle | C9: 0.5706 | D9: 0.4288 | E9: 0.5482 | F9: 0.4328 | G9: 0.5259 | H9: 0.4342 | I9: 0.5045 | J9: 0.4344 | K9: 0.4813 | L9: 0.4319 | M9: 0.4562 | N9: 0.426 | O9: 0.4303 | P9: 0.4173 | Q9: 0.4003 | R9: 0.4035 | S9: 0.3737 | T9: 0.3882 | U9: 0.355 | V9: 0.3753 | W9: 0.3375 | X9: 0.3619 | Y9: 0.3205 | Z9: 0.3477 | AB9: =IF(PtInPoly($C$4,$D$4,M9:N13),1,0) -> 0 | AC9: 3000 K - Basic | AE9: =IF(PtInPoly($C$4,$D$4,C19:D23),1,0) -> 0 | AF9: 1800 K - Expanded Extended
A10: B | C10: 0.5482 | D10: 0.4328 | E10: 0.5259 | F10: 0.4342 | G10: 0.5045 | H10: 0.4344 | I10: 0.4813 | J10: 0.4319 | K10: 0.4562 | L10: 0.426 | M10: 0.4303 | N10: 0.4173 | O10: 0.4003 | P10: 0.4035 | Q10: 0.3737 | R10: 0.388 | S10: 0.355 | T10: 0.3754 | U10: 0.3375 | V10: 0.3619 | W10: 0.3205 | X10: 0.3476 | Y10: 0.3026 | Z10: 0.3311 | AB10: =IF(PtInPoly($C$4,$D$4,O9:P13),1,0) -> 0 | AC10: 3500 K - Basic | AE10: =IF(PtInPoly($C$4,$D$4,E19:F23),1,0) -> 0 | AF10: 2000 K - Expanded Extended
A11: C | C11: 0.5193 | D11: 0.3951 | E11: 0.4993 | F11: 0.3967 | G11: 0.4799 | H11: 0.3967 | I11: 0.4593 | J11: 0.3944 | K11: 0.4373 | L11: 0.3893 | M11: 0.415 | N11: 0.3821 | O11: 0.3895 | P11: 0.3709 | Q11: 0.3671 | R11: 0.3583 | S11: 0.3514 | T11: 0.3482 | U11: 0.3366 | V11: 0.3373 | W11: 0.3221 | X11: 0.3256 | Y11: 0.3067 | Z11: 0.3119 | AB11: =IF(PtInPoly($C$4,$D$4,Q9:R13),1,0) -> 0 | AC11: 4000 K - Basic
A12: D | C12: 0.5398 | D12: 0.3914 | E12: 0.5193 | F12: 0.3951 | G12: 0.4993 | H12: 0.3967 | I12: 0.4799 | J12: 0.3967 | K12: 0.4593 | L12: 0.3944 | M12: 0.4373 | N12: 0.3893 | O12: 0.415 | P12: 0.3821 | Q12: 0.3895 | R12: 0.3709 | S12: 0.3672 | T12: 0.3585 | U12: 0.3514 | V12: 0.3481 | W12: 0.3366 | X12: 0.3374 | Y12: 0.3221 | Z12: 0.3255 | AB12: =IF(PtInPoly($C$4,$D$4,S9:T13),1,0) -> 0 | AC12: 4500 K - Basic | AE12: =SUM(AE7:AE10) -> 1 | AF12: =IFERROR(VLOOKUP(1,AE7:AF10,2,FALSE),"Outside of quadrangles") -> 1800 K - Expanded Basic
A13: A | C13: 0.5706 | D13: 0.4288 | E13: 0.5482 | F13: 0.4328 | G13: 0.5259 | H13: 0.4342 | I13: 0.5045 | J13: 0.4344 | K13: 0.4813 | L13: 0.4319 | M13: 0.4562 | N13: 0.426 | O13: 0.4303 | P13: 0.4173 | Q13: 0.4003 | R13: 0.4035 | S13: 0.3737 | T13: 0.3882 | U13: 0.355 | V13: 0.3753 | W13: 0.3375 | X13: 0.3619 | Y13: 0.3205 | Z13: 0.3477 | AB13: =IF(PtInPoly($C$4,$D$4,U9:V13),1,0) -> 0 | AC13: 5000 K - Basic | AF13: =LEFT(AF12,6) -> 1800 K
AB14: =IF(PtInPoly($C$4,$D$4,W9:X13),1,0) -> 0 | AC14: 5700 K - Basic
AB15: =IF(PtInPoly($C$4,$D$4,Y9:Z13),1,0) -> 0 | AC15: 6500 K - Basic
B16: CCT | C16: 1800/012 | E16: 2000/012 | G16: 2200/012 | I16: 2500/012 | K16: 2700/012 | M16: 3000/012 | O16: 3500/012 | Q16: 4000/011 | S16: 4500/011 | U16: 5000/010 | W16: 5700/010 | Y16: 6500/009 | AB16: =IF(PtInPoly($C$4,$D$4,G19:H23),1,0) -> 0 | AC16: 2200 K - Extended | AE16: =IF(PtInPoly($C$4,$D$4,C28:D37),1,0) -> 1 | AF16: PC Amber | AG16: ="PC Amber"&" – "&AF13 -> PC Amber – 1800 K
C17: X | D17: y | E17: X | F17: y | G17: X | H17: y | I17: X | J17: y | K17: x | L17: y | M17: X | N17: y | O17: X | P17: y | Q17: X | R17: y | S17: X | T17: y | U17: X | V17: y | W17: x | X17: y | Y17: x | Z17: y | AB17: =IF(PtInPoly($C$4,$D$4,I19:J23),1,0) -> 0 | AC17: 2500 K - Extended
B18: Center | C18: 0.5158 | D18: 0.3766 | E18: 0.4964 | F18: 0.3791 | G18: 0.4776 | H18: 0.3797 | I18: 0.4586 | J18: 0.3786 | K18: 0.4385 | L18: 0.3751 | M18: 0.4178 | N18: 0.3693 | O18: 0.3955 | P18: 0.3609 | Q18: 0.3737 | R18: 0.3501 | S18: 0.3565 | T18: 0.3399 | U18: 0.3426 | V18: 0.3304 | W18: 0.3291 | X18: 0.3202 | Y18: 0.3151 | Z18: 0.3086 | AB18: =IF(PtInPoly($C$4,$D$4,K19:L23),1,0) -> 0 | AC18: 2700 K - Extended | AF18: =IF(AND(AE16=1,AE12=1),AG16,IF(AND(AE12=0,AE16=1),IF(AND(AE16=1,'Results Numerical'!EQ3<40),"Error: check message below",AF16))) -> PC Amber – 1800 K
A19: A | B19: (x,y) tolerance quadrangle | C19: 0.5398 | D19: 0.3914 | E19: 0.5193 | F19: 0.3951 | G19: 0.4993 | H19: 0.3967 | I19: 0.4799 | J19: 0.3967 | K19: 0.4593 | L19: 0.3944 | M19: 0.4373 | N19: 0.3893 | O19: 0.415 | P19: 0.3821 | Q19: 0.3895 | R19: 0.3709 | S19: 0.3671 | T19: 0.3583 | U19: 0.3514 | V19: 0.3481 | W19: 0.3366 | X19: 0.3373 | Y19: 0.3221 | Z19: 0.3255 | AB19: =IF(PtInPoly($C$4,$D$4,M19:N23),1,0) -> 0 | AC19: 3000 K - Extended
A20: B | C20: 0.5193 | D20: 0.3951 | E20: 0.4993 | F20: 0.3967 | G20: 0.4799 | H20: 0.3967 | I20: 0.4593 | J20: 0.3944 | K20: 0.4373 | L20: 0.3893 | M20: 0.415 | N20: 0.3821 | O20: 0.3895 | P20: 0.3709 | Q20: 0.3671 | R20: 0.3583 | S20: 0.3514 | T20: 0.3481 | U20: 0.3366 | V20: 0.3373 | W20: 0.3221 | X20: 0.3255 | Y20: 0.3067 | Z20: 0.3119 | AB20: =IF(PtInPoly($C$4,$D$4,O19:P23),1,0) -> 0 | AC20: 3500 K - Extended
A21: C | C21: 0.4937 | D21: 0.3617 | E21: 0.4755 | F21: 0.3632 | G21: 0.4579 | H21: 0.363 | I21: 0.4396 | J21: 0.3609 | K21: 0.4204 | L21: 0.3565 | M21: 0.4013 | N21: 0.3505 | O21: 0.3799 | P21: 0.3414 | Q21: 0.3612 | R21: 0.3315 | S21: 0.3481 | T21: 0.3233 | U21: 0.3358 | V21: 0.3147 | W21: 0.3235 | X21: 0.3052 | Y21: 0.3104 | Z21: 0.2941 | AB21: =IF(PtInPoly($C$4,$D$4,Q19:R23),1,0) -> 0 | AC21: 4000 K - Extended
A22: D | C22: 0.5126 | D22: 0.3583 | E22: 0.4937 | F22: 0.3617 | G22: 0.4755 | H22: 0.3632 | I22: 0.4579 | J22: 0.363 | K22: 0.4396 | L22: 0.3609 | M22: 0.4204 | N22: 0.3566 | O22: 0.4013 | P22: 0.3505 | Q22: 0.3799 | R22: 0.3414 | S22: 0.3612 | T22: 0.3315 | U22: 0.3481 | V22: 0.3233 | W22: 0.3358 | X22: 0.3147 | Y22: 0.3235 | Z22: 0.3052 | AB22: =IF(PtInPoly($C$4,$D$4,S19:T23),1,0) -> 0 | AC22: 4500 K - Extended
A23: A | C23: 0.5398 | D23: 0.3914 | E23: 0.5193 | F23: 0.3951 | G23: 0.4993 | H23: 0.3967 | I23: 0.4799 | J23: 0.3967 | K23: 0.4593 | L23: 0.3944 | M23: 0.4373 | N23: 0.3893 | O23: 0.415 | P23: 0.3821 | Q23: 0.3895 | R23: 0.3709 | S23: 0.3671 | T23: 0.3583 | U23: 0.3514 | V23: 0.3481 | W23: 0.3366 | X23: 0.3373 | Y23: 0.3221 | Z23: 0.3255 | AB23: =IF(PtInPoly($C$4,$D$4,U19:V23),1,0) -> 0 | AC23: 5000 K - Extended
AB24: =IF(PtInPoly($C$4,$D$4,W19:X23),1,0) -> 0 | AC24: 5700 K - Extended
AB25: =IF(PtInPoly($C$4,$D$4,Y19:Z23),1,0) -> 0 | AC25: 6500 K - Extended
C26: PC Amber Bin | F26: Dropdown List | L26: SPD Peak Wavelength
C27: x | D27: y | F27: 2 | G27: Phosphor-Converted (PC) Amber LED | L27: =VLOOKUP(MAX('Results Numerical'!$EQ$5:$EQ$405),'Results Numerical'!EQ5:ER405,2,FALSE) -> 595 | M27: nm | AB27: =SUM(AB6:AB25) -> 0 | AC27: =IFERROR(VLOOKUP(1,AB6:AC25,2,FALSE),"Outside of quadrangles") -> Outside of quadrangles
C28: 0.54 | D28: 0.459 | G28: Direct-Emission (DE) LED (Very narrow SPD -- Highly saturated)
C29: 0.528 | D29: 0.443 | G29: Other (e.g., Phosphor-Converted White) | L29: Direct Emission (DE) Color Determination | Q29: IES Handbook, 10th Edition, Figure 7.48
C30: 0.5478050378 | D30: 0.426000421 | L30: =IF(AND($L$27>=N30,$L$27<=O30),1,0) -> 1 | M30: DE Amber | N30: 580 | O30: 604 | Q30: Blue | R30: Peak near 450 nm
C31: 0.5469 | D31: 0.4249 | L31: 0 | M31: DE Orange | N31: 605 | O31: 614 | Q31: Blue-Green | R31: Peak near 500 nm
C32: 0.57 | D32: 0.41 | L32: 0 | M32: DE Orange-Red | N32: 615 | O32: 625 | Q32: Green | R32: Peak near 525 nm
C33: 0.5715027779 | D33: 0.4098649442 | L33: 0 | M33: DE Red | N33: 626 | O33: 659 | Q33: Amber | R33: Peak near 590 nm
C34: 0.5730223124 | D34: 0.408947487 | L34: 0 | M34: DE Deep Red | N34: 660 | O34: 699 | Q34: Orange | R34: Peak near 605 nm
C35: 0.5787 | D35: 0.4033 | L35: 0 | M35: DE Far Red | N35: 700 | O35: 780 | Q35: Orange-Red | R35: Peak near 615 nm
C36: 0.5926 | D36: 0.4074 | Q36: Red | R36: Peak near 626 nm
C37: =C28 -> 0.54 | D37: =D28 -> 0.459 | M37: =VLOOKUP(1,L30:O35,2,FALSE) -> DE Amber | N37: =M37&" – " &L27&" nm" -> DE Amber – 595 nm
F39: =IF(F27=1,AF18,IF(F27=2,N37,IF(AND(F27=3,AB27=1),AC27,IF(AND(F27=3,AE12=1),AF12,"ERROR: Check Message Below")))) -> DE Amber – 595 nm | I39: <--- Spec logic
F40: =IF(ISERROR(F39),"ERROR: Check Message Below",IF(F39=FALSE,"ERROR: check message below",F39)) -> DE Amber – 595 nm | I40: <--- Spec logic with additional error handling
F43: ERROR MESSAGE OPTIONS
F44: 1 | G44: =IF(AND(F27=1,AE16=0),"Error: PC Amber technology is specificed, but chromaticity is outside of PC Amber bin.",IF(AND(AE16=1,F27<>1),"Note: PC Amber is inside the PC Amber bin but PC Amber is not indicated. Please verify this is correct.",IF(AND(F27=1,'Results Numerical'!EQ3<40),"SPD appears to be too narrow to be a PC Amber LED. Please check.",""))) -> Note: PC Amber is inside the PC Amber bin but PC Amber is not indicated. Please verify this is correct. | H44: =IF(G44="","None",G44) -> Note: PC Amber is inside the PC Amber bin but PC Amber is not indicated. Please verify this is correct.
F45: 2 | G45: =IF(ISERROR(N37),"Error: Peak wavelength of SPD is below 580 nm. SPD is either not a direct emission narrowband SPD or is not nominally amber, orange, or red.",IF('Results Numerical'!EQ3>40,"NOTE: SPD does not appear to be narrowband. Please check.","")) -> NOTE: SPD does not appear to be narrowband. Please check. | H45: =IF(G45="","None",G45) -> NOTE: SPD does not appear to be narrowband. Please check.
F46: 3 | G46: =IF(AND(AB27=0,AE12=0),"NOTE: SPD's chromaticity is not within an ANSI C78.377 quadrangle or one of the Expanded quadrangles (i.e., 2000 K or 1800 K)","") ->  | H46: None
F48: ERROR MESSAGE FINAL
F49: =IF(F27=1,H44,IF(F27=2,H45,H46)) -> NOTE: SPD does not appear to be narrowband. Please check.
F51: ERROR MESSAGE TEXTBOX
F52: =IF(F27=1,G44,IF(F27=2,G45,G46)) -> NOTE: SPD does not appear to be narrowband. Please check.
R55: Manf 1 | S55: Manf 2 | T55: Manf 3 | V55: Manf 1 | W55: Manf 1 | X55: Manf 1
L56: WL | M56: =IF($F$27=1,R56,IF($F$27=2,V56,Z56)) -> DE Amber | N56: =IF($F$27=1,S56,IF($F$27=2,W56,AA56)) -> DE Red | O56: DE Far Red | R56: PC Amber | S56: PC Amber | T56: PC Amber | V56: DE Amber | W56: DE Red | X56: DE Far Red | Z56: High Pressure Sodium | AA56: PC White LED | AB56: RGB LED | AD56: 380
L57: 380 | M57: =IF($F$27=1,R57,IF($F$27=2,V57,Z57)) -> 0 | N57: =IF($F$27=1,S57,IF($F$27=2,W57,AA57)) -> 0 | O57: =IF($F$27=1,T57,IF($F$27=2,X57,AB57)) -> 0 | R57: 0 | S57: 0 | T57: 0 | V57: 0 | W57: 0 | X57: 0 | Z57: 0.006825938566 | AA57: 0.00274 | AB57: 0 | AD57: 385
L58: 381 | M58: 0 | N58: 0 | O58: 0 | R58: 0 | S58: 0 | T58: 0 | V58: 0 | W58: 0 | X58: 0 | Z58: 0.00733105802 | AA58: 0.0027334 | AB58: 0 | AD58: 390
L59: 382 | M59: 0 | N59: 0 | O59: 0 | R59: 0 | S59: 0 | T59: 0 | V59: 0 | W59: 0 | X59: 0 | Z59: 0.007795221842 | AA59: 0.0027268 | AB59: 0 | AD59: 395
L60: 383 | M60: 0 | N60: 0 | O60: 0 | R60: 0 | S60: 0 | T60: 0 | V60: 0 | W60: 0 | X60: 0 | Z60: 0.008177474402 | AA60: 0.0027202 | AB60: 0 | AD60: 400
L61: 384 | M61: 0 | N61: 0 | O61: 0 | R61: 0 | S61: 0 | T61: 0 | V61: 0 | W61: 0 | X61: 0 | Z61: 0.008436860067 | AA61: 0.0027136 | AB61: 0 | AD61: 405
L62: 385 | M62: 0 | N62: 0 | O62: 0 | R62: 0 | S62: 0 | T62: 0 | V62: 0 | W62: 0 | X62: 0 | Z62: 0.008532423207 | AA62: 0.002707 | AB62: 0 | AD62: 410
L63: 386 | M63: 0 | N63: 0 | O63: 0 | R63: 0 | S63: 0 | T63: 0 | V63: 0 | W63: 0 | X63: 0 | Z63: 0.008532423207 | AA63: 0.0027006 | AB63: 4e-07 | AD63: 415
L64: 387 | M64: 0 | N64: 0 | O64: 0 | R64: 0 | S64: 0 | T64: 0 | V64: 0 | W64: 0 | X64: 0 | Z64: 0.008532423207 | AA64: 0.0026942 | AB64: 8e-07 | AD64: 420
L65: 388 | M65: 0 | N65: 0 | O65: 0 | R65: 0 | S65: 0 | T65: 0 | V65: 0 | W65: 0 | X65: 0 | Z65: 0.008532423207 | AA65: 0.0026878 | AB65: 1.2e-06 | AD65: 425
L66: 389 | M66: 0 | N66: 0 | O66: 0 | R66: 0 | S66: 0 | T66: 0 | V66: 0 | W66: 0 | X66: 0 | Z66: 0.008532423207 | AA66: 0.0026814 | AB66: 1.6e-06 | AD66: 430
L67: 390 | M67: 0 | N67: 0 | O67: 0 | R67: 2.432684341e-05 | S67: 0 | T67: 0 | V67: 0 | W67: 0 | X67: 0 | Z67: 0.008532423207 | AA67: 0.002675 | AB67: 2e-06 | AD67: 435
L68: 391 | M68: 0 | N68: 0 | O68: 0 | R68: 0.0001262305974 | S68: 0 | T68: 0 | V68: 0 | W68: 0 | X68: 0 | Z68: 0.008655290101 | AA68: 0.0026682 | AB68: 3.6e-06 | AD68: 440
L69: 392 | M69: 0 | N69: 0 | O69: 0 | R69: 0.0002281343514 | S69: 0 | T69: 0 | V69: 0 | W69: 0 | X69: 0 | Z69: 0.008969283276 | AA69: 0.0026614 | AB69: 5.2e-06 | AD69: 445
L70: 393 | M70: 0 | N70: 0 | O70: 0 | R70: 0.0003300381054 | S70: 0 | T70: 0 | V70: 0 | W70: 0 | X70: 0 | Z70: 0.009392491467 | AA70: 0.0026546 | AB70: 6.8e-06 | AD70: 450
L71: 394 | M71: 0 | N71: 0 | O71: 0 | R71: 0.0004319418593 | S71: 0 | T71: 0 | V71: 0 | W71: 0 | X71: 0 | Z71: 0.009843003412 | AA71: 0.0026478 | AB71: 8.4e-06 | AD71: 455
L72: 395 | M72: 0 | N72: 0 | O72: 0 | R72: 0.0005338456133 | S72: 0 | T72: 0 | V72: 0 | W72: 0 | X72: 0 | Z72: 0.01023890785 | AA72: 0.002641 | AB72: 1e-05 | AD72: 460
L73: 396 | M73: 0 | N73: 0 | O73: 0 | R73: 0.0006357493673 | S73: 0.0002716158692 | T73: 0 | V73: 0 | W73: 0 | X73: 0 | Z73: 0.01056200227 | AA73: 0.0026326 | AB73: 1.68e-05 | AD73: 465
L74: 397 | M74: 0 | N74: 0 | O74: 0 | R74: 0.0007376531213 | S74: 0.0009194821872 | T74: 0 | V74: 0 | W74: 0 | X74: 0 | Z74: 0.0108668942 | AA74: 0.0026242 | AB74: 2.36e-05 | AD74: 470
L75: 398 | M75: 0 | N75: 0 | O75: 0 | R75: 0.0008395568753 | S75: 0.001693127019 | T75: 0 | V75: 0 | W75: 0 | X75: 0 | Z75: 0.01118088737 | AA75: 0.0026158 | AB75: 3.04e-05 | AD75: 475
C76: Technology Examples | L76: 399 | M76: 0 | N76: 0 | O76: 0 | R76: 0.0009414606292 | S76: 0.002342078431 | T76: 0 | V76: 0 | W76: 0 | X76: 0 | Z76: 0.01153128555 | AA76: 0.0026074 | AB76: 3.72e-05 | AD76: 480
L77: 400 | M77: 0 | N77: 0 | O77: 0 | R77: 0.001043364383 | S77: 0.002615864487 | T77: 0.0005 | V77: 0 | W77: 0 | X77: 0 | Z77: 0.01194539249 | AA77: 0.002599 | AB77: 4.4e-05 | AD77: 485
C78: 1 | D78: Phosphor-converted (PC) Amber LEDs sometimes have blue hump (near 450 nm) and always have a large hump near 590 nm. | L78: 401 | M78: 0 | N78: 0 | O78: 0 | R78: 0.001145268137 | S78: 0.002617877205 | T78: 0.0014 | V78: 0 | W78: 0 | X78: 0 | Z78: 0.01259158134 | AA78: 0.0025976 | AB78: 6.92e-05 | AD78: 490
C79: 2 | D79: Direct Emission LEDs have narrow SPDs and a very saturated visual appearance | L79: 402 | M79: 0 | N79: 0 | O79: 0 | R79: 0.001247171891 | S79: 0.002618919337 | T79: 0.001 | V79: 0 | W79: 0 | X79: 0 | Z79: 0.01347440273 | AA79: 0.0025962 | AB79: 9.44e-05 | AD79: 495
C80: 3 | D80: Other technologies include High Pressure Sodium, phosphor-converted white LEDs, RGB color-mixed LEDs, among others. | L80: 403 | M80: 0 | N80: 0 | O80: 0 | R80: 0.001349075645 | S80: 0.002619635057 | T80: 0.0008 | V80: 0 | W80: 0 | X80: 0 | Z80: 0.01437542662 | AA80: 0.0025948 | AB80: 0.0001196 | AD80: 500
L81: 404 | M81: 0 | N81: 0 | O81: 0 | R81: 0.001450979399 | S81: 0.002620668537 | T81: 0.0005 | V81: 0 | W81: 0 | X81: 0 | Z81: 0.01507622298 | AA81: 0.0025934 | AB81: 0.0001448 | AD81: 505
C82: Chosen | D82: =IF(F27=1,D78,IF(F27=2,D79,D80)) -> Direct Emission LEDs have narrow SPDs and a very saturated visual appearance | L82: 405 | M82: 0 | N82: 0 | O82: 0 | R82: 0.001552883153 | S82: 0.00262266395 | T82: 0.0018 | V82: 0 | W82: 0 | X82: 0 | Z82: 0.01535836177 | AA82: 0.002592 | AB82: 0.00017 | AD82: 510
L83: 406 | M83: 0 | N83: 0 | O83: 0 | R83: 0.001654786907 | S83: 0.002690735939 | T83: 0.0016 | V83: 0 | W83: 0 | X83: 0 | Z83: 0.01535836177 | AA83: 0.0028868 | AB83: 0.0002532 | AD83: 515
L84: 407 | M84: 0 | N84: 0 | O84: 0 | R84: 0.001756690661 | S84: 0.002849169702 | T84: 0.0011 | V84: 0 | W84: 0 | X84: 0 | Z84: 0.01535836177 | AA84: 0.0031816 | AB84: 0.0003364 | AD84: 520
L85: 408 | M85: 0 | N85: 0 | O85: 0 | R85: 0.001858594415 | S85: 0.003037365242 | T85: 0.0019 | V85: 0 | W85: 0 | X85: 0 | Z85: 0.01535836177 | AA85: 0.0034764 | AB85: 0.0004196 | AD85: 525
L86: 409 | M86: 0 | N86: 0 | O86: 0 | R86: 0.001960498169 | S86: 0.003194722563 | T86: 0.0019 | V86: 0 | W86: 0 | X86: 0 | Z86: 0.01535836177 | AA86: 0.0037712 | AB86: 0.0005028 | AD86: 530
L87: 410 | M87: 0 | N87: 0 | O87: 0 | R87: 0.002062401923 | S87: 0.00326064167 | T87: 0.002 | V87: 0 | W87: 0 | X87: 0 | Z87: 0.01535836177 | AA87: 0.004066 | AB87: 0.000586 | AD87: 535
L88: 411 | M88: 0 | N88: 0 | O88: 0 | R88: 0.002213219479 | S88: 0.003180907652 | T88: 0.0026 | V88: 0 | W88: 0 | X88: 0 | Z88: 0.01548122867 | AA88: 0.0048276 | AB88: 0.0008256 | AD88: 540
L89: 412 | M89: 0 | N89: 0 | O89: 0 | R89: 0.002351808584 | S89: 0.002990772686 | T89: 0.0029 | V89: 0 | W89: 0 | X89: 0 | Z89: 0.01579522184 | AA89: 0.0055892 | AB89: 0.0010652 | AD89: 545
L90: 413 | M90: 0 | N90: 0 | O90: 0 | R90: 0.002465940789 | S90: 0.002763837404 | T90: 0.0041 | V90: 0 | W90: 0 | X90: 0 | Z90: 0.01621843003 | AA90: 0.0063508 | AB90: 0.0013048 | AD90: 550
L91: 414 | M91: 0 | N91: 0 | O91: 0 | R91: 0.002543387642 | S91: 0.002573702437 | T91: 0.0049 | V91: 0 | W91: 0 | X91: 0 | Z91: 0.01666894198 | AA91: 0.0071124 | AB91: 0.0015444 | AD91: 555
L92: 415 | M92: 0 | N92: 0 | O92: 0 | R92: 0.002571920693 | S92: 0.002493968419 | T92: 0.0057 | V92: 0 | W92: 0 | X92: 0 | Z92: 0.01706484641 | AA92: 0.007874 | AB92: 0.001784 | AD92: 560
L93: 416 | M93: 0 | N93: 0 | O93: 0 | R93: 0.002519840056 | S93: 0.002506302046 | T93: 0.0063 | V93: 0 | W93: 0 | X93: 0 | Z93: 0.01738794084 | AA93: 0.009832 | AB93: 0.002385 | AD93: 565
L94: 417 | M94: 0 | N94: 0 | O94: 0 | R94: 0.002395647768 | S94: 0.002536129737 | T94: 0.0081 | V94: 0 | W94: 0 | X94: 0 | Z94: 0.01769283276 | AA94: 0.01179 | AB94: 0.002986 | AD94: 570
L95: 418 | M95: 0 | N95: 0 | O95: 0 | R95: 0.002247418263 | S95: 0.002572691708 | T95: 0.0084 | V95: 0 | W95: 0 | X95: 0 | Z95: 0.01800682594 | AA95: 0.013748 | AB95: 0.003587 | AD95: 575
L96: 419 | M96: 0 | N96: 0 | O96: 0 | R96: 0.002123225974 | S96: 0.002605228178 | T96: 0.0099 | V96: 0 | W96: 0 | X96: 0 | Z96: 0.01835722412 | AA96: 0.015706 | AB96: 0.004188 | AD96: 580
L97: 420 | M97: 0 | N97: 0 | O97: 0 | R97: 0.002071145338 | S97: 0.002622979363 | T97: 0.0113 | V97: 0 | W97: 0 | X97: 0 | Z97: 0.01877133106 | AA97: 0.017664 | AB97: 0.004789 | AD97: 585
L98: 421 | M98: 0 | N98: 0 | O98: 0 | R98: 0.002076606334 | S98: 0.002629340071 | T98: 0.0128 | V98: 0 | W98: 0 | X98: 0 | Z98: 0.0193447099 | AA98: 0.021981 | AB98: 0.0061002 | AD98: 590
L99: 422 | M99: 0 | N99: 0 | O99: 0 | R99: 0.002092117022 | S99: 0.002634714635 | T99: 0.0145 | V99: 0 | W99: 0 | X99: 0 | Z99: 0.02008191126 | AA99: 0.026299 | AB99: 0.0074114 | AD99: 595
L100: 423 | M100: 0 | N100: 0 | O100: 0 | R100: 0.002116368954 | S100: 0.002638857558 | T100: 0.0159 | V100: 0 | W100: 0 | X100: 0 | Z100: 0.02087372013 | AA100: 0.030616 | AB100: 0.0087226 | AD100: 600
L101: 424 | M101: 0 | N101: 0 | O101: 0 | R101: 0.00214805368 | S101: 0.002641523343 | T101: 0.0179 | V101: 0 | W101: 0 | X101: 0 | Z101: 0.0216109215 | AA101: 0.034934 | AB101: 0.010034 | AD101: 605
L102: 425 | M102: 0 | N102: 0 | O102: 0 | R102: 0.002185862752 | S102: 0.002642466493 | T102: 0.0201 | V102: 0 | W102: 0 | X102: 0 | Z102: 0.02218430034 | AA102: 0.039251 | AB102: 0.011345 | AD102: 610
L103: 426 | M103: 0 | N103: 0 | O103: 0 | R103: 0.002270563122 | S103: 0.00257360164 | T103: 0.0204 | V103: 0 | W103: 0 | X103: 0 | Z103: 0.02259840728 | AA103: 0.047879 | AB103: 0.013826 | AD103: 615
L104: 427 | M104: 0 | N104: 0 | O104: 0 | R104: 0.002425474902 | S104: 0.002409385452 | T104: 0.0216 | V104: 0 | W104: 0 | X104: 0 | Z104: 0.02294880546 | AA104: 0.056508 | AB104: 0.016308 | AD104: 620
L105: 428 | M105: 0 | N105: 0 | O105: 0 | R105: 0.002623119376 | S105: 0.002213385486 | T105: 0.0226 | V105: 0 | W105: 0 | X105: 0 | Z105: 0.02326279863 | AA105: 0.065136 | AB105: 0.018789 | AD105: 625
L106: 429 | M106: 0 | N106: 0 | O106: 0 | R106: 0.002836017827 | S106: 0.002049169298 | T106: 0.0245 | V106: 0 | W106: 0 | X106: 0 | Z106: 0.02356769056 | AA106: 0.073765 | AB106: 0.021271 | AD106: 630
L107: 430 | M107: 0 | N107: 0 | O107: 0 | R107: 0.00303669154 | S107: 0.001980304445 | T107: 0.0246 | V107: 0 | W107: 0 | X107: 0 | Z107: 0.02389078498 | AA107: 0.082393 | AB107: 0.023752 | AD107: 635
L108: 431 | M108: 0 | N108: 0 | O108: 0 | R108: 0.003209192718 | S108: 0.002133154784 | T108: 0.0249 | V108: 0 | W108: 0 | X108: 0 | Z108: 0.02419307655 | AA108: 0.094811 | AB108: 0.027893 | AD108: 640
L109: 432 | M109: 0 | N109: 0 | O109: 0 | R109: 0.003372439835 | S109: 0.002514801408 | T109: 0.0254 | V109: 0 | W109: 0 | X109: 0 | Z109: 0.02445636275 | AA109: 0.10723 | AB109: 0.032034 | AD109: 645
L110: 433 | M110: 0 | N110: 0 | O110: 0 | R110: 0.003551253589 | S110: 0.003009887727 | T110: 0.0251 | V110: 0 | W110: 0 | X110: 0 | Z110: 0.02473915163 | AA110: 0.11965 | AB110: 0.036176 | AD110: 650
L111: 434 | M111: 0 | N111: 0 | O111: 0 | R111: 0.003770454675 | S111: 0.003503057154 | T111: 0.0259 | V111: 0 | W111: 0 | X111: 0 | Z111: 0.02509995124 | AA111: 0.13207 | AB111: 0.040317
L112: 435 | M112: 0 | N112: 0 | O112: 0 | R112: 0.004054863788 | S112: 0.003878953101 | T112: 0.0255 | V112: 0 | W112: 0 | X112: 0 | Z112: 0.02559726962 | AA112: 0.14449 | AB112: 0.044458 | AD112: 660
L113: 436 | M113: 0 | N113: 0 | O113: 0 | R113: 0.004683194286 | S113: 0.004112713842 | T113: 0.0253 | V113: 0 | W113: 0 | X113: 0 | Z113: 0.02703656752 | AA113: 0.16095 | AB113: 0.051405
L114: 437 | M114: 0 | N114: 0 | O114: 0 | R114: 0.00571110626 | S114: 0.00428972008 | T114: 0.0252 | V114: 0 | W114: 0 | X114: 0 | Z114: 0.02962262311 | AA114: 0.17742 | AB114: 0.058352
L115: 438 | M115: 0 | N115: 0 | O115: 0 | R115: 0.006828840499 | S115: 0.004459978861 | T115: 0.0256 | V115: 0 | W115: 0 | X115: 0 | Z115: 0.03251292052 | AA115: 0.19389 | AB115: 0.065298
L116: 439 | M116: 0 | N116: 0 | O116: 0 | R116: 0.007726637795 | S116: 0.004673497233 | T116: 0.0251 | V116: 0 | W116: 0 | X116: 0 | Z116: 0.03486494393 | AA116: 0.21036 | AB116: 0.072245
L117: 440 | M117: 0 | N117: 0 | O117: 0 | R117: 0.008094738941 | S117: 0.004980282244 | T117: 0.0239 | V117: 0 | W117: 0 | X117: 0 | Z117: 0.03583617747 | AA117: 0.22683 | AB117: 0.079192
L118: 441 | M118: 0 | N118: 0 | O118: 0 | R118: 0.00792674565 | S118: 0.005674711557 | T118: 0.0235 | V118: 0 | W118: 0 | X118: 0 | Z118: 0.03423890785 | AA118: 0.25321 | AB118: 0.093544
L119: 442 | M119: 0 | N119: 0 | O119: 0 | R119: 0.007515477922 | S119: 0.006850903774 | T119: 0.0216 | V119: 0 | W119: 0 | X119: 0 | Z119: 0.03043003413 | AA119: 0.2796 | AB119: 0.1079
L120: 443 | M120: 0 | N120: 0 | O120: 0 | R120: 0.007000003975 | S120: 0.008258477347 | T120: 0.0185 | V120: 0 | W120: 0 | X120: 0 | Z120: 0.02588395904 | AA120: 0.30598 | AB120: 0.12225
L121: 444 | M121: =IF($F$27=1,R121,IF($F$27=2,V121,Z121)) -> 0 | N121: =IF($F$27=1,S121,IF($F$27=2,W121,AA121)) -> 0 | O121: =IF($F$27=1,T121,IF($F$27=2,X121,AB121)) -> 0 | R121: 0.006519392027 | S121: 0.009647050729 | T121: 0.0172 | V121: 0 | W121: 0 | X121: 0 | Z121: 0.02207508532 | AA121: 0.33237 | AB121: 0.1366
L122: 445 | M122: 0 | N122: 0 | O122: 0 | R122: 0.006212710297 | S122: 0.01076624237 | T122: 0.0153 | V122: 0 | W122: 0 | X122: 0 | Z122: 0.0204778157 | AA122: 0.35875 | AB122: 0.15095
L123: 446 | M123: 0 | N123: 0 | O123: 0 | R123: 0.006067697423 | S123: 0.01172653159 | T123: 0.013 | V123: 0 | W123: 0 | X123: 0 | Z123: 0.02473720136 | AA123: 0.38332 | AB123: 0.17857
L124: 447 | M124: 0 | N124: 0 | O124: 0 | R124: 0.005963181665 | S124: 0.01271340921 | T124: 0.0113 | V124: 0 | W124: 0 | X124: 0 | Z124: 0.03489419795 | AA124: 0.4079 | AB124: 0.20619
L125: 448 | M125: 0 | N125: 0 | O125: 0 | R125: 0.005874865673 | S125: 0.01358901093 | T125: 0.0089 | V125: 0 | W125: 0 | X125: 0 | Z125: 0.04701706484 | AA125: 0.43247 | AB125: 0.23381
L126: 449 | M126: 0 | N126: 0 | O126: 0 | R126: 0.005778452096 | S126: 0.01421547244 | T126: 0.0076 | V126: 0 | W126: 0 | X126: 0 | Z126: 0.05717406143 | AA126: 0.45704 | AB126: 0.26143
L127: 450 | M127: 0 | N127: 0 | O127: 0 | R127: 0.005649643584 | S127: 0.01445492946 | T127: 0.0062 | V127: 0 | W127: 0 | X127: 0 | Z127: 0.06143344709 | AA127: 0.48162 | AB127: 0.28905
L128: 451 | M128: 0 | N128: 0 | O128: 0 | R128: 0.005427343036 | S128: 0.01421462133 | T128: 0.0051 | V128: 0 | W128: 0 | X128: 0 | Z128: 0.05946442635 | AA128: 0.47903 | AB128: 0.31621
L129: 452 | M129: 0 | N129: 0 | O129: 0 | R129: 0.005118655253 | S129: 0.01361254833 | T129: 0.0045 | V129: 0 | W129: 0 | X129: 0 | Z129: 0.05450249409 | AA129: 0.47645 | AB129: 0.34336
L130: 453 | M130: 0 | N130: 0 | O130: 0 | R130: 0.004801585737 | S130: 0.0128269875 | T130: 0.0036 | V130: 0 | W130: 0 | X130: 0 | Z130: 0.04796534523 | AA130: 0.47386 | AB130: 0.37052
L131: 454 | M131: 0 | N131: 0 | O131: 0 | R131: 0.004554139992 | S131: 0.0120362159 | T131: 0.0032 | V131: 0 | W131: 0 | X131: 0 | Z131: 0.04127067471 | AA131: 0.47128 | AB131: 0.39768
L132: 455 | M132: 0 | N132: 0 | O132: 0 | R132: 0.004454323521 | S132: 0.01141851059 | T132: 0.0035 | V132: 0 | W132: 0 | X132: 0 | Z132: 0.03583617747 | AA132: 0.4687 | AB132: 0.42483
L133: 456 | M133: 0 | N133: 0 | O133: 0 | R133: 0.004460562758 | S133: 0.0109754682 | T133: 0.0026 | V133: 0 | W133: 0 | X133: 0 | Z133: 0.03111157784 | AA133: 0.44629 | AB133: 0.42119
L134: 457 | M134: 0 | N134: 0 | O134: 0 | R134: 0.00447555197 | S134: 0.01057834515 | T134: 0.0025 | V134: 0 | W134: 0 | X134: 0 | Z134: 0.02610974009 | AA134: 0.42387 | AB134: 0.41754
L135: 458 | M135: 0 | N135: 0 | O135: 0 | R135: 0.004493698402 | S135: 0.01020990817 | T135: 0.0025 | V135: 0 | W135: 0 | X135: 0 | Z135: 0.02159306904 | AA135: 0.40146 | AB135: 0.41389
L136: 459 | M136: 0 | N136: 0 | O136: 0 | R136: 0.004509409304 | S136: 0.009852924 | T136: 0.0023 | V136: 0 | W136: 0 | X136: 0 | Z136: 0.01832396954 | AA136: 0.37905 | AB136: 0.41024 | AD136: 780
L137: 460 | M137: 0 | N137: 0 | O137: 0 | R137: 0.004517091924 | S137: 0.009490159387 | T137: 0.0022 | V137: 0 | W137: 0 | X137: 0 | Z137: 0.01706484641 | AA137: 0.35664 | AB137: 0.40659
L138: 461 | M138: 0 | N138: 0 | O138: 0 | R138: 0.004518752047 | S138: 0.009125934299 | T138: 0.002 | V138: 0 | W138: 0 | X138: 0 | Z138: 0.01948837965 | AA138: 0.34068 | AB138: 0.37703
L139: 462 | M139: 0 | N139: 0 | O139: 0 | R139: 0.004520101615 | S139: 0.008771533886 | T139: 0.0019 | V139: 0 | W139: 0 | X139: 0 | Z139: 0.02542759629 | AA139: 0.32472 | AB139: 0.34746
L140: 463 | M140: 0 | N140: 0 | O140: 0 | R140: 0.004521107099 | S140: 0.008420172654 | T140: 0.0018 | V140: 0 | W140: 0 | X140: 0 | Z140: 0.03288542174 | AA140: 0.30877 | AB140: 0.31789
L141: 464 | M141: 0 | N141: 0 | O141: 0 | R141: 0.004521734976 | S141: 0.00806506511 | T141: 0.0016 | V141: 0 | W141: 0 | X141: 0 | Z141: 0.0398647814 | AA141: 0.29281 | AB141: 0.28832
L142: 465 | M142: 0 | N142: 0 | O142: 0 | R142: 0.004521951718 | S142: 0.007699425761 | T142: 0.0016 | V142: 0 | W142: 0 | X142: 0 | Z142: 0.04436860068 | AA142: 0.27685 | AB142: 0.25875
L143: 466 | M143: 0 | N143: 0 | O143: 0 | R143: 0.004463311495 | S143: 0.007279785104 | T143: 0.0018 | V143: 0 | W143: 0 | X143: 0 | Z143: 0.04692020152 | AA143: 0.26892 | AB143: 0.23407
L144: 467 | M144: 0 | N144: 0 | O144: 0 | R144: 0.004323477116 | S144: 0.006810403795 | T144: 0.0016 | V144: 0 | W144: 0 | X144: 0 | Z144: 0.04924427108 | AA144: 0.26099 | AB144: 0.20939
L145: 468 | M145: 0 | N145: 0 | O145: 0 | R145: 0.004156578018 | S145: 0.006356091579 | T145: 0.0015 | V145: 0 | W145: 0 | X145: 0 | Z145: 0.05114578254 | AA145: 0.25307 | AB145: 0.18471
L146: 469 | M146: 0 | N146: 0 | O146: 0 | R146: 0.00401674364 | S146: 0.005981658201 | T146: 0.0016 | V146: 0 | W146: 0 | X146: 0 | Z146: 0.05242970908 | AA146: 0.24514 | AB146: 0.16002
L147: 470 | M147: 0 | N147: 0 | O147: 0 | R147: 0.003958103416 | S147: 0.005751913406 | T147: 0.0013 | V147: 0 | W147: 0 | X147: 0 | Z147: 0.05290102389 | AA147: 0.23721 | AB147: 0.13534
L148: 471 | M148: 0 | N148: 0 | O148: 0 | R148: 0.004016743849 | S148: 0.005622241624 | T148: 0.0012 | V148: 0 | W148: 0 | X148: 0 | Z148: 0.0525607771 | AA148: 0.22882 | AB148: 0.12375
L149: 472 | M149: 0 | N149: 0 | O149: 0 | R149: 0.004156578729 | S149: 0.00550940802 | T149: 0.0014 | V149: 0 | W149: 0 | X149: 0 | Z149: 0.05160724599 | AA149: 0.22043 | AB149: 0.11215
L150: 473 | M150: 0 | N150: 0 | O150: 0 | R150: 0.004323478424 | S150: 0.005420293442 | T150: 0.0015 | V150: 0 | W150: 0 | X150: 0 | Z150: 0.05014124442 | AA150: 0.21203 | AB150: 0.10055
L151: 474 | M151: 0 | N151: 0 | O151: 0 | R151: 0.004463313303 | S151: 0.00536177874 | T151: 0.0017 | V151: 0 | W151: 0 | X151: 0 | Z151: 0.04826358624 | AA151: 0.20364 | AB151: 0.088956
L152: 475 | M152: 0 | N152: 0 | O152: 0 | R152: 0.004521953737 | S152: 0.005340744762 | T152: 0.0013 | V152: 0 | W152: 0 | X152: 0 | Z152: 0.04607508532 | AA152: 0.19525 | AB152: 0.077359
L153: 476 | M153: 0 | N153: 0 | O153: 0 | R153: 0.004435751565 | S153: 0.005349051861 | T153: 0.0016 | V153: 0 | W153: 0 | X153: 0 | Z153: 0.04069204515 | AA153: 0.19191 | AB153: 0.072284
L154: 477 | M154: 0 | N154: 0 | O154: 0 | R154: 0.004230192541 | S154: 0.005368861097 | T154: 0.0018 | V154: 0 | W154: 0 | X154: 0 | Z154: 0.03119663953 | AA154: 0.18857 | AB154: 0.067208
L155: 478 | M155: 0 | N155: 0 | O155: 0 | R155: 0.003984847899 | S155: 0.005392504378 | T155: 0.0014 | V155: 0 | W155: 0 | X155: 0 | Z155: 0.02063848779 | AA155: 0.18524 | AB155: 0.062133
L156: 479 | M156: 0 | N156: 0 | O156: 0 | R156: 0.003779288875 | S156: 0.005412313614 | T156: 0.0015 | V156: 0 | W156: 0 | X156: 0 | Z156: 0.01206720924 | AA156: 0.1819 | AB156: 0.057057
L157: 480 | M157: 0 | N157: 0 | O157: 0 | R157: 0.003693086704 | S157: 0.005420620713 | T157: 0.0019 | V157: 0 | W157: 0 | X157: 0 | Z157: 0.008532423205 | AA157: 0.17856 | AB157: 0.051982
L158: 481 | M158: 0 | N158: 0 | O158: 0 | R158: 0.003700908164 | S158: 0.005332366829 | T158: 0.0019 | V158: 0 | W158: 0 | X158: 0 | Z158: 0.008532423207 | AA158: 0.17991 | AB158: 0.049957
L159: 482 | M159: 0 | N159: 0 | O159: 0 | R159: 0.00371955934 | S159: 0.005121913491 | T159: 0.0019 | V159: 0 | W159: 0 | X159: 0 | Z159: 0.008532423207 | AA159: 0.18125 | AB159: 0.047932
L160: 483 | M160: 0 | N160: 0 | O160: 0 | R160: 0.003741820422 | S160: 0.00487072317 | T160: 0.0022 | V160: 0 | W160: 0 | X160: 0 | Z160: 0.008532423207 | AA160: 0.1826 | AB160: 0.045906
L161: 484 | M161: 0 | N161: 0 | O161: 0 | R161: 0.003760471602 | S161: 0.004660258335 | T161: 0.0026 | V161: 0 | W161: 0 | X161: 0 | Z161: 0.008532423207 | AA161: 0.18395 | AB161: 0.043881
L162: 485 | M162: 0 | N162: 0 | O162: 0 | R162: 0.003768293071 | S162: 0.004571981457 | T162: 0.0028 | V162: 0 | W162: 0 | X162: 0 | Z162: 0.008532423207 | AA162: 0.1853 | AB162: 0.041856
L163: 486 | M163: 0 | N163: 0 | O163: 0 | R163: 0.00376829308 | S163: 0.004571955587 | T163: 0.0028 | V163: 0 | W163: 0 | X163: 0 | Z163: 0.008939879233 | AA163: 0.19213 | AB163: 0.042212
L164: 487 | M164: 0 | N164: 0 | O164: 0 | R164: 0.003768293088 | S164: 0.004571935466 | T164: 0.003 | V164: 0 | W164: 0 | X164: 0 | Z164: 0.01002782883 | AA164: 0.19896 | AB164: 0.042569
L165: 488 | M165: 0 | N165: 0 | O165: 0 | R165: 0.003768293093 | S165: 0.004571921092 | T165: 0.0035 | V165: 0 | W165: 0 | X165: 0 | Z165: 0.01159464426 | AA165: 0.2058 | AB165: 0.042925
L166: 489 | M166: 0 | N166: 0 | O166: 0 | R166: 0.003768293096 | S166: 0.004571912468 | T166: 0.0037 | V166: 0 | W166: 0 | X166: 0 | Z166: 0.01343869782 | AA166: 0.21263 | AB166: 0.043282
L167: 490 | M167: 0 | N167: 0 | O167: 0 | R167: 0.003768293097 | S167: 0.004571909593 | T167: 0.0046 | V167: 0 | W167: 0 | X167: 0 | Z167: 0.01535836177 | AA167: 0.21946 | AB167: 0.043638
L168: 491 | M168: 0 | N168: 0 | O168: 0 | R168: 0.003768292745 | S168: 0.004637762944 | T168: 0.0047 | V168: 0 | W168: 0 | X168: 0 | Z168: 0.01726288455 | AA168: 0.22879 | AB168: 0.04609
L169: 492 | M169: 0 | N169: 0 | O169: 0 | R169: 0.003768291687 | S169: 0.004794993754 | T169: 0.0055 | V169: 0 | W169: 0 | X169: 0 | Z169: 0.01941795269 | AA169: 0.23811 | AB169: 0.048542
L170: 493 | M170: 0 | N170: 0 | O170: 0 | R170: 0.003768289925 | S170: 0.004983108162 | T170: 0.0063 | V170: 0 | W170: 0 | X170: 0 | Z170: 0.02215659562 | AA170: 0.24744 | AB170: 0.050993
L171: 494 | M171: 0 | N171: 0 | O171: 0 | R171: 0.003768287458 | S171: 0.005141612306 | T171: 0.0074 | V171: 0 | W171: 0 | X171: 0 | Z171: 0.02581184276 | AA171: 0.25677 | AB171: 0.053445
L172: 495 | M172: 0 | N172: 0 | O172: 0 | R172: 0.003768284286 | S172: 0.005210012324 | T172: 0.0087 | V172: 0 | W172: 0 | X172: 0 | Z172: 0.03071672355 | AA172: 0.26609 | AB172: 0.055897
L173: 496 | M173: 0 | N173: 0 | O173: 0 | R173: 0.003697616327 | S173: 0.005212390199 | T173: 0.0097 | V173: 0 | W173: 0 | X173: 0 | Z173: 0.05225169095 | AA173: 0.28144 | AB173: 0.060322
L174: 497 | M174: 0 | N174: 0 | O174: 0 | R174: 0.003529105522 | S174: 0.005213648303 | T174: 0.0111 | V174: 0 | W174: 0 | X174: 0 | Z174: 0.09544697484 | AA174: 0.29679 | AB174: 0.064747
L175: 498 | M175: 0 | N175: 0 | O175: 0 | R175: 0.003327980906 | S175: 0.005214523353 | T175: 0.0124 | V175: 0 | W175: 0 | X175: 0 | Z175: 0.1451102699 | AA175: 0.31214 | AB175: 0.069172
L176: 499 | M176: 0 | N176: 0 | O176: 0 | R176: 0.003159471511 | S176: 0.005215752069 | T176: 0.0138 | V176: 0 | W176: 0 | X176: 0 | Z176: 0.1860492708 | AA176: 0.32749 | AB176: 0.073597
L177: 500 | M177: 0 | N177: 0 | O177: 0 | R177: 0.003088806372 | S177: 0.005218071167 | T177: 0.0149 | V177: 0 | W177: 0 | X177: 0 | Z177: 0.2030716723 | AA177: 0.34283 | AB177: 0.078022
L178: 501 | M178: 0 | N178: 0 | O178: 0 | R178: 0.003176139429 | S178: 0.005231759468 | T178: 0.0183 | V178: 0 | W178: 0 | X178: 0 | Z178: 0.1837640176 | AA178: 0.35637 | AB178: 0.085059
L179: 502 | M179: 0 | N179: 0 | O179: 0 | R179: 0.003395152141 | S179: 0.005264223056 | T179: 0.0198 | V179: 0 | W179: 0 | X179: 0 | Z179: 0.1376401755 | AA179: 0.3699 | AB179: 0.092096
L180: 503 | M180: 0 | N180: 0 | O180: 0 | R180: 0.003681364815 | S180: 0.005311889549 | T180: 0.0229 | V180: 0 | W180: 0 | X180: 0 | Z180: 0.08239882986 | AA180: 0.38343 | AB180: 0.099133
L181: 504 | M181: 0 | N181: 0 | O181: 0 | R181: 0.003970297758 | S181: 0.005371186566 | T181: 0.0258 | V181: 0 | W181: 0 | X181: 0 | Z181: 0.03573866409 | AA181: 0.39696 | AB181: 0.10617
L182: 505 | M182: 0 | N182: 0 | O182: 0 | R182: 0.004197471279 | S182: 0.005438541724 | T182: 0.0278 | V182: 0 | W182: 0 | X182: 0 | Z182: 0.0153583618 | AA182: 0.41049 | AB182: 0.11321
L183: 506 | M183: 0 | N183: 0 | O183: 0 | R183: 0.00435262895 | S183: 0.005530806844 | T183: 0.031 | V183: 0 | W183: 0 | X183: 0 | Z183: 0.01414529498 | AA183: 0.42058 | AB183: 0.12505
L184: 507 | M184: 0 | N184: 0 | O184: 0 | R184: 0.00448203663 | S184: 0.005665505113 | T184: 0.0348 | V184: 0 | W184: 0 | X184: 0 | Z184: 0.01319161385 | AA184: 0.43068 | AB184: 0.13689
L185: 508 | M185: =IF($F$27=1,R185,IF($F$27=2,V185,Z185)) -> 0 | N185: =IF($F$27=1,S185,IF($F$27=2,W185,AA185)) -> 0 | O185: =IF($F$27=1,T185,IF($F$27=2,X185,AB185)) -> 0 | R185: 0.004605998051 | S185: 0.005840071198 | T185: 0.0376 | V185: 0 | W185: 0 | X185: 0 | Z185: 0.01250316918 | AA185: 0.44077 | AB185: 0.14873
L186: 509 | M186: 0 | N186: 0 | O186: 0 | R186: 0.00474481695 | S186: 0.006051939767 | T186: 0.0406 | V186: 0 | W186: 0 | X186: 0 | Z186: 0.0120858118 | AA186: 0.45087 | AB186: 0.16057
L187: 510 | M187: 0 | N187: 0 | O187: 0 | R187: 0.00491879706 | S187: 0.006298545486 | T187: 0.0454 | V187: 0 | W187: 0 | X187: 0 | Z187: 0.01194539249 | AA187: 0.46096 | AB187: 0.17241
L188: 511 | M188: 0 | N188: 0 | O188: 0 | R188: 0.005130956577 | S188: 0.006613770089 | T188: 0.0474 | V188: 0 | W188: 0 | X188: 0 | Z188: 0.02188395904 | AA188: 0.47016 | AB188: 0.19223
L189: 512 | M189: 0 | N189: 0 | O189: 0 | R189: 0.005380721115 | S189: 0.007040383788 | T189: 0.0539 | V189: 0 | W189: 0 | X189: 0 | Z189: 0.04558361774 | AA189: 0.47936 | AB189: 0.21204
L190: 513 | M190: 0 | N190: 0 | O190: 0 | R190: 0.005683005541 | S190: 0.00758915397 | T190: 0.0576 | V190: 0 | W190: 0 | X190: 0 | Z190: 0.07387030716 | AA190: 0.48856 | AB190: 0.23186
L191: 514 | M191: 0 | N191: 0 | O191: 0 | R191: 0.006052724719 | S191: 0.008270848017 | T191: 0.0617 | V191: 0 | W191: 0 | X191: 0 | Z191: 0.09756996586 | AA191: 0.49776 | AB191: 0.25167
L192: 515 | M192: 0 | N192: 0 | O192: 0 | R192: 0.006504793514 | S192: 0.009096233316 | T192: 0.0651 | V192: 0 | W192: 0 | X192: 0 | Z192: 0.1075085324 | AA192: 0.50695 | AB192: 0.27149
L193: 516 | M193: 0 | N193: 0 | O193: 0 | R193: 0.007181789668 | S193: 0.01045837825 | T193: 0.0694 | V193: 0 | W193: 0 | X193: 0 | Z193: 0.09756996586 | AA193: 0.51201 | AB193: 0.29922
L194: 517 | M194: 0 | N194: 0 | O194: 0 | R194: 0.008170013031 | S194: 0.01256356807 | T194: 0.0728 | V194: 0 | W194: 0 | X194: 0 | Z194: 0.07387030716 | AA194: 0.51707 | AB194: 0.32695
L195: 518 | M195: 0 | N195: 0 | O195: 0 | R195: 0.009399961634 | S195: 0.01514239545 | T195: 0.0775 | V195: 0 | W195: 0 | X195: 0 | Z195: 0.04558361774 | AA195: 0.52212 | AB195: 0.35467
L196: 519 | M196: 0 | N196: 0 | O196: 0 | R196: 0.01080213351 | S196: 0.01792545308 | T196: 0.0829 | V196: 0 | W196: 0 | X196: 0 | Z196: 0.02188395904 | AA196: 0.52718 | AB196: 0.3824
L197: 520 | M197: 0 | N197: 0 | O197: 0 | R197: 0.01230702668 | S197: 0.02064333363 | T197: 0.0892 | V197: 0 | W197: 0 | X197: 0 | Z197: 0.01194539249 | AA197: 0.53223 | AB197: 0.41013
L198: 521 | M198: 0 | N198: 0 | O198: 0 | R198: 0.01404469604 | S198: 0.02325799148 | T198: 0.0922 | V198: 0 | W198: 0 | X198: 0 | Z198: 0.01194539249 | AA198: 0.53711 | AB198: 0.43707
L199: 522 | M199: 0 | N199: 0 | O199: 0 | R199: 0.01613198105 | S199: 0.02596520979 | T199: 0.0956 | V199: 0 | W199: 0 | X199: 0 | Z199: 0.01194539249 | AA199: 0.54199 | AB199: 0.46402
L200: 523 | M200: 0 | N200: 0 | O200: 0 | R200: 0.01847955667 | S200: 0.02884632437 | T200: 0.1002 | V200: 0 | W200: 0 | X200: 0 | Z200: 0.01194539249 | AA200: 0.54687 | AB200: 0.49096
L201: 524 | M201: 0 | N201: 0 | O201: 0 | R201: 0.02099809785 | S201: 0.03198267106 | T201: 0.1039 | V201: 0 | W201: 0 | X201: 0 | Z201: 0.01194539249 | AA201: 0.55176 | AB201: 0.51791
L202: 525 | M202: 0 | N202: 0 | O202: 0 | R202: 0.02359827953 | S202: 0.0354555857 | T202: 0.1106 | V202: 0 | W202: 0 | X202: 0 | Z202: 0.01194539249 | AA202: 0.55664 | AB202: 0.54485
L203: 526 | M203: 0 | N203: 0 | O203: 0 | R203: 0.02626345669 | S203: 0.0393742057 | T203: 0.115 | V203: 0 | W203: 0 | X203: 0 | Z203: 0.01194539249 | AA203: 0.5607 | AB203: 0.55637
L204: 527 | M204: 0 | N204: 0 | O204: 0 | R204: 0.02907933673 | S204: 0.04377262423 | T204: 0.1205 | V204: 0 | W204: 0 | X204: 0 | Z204: 0.01194539249 | AA204: 0.56477 | AB204: 0.56788
L205: 528 | M205: 0 | N205: 0 | O205: 0 | R205: 0.03211012318 | S205: 0.04861961074 | T205: 0.1234 | V205: 0 | W205: 0 | X205: 0 | Z205: 0.01194539249 | AA205: 0.56884 | AB205: 0.5794
L206: 529 | M206: 0 | N206: 0 | O206: 0 | R206: 0.03542001959 | S206: 0.05388393468 | T206: 0.1297 | V206: 0 | W206: 0 | X206: 0 | Z206: 0.01194539249 | AA206: 0.57291 | AB206: 0.59091
L207: 530 | M207: 0 | N207: 0 | O207: 0 | R207: 0.03907322948 | S207: 0.05953436549 | T207: 0.1349 | V207: 0 | W207: 0 | X207: 0 | Z207: 0.01194539249 | AA207: 0.57697 | AB207: 0.60243
L208: 531 | M208: 0 | N208: 0 | O208: 0 | R208: 0.04320933264 | S208: 0.06570468312 | T208: 0.1374 | V208: 0 | W208: 0 | X208: 0 | Z208: 0.01205005688 | AA208: 0.57645 | AB208: 0.59091
L209: 532 | M209: 0 | N209: 0 | O209: 0 | R209: 0.04788185566 | S209: 0.07252469341 | T209: 0.1425 | V209: 0 | W209: 0 | X209: 0 | Z209: 0.01232764505 | AA209: 0.57593 | AB209: 0.5794
... 248 more rows

Sheet Results Graphical
B1: This sheet displays several graphical results related to the ANSI/IES TM-30-18 calculations initiated on the Calculator sheet. For detailed numerical results, see the Results Numerical sheet. For printable reports, see the Simple Report, Intermediate Report,or Full Report sheets.
P2: Summary Results
P3: Source Properties
B4: Test Source and Reference Illuminant
B33: TM-30 Calculation Visualizations
B65: Color Rendition by Hue-Angle Bin
O67: Bin (j) | P67: Hue Angle
O68: 1 | P68: 0.0°–22.5°
O69: 2 | P69: 22.5° - 45.0°
O70: 3 | P70: 45.0° - 67.5°
O71: 4 | P71: 67.5° - 90.0°
O72: 5 | P72: 90.0°-112.5°
O73: 6 | P73: 112.5°-135.0°
O74: 7 | P74: 135.0°-157.5°
O75: 8 | P75: 157.5°-180.0°
O76: 9 | P76: 180.0°-202.5°
O77: 10 | P77: 202.5°-225.0°
O78: 11 | P78: 225.0°-247.5°
O79: 12 | P79: 247.5°-270.0°
O80: 13 | P80: 270.0°-292.5°
O81: 14 | P81: 292.5°-315.0°
O82: 15 | P82: 315.0°-337.5°
O83: 16 | P83: 337.5°-360.0°
B128: Color Rendition by Color Evaluation Sample (CES)
B150: Measure Comparisons

Sheet Results Numerical
U3: Color Evaluation Sample (CES) Calculations | DS3: Color Evaluation Sample (CES) Summary | EH3: Calculation Parameters | EL3: Spectral Power Distributions | EQ3: =SUM(EQ5:EQ405) -> 90.3718313
B4: Global Averages | E4: Test SPD Properties | V4: Source | W4: CES1 | X4: CES2 | Y4: CES3 | Z4: CES4 | AA4: CES5 | AB4: CES6 | AC4: CES7 | AD4: CES8 | AE4: CES9 | AF4: CES10 | AG4: CES11 | AH4: CES12 | AI4: CES13 | AJ4: CES14 | AK4: CES15 | AL4: CES16 | AM4: CES17 | AN4: CES18 | AO4: CES19 | AP4: CES20 | AQ4: CES21 | AR4: CES22 | AS4: CES23 | AT4: CES24 | AU4: CES25 | AV4: CES26 | AW4: CES27 | AX4: CES28 | AY4: CES29 | AZ4: CES30 | BA4: CES31 | BB4: CES32 | BC4: CES33 | BD4: CES34 | BE4: CES35 | BF4: CES36 | BG4: CES37 | BH4: CES38 | BI4: CES39 | BJ4: CES40 | BK4: CES41 | BL4: CES42 | BM4: CES43 | BN4: CES44 | BO4: CES45 | BP4: CES46 | BQ4: CES47 | BR4: CES48 | BS4: CES49 | BT4: CES50 | BU4: CES51 | BV4: CES52 | BW4: CES53 | BX4: CES54 | BY4: CES55 | BZ4: CES56 | CA4: CES57 | CB4: CES58 | CC4: CES59 | CD4: CES60 | CE4: CES61 | CF4: CES62 | CG4: CES63 | CH4: CES64 | CI4: CES65 | CJ4: CES66 | CK4: CES67 | CL4: CES68 | CM4: CES69 | CN4: CES70 | CO4: CES71 | CP4: CES72 | CQ4: CES73 | CR4: CES74 | CS4: CES75 | CT4: CES76 | CU4: CES77 | CV4: CES78 | CW4: CES79 | CX4: CES80 | CY4: CES81 | CZ4: CES82 | DA4: CES83 | DB4: CES84 | DC4: CES85 | DD4: CES86 | DE4: CES87 | DF4: CES88 | DG4: CES89 | DH4: CES90 | DI4: CES91 | DJ4: CES92 | DK4: CES93 | DL4: CES94 | DM4: CES95 | DN4: CES96 | DO4: CES97 | DP4: CES98 | DQ4: CES99 | DS4: i | DT4: J'r,i | DU4: a'r,i | DV4: b'r,i | DW4: J't,i | DX4: a't,i | DY4: b't,i | DZ4: ΔE | EA4: ΔE2 | EB4: hi | EC4: ΔC | ED4: ΔH | EE4: ΔHunwrap | EF4: j | EH4: IES TM-30-18 Scaling Factor | EL4: Wavelength (nm) | EM4: Test SPD | EN4: Test SPD (Y = 100) | EO4: Reference SPD (Y = 100) | EQ4: Test SPD (Max = 1) | ER4: WL for Vlookup | ES4: Ref SPD (Max =1)
B5: Fidelity Index (Rf) | C5: =10*LN(EXP((100-$EI$5*AVERAGE(W5:DQ5))/10)+1) -> 42.35033356 | E5: CCT | F5: =ROUND(RefCalc!D12,0)&" K" -> 1775 K | G5: u' | H5: =RefCalc!D10 -> 0.3253748449 | I5: x | J5: =RefCalc!D8 -> 0.5679782958 | K5: LER | L5: =683*SUMPRODUCT('Results Numerical'!EM5:EM405,CMF!C3:C403)/SUM('Results Numerical'!EM5:EM405) -> 358.6891757 | U5: ΔE | W5: =POWER(POWER(W146-W75,2)+POWER(W147-W76,2)+POWER(W148-W77,2),1/2) -> 6.332696073 | X5: 10.86659725 | Y5: 7.554787916 | Z5: 10.15636781 | AA5: 15.53339966 | AB5: 10.26807639 | AC5: 12.6850151 | AD5: 13.52956699 | AE5: 0.7144313523 | AF5: 13.06705363 | AG5: 15.19902148 | AH5: 15.03647263 | AI5: 9.098860173 | AJ5: 3.611525942 | AK5: 6.205810563 | AL5: 11.55933486 | AM5: 11.96545708 | AN5: 7.454826446 | AO5: 12.86934914 | AP5: 13.14562432 | AQ5: 14.61214822 | AR5: 14.44236024 | AS5: 5.377581129 | AT5: 11.18633226 | AU5: 15.96056284 | AV5: 12.53999663 | AW5: 5.409551163 | AX5: 6.702779178 | AY5: 10.66599988 | AZ5: 4.846833599 | BA5: 10.38954015 | BB5: 12.4959667 | BC5: =POWER(POWER(BC146-BC75,2)+POWER(BC147-BC76,2)+POWER(BC148-BC77,2),1/2) -> 5.698739399 | BD5: 11.51023769 | BE5: 6.010651194 | BF5: 1.201912358 | BG5: 7.56167998 | BH5: 3.512753425 | BI5: 2.806430285 | BJ5: 6.051490558 | BK5: 1.470615659 | BL5: 11.07759487 | BM5: 10.74203151 | BN5: 0.4315675055 | BO5: 8.182942596 | BP5: 6.479070531 | BQ5: 2.280154916 | BR5: 8.025707431 | BS5: 7.297500338 | BT5: 8.328567363 | BU5: 8.958617177 | BV5: 10.83438156 | BW5: 12.131174 | BX5: 6.10777615 | BY5: 7.594558724 | BZ5: 11.65792041 | CA5: 12.46072745 | CB5: 11.76197415 | CC5: 7.319911109 | CD5: 3.642372887 | CE5: 7.663147573 | CF5: 4.458254545 | CG5: 4.718898143 | CH5: 13.29049009 | CI5: =POWER(POWER(CI146-CI75,2)+POWER(CI147-CI76,2)+POWER(CI148-CI77,2),1/2) -> 10.73731638 | CJ5: 14.28028514 | CK5: 14.38446198 | CL5: 11.28254503 | CM5: 8.114364741 | CN5: 11.6062559 | CO5: 13.1039075 | CP5: 4.808314892 | CQ5: 12.87090226 | CR5: 3.59590735 | CS5: 10.93933129 | CT5: 14.51963193 | CU5: 7.23248664 | CV5: 11.09743909 | CW5: 6.040287066 | CX5: 6.525134018 | CY5: 7.612595483 | CZ5: 3.236247843 | DA5: 4.72258528 | DB5: 1.911065397 | DC5: 5.513728714 | DD5: 8.149166904 | DE5: 4.617968711 | DF5: 5.102196346 | DG5: 7.846818911 | DH5: 5.178093836 | DI5: 2.346339099 | DJ5: 8.389615722 | DK5: 6.730491098 | DL5: 11.60944035 | DM5: 7.121982384 | DN5: 6.620152668 | DO5: 9.761611025 | DP5: 9.428111679 | DQ5: 10.39611086 | DS5: CES01 | DT5: =TRANSPOSE(W75:DQ77) -> 87.71695005 | DU5: 17.19368436 | DV5: 3.71537124 | DW5: =TRANSPOSE(W146:DQ148) -> 88.20498472 | DX5: 11.4613664 | DY5: 1.06860102 | DZ5: =TRANSPOSE(W5:DQ5) -> 6.332696073 | EA5: =DZ5^2 -> 40.10303955 | EB5: =MOD(ATAN2(DU5,DV5),2*PI()) -> 0.2128170997 | EC5: =(TRANSPOSE(W134:DQ134)-TRANSPOSE(W63:DQ63))/TRANSPOSE(W63:DQ63) -> -0.3917576025 | ED5: =(TRANSPOSE(W125:DQ125)-TRANSPOSE(W54:DQ54)) -> -6.86694563 | EE5: =IF(ED5>-180,IF(ED5<180,ED5,ED5-360),ED5+360) -> -6.86694563 | EF5: =FLOOR((EB5/2/PI())*16,1)+1 -> 1 | EH5: k | EI5: 6.73 | EL5: 380 | EM5: =IF(Calculator!$C$3,OFFSET('SPD Library'!B5,0,Calculator!$C$3-1),Calculator!C6) -> 0 | EN5: =RefCalc!B5 -> 0 | EO5: =RefCalc!F5 -> 0.005773122207 | EQ5: =EM5/MAX($EM$5:$EM$405) -> 0 | ER5: =EL5 -> 380 | ES5: =EO5/MAX($EO$5:$EO$405) -> 0.0006472079322
B6: Gamut Index (Rg) | C6: =SUMPRODUCT(C69:R69,C70:R70)/SUMPRODUCT(C67:R67,C68:R68)*100 -> 40.0002463 | E6: Duv | F6: =RefCalc!D13 -> 0.006246258243 | G6: v' | H6: =RefCalc!D11 -> 0.5497790455 | I6: y | J6: =RefCalc!D9 -> 0.4265337796 | U6: Rf,CESi | W6: =10*LN(EXP((100-$EI$5*W5)/10)+1) -> 57.41311264 | X6: 27.52661295 | Y6: 49.22932105 | Z6: 32.06121435 | AA6: 4.917019613 | AB6: 31.34099784 | AC6: 16.71253604 | AD6: 12.37318752 | AE6: 95.19261126 | AF6: 14.67799006 | AG6: 5.85213967 | AH6: 6.351594868 | AI6: 38.96979196 | AJ6: 75.69958888 | AK6: 58.26442394 | AL6: 23.23618215 | AM6: 20.80611724 | AN6: 49.89732563 | AO6: 15.71726035 | AP6: 14.27356012 | AQ6: 7.796008618 | AR6: 8.430813994 | AS6: 63.82580086 | AT6: 25.52671118 | AU6: 3.89619163 | AV6: 17.51213992 | AW6: 63.61101025 | AX6: 54.93152952 | AY6: 28.79579005 | AZ6: 67.39265205 | BA6: 30.56056422 | BB6: 17.75765659 | BC6: =10*LN(EXP((100-$EI$5*BC5)/10)+1) -> 61.66848425 | BD6: 23.53472938 | BE6: 59.57421669 | BF6: 91.91214919 | BG6: 49.18327581 | BH6: 76.36399624 | BI6: 81.1157251 | BJ6: 59.30008853 | BK6: 90.10397802 | BL6: 26.20340958 | BM6: 28.31353752 | BN6: 97.09615768 | BO6: 45.04005885 | BP6: 56.43133572 | BQ6: 84.65666339 | BR6: 46.08713507 | BS6: 50.94928867 | BT6: 44.07139075 | BU6: 39.89532429 | BV6: 27.72974048 | BW6: 19.83707598 | BX6: 58.92231279 | BY6: 48.96363757 | BZ6: 22.63964765 | CA6: 17.95504632 | CB6: 22.01447781 | CC6: 50.79939535 | CD6: 75.49209712 | CE6: 48.50556474 | CF6: 70.00506527 | CG6: 68.25268125 | CH6: 13.54135769 | CI6: =10*LN(EXP((100-$EI$5*CI5)/10)+1) -> 28.34340303 | CJ6: 9.066636559 | CK6: 8.654626166 | CL6: 24.9311563 | CM6: 45.49659599 | CN6: 22.95176835 | CO6: 14.48766469 | CP6: 67.65158008 | CQ6: 15.70897956 | CR6: 75.80464808 | CS6: 27.06904781 | CT6: 8.137913497 | CU6: 51.38420717 | CV6: 26.07963806 | CW6: 59.37528833 | CX6: 56.12244355 | CY6: 48.84316288 | CZ6: 78.22405938 | DA6: 68.22789379 | DB6: 87.14017268 | DC6: 62.91114987 | DD6: 45.26488222 | DE6: 68.93122313 | DF6: 65.67627974 | DG6: 47.27974583 | DH6: 65.16622598 | DI6: 84.21133975 | DJ6: 43.66564663 | DK6: 54.74580289 | DL6: 22.93249815 | DM6: 52.12369501 | DN6: 55.48537997 | DO6: =10*LN(EXP((100-$EI$5*DO5)/10)+1) -> 34.62295651 | DP6: =10*LN(EXP((100-$EI$5*DP5)/10)+1) -> 36.80416589 | DQ6: =10*LN(EXP((100-$EI$5*DQ5)/10)+1) -> 30.51842931 | DS6: CES02 | DT6: 67.31029246 | DU6: 32.31271255 | DV6: 7.636152939 | DW6: 66.87004785 | DX6: 23.19387657 | DY6: 1.742431635 | DZ6: 10.86659725 | EA6: 118.0829357 | EB6: 0.2320628827 | EC6: -0.3820583397 | ED6: -8.999969077 | EE6: =IF(ED6>-180,IF(ED6<180,ED6,ED6-360),ED6+360) -> -8.999969077 | EF6: =FLOOR((EB6/2/PI())*16,1)+1 -> 1 | EL6: 381 | EM6: =IF(Calculator!$C$3,OFFSET('SPD Library'!B6,0,Calculator!$C$3-1),Calculator!C7) -> 0 | EN6: =RefCalc!B6 -> 0 | EO6: =RefCalc!F6 -> 0.00602583766 | EQ6: =EM6/MAX($EM$5:$EM$405) -> 0 | ER6: =EL6 -> 381 | ES6: =EO6/MAX($EO$5:$EO$405) -> 0.0006755391264
DS7: CES03 | DT7: 33.75653016 | DU7: 19.633563 | DV7: 2.596448464 | DW7: 31.80425248 | DX7: 12.75812998 | DY7: 0.1486222559 | DZ7: 7.554787916 | EA7: 57.07482046 | EB7: 0.1314824538 | EC7: -0.4084144842 | ED7: -6.865968764 | EE7: -6.865968764 | EF7: 1 | EH7: CIECAM02 | EL7: 382 | EM7: =IF(Calculator!$C$3,OFFSET('SPD Library'!B7,0,Calculator!$C$3-1),Calculator!C8) -> 0 | EN7: =RefCalc!B7 -> 0 | EO7: =RefCalc!F7 -> 0.006287988905 | EQ7: 0 | ER7: 382 | ES7: 0.0007049281397
B8: Local Averages | U8: CIECAM02 Calculations: Reference Illuminant | DS8: CES04 | DT8: 72.31129008 | DU8: 17.52380028 | DV8: 9.405200232 | DW8: 74.67325292 | DX8: 9.15541867 | DY8: 4.157045509 | DZ8: 10.15636781 | EA8: 103.1518072 | EB8: 0.4925825936 | EC8: -0.5509055026 | ED8: -3.802336349 | EE8: -3.802336349 | EF8: 2 | EH8: LA (cd/m2) | EI8: 100 | EL8: 383 | EM8: =IF(Calculator!$C$3,OFFSET('SPD Library'!B8,0,Calculator!$C$3-1),Calculator!C9) -> 0 | EN8: =RefCalc!B8 -> 0 | EO8: =RefCalc!F8 -> 0.00655986177 | EQ8: 0 | ER8: 383 | ES8: 0.0007354070154
C9: j | D9: j | E9: j | F9: j | G9: j | H9: j | I9: j | J9: j | K9: j | L9: j | M9: j | N9: j | O9: j | P9: j | Q9: j | R9: j | U9: X | V9: =100*SUMPRODUCT($EO5:$EO405,CMF!$F3:$F403,CES!B$2:B$402)/SUMPRODUCT($EO5:$EO405,CMF!$G3:$G403) -> 136.3104817 | W9: =100*SUMPRODUCT($EO5:$EO405,CMF!$F3:$F403,CES!C$2:C$402)/SUMPRODUCT($EO5:$EO405,CMF!$G3:$G403) -> 103.2285429 | X9: =100*SUMPRODUCT($EO5:$EO405,CMF!$F3:$F403,CES!D$2:D$402)/SUMPRODUCT($EO5:$EO405,CMF!$G3:$G403) -> 61.64288635 | Y9: =100*SUMPRODUCT($EO5:$EO405,CMF!$F3:$F403,CES!E$2:E$402)/SUMPRODUCT($EO5:$EO405,CMF!$G3:$G403) -> 11.9123411 | Z9: =100*SUMPRODUCT($EO5:$EO405,CMF!$F3:$F403,CES!F$2:F$402)/SUMPRODUCT($EO5:$EO405,CMF!$G3:$G403) -> 63.8144318 | AA9: =100*SUMPRODUCT($EO5:$EO405,CMF!$F3:$F403,CES!G$2:G$402)/SUMPRODUCT($EO5:$EO405,CMF!$G3:$G403) -> 45.00231921 | AB9: =100*SUMPRODUCT($EO5:$EO405,CMF!$F3:$F403,CES!H$2:H$402)/SUMPRODUCT($EO5:$EO405,CMF!$G3:$G403) -> 32.26715003 | AC9: =100*SUMPRODUCT($EO5:$EO405,CMF!$F3:$F403,CES!I$2:I$402)/SUMPRODUCT($EO5:$EO405,CMF!$G3:$G403) -> 32.00627185 | AD9: =100*SUMPRODUCT($EO5:$EO405,CMF!$F3:$F403,CES!J$2:J$402)/SUMPRODUCT($EO5:$EO405,CMF!$G3:$G403) -> 30.09154237 | AE9: =100*SUMPRODUCT($EO5:$EO405,CMF!$F3:$F403,CES!K$2:K$402)/SUMPRODUCT($EO5:$EO405,CMF!$G3:$G403) -> 7.413428697 | AF9: =100*SUMPRODUCT($EO5:$EO405,CMF!$F3:$F403,CES!L$2:L$402)/SUMPRODUCT($EO5:$EO405,CMF!$G3:$G403) -> 95.83409039 | AG9: =100*SUMPRODUCT($EO5:$EO405,CMF!$F3:$F403,CES!M$2:M$402)/SUMPRODUCT($EO5:$EO405,CMF!$G3:$G403) -> 52.94468795 | AH9: =100*SUMPRODUCT($EO5:$EO405,CMF!$F3:$F403,CES!N$2:N$402)/SUMPRODUCT($EO5:$EO405,CMF!$G3:$G403) -> 68.82422875 | AI9: =100*SUMPRODUCT($EO5:$EO405,CMF!$F3:$F403,CES!O$2:O$402)/SUMPRODUCT($EO5:$EO405,CMF!$G3:$G403) -> 25.20066243 | AJ9: =100*SUMPRODUCT($EO5:$EO405,CMF!$F3:$F403,CES!P$2:P$402)/SUMPRODUCT($EO5:$EO405,CMF!$G3:$G403) -> 63.2896134 | AK9: =100*SUMPRODUCT($EO5:$EO405,CMF!$F3:$F403,CES!Q$2:Q$402)/SUMPRODUCT($EO5:$EO405,CMF!$G3:$G403) -> 65.88968593 | AL9: =100*SUMPRODUCT($EO5:$EO405,CMF!$F3:$F403,CES!R$2:R$402)/SUMPRODUCT($EO5:$EO405,CMF!$G3:$G403) -> 31.06078824 | AM9: =100*SUMPRODUCT($EO5:$EO405,CMF!$F3:$F403,CES!S$2:S$402)/SUMPRODUCT($EO5:$EO405,CMF!$G3:$G403) -> 30.89161429 | AN9: =100*SUMPRODUCT($EO5:$EO405,CMF!$F3:$F403,CES!T$2:T$402)/SUMPRODUCT($EO5:$EO405,CMF!$G3:$G403) -> 37.97759519 | AO9: =100*SUMPRODUCT($EO5:$EO405,CMF!$F3:$F403,CES!U$2:U$402)/SUMPRODUCT($EO5:$EO405,CMF!$G3:$G403) -> 68.09850816 | AP9: =100*SUMPRODUCT($EO5:$EO405,CMF!$F3:$F403,CES!V$2:V$402)/SUMPRODUCT($EO5:$EO405,CMF!$G3:$G403) -> 70.64776382 | AQ9: =100*SUMPRODUCT($EO5:$EO405,CMF!$F3:$F403,CES!W$2:W$402)/SUMPRODUCT($EO5:$EO405,CMF!$G3:$G403) -> 112.9258524 | AR9: =100*SUMPRODUCT($EO5:$EO405,CMF!$F3:$F403,CES!X$2:X$402)/SUMPRODUCT($EO5:$EO405,CMF!$G3:$G403) -> 92.3204696 | AS9: =100*SUMPRODUCT($EO5:$EO405,CMF!$F3:$F403,CES!Y$2:Y$402)/SUMPRODUCT($EO5:$EO405,CMF!$G3:$G403) -> 111.3904746 | AT9: =100*SUMPRODUCT($EO5:$EO405,CMF!$F3:$F403,CES!Z$2:Z$402)/SUMPRODUCT($EO5:$EO405,CMF!$G3:$G403) -> 115.2390061 | AU9: =100*SUMPRODUCT($EO5:$EO405,CMF!$F3:$F403,CES!AA$2:AA$402)/SUMPRODUCT($EO5:$EO405,CMF!$G3:$G403) -> 66.70442037 | AV9: =100*SUMPRODUCT($EO5:$EO405,CMF!$F3:$F403,CES!AB$2:AB$402)/SUMPRODUCT($EO5:$EO405,CMF!$G3:$G403) -> 116.2905828 | AW9: =100*SUMPRODUCT($EO5:$EO405,CMF!$F3:$F403,CES!AC$2:AC$402)/SUMPRODUCT($EO5:$EO405,CMF!$G3:$G403) -> 60.27831812 | AX9: =100*SUMPRODUCT($EO5:$EO405,CMF!$F3:$F403,CES!AD$2:AD$402)/SUMPRODUCT($EO5:$EO405,CMF!$G3:$G403) -> 16.07408535 | AY9: =100*SUMPRODUCT($EO5:$EO405,CMF!$F3:$F403,CES!AE$2:AE$402)/SUMPRODUCT($EO5:$EO405,CMF!$G3:$G403) -> 101.4191363 | AZ9: =100*SUMPRODUCT($EO5:$EO405,CMF!$F3:$F403,CES!AF$2:AF$402)/SUMPRODUCT($EO5:$EO405,CMF!$G3:$G403) -> 44.94919858 | BA9: =100*SUMPRODUCT($EO5:$EO405,CMF!$F3:$F403,CES!AG$2:AG$402)/SUMPRODUCT($EO5:$EO405,CMF!$G3:$G403) -> 105.0837678 | BB9: =100*SUMPRODUCT($EO5:$EO405,CMF!$F3:$F403,CES!AH$2:AH$402)/SUMPRODUCT($EO5:$EO405,CMF!$G3:$G403) -> 68.67202413 | BC9: =100*SUMPRODUCT($EO5:$EO405,CMF!$F3:$F403,CES!AI$2:AI$402)/SUMPRODUCT($EO5:$EO405,CMF!$G3:$G403) -> 104.928136 | BD9: =100*SUMPRODUCT($EO5:$EO405,CMF!$F3:$F403,CES!AJ$2:AJ$402)/SUMPRODUCT($EO5:$EO405,CMF!$G3:$G403) -> 39.4081192 | BE9: =100*SUMPRODUCT($EO5:$EO405,CMF!$F3:$F403,CES!AK$2:AK$402)/SUMPRODUCT($EO5:$EO405,CMF!$G3:$G403) -> 15.51199621 | BF9: =100*SUMPRODUCT($EO5:$EO405,CMF!$F3:$F403,CES!AL$2:AL$402)/SUMPRODUCT($EO5:$EO405,CMF!$G3:$G403) -> 74.62318507 | BG9: =100*SUMPRODUCT($EO5:$EO405,CMF!$F3:$F403,CES!AM$2:AM$402)/SUMPRODUCT($EO5:$EO405,CMF!$G3:$G403) -> 19.95242674 | BH9: =100*SUMPRODUCT($EO5:$EO405,CMF!$F3:$F403,CES!AN$2:AN$402)/SUMPRODUCT($EO5:$EO405,CMF!$G3:$G403) -> 90.50946046 | BI9: =100*SUMPRODUCT($EO5:$EO405,CMF!$F3:$F403,CES!AO$2:AO$402)/SUMPRODUCT($EO5:$EO405,CMF!$G3:$G403) -> 10.61259104 | BJ9: =100*SUMPRODUCT($EO5:$EO405,CMF!$F3:$F403,CES!AP$2:AP$402)/SUMPRODUCT($EO5:$EO405,CMF!$G3:$G403) -> 23.14760907 | BK9: =100*SUMPRODUCT($EO5:$EO405,CMF!$F3:$F403,CES!AQ$2:AQ$402)/SUMPRODUCT($EO5:$EO405,CMF!$G3:$G403) -> 94.32847391 | BL9: =100*SUMPRODUCT($EO5:$EO405,CMF!$F3:$F403,CES!AR$2:AR$402)/SUMPRODUCT($EO5:$EO405,CMF!$G3:$G403) -> 41.36552767 | BM9: =100*SUMPRODUCT($EO5:$EO405,CMF!$F3:$F403,CES!AS$2:AS$402)/SUMPRODUCT($EO5:$EO405,CMF!$G3:$G403) -> 47.27107914 | BN9: =100*SUMPRODUCT($EO5:$EO405,CMF!$F3:$F403,CES!AT$2:AT$402)/SUMPRODUCT($EO5:$EO405,CMF!$G3:$G403) -> 6.741298151 | BO9: =100*SUMPRODUCT($EO5:$EO405,CMF!$F3:$F403,CES!AU$2:AU$402)/SUMPRODUCT($EO5:$EO405,CMF!$G3:$G403) -> 25.87370969 | BP9: =100*SUMPRODUCT($EO5:$EO405,CMF!$F3:$F403,CES!AV$2:AV$402)/SUMPRODUCT($EO5:$EO405,CMF!$G3:$G403) -> 38.17374784 | BQ9: =100*SUMPRODUCT($EO5:$EO405,CMF!$F3:$F403,CES!AW$2:AW$402)/SUMPRODUCT($EO5:$EO405,CMF!$G3:$G403) -> 49.13329855 | BR9: =100*SUMPRODUCT($EO5:$EO405,CMF!$F3:$F403,CES!AX$2:AX$402)/SUMPRODUCT($EO5:$EO405,CMF!$G3:$G403) -> 52.07103956 | BS9: =100*SUMPRODUCT($EO5:$EO405,CMF!$F3:$F403,CES!AY$2:AY$402)/SUMPRODUCT($EO5:$EO405,CMF!$G3:$G403) -> 14.85083279 | BT9: =100*SUMPRODUCT($EO5:$EO405,CMF!$F3:$F403,CES!AZ$2:AZ$402)/SUMPRODUCT($EO5:$EO405,CMF!$G3:$G403) -> 22.41562856 | BU9: =100*SUMPRODUCT($EO5:$EO405,CMF!$F3:$F403,CES!BA$2:BA$402)/SUMPRODUCT($EO5:$EO405,CMF!$G3:$G403) -> 27.98440317 | BV9: =100*SUMPRODUCT($EO5:$EO405,CMF!$F3:$F403,CES!BB$2:BB$402)/SUMPRODUCT($EO5:$EO405,CMF!$G3:$G403) -> 10.51989197 | BW9: =100*SUMPRODUCT($EO5:$EO405,CMF!$F3:$F403,CES!BC$2:BC$402)/SUMPRODUCT($EO5:$EO405,CMF!$G3:$G403) -> 11.81975896 | BX9: =100*SUMPRODUCT($EO5:$EO405,CMF!$F3:$F403,CES!BD$2:BD$402)/SUMPRODUCT($EO5:$EO405,CMF!$G3:$G403) -> 78.1534155 | BY9: =100*SUMPRODUCT($EO5:$EO405,CMF!$F3:$F403,CES!BE$2:BE$402)/SUMPRODUCT($EO5:$EO405,CMF!$G3:$G403) -> 68.35163169 | BZ9: =100*SUMPRODUCT($EO5:$EO405,CMF!$F3:$F403,CES!BF$2:BF$402)/SUMPRODUCT($EO5:$EO405,CMF!$G3:$G403) -> 32.5145717 | CA9: =100*SUMPRODUCT($EO5:$EO405,CMF!$F3:$F403,CES!BG$2:BG$402)/SUMPRODUCT($EO5:$EO405,CMF!$G3:$G403) -> 16.15853644 | CB9: =100*SUMPRODUCT($EO5:$EO405,CMF!$F3:$F403,CES!BH$2:BH$402)/SUMPRODUCT($EO5:$EO405,CMF!$G3:$G403) -> 13.28708018 | CC9: =100*SUMPRODUCT($EO5:$EO405,CMF!$F3:$F403,CES!BI$2:BI$402)/SUMPRODUCT($EO5:$EO405,CMF!$G3:$G403) -> 78.2576372 | CD9: =100*SUMPRODUCT($EO5:$EO405,CMF!$F3:$F403,CES!BJ$2:BJ$402)/SUMPRODUCT($EO5:$EO405,CMF!$G3:$G403) -> 90.63875432 | CE9: =100*SUMPRODUCT($EO5:$EO405,CMF!$F3:$F403,CES!BK$2:BK$402)/SUMPRODUCT($EO5:$EO405,CMF!$G3:$G403) -> 56.36889144 | CF9: =100*SUMPRODUCT($EO5:$EO405,CMF!$F3:$F403,CES!BL$2:BL$402)/SUMPRODUCT($EO5:$EO405,CMF!$G3:$G403) -> 43.80091373 | CG9: =100*SUMPRODUCT($EO5:$EO405,CMF!$F3:$F403,CES!BM$2:BM$402)/SUMPRODUCT($EO5:$EO405,CMF!$G3:$G403) -> 9.787735862 | CH9: =100*SUMPRODUCT($EO5:$EO405,CMF!$F3:$F403,CES!BN$2:BN$402)/SUMPRODUCT($EO5:$EO405,CMF!$G3:$G403) -> 17.94648776 | CI9: =100*SUMPRODUCT($EO5:$EO405,CMF!$F3:$F403,CES!BO$2:BO$402)/SUMPRODUCT($EO5:$EO405,CMF!$G3:$G403) -> 9.021431993 | CJ9: =100*SUMPRODUCT($EO5:$EO405,CMF!$F3:$F403,CES!BP$2:BP$402)/SUMPRODUCT($EO5:$EO405,CMF!$G3:$G403) -> 9.478920378 | CK9: =100*SUMPRODUCT($EO5:$EO405,CMF!$F3:$F403,CES!BQ$2:BQ$402)/SUMPRODUCT($EO5:$EO405,CMF!$G3:$G403) -> 11.11272643 | CL9: =100*SUMPRODUCT($EO5:$EO405,CMF!$F3:$F403,CES!BR$2:BR$402)/SUMPRODUCT($EO5:$EO405,CMF!$G3:$G403) -> 31.94206896 | CM9: =100*SUMPRODUCT($EO5:$EO405,CMF!$F3:$F403,CES!BS$2:BS$402)/SUMPRODUCT($EO5:$EO405,CMF!$G3:$G403) -> 24.4840946 | CN9: =100*SUMPRODUCT($EO5:$EO405,CMF!$F3:$F403,CES!BT$2:BT$402)/SUMPRODUCT($EO5:$EO405,CMF!$G3:$G403) -> 42.69514848 | CO9: =100*SUMPRODUCT($EO5:$EO405,CMF!$F3:$F403,CES!BU$2:BU$402)/SUMPRODUCT($EO5:$EO405,CMF!$G3:$G403) -> 7.402324817 | CP9: =100*SUMPRODUCT($EO5:$EO405,CMF!$F3:$F403,CES!BV$2:BV$402)/SUMPRODUCT($EO5:$EO405,CMF!$G3:$G403) -> 60.68111182 | CQ9: =100*SUMPRODUCT($EO5:$EO405,CMF!$F3:$F403,CES!BW$2:BW$402)/SUMPRODUCT($EO5:$EO405,CMF!$G3:$G403) -> 20.37811098 | CR9: =100*SUMPRODUCT($EO5:$EO405,CMF!$F3:$F403,CES!BX$2:BX$402)/SUMPRODUCT($EO5:$EO405,CMF!$G3:$G403) -> 6.66140319 | CS9: =100*SUMPRODUCT($EO5:$EO405,CMF!$F3:$F403,CES!BY$2:BY$402)/SUMPRODUCT($EO5:$EO405,CMF!$G3:$G403) -> 6.810510938 | CT9: =100*SUMPRODUCT($EO5:$EO405,CMF!$F3:$F403,CES!BZ$2:BZ$402)/SUMPRODUCT($EO5:$EO405,CMF!$G3:$G403) -> 15.08225844 | CU9: =100*SUMPRODUCT($EO5:$EO405,CMF!$F3:$F403,CES!CA$2:CA$402)/SUMPRODUCT($EO5:$EO405,CMF!$G3:$G403) -> 15.65608851 | CV9: =100*SUMPRODUCT($EO5:$EO405,CMF!$F3:$F403,CES!CB$2:CB$402)/SUMPRODUCT($EO5:$EO405,CMF!$G3:$G403) -> 12.67124914 | CW9: =100*SUMPRODUCT($EO5:$EO405,CMF!$F3:$F403,CES!CC$2:CC$402)/SUMPRODUCT($EO5:$EO405,CMF!$G3:$G403) -> 56.26294808 | CX9: =100*SUMPRODUCT($EO5:$EO405,CMF!$F3:$F403,CES!CD$2:CD$402)/SUMPRODUCT($EO5:$EO405,CMF!$G3:$G403) -> 43.53869363 | CY9: =100*SUMPRODUCT($EO5:$EO405,CMF!$F3:$F403,CES!CE$2:CE$402)/SUMPRODUCT($EO5:$EO405,CMF!$G3:$G403) -> 19.34715881 | CZ9: =100*SUMPRODUCT($EO5:$EO405,CMF!$F3:$F403,CES!CF$2:CF$402)/SUMPRODUCT($EO5:$EO405,CMF!$G3:$G403) -> 91.53356201 | DA9: =100*SUMPRODUCT($EO5:$EO405,CMF!$F3:$F403,CES!CG$2:CG$402)/SUMPRODUCT($EO5:$EO405,CMF!$G3:$G403) -> 56.91584202 | DB9: =100*SUMPRODUCT($EO5:$EO405,CMF!$F3:$F403,CES!CH$2:CH$402)/SUMPRODUCT($EO5:$EO405,CMF!$G3:$G403) -> 7.123373787 | DC9: =100*SUMPRODUCT($EO5:$EO405,CMF!$F3:$F403,CES!CI$2:CI$402)/SUMPRODUCT($EO5:$EO405,CMF!$G3:$G403) -> 16.66616467 | DD9: =100*SUMPRODUCT($EO5:$EO405,CMF!$F3:$F403,CES!CJ$2:CJ$402)/SUMPRODUCT($EO5:$EO405,CMF!$G3:$G403) -> 50.2918151 | DE9: =100*SUMPRODUCT($EO5:$EO405,CMF!$F3:$F403,CES!CK$2:CK$402)/SUMPRODUCT($EO5:$EO405,CMF!$G3:$G403) -> 17.06013774 | DF9: =100*SUMPRODUCT($EO5:$EO405,CMF!$F3:$F403,CES!CL$2:CL$402)/SUMPRODUCT($EO5:$EO405,CMF!$G3:$G403) -> 47.46132403 | DG9: =100*SUMPRODUCT($EO5:$EO405,CMF!$F3:$F403,CES!CM$2:CM$402)/SUMPRODUCT($EO5:$EO405,CMF!$G3:$G403) -> 17.19830106 | DH9: =100*SUMPRODUCT($EO5:$EO405,CMF!$F3:$F403,CES!CN$2:CN$402)/SUMPRODUCT($EO5:$EO405,CMF!$G3:$G403) -> 22.90752039 | DI9: =100*SUMPRODUCT($EO5:$EO405,CMF!$F3:$F403,CES!CO$2:CO$402)/SUMPRODUCT($EO5:$EO405,CMF!$G3:$G403) -> 76.10384915 | DJ9: =100*SUMPRODUCT($EO5:$EO405,CMF!$F3:$F403,CES!CP$2:CP$402)/SUMPRODUCT($EO5:$EO405,CMF!$G3:$G403) -> 39.50190802 | DK9: =100*SUMPRODUCT($EO5:$EO405,CMF!$F3:$F403,CES!CQ$2:CQ$402)/SUMPRODUCT($EO5:$EO405,CMF!$G3:$G403) -> 55.37338059 | DL9: =100*SUMPRODUCT($EO5:$EO405,CMF!$F3:$F403,CES!CR$2:CR$402)/SUMPRODUCT($EO5:$EO405,CMF!$G3:$G403) -> 22.22118583 | DM9: =100*SUMPRODUCT($EO5:$EO405,CMF!$F3:$F403,CES!CS$2:CS$402)/SUMPRODUCT($EO5:$EO405,CMF!$G3:$G403) -> 66.11116356 | DN9: =100*SUMPRODUCT($EO5:$EO405,CMF!$F3:$F403,CES!CT$2:CT$402)/SUMPRODUCT($EO5:$EO405,CMF!$G3:$G403) -> 83.48846091 | DO9: =100*SUMPRODUCT($EO5:$EO405,CMF!$F3:$F403,CES!CU$2:CU$402)/SUMPRODUCT($EO5:$EO405,CMF!$G3:$G403) -> 34.00049472 | DP9: =100*SUMPRODUCT($EO5:$EO405,CMF!$F3:$F403,CES!CV$2:CV$402)/SUMPRODUCT($EO5:$EO405,CMF!$G3:$G403) -> 63.71752842 | DQ9: =100*SUMPRODUCT($EO5:$EO405,CMF!$F3:$F403,CES!CW$2:CW$402)/SUMPRODUCT($EO5:$EO405,CMF!$G3:$G403) -> 46.13111778 | DS9: CES05 | DT9: 56.62472988 | DU9: 37.00856437 | DV9: 11.41682695 | DW9: 53.17461617 | DX9: 24.61313857 | DY9: 2.714146928 | DZ9: 15.53339966 | EA9: 241.2865049 | EB9: 0.299228826 | EC9: -0.465027562 | ED9: -10.85183677 | EE9: -10.85183677 | EF9: 1 | EH9: Yb | EI9: 20 | EL9: 384 | EM9: =IF(Calculator!$C$3,OFFSET('SPD Library'!B9,0,Calculator!$C$3-1),Calculator!C10) -> 0 | EN9: =RefCalc!B9 -> 0 | EO9: =RefCalc!F9 -> 0.006841748413 | EQ9: 0 | ER9: 384 | ES9: 0.0007670085067
B10: Hue-Angle Bin (j) | C10: 1 | D10: 2 | E10: 3 | F10: 4 | G10: 5 | H10: 6 | I10: 7 | J10: 8 | K10: 9 | L10: 10 | M10: 11 | N10: 12 | O10: 13 | P10: 14 | Q10: 15 | R10: 16 | U10: Y | V10: =100*SUMPRODUCT($EO5:$EO405,CMF!$G3:$G403,CES!B$2:B$402)/SUMPRODUCT($EO5:$EO405,CMF!$G3:$G403) -> 100 | W10: =100*SUMPRODUCT($EO5:$EO405,CMF!$G3:$G403,CES!C$2:C$402)/SUMPRODUCT($EO5:$EO405,CMF!$G3:$G403) -> 68.30386062 | X10: =100*SUMPRODUCT($EO5:$EO405,CMF!$G3:$G403,CES!D$2:D$402)/SUMPRODUCT($EO5:$EO405,CMF!$G3:$G403) -> 34.50190152 | Y10: =100*SUMPRODUCT($EO5:$EO405,CMF!$G3:$G403,CES!E$2:E$402)/SUMPRODUCT($EO5:$EO405,CMF!$G3:$G403) -> 7.037900385 | Z10: =100*SUMPRODUCT($EO5:$EO405,CMF!$G3:$G403,CES!F$2:F$402)/SUMPRODUCT($EO5:$EO405,CMF!$G3:$G403) -> 40.89545536 | AA10: =100*SUMPRODUCT($EO5:$EO405,CMF!$G3:$G403,CES!G$2:G$402)/SUMPRODUCT($EO5:$EO405,CMF!$G3:$G403) -> 23.18217007 | AB10: =100*SUMPRODUCT($EO5:$EO405,CMF!$G3:$G403,CES!H$2:H$402)/SUMPRODUCT($EO5:$EO405,CMF!$G3:$G403) -> 19.88546842 | AC10: =100*SUMPRODUCT($EO5:$EO405,CMF!$G3:$G403,CES!I$2:I$402)/SUMPRODUCT($EO5:$EO405,CMF!$G3:$G403) -> 16.2388851 | AD10: =100*SUMPRODUCT($EO5:$EO405,CMF!$G3:$G403,CES!J$2:J$402)/SUMPRODUCT($EO5:$EO405,CMF!$G3:$G403) -> 15.37777796 | AE10: =100*SUMPRODUCT($EO5:$EO405,CMF!$G3:$G403,CES!K$2:K$402)/SUMPRODUCT($EO5:$EO405,CMF!$G3:$G403) -> 5.140413827 | AF10: =100*SUMPRODUCT($EO5:$EO405,CMF!$G3:$G403,CES!L$2:L$402)/SUMPRODUCT($EO5:$EO405,CMF!$G3:$G403) -> 55.34743221 | AG10: =100*SUMPRODUCT($EO5:$EO405,CMF!$G3:$G403,CES!M$2:M$402)/SUMPRODUCT($EO5:$EO405,CMF!$G3:$G403) -> 30.02027308 | AH10: =100*SUMPRODUCT($EO5:$EO405,CMF!$G3:$G403,CES!N$2:N$402)/SUMPRODUCT($EO5:$EO405,CMF!$G3:$G403) -> 38.58937653 | AI10: =100*SUMPRODUCT($EO5:$EO405,CMF!$G3:$G403,CES!O$2:O$402)/SUMPRODUCT($EO5:$EO405,CMF!$G3:$G403) -> 14.58827011 | AJ10: =100*SUMPRODUCT($EO5:$EO405,CMF!$G3:$G403,CES!P$2:P$402)/SUMPRODUCT($EO5:$EO405,CMF!$G3:$G403) -> 44.25939685 | AK10: =100*SUMPRODUCT($EO5:$EO405,CMF!$G3:$G403,CES!Q$2:Q$402)/SUMPRODUCT($EO5:$EO405,CMF!$G3:$G403) -> 42.71251238 | AL10: =100*SUMPRODUCT($EO5:$EO405,CMF!$G3:$G403,CES!R$2:R$402)/SUMPRODUCT($EO5:$EO405,CMF!$G3:$G403) -> 18.17812146 | AM10: =100*SUMPRODUCT($EO5:$EO405,CMF!$G3:$G403,CES!S$2:S$402)/SUMPRODUCT($EO5:$EO405,CMF!$G3:$G403) -> 19.1616436 | AN10: =100*SUMPRODUCT($EO5:$EO405,CMF!$G3:$G403,CES!T$2:T$402)/SUMPRODUCT($EO5:$EO405,CMF!$G3:$G403) -> 24.32233038 | AO10: =100*SUMPRODUCT($EO5:$EO405,CMF!$G3:$G403,CES!U$2:U$402)/SUMPRODUCT($EO5:$EO405,CMF!$G3:$G403) -> 44.39806533 | AP10: =100*SUMPRODUCT($EO5:$EO405,CMF!$G3:$G403,CES!V$2:V$402)/SUMPRODUCT($EO5:$EO405,CMF!$G3:$G403) -> 40.87635806 | AQ10: =100*SUMPRODUCT($EO5:$EO405,CMF!$G3:$G403,CES!W$2:W$402)/SUMPRODUCT($EO5:$EO405,CMF!$G3:$G403) -> 73.64392641 | AR10: =100*SUMPRODUCT($EO5:$EO405,CMF!$G3:$G403,CES!X$2:X$402)/SUMPRODUCT($EO5:$EO405,CMF!$G3:$G403) -> 58.37475031 | AS10: =100*SUMPRODUCT($EO5:$EO405,CMF!$G3:$G403,CES!Y$2:Y$402)/SUMPRODUCT($EO5:$EO405,CMF!$G3:$G403) -> 79.43173833 | AT10: =100*SUMPRODUCT($EO5:$EO405,CMF!$G3:$G403,CES!Z$2:Z$402)/SUMPRODUCT($EO5:$EO405,CMF!$G3:$G403) -> 80.13198783 | AU10: =100*SUMPRODUCT($EO5:$EO405,CMF!$G3:$G403,CES!AA$2:AA$402)/SUMPRODUCT($EO5:$EO405,CMF!$G3:$G403) -> 44.51254056 | AV10: =100*SUMPRODUCT($EO5:$EO405,CMF!$G3:$G403,CES!AB$2:AB$402)/SUMPRODUCT($EO5:$EO405,CMF!$G3:$G403) -> 79.33075556 | AW10: =100*SUMPRODUCT($EO5:$EO405,CMF!$G3:$G403,CES!AC$2:AC$402)/SUMPRODUCT($EO5:$EO405,CMF!$G3:$G403) -> 43.20796189 | AX10: =100*SUMPRODUCT($EO5:$EO405,CMF!$G3:$G403,CES!AD$2:AD$402)/SUMPRODUCT($EO5:$EO405,CMF!$G3:$G403) -> 11.60858588 | AY10: =100*SUMPRODUCT($EO5:$EO405,CMF!$G3:$G403,CES!AE$2:AE$402)/SUMPRODUCT($EO5:$EO405,CMF!$G3:$G403) -> 70.85036541 | AZ10: =100*SUMPRODUCT($EO5:$EO405,CMF!$G3:$G403,CES!AF$2:AF$402)/SUMPRODUCT($EO5:$EO405,CMF!$G3:$G403) -> 31.53853426 | BA10: =100*SUMPRODUCT($EO5:$EO405,CMF!$G3:$G403,CES!AG$2:AG$402)/SUMPRODUCT($EO5:$EO405,CMF!$G3:$G403) -> 74.23950525 | BB10: =100*SUMPRODUCT($EO5:$EO405,CMF!$G3:$G403,CES!AH$2:AH$402)/SUMPRODUCT($EO5:$EO405,CMF!$G3:$G403) -> 48.38835015 | BC10: =100*SUMPRODUCT($EO5:$EO405,CMF!$G3:$G403,CES!AI$2:AI$402)/SUMPRODUCT($EO5:$EO405,CMF!$G3:$G403) -> 75.19060514 | BD10: =100*SUMPRODUCT($EO5:$EO405,CMF!$G3:$G403,CES!AJ$2:AJ$402)/SUMPRODUCT($EO5:$EO405,CMF!$G3:$G403) -> 29.01982261 | BE10: =100*SUMPRODUCT($EO5:$EO405,CMF!$G3:$G403,CES!AK$2:AK$402)/SUMPRODUCT($EO5:$EO405,CMF!$G3:$G403) -> 11.65241776 | BF10: =100*SUMPRODUCT($EO5:$EO405,CMF!$G3:$G403,CES!AL$2:AL$402)/SUMPRODUCT($EO5:$EO405,CMF!$G3:$G403) -> 54.20897303 | BG10: =100*SUMPRODUCT($EO5:$EO405,CMF!$G3:$G403,CES!AM$2:AM$402)/SUMPRODUCT($EO5:$EO405,CMF!$G3:$G403) -> 15.3569232 | BH10: =100*SUMPRODUCT($EO5:$EO405,CMF!$G3:$G403,CES!AN$2:AN$402)/SUMPRODUCT($EO5:$EO405,CMF!$G3:$G403) -> 66.18083169 | BI10: =100*SUMPRODUCT($EO5:$EO405,CMF!$G3:$G403,CES!AO$2:AO$402)/SUMPRODUCT($EO5:$EO405,CMF!$G3:$G403) -> 7.71649861 | BJ10: =100*SUMPRODUCT($EO5:$EO405,CMF!$G3:$G403,CES!AP$2:AP$402)/SUMPRODUCT($EO5:$EO405,CMF!$G3:$G403) -> 16.80689191 | BK10: =100*SUMPRODUCT($EO5:$EO405,CMF!$G3:$G403,CES!AQ$2:AQ$402)/SUMPRODUCT($EO5:$EO405,CMF!$G3:$G403) -> 69.27326708 | BL10: =100*SUMPRODUCT($EO5:$EO405,CMF!$G3:$G403,CES!AR$2:AR$402)/SUMPRODUCT($EO5:$EO405,CMF!$G3:$G403) -> 34.5398825 | BM10: =100*SUMPRODUCT($EO5:$EO405,CMF!$G3:$G403,CES!AS$2:AS$402)/SUMPRODUCT($EO5:$EO405,CMF!$G3:$G403) -> 39.37601286 | BN10: =100*SUMPRODUCT($EO5:$EO405,CMF!$G3:$G403,CES!AT$2:AT$402)/SUMPRODUCT($EO5:$EO405,CMF!$G3:$G403) -> 4.954495681 | BO10: =100*SUMPRODUCT($EO5:$EO405,CMF!$G3:$G403,CES!AU$2:AU$402)/SUMPRODUCT($EO5:$EO405,CMF!$G3:$G403) -> 22.41094356 | BP10: =100*SUMPRODUCT($EO5:$EO405,CMF!$G3:$G403,CES!AV$2:AV$402)/SUMPRODUCT($EO5:$EO405,CMF!$G3:$G403) -> 31.35568659 | BQ10: =100*SUMPRODUCT($EO5:$EO405,CMF!$G3:$G403,CES!AW$2:AW$402)/SUMPRODUCT($EO5:$EO405,CMF!$G3:$G403) -> 36.81735104 | BR10: =100*SUMPRODUCT($EO5:$EO405,CMF!$G3:$G403,CES!AX$2:AX$402)/SUMPRODUCT($EO5:$EO405,CMF!$G3:$G403) -> 45.17688249 | BS10: =100*SUMPRODUCT($EO5:$EO405,CMF!$G3:$G403,CES!AY$2:AY$402)/SUMPRODUCT($EO5:$EO405,CMF!$G3:$G403) -> 12.86549264 | BT10: =100*SUMPRODUCT($EO5:$EO405,CMF!$G3:$G403,CES!AZ$2:AZ$402)/SUMPRODUCT($EO5:$EO405,CMF!$G3:$G403) -> 18.74231461 | BU10: =100*SUMPRODUCT($EO5:$EO405,CMF!$G3:$G403,CES!BA$2:BA$402)/SUMPRODUCT($EO5:$EO405,CMF!$G3:$G403) -> 22.40539592 | BV10: =100*SUMPRODUCT($EO5:$EO405,CMF!$G3:$G403,CES!BB$2:BB$402)/SUMPRODUCT($EO5:$EO405,CMF!$G3:$G403) -> 9.50997363 | BW10: =100*SUMPRODUCT($EO5:$EO405,CMF!$G3:$G403,CES!BC$2:BC$402)/SUMPRODUCT($EO5:$EO405,CMF!$G3:$G403) -> 13.15643633 | BX10: =100*SUMPRODUCT($EO5:$EO405,CMF!$G3:$G403,CES!BD$2:BD$402)/SUMPRODUCT($EO5:$EO405,CMF!$G3:$G403) -> 62.82766237 | BY10: =100*SUMPRODUCT($EO5:$EO405,CMF!$G3:$G403,CES!BE$2:BE$402)/SUMPRODUCT($EO5:$EO405,CMF!$G3:$G403) -> 55.42834125 | BZ10: =100*SUMPRODUCT($EO5:$EO405,CMF!$G3:$G403,CES!BF$2:BF$402)/SUMPRODUCT($EO5:$EO405,CMF!$G3:$G403) -> 32.3385588 | CA10: =100*SUMPRODUCT($EO5:$EO405,CMF!$G3:$G403,CES!BG$2:BG$402)/SUMPRODUCT($EO5:$EO405,CMF!$G3:$G403) -> 18.20494885 | CB10: =100*SUMPRODUCT($EO5:$EO405,CMF!$G3:$G403,CES!BH$2:BH$402)/SUMPRODUCT($EO5:$EO405,CMF!$G3:$G403) -> 15.33227368 | CC10: =100*SUMPRODUCT($EO5:$EO405,CMF!$G3:$G403,CES!BI$2:BI$402)/SUMPRODUCT($EO5:$EO405,CMF!$G3:$G403) -> 62.28534735 | CD10: =100*SUMPRODUCT($EO5:$EO405,CMF!$G3:$G403,CES!BJ$2:BJ$402)/SUMPRODUCT($EO5:$EO405,CMF!$G3:$G403) -> 67.82611 | CE10: =100*SUMPRODUCT($EO5:$EO405,CMF!$G3:$G403,CES!BK$2:BK$402)/SUMPRODUCT($EO5:$EO405,CMF!$G3:$G403) -> 44.37648466 | CF10: =100*SUMPRODUCT($EO5:$EO405,CMF!$G3:$G403,CES!BL$2:BL$402)/SUMPRODUCT($EO5:$EO405,CMF!$G3:$G403) -> 32.49368774 | CG10: =100*SUMPRODUCT($EO5:$EO405,CMF!$G3:$G403,CES!BM$2:BM$402)/SUMPRODUCT($EO5:$EO405,CMF!$G3:$G403) -> 7.200143823 | CH10: =100*SUMPRODUCT($EO5:$EO405,CMF!$G3:$G403,CES!BN$2:BN$402)/SUMPRODUCT($EO5:$EO405,CMF!$G3:$G403) -> 18.64306106 | CI10: =100*SUMPRODUCT($EO5:$EO405,CMF!$G3:$G403,CES!BO$2:BO$402)/SUMPRODUCT($EO5:$EO405,CMF!$G3:$G403) -> 8.493779997 | CJ10: =100*SUMPRODUCT($EO5:$EO405,CMF!$G3:$G403,CES!BP$2:BP$402)/SUMPRODUCT($EO5:$EO405,CMF!$G3:$G403) -> 9.685646236 | CK10: =100*SUMPRODUCT($EO5:$EO405,CMF!$G3:$G403,CES!BQ$2:BQ$402)/SUMPRODUCT($EO5:$EO405,CMF!$G3:$G403) -> 11.3204053 | CL10: =100*SUMPRODUCT($EO5:$EO405,CMF!$G3:$G403,CES!BR$2:BR$402)/SUMPRODUCT($EO5:$EO405,CMF!$G3:$G403) -> 26.16779645 | CM10: =100*SUMPRODUCT($EO5:$EO405,CMF!$G3:$G403,CES!BS$2:BS$402)/SUMPRODUCT($EO5:$EO405,CMF!$G3:$G403) -> 18.18159139 | CN10: =100*SUMPRODUCT($EO5:$EO405,CMF!$G3:$G403,CES!BT$2:BT$402)/SUMPRODUCT($EO5:$EO405,CMF!$G3:$G403) -> 35.34154201 | CO10: =100*SUMPRODUCT($EO5:$EO405,CMF!$G3:$G403,CES!BU$2:BU$402)/SUMPRODUCT($EO5:$EO405,CMF!$G3:$G403) -> 6.210753275 | CP10: =100*SUMPRODUCT($EO5:$EO405,CMF!$G3:$G403,CES!BV$2:BV$402)/SUMPRODUCT($EO5:$EO405,CMF!$G3:$G403) -> 45.51441084 | CQ10: =100*SUMPRODUCT($EO5:$EO405,CMF!$G3:$G403,CES!BW$2:BW$402)/SUMPRODUCT($EO5:$EO405,CMF!$G3:$G403) -> 18.35653752 | CR10: =100*SUMPRODUCT($EO5:$EO405,CMF!$G3:$G403,CES!BX$2:BX$402)/SUMPRODUCT($EO5:$EO405,CMF!$G3:$G403) -> 4.822813654 | CS10: =100*SUMPRODUCT($EO5:$EO405,CMF!$G3:$G403,CES!BY$2:BY$402)/SUMPRODUCT($EO5:$EO405,CMF!$G3:$G403) -> 5.572609424 | CT10: =100*SUMPRODUCT($EO5:$EO405,CMF!$G3:$G403,CES!BZ$2:BZ$402)/SUMPRODUCT($EO5:$EO405,CMF!$G3:$G403) -> 12.07071691 | CU10: =100*SUMPRODUCT($EO5:$EO405,CMF!$G3:$G403,CES!CA$2:CA$402)/SUMPRODUCT($EO5:$EO405,CMF!$G3:$G403) -> 11.55725085 | CV10: =100*SUMPRODUCT($EO5:$EO405,CMF!$G3:$G403,CES!CB$2:CB$402)/SUMPRODUCT($EO5:$EO405,CMF!$G3:$G403) -> 10.15011034 | CW10: =100*SUMPRODUCT($EO5:$EO405,CMF!$G3:$G403,CES!CC$2:CC$402)/SUMPRODUCT($EO5:$EO405,CMF!$G3:$G403) -> 40.89811988 | CX10: =100*SUMPRODUCT($EO5:$EO405,CMF!$G3:$G403,CES!CD$2:CD$402)/SUMPRODUCT($EO5:$EO405,CMF!$G3:$G403) -> 30.79248575 | CY10: =100*SUMPRODUCT($EO5:$EO405,CMF!$G3:$G403,CES!CE$2:CE$402)/SUMPRODUCT($EO5:$EO405,CMF!$G3:$G403) -> 12.36906409 | CZ10: =100*SUMPRODUCT($EO5:$EO405,CMF!$G3:$G403,CES!CF$2:CF$402)/SUMPRODUCT($EO5:$EO405,CMF!$G3:$G403) -> 66.56151426 | DA10: =100*SUMPRODUCT($EO5:$EO405,CMF!$G3:$G403,CES!CG$2:CG$402)/SUMPRODUCT($EO5:$EO405,CMF!$G3:$G403) -> 40.82906604 | DB10: =100*SUMPRODUCT($EO5:$EO405,CMF!$G3:$G403,CES!CH$2:CH$402)/SUMPRODUCT($EO5:$EO405,CMF!$G3:$G403) -> 4.843051341 | DC10: =100*SUMPRODUCT($EO5:$EO405,CMF!$G3:$G403,CES!CI$2:CI$402)/SUMPRODUCT($EO5:$EO405,CMF!$G3:$G403) -> 11.09817391 | DD10: =100*SUMPRODUCT($EO5:$EO405,CMF!$G3:$G403,CES!CJ$2:CJ$402)/SUMPRODUCT($EO5:$EO405,CMF!$G3:$G403) -> 32.64413711 | DE10: =100*SUMPRODUCT($EO5:$EO405,CMF!$G3:$G403,CES!CK$2:CK$402)/SUMPRODUCT($EO5:$EO405,CMF!$G3:$G403) -> 10.35744442 | DF10: =100*SUMPRODUCT($EO5:$EO405,CMF!$G3:$G403,CES!CL$2:CL$402)/SUMPRODUCT($EO5:$EO405,CMF!$G3:$G403) -> 29.75060131 | DG10: =100*SUMPRODUCT($EO5:$EO405,CMF!$G3:$G403,CES!CM$2:CM$402)/SUMPRODUCT($EO5:$EO405,CMF!$G3:$G403) -> 10.25132986 | DH10: =100*SUMPRODUCT($EO5:$EO405,CMF!$G3:$G403,CES!CN$2:CN$402)/SUMPRODUCT($EO5:$EO405,CMF!$G3:$G403) -> 13.67253486 | DI10: =100*SUMPRODUCT($EO5:$EO405,CMF!$G3:$G403,CES!CO$2:CO$402)/SUMPRODUCT($EO5:$EO405,CMF!$G3:$G403) -> 54.21824816 | DJ10: =100*SUMPRODUCT($EO5:$EO405,CMF!$G3:$G403,CES!CP$2:CP$402)/SUMPRODUCT($EO5:$EO405,CMF!$G3:$G403) -> 24.24217614 | DK10: =100*SUMPRODUCT($EO5:$EO405,CMF!$G3:$G403,CES!CQ$2:CQ$402)/SUMPRODUCT($EO5:$EO405,CMF!$G3:$G403) -> 36.10259404 | DL10: =100*SUMPRODUCT($EO5:$EO405,CMF!$G3:$G403,CES!CR$2:CR$402)/SUMPRODUCT($EO5:$EO405,CMF!$G3:$G403) -> 12.20274139 | DM10: =100*SUMPRODUCT($EO5:$EO405,CMF!$G3:$G403,CES!CS$2:CS$402)/SUMPRODUCT($EO5:$EO405,CMF!$G3:$G403) -> 41.38371958 | DN10: =100*SUMPRODUCT($EO5:$EO405,CMF!$G3:$G403,CES!CT$2:CT$402)/SUMPRODUCT($EO5:$EO405,CMF!$G3:$G403) -> 54.0025998 | DO10: =100*SUMPRODUCT($EO5:$EO405,CMF!$G3:$G403,CES!CU$2:CU$402)/SUMPRODUCT($EO5:$EO405,CMF!$G3:$G403) -> 21.01691772 | DP10: =100*SUMPRODUCT($EO5:$EO405,CMF!$G3:$G403,CES!CV$2:CV$402)/SUMPRODUCT($EO5:$EO405,CMF!$G3:$G403) -> 36.7845995 | DQ10: =100*SUMPRODUCT($EO5:$EO405,CMF!$G3:$G403,CES!CW$2:CW$402)/SUMPRODUCT($EO5:$EO405,CMF!$G3:$G403) -> 24.46450435 | DS10: CES06 | DT10: 53.85399712 | DU10: 19.13695628 | DV10: 8.114344819 | DW10: 54.13372177 | DX10: 10.02627809 | DY10: 3.38669321 | DZ10: 10.26807639 | EA10: 105.4333927 | EB10: 0.4010355297 | EC10: -0.5499031117 | ED10: -4.313616268 | EE10: -4.313616268 | EF10: 2 | EH10: Did | EI10: 1 | EL10: 385 | EM10: =IF(Calculator!$C$3,OFFSET('SPD Library'!B10,0,Calculator!$C$3-1),Calculator!C11) -> 0 | EN10: =RefCalc!B10 -> 0 | EO10: =RefCalc!F10 -> 0.007133947396 | EQ10: 0 | ER10: 385 | ES10: 0.0007997660845
B11: Local Chroma Shift (Rcs,hj) | F11: =(F$29-F$27)*COS(F$16)+(F$30-F$28)*SIN(F$16) -> -0.4779701245 | G11: -0.4565840123 | H11: -0.3646821993 | I11: -0.3308937734 | J11: -0.4422826034 | K11: -0.3491838188 | L11: -0.4329760341 | M11: -0.3945824465 | N11: -0.3515045592 | O11: -0.3157918509 | P11: -0.3149986827 | Q11: -0.2039947374 | R11: -0.2979638467 | U11: Z | V11: =100*SUMPRODUCT($EO5:$EO405,CMF!$H3:$H403,CES!B$2:B$402)/SUMPRODUCT($EO5:$EO405,CMF!$G3:$G403) -> 9.440747837 | W11: =100*SUMPRODUCT($EO5:$EO405,CMF!$H3:$H403,CES!C$2:C$402)/SUMPRODUCT($EO5:$EO405,CMF!$G3:$G403) -> 5.530664314 | X11: =100*SUMPRODUCT($EO5:$EO405,CMF!$H3:$H403,CES!D$2:D$402)/SUMPRODUCT($EO5:$EO405,CMF!$G3:$G403) -> 1.897793673 | Y11: =100*SUMPRODUCT($EO5:$EO405,CMF!$H3:$H403,CES!E$2:E$402)/SUMPRODUCT($EO5:$EO405,CMF!$G3:$G403) -> 0.5165682364 | Z11: =100*SUMPRODUCT($EO5:$EO405,CMF!$H3:$H403,CES!F$2:F$402)/SUMPRODUCT($EO5:$EO405,CMF!$G3:$G403) -> 2.431144686 | AA11: =100*SUMPRODUCT($EO5:$EO405,CMF!$H3:$H403,CES!G$2:G$402)/SUMPRODUCT($EO5:$EO405,CMF!$G3:$G403) -> 0.7547644675 | AB11: =100*SUMPRODUCT($EO5:$EO405,CMF!$H3:$H403,CES!H$2:H$402)/SUMPRODUCT($EO5:$EO405,CMF!$G3:$G403) -> 1.125491111 | AC11: =100*SUMPRODUCT($EO5:$EO405,CMF!$H3:$H403,CES!I$2:I$402)/SUMPRODUCT($EO5:$EO405,CMF!$G3:$G403) -> 0.5070078822 | AD11: =100*SUMPRODUCT($EO5:$EO405,CMF!$H3:$H403,CES!J$2:J$402)/SUMPRODUCT($EO5:$EO405,CMF!$G3:$G403) -> 0.535901738 | AE11: =100*SUMPRODUCT($EO5:$EO405,CMF!$H3:$H403,CES!K$2:K$402)/SUMPRODUCT($EO5:$EO405,CMF!$G3:$G403) -> 0.4729164685 | AF11: =100*SUMPRODUCT($EO5:$EO405,CMF!$H3:$H403,CES!L$2:L$402)/SUMPRODUCT($EO5:$EO405,CMF!$G3:$G403) -> 1.677316782 | AG11: =100*SUMPRODUCT($EO5:$EO405,CMF!$H3:$H403,CES!M$2:M$402)/SUMPRODUCT($EO5:$EO405,CMF!$G3:$G403) -> 0.6115158555 | AH11: =100*SUMPRODUCT($EO5:$EO405,CMF!$H3:$H403,CES!N$2:N$402)/SUMPRODUCT($EO5:$EO405,CMF!$G3:$G403) -> 0.7419220821 | AI11: =100*SUMPRODUCT($EO5:$EO405,CMF!$H3:$H403,CES!O$2:O$402)/SUMPRODUCT($EO5:$EO405,CMF!$G3:$G403) -> 0.4979611897 | AJ11: =100*SUMPRODUCT($EO5:$EO405,CMF!$H3:$H403,CES!P$2:P$402)/SUMPRODUCT($EO5:$EO405,CMF!$G3:$G403) -> 3.406365476 | AK11: =100*SUMPRODUCT($EO5:$EO405,CMF!$H3:$H403,CES!Q$2:Q$402)/SUMPRODUCT($EO5:$EO405,CMF!$G3:$G403) -> 2.657457821 | AL11: =100*SUMPRODUCT($EO5:$EO405,CMF!$H3:$H403,CES!R$2:R$402)/SUMPRODUCT($EO5:$EO405,CMF!$G3:$G403) -> 0.591203046 | AM11: =100*SUMPRODUCT($EO5:$EO405,CMF!$H3:$H403,CES!S$2:S$402)/SUMPRODUCT($EO5:$EO405,CMF!$G3:$G403) -> 0.6161561975 | AN11: =100*SUMPRODUCT($EO5:$EO405,CMF!$H3:$H403,CES!T$2:T$402)/SUMPRODUCT($EO5:$EO405,CMF!$G3:$G403) -> 1.200884047 | AO11: =100*SUMPRODUCT($EO5:$EO405,CMF!$H3:$H403,CES!U$2:U$402)/SUMPRODUCT($EO5:$EO405,CMF!$G3:$G403) -> 1.237538241 | AP11: =100*SUMPRODUCT($EO5:$EO405,CMF!$H3:$H403,CES!V$2:V$402)/SUMPRODUCT($EO5:$EO405,CMF!$G3:$G403) -> 0.816491103 | AQ11: =100*SUMPRODUCT($EO5:$EO405,CMF!$H3:$H403,CES!W$2:W$402)/SUMPRODUCT($EO5:$EO405,CMF!$G3:$G403) -> 1.805666705 | AR11: =100*SUMPRODUCT($EO5:$EO405,CMF!$H3:$H403,CES!X$2:X$402)/SUMPRODUCT($EO5:$EO405,CMF!$G3:$G403) -> 1.238762047 | AS11: =100*SUMPRODUCT($EO5:$EO405,CMF!$H3:$H403,CES!Y$2:Y$402)/SUMPRODUCT($EO5:$EO405,CMF!$G3:$G403) -> 5.341840486 | AT11: =100*SUMPRODUCT($EO5:$EO405,CMF!$H3:$H403,CES!Z$2:Z$402)/SUMPRODUCT($EO5:$EO405,CMF!$G3:$G403) -> 3.025215576 | AU11: =100*SUMPRODUCT($EO5:$EO405,CMF!$H3:$H403,CES!AA$2:AA$402)/SUMPRODUCT($EO5:$EO405,CMF!$G3:$G403) -> 0.5959751881 | AV11: =100*SUMPRODUCT($EO5:$EO405,CMF!$H3:$H403,CES!AB$2:AB$402)/SUMPRODUCT($EO5:$EO405,CMF!$G3:$G403) -> 2.377871466 | AW11: =100*SUMPRODUCT($EO5:$EO405,CMF!$H3:$H403,CES!AC$2:AC$402)/SUMPRODUCT($EO5:$EO405,CMF!$G3:$G403) -> 2.571485047 | AX11: =100*SUMPRODUCT($EO5:$EO405,CMF!$H3:$H403,CES!AD$2:AD$402)/SUMPRODUCT($EO5:$EO405,CMF!$G3:$G403) -> 0.4928303836 | AY11: =100*SUMPRODUCT($EO5:$EO405,CMF!$H3:$H403,CES!AE$2:AE$402)/SUMPRODUCT($EO5:$EO405,CMF!$G3:$G403) -> 2.394986011 | AZ11: =100*SUMPRODUCT($EO5:$EO405,CMF!$H3:$H403,CES!AF$2:AF$402)/SUMPRODUCT($EO5:$EO405,CMF!$G3:$G403) -> 1.747435286 | BA11: =100*SUMPRODUCT($EO5:$EO405,CMF!$H3:$H403,CES!AG$2:AG$402)/SUMPRODUCT($EO5:$EO405,CMF!$G3:$G403) -> 2.621335778 | BB11: =100*SUMPRODUCT($EO5:$EO405,CMF!$H3:$H403,CES!AH$2:AH$402)/SUMPRODUCT($EO5:$EO405,CMF!$G3:$G403) -> 1.156404084 | BC11: =100*SUMPRODUCT($EO5:$EO405,CMF!$H3:$H403,CES!AI$2:AI$402)/SUMPRODUCT($EO5:$EO405,CMF!$G3:$G403) -> 4.30199963 | BD11: =100*SUMPRODUCT($EO5:$EO405,CMF!$H3:$H403,CES!AJ$2:AJ$402)/SUMPRODUCT($EO5:$EO405,CMF!$G3:$G403) -> 0.6990843825 | BE11: =100*SUMPRODUCT($EO5:$EO405,CMF!$H3:$H403,CES!AK$2:AK$402)/SUMPRODUCT($EO5:$EO405,CMF!$G3:$G403) -> 0.538351054 | BF11: =100*SUMPRODUCT($EO5:$EO405,CMF!$H3:$H403,CES!AL$2:AL$402)/SUMPRODUCT($EO5:$EO405,CMF!$G3:$G403) -> 4.544263848 | BG11: =100*SUMPRODUCT($EO5:$EO405,CMF!$H3:$H403,CES!AM$2:AM$402)/SUMPRODUCT($EO5:$EO405,CMF!$G3:$G403) -> 0.607980747 | BH11: =100*SUMPRODUCT($EO5:$EO405,CMF!$H3:$H403,CES!AN$2:AN$402)/SUMPRODUCT($EO5:$EO405,CMF!$G3:$G403) -> 4.439583493 | BI11: =100*SUMPRODUCT($EO5:$EO405,CMF!$H3:$H403,CES!AO$2:AO$402)/SUMPRODUCT($EO5:$EO405,CMF!$G3:$G403) -> 0.5773795458 | BJ11: =100*SUMPRODUCT($EO5:$EO405,CMF!$H3:$H403,CES!AP$2:AP$402)/SUMPRODUCT($EO5:$EO405,CMF!$G3:$G403) -> 1.044238856 | BK11: =100*SUMPRODUCT($EO5:$EO405,CMF!$H3:$H403,CES!AQ$2:AQ$402)/SUMPRODUCT($EO5:$EO405,CMF!$G3:$G403) -> 5.766076875 | BL11: =100*SUMPRODUCT($EO5:$EO405,CMF!$H3:$H403,CES!AR$2:AR$402)/SUMPRODUCT($EO5:$EO405,CMF!$G3:$G403) -> 1.142873389 | BM11: =100*SUMPRODUCT($EO5:$EO405,CMF!$H3:$H403,CES!AS$2:AS$402)/SUMPRODUCT($EO5:$EO405,CMF!$G3:$G403) -> 1.460886723 | BN11: =100*SUMPRODUCT($EO5:$EO405,CMF!$H3:$H403,CES!AT$2:AT$402)/SUMPRODUCT($EO5:$EO405,CMF!$G3:$G403) -> 0.451335801 | BO11: =100*SUMPRODUCT($EO5:$EO405,CMF!$H3:$H403,CES!AU$2:AU$402)/SUMPRODUCT($EO5:$EO405,CMF!$G3:$G403) -> 1.165113556 | BP11: =100*SUMPRODUCT($EO5:$EO405,CMF!$H3:$H403,CES!AV$2:AV$402)/SUMPRODUCT($EO5:$EO405,CMF!$G3:$G403) -> 2.081155584 | BQ11: =100*SUMPRODUCT($EO5:$EO405,CMF!$H3:$H403,CES!AW$2:AW$402)/SUMPRODUCT($EO5:$EO405,CMF!$G3:$G403) -> 2.934367897 | BR11: =100*SUMPRODUCT($EO5:$EO405,CMF!$H3:$H403,CES!AX$2:AX$402)/SUMPRODUCT($EO5:$EO405,CMF!$G3:$G403) -> 3.499837674 | BS11: =100*SUMPRODUCT($EO5:$EO405,CMF!$H3:$H403,CES!AY$2:AY$402)/SUMPRODUCT($EO5:$EO405,CMF!$G3:$G403) -> 0.9097829264 | BT11: =100*SUMPRODUCT($EO5:$EO405,CMF!$H3:$H403,CES!AZ$2:AZ$402)/SUMPRODUCT($EO5:$EO405,CMF!$G3:$G403) -> 1.708301008 | BU11: =100*SUMPRODUCT($EO5:$EO405,CMF!$H3:$H403,CES!BA$2:BA$402)/SUMPRODUCT($EO5:$EO405,CMF!$G3:$G403) -> 2.107574512 | BV11: =100*SUMPRODUCT($EO5:$EO405,CMF!$H3:$H403,CES!BB$2:BB$402)/SUMPRODUCT($EO5:$EO405,CMF!$G3:$G403) -> 0.8662910412 | BW11: =100*SUMPRODUCT($EO5:$EO405,CMF!$H3:$H403,CES!BC$2:BC$402)/SUMPRODUCT($EO5:$EO405,CMF!$G3:$G403) -> 1.583776715 | BX11: =100*SUMPRODUCT($EO5:$EO405,CMF!$H3:$H403,CES!BD$2:BD$402)/SUMPRODUCT($EO5:$EO405,CMF!$G3:$G403) -> 6.610439585 | BY11: =100*SUMPRODUCT($EO5:$EO405,CMF!$H3:$H403,CES!BE$2:BE$402)/SUMPRODUCT($EO5:$EO405,CMF!$G3:$G403) -> 6.180765752 | BZ11: =100*SUMPRODUCT($EO5:$EO405,CMF!$H3:$H403,CES!BF$2:BF$402)/SUMPRODUCT($EO5:$EO405,CMF!$G3:$G403) -> 4.507035475 | CA11: =100*SUMPRODUCT($EO5:$EO405,CMF!$H3:$H403,CES!BG$2:BG$402)/SUMPRODUCT($EO5:$EO405,CMF!$G3:$G403) -> 2.868817078 | CB11: =100*SUMPRODUCT($EO5:$EO405,CMF!$H3:$H403,CES!BH$2:BH$402)/SUMPRODUCT($EO5:$EO405,CMF!$G3:$G403) -> 2.638240982 | CC11: =100*SUMPRODUCT($EO5:$EO405,CMF!$H3:$H403,CES!BI$2:BI$402)/SUMPRODUCT($EO5:$EO405,CMF!$G3:$G403) -> 6.803390776 | CD11: =100*SUMPRODUCT($EO5:$EO405,CMF!$H3:$H403,CES!BJ$2:BJ$402)/SUMPRODUCT($EO5:$EO405,CMF!$G3:$G403) -> 6.930173714 | CE11: =100*SUMPRODUCT($EO5:$EO405,CMF!$H3:$H403,CES!BK$2:BK$402)/SUMPRODUCT($EO5:$EO405,CMF!$G3:$G403) -> 5.117998182 | CF11: =100*SUMPRODUCT($EO5:$EO405,CMF!$H3:$H403,CES!BL$2:BL$402)/SUMPRODUCT($EO5:$EO405,CMF!$G3:$G403) -> 3.543081678 | CG11: =100*SUMPRODUCT($EO5:$EO405,CMF!$H3:$H403,CES!BM$2:BM$402)/SUMPRODUCT($EO5:$EO405,CMF!$G3:$G403) -> 0.7803998926 | CH11: =100*SUMPRODUCT($EO5:$EO405,CMF!$H3:$H403,CES!BN$2:BN$402)/SUMPRODUCT($EO5:$EO405,CMF!$G3:$G403) -> 3.929777535 | CI11: =100*SUMPRODUCT($EO5:$EO405,CMF!$H3:$H403,CES!BO$2:BO$402)/SUMPRODUCT($EO5:$EO405,CMF!$G3:$G403) -> 1.442514854 | CJ11: =100*SUMPRODUCT($EO5:$EO405,CMF!$H3:$H403,CES!BP$2:BP$402)/SUMPRODUCT($EO5:$EO405,CMF!$G3:$G403) -> 2.476758183 | CK11: =100*SUMPRODUCT($EO5:$EO405,CMF!$H3:$H403,CES!BQ$2:BQ$402)/SUMPRODUCT($EO5:$EO405,CMF!$G3:$G403) -> 2.956597781 | CL11: =100*SUMPRODUCT($EO5:$EO405,CMF!$H3:$H403,CES!BR$2:BR$402)/SUMPRODUCT($EO5:$EO405,CMF!$G3:$G403) -> 4.17843706 | CM11: =100*SUMPRODUCT($EO5:$EO405,CMF!$H3:$H403,CES!BS$2:BS$402)/SUMPRODUCT($EO5:$EO405,CMF!$G3:$G403) -> 2.354616711 | CN11: =100*SUMPRODUCT($EO5:$EO405,CMF!$H3:$H403,CES!BT$2:BT$402)/SUMPRODUCT($EO5:$EO405,CMF!$G3:$G403) -> 6.439429207 | CO11: =100*SUMPRODUCT($EO5:$EO405,CMF!$H3:$H403,CES!BU$2:BU$402)/SUMPRODUCT($EO5:$EO405,CMF!$G3:$G403) -> 1.655952047 | CP11: =100*SUMPRODUCT($EO5:$EO405,CMF!$H3:$H403,CES!BV$2:BV$402)/SUMPRODUCT($EO5:$EO405,CMF!$G3:$G403) -> 5.104646915 | CQ11: =100*SUMPRODUCT($EO5:$EO405,CMF!$H3:$H403,CES!BW$2:BW$402)/SUMPRODUCT($EO5:$EO405,CMF!$G3:$G403) -> 4.874686179 | CR11: =100*SUMPRODUCT($EO5:$EO405,CMF!$H3:$H403,CES!BX$2:BX$402)/SUMPRODUCT($EO5:$EO405,CMF!$G3:$G403) -> 0.5182216916 | CS11: =100*SUMPRODUCT($EO5:$EO405,CMF!$H3:$H403,CES!BY$2:BY$402)/SUMPRODUCT($EO5:$EO405,CMF!$G3:$G403) -> 1.538158661 | CT11: =100*SUMPRODUCT($EO5:$EO405,CMF!$H3:$H403,CES!BZ$2:BZ$402)/SUMPRODUCT($EO5:$EO405,CMF!$G3:$G403) -> 4.004257092 | CU11: =100*SUMPRODUCT($EO5:$EO405,CMF!$H3:$H403,CES!CA$2:CA$402)/SUMPRODUCT($EO5:$EO405,CMF!$G3:$G403) -> 2.501618034 | CV11: =100*SUMPRODUCT($EO5:$EO405,CMF!$H3:$H403,CES!CB$2:CB$402)/SUMPRODUCT($EO5:$EO405,CMF!$G3:$G403) -> 3.388047733 | CW11: =100*SUMPRODUCT($EO5:$EO405,CMF!$H3:$H403,CES!CC$2:CC$402)/SUMPRODUCT($EO5:$EO405,CMF!$G3:$G403) -> 5.885183093 | CX11: =100*SUMPRODUCT($EO5:$EO405,CMF!$H3:$H403,CES!CD$2:CD$402)/SUMPRODUCT($EO5:$EO405,CMF!$G3:$G403) -> 4.969454981 | CY11: =100*SUMPRODUCT($EO5:$EO405,CMF!$H3:$H403,CES!CE$2:CE$402)/SUMPRODUCT($EO5:$EO405,CMF!$G3:$G403) -> 2.706948801 | CZ11: =100*SUMPRODUCT($EO5:$EO405,CMF!$H3:$H403,CES!CF$2:CF$402)/SUMPRODUCT($EO5:$EO405,CMF!$G3:$G403) -> 7.215677127 | DA11: =100*SUMPRODUCT($EO5:$EO405,CMF!$H3:$H403,CES!CG$2:CG$402)/SUMPRODUCT($EO5:$EO405,CMF!$G3:$G403) -> 5.14307696 | DB11: =100*SUMPRODUCT($EO5:$EO405,CMF!$H3:$H403,CES!CH$2:CH$402)/SUMPRODUCT($EO5:$EO405,CMF!$G3:$G403) -> 0.5618731196 | DC11: =100*SUMPRODUCT($EO5:$EO405,CMF!$H3:$H403,CES!CI$2:CI$402)/SUMPRODUCT($EO5:$EO405,CMF!$G3:$G403) -> 1.463064569 | DD11: =100*SUMPRODUCT($EO5:$EO405,CMF!$H3:$H403,CES!CJ$2:CJ$402)/SUMPRODUCT($EO5:$EO405,CMF!$G3:$G403) -> 4.742206215 | DE11: =100*SUMPRODUCT($EO5:$EO405,CMF!$H3:$H403,CES!CK$2:CK$402)/SUMPRODUCT($EO5:$EO405,CMF!$G3:$G403) -> 1.828318819 | DF11: =100*SUMPRODUCT($EO5:$EO405,CMF!$H3:$H403,CES!CL$2:CL$402)/SUMPRODUCT($EO5:$EO405,CMF!$G3:$G403) -> 3.823413319 | DG11: =100*SUMPRODUCT($EO5:$EO405,CMF!$H3:$H403,CES!CM$2:CM$402)/SUMPRODUCT($EO5:$EO405,CMF!$G3:$G403) -> 1.360819294 | DH11: =100*SUMPRODUCT($EO5:$EO405,CMF!$H3:$H403,CES!CN$2:CN$402)/SUMPRODUCT($EO5:$EO405,CMF!$G3:$G403) -> 1.751872257 | DI11: =100*SUMPRODUCT($EO5:$EO405,CMF!$H3:$H403,CES!CO$2:CO$402)/SUMPRODUCT($EO5:$EO405,CMF!$G3:$G403) -> 5.355621988 | DJ11: =100*SUMPRODUCT($EO5:$EO405,CMF!$H3:$H403,CES!CP$2:CP$402)/SUMPRODUCT($EO5:$EO405,CMF!$G3:$G403) -> 2.588110666 | DK11: =100*SUMPRODUCT($EO5:$EO405,CMF!$H3:$H403,CES!CQ$2:CQ$402)/SUMPRODUCT($EO5:$EO405,CMF!$G3:$G403) -> 3.658053199 | DL11: =100*SUMPRODUCT($EO5:$EO405,CMF!$H3:$H403,CES!CR$2:CR$402)/SUMPRODUCT($EO5:$EO405,CMF!$G3:$G403) -> 1.162793933 | DM11: =100*SUMPRODUCT($EO5:$EO405,CMF!$H3:$H403,CES!CS$2:CS$402)/SUMPRODUCT($EO5:$EO405,CMF!$G3:$G403) -> 4.017666805 | DN11: =100*SUMPRODUCT($EO5:$EO405,CMF!$H3:$H403,CES!CT$2:CT$402)/SUMPRODUCT($EO5:$EO405,CMF!$G3:$G403) -> 5.038918623 | DO11: =100*SUMPRODUCT($EO5:$EO405,CMF!$H3:$H403,CES!CU$2:CU$402)/SUMPRODUCT($EO5:$EO405,CMF!$G3:$G403) -> 1.722918012 | DP11: =100*SUMPRODUCT($EO5:$EO405,CMF!$H3:$H403,CES!CV$2:CV$402)/SUMPRODUCT($EO5:$EO405,CMF!$G3:$G403) -> 2.542725703 | DQ11: =100*SUMPRODUCT($EO5:$EO405,CMF!$H3:$H403,CES!CW$2:CW$402)/SUMPRODUCT($EO5:$EO405,CMF!$G3:$G403) -> 1.568329554 | DS11: CES07 | DT11: 48.51023173 | DU11: 36.02851571 | DV11: 10.72802926 | DW11: 44.50483344 | DX11: 27.44409137 | DY11: 2.291557771 | DZ11: 12.6850151 | EA11: 160.909608 | EB11: 0.2894050328 | EC11: -0.3558388326 | ED11: -11.80861141 | EE11: -11.80861141 | EF11: 1 | EH11: F | EI11: 1 | EL11: 386 | EM11: =IF(Calculator!$C$3,OFFSET('SPD Library'!B11,0,Calculator!$C$3-1),Calculator!C12) -> 0 | EN11: =RefCalc!B11 -> 0 | EO11: =RefCalc!F11 -> 0.007436763756 | EQ11: 0 | ER11: 386 | ES11: 0.0008337139455
B12: Local Hue Shift (Rhs,hj) | C12: =-(C$29-C$27)*SIN(C$16)+(C$30-C$28)*COS(C$16) -> -0.1099721877 | D12: -0.1035937354 | E12: -0.04924919761 | F12: 0.0327496065 | G12: 0.04607834489 | H12: 0.06282608818 | I12: 0.002388841375 | J12: -0.05457309202 | K12: -0.0843955889 | L12: 0.03958758081 | M12: 0.1701673256 | N12: 0.2899858936 | O12: 0.08423348397 | P12: -0.04693286653 | Q12: -0.007929433945 | R12: -0.07978410889 | U12: Xw | V12: =$V9 -> 136.3104817 | W12: 136.3104817 | X12: 136.3104817 | Y12: 136.3104817 | Z12: 136.3104817 | AA12: 136.3104817 | AB12: 136.3104817 | AC12: 136.3104817 | AD12: 136.3104817 | AE12: 136.3104817 | AF12: 136.3104817 | AG12: 136.3104817 | AH12: 136.3104817 | AI12: 136.3104817 | AJ12: 136.3104817 | AK12: 136.3104817 | AL12: 136.3104817 | AM12: 136.3104817 | AN12: 136.3104817 | AO12: 136.3104817 | AP12: 136.3104817 | AQ12: 136.3104817 | AR12: 136.3104817 | AS12: 136.3104817 | AT12: 136.3104817 | AU12: 136.3104817 | AV12: 136.3104817 | AW12: 136.3104817 | AX12: 136.3104817 | AY12: 136.3104817 | AZ12: 136.3104817 | BA12: 136.3104817 | BB12: =$V9 -> 136.3104817 | BC12: 136.3104817 | BD12: 136.3104817 | BE12: 136.3104817 | BF12: 136.3104817 | BG12: 136.3104817 | BH12: 136.3104817 | BI12: 136.3104817 | BJ12: 136.3104817 | BK12: 136.3104817 | BL12: 136.3104817 | BM12: 136.3104817 | BN12: 136.3104817 | BO12: 136.3104817 | BP12: 136.3104817 | BQ12: 136.3104817 | BR12: 136.3104817 | BS12: 136.3104817 | BT12: 136.3104817 | BU12: 136.3104817 | BV12: 136.3104817 | BW12: 136.3104817 | BX12: 136.3104817 | BY12: 136.3104817 | BZ12: 136.3104817 | CA12: 136.3104817 | CB12: 136.3104817 | CC12: 136.3104817 | CD12: 136.3104817 | CE12: 136.3104817 | CF12: 136.3104817 | CG12: 136.3104817 | CH12: =$V9 -> 136.3104817 | CI12: 136.3104817 | CJ12: 136.3104817 | CK12: 136.3104817 | CL12: 136.3104817 | CM12: 136.3104817 | CN12: 136.3104817 | CO12: 136.3104817 | CP12: 136.3104817 | CQ12: 136.3104817 | CR12: 136.3104817 | CS12: 136.3104817 | CT12: 136.3104817 | CU12: 136.3104817 | CV12: 136.3104817 | CW12: 136.3104817 | CX12: 136.3104817 | CY12: 136.3104817 | CZ12: 136.3104817 | DA12: 136.3104817 | DB12: 136.3104817 | DC12: 136.3104817 | DD12: 136.3104817 | DE12: 136.3104817 | DF12: 136.3104817 | DG12: 136.3104817 | DH12: 136.3104817 | DI12: 136.3104817 | DJ12: 136.3104817 | DK12: 136.3104817 | DL12: 136.3104817 | DM12: 136.3104817 | DN12: 136.3104817 | DO12: 136.3104817 | DP12: 136.3104817 | DQ12: 136.3104817 | DS12: CES08 | DT12: 47.43545751 | DU12: 35.15398586 | DV12: 9.813510501 | DW12: 42.54761202 | DX12: 25.27233608 | DY12: 1.970606269 | DZ12: 13.52956699 | EA12: 183.0491829 | EB12: 0.2722275909 | EC12: -0.3973540624 | ED12: -11.13888461 | EE12: -11.13888461 | EF12: 1 | EH12: c | EI12: 0.69 | EL12: 387 | EM12: =IF(Calculator!$C$3,OFFSET('SPD Library'!B12,0,Calculator!$C$3-1),Calculator!C13) -> 0 | EN12: =RefCalc!B12 -> 0 | EO12: =RefCalc!F12 -> 0.007750509076 | EQ12: 0 | ER12: 387 | ES12: 0.0008688870204
B13: Local Color Fidelity (Rf,hj) | C13: =10*LN(EXP((100-$EI$5*C21)/10)+1) -> 35.15390603 | D13: 29.44469344 | E13: 10.34314916 | F13: 44.82703228 | G13: 65.70054978 | H13: 46.82260325 | I13: 50.72518916 | J13: 41.67938713 | K13: 33.96919358 | L13: 28.79359355 | M13: 32.15398119 | N13: 30.67209021 | O13: 58.77852137 | P13: 67.76236935 | Q13: 65.96776323 | R13: 53.07181369 | U13: Yw | V13: =$V10 -> 100 | W13: 100 | X13: 100 | Y13: 100 | Z13: 100 | AA13: 100 | AB13: 100 | AC13: 100 | AD13: 100 | AE13: 100 | AF13: 100 | AG13: 100 | AH13: 100 | AI13: 100 | AJ13: 100 | AK13: 100 | AL13: 100 | AM13: 100 | AN13: 100 | AO13: 100 | AP13: 100 | AQ13: 100 | AR13: 100 | AS13: 100 | AT13: 100 | AU13: 100 | AV13: 100 | AW13: 100 | AX13: 100 | AY13: 100 | AZ13: 100 | BA13: 100 | BB13: =$V10 -> 100 | BC13: 100 | BD13: 100 | BE13: 100 | BF13: 100 | BG13: 100 | BH13: 100 | BI13: 100 | BJ13: 100 | BK13: 100 | BL13: 100 | BM13: 100 | BN13: 100 | BO13: 100 | BP13: 100 | BQ13: 100 | BR13: 100 | BS13: 100 | BT13: 100 | BU13: 100 | BV13: 100 | BW13: 100 | BX13: 100 | BY13: 100 | BZ13: 100 | CA13: 100 | CB13: 100 | CC13: 100 | CD13: 100 | CE13: 100 | CF13: 100 | CG13: 100 | CH13: =$V10 -> 100 | CI13: 100 | CJ13: 100 | CK13: 100 | CL13: 100 | CM13: 100 | CN13: 100 | CO13: 100 | CP13: 100 | CQ13: 100 | CR13: 100 | CS13: 100 | CT13: 100 | CU13: 100 | CV13: 100 | CW13: 100 | CX13: 100 | CY13: 100 | CZ13: 100 | DA13: 100 | DB13: 100 | DC13: 100 | DD13: 100 | DE13: 100 | DF13: 100 | DG13: 100 | DH13: 100 | DI13: 100 | DJ13: 100 | DK13: 100 | DL13: 100 | DM13: 100 | DN13: 100 | DO13: 100 | DP13: 100 | DQ13: 100 | DS13: CES09 | DT13: 29.32258266 | DU13: 5.786787271 | DV13: 0.1875095609 | DW13: 28.77278817 | DX13: 5.51839773 | DY13: -0.1814148641 | DZ13: 0.7144313523 | EA13: 0.5104121572 | EB13: 0.03239171716 | EC13: -0.04934149118 | ED13: 356.2611962 | EE13: -3.738803772 | EF13: 1 | EH13: Nc | EI13: 1 | EL13: 388 | EM13: =IF(Calculator!$C$3,OFFSET('SPD Library'!B13,0,Calculator!$C$3-1),Calculator!C14) -> 0 | EN13: =RefCalc!B13 -> 0 | EO13: =RefCalc!F13 -> 0.008075501552 | EQ13: 0 | ER13: 388 | ES13: 0.0009053209813
U14: Zw | V14: =$V11 -> 9.440747837 | W14: 9.440747837 | X14: 9.440747837 | Y14: 9.440747837 | Z14: 9.440747837 | AA14: 9.440747837 | AB14: 9.440747837 | AC14: 9.440747837 | AD14: 9.440747837 | AE14: 9.440747837 | AF14: 9.440747837 | AG14: 9.440747837 | AH14: 9.440747837 | AI14: 9.440747837 | AJ14: 9.440747837 | AK14: 9.440747837 | AL14: 9.440747837 | AM14: 9.440747837 | AN14: 9.440747837 | AO14: 9.440747837 | AP14: 9.440747837 | AQ14: 9.440747837 | AR14: 9.440747837 | AS14: 9.440747837 | AT14: 9.440747837 | AU14: 9.440747837 | AV14: 9.440747837 | AW14: 9.440747837 | AX14: 9.440747837 | AY14: 9.440747837 | AZ14: 9.440747837 | BA14: 9.440747837 | BB14: =$V11 -> 9.440747837 | BC14: 9.440747837 | BD14: 9.440747837 | BE14: 9.440747837 | BF14: 9.440747837 | BG14: 9.440747837 | BH14: 9.440747837 | BI14: 9.440747837 | BJ14: 9.440747837 | BK14: 9.440747837 | BL14: 9.440747837 | BM14: 9.440747837 | BN14: 9.440747837 | BO14: 9.440747837 | BP14: 9.440747837 | BQ14: 9.440747837 | BR14: 9.440747837 | BS14: 9.440747837 | BT14: 9.440747837 | BU14: 9.440747837 | BV14: 9.440747837 | BW14: 9.440747837 | BX14: 9.440747837 | BY14: 9.440747837 | BZ14: 9.440747837 | CA14: 9.440747837 | CB14: 9.440747837 | CC14: 9.440747837 | CD14: 9.440747837 | CE14: 9.440747837 | CF14: 9.440747837 | CG14: 9.440747837 | CH14: =$V11 -> 9.440747837 | CI14: 9.440747837 | CJ14: 9.440747837 | CK14: 9.440747837 | CL14: 9.440747837 | CM14: 9.440747837 | CN14: 9.440747837 | CO14: 9.440747837 | CP14: 9.440747837 | CQ14: 9.440747837 | CR14: 9.440747837 | CS14: 9.440747837 | CT14: 9.440747837 | CU14: 9.440747837 | CV14: 9.440747837 | CW14: 9.440747837 | CX14: 9.440747837 | CY14: 9.440747837 | CZ14: 9.440747837 | DA14: 9.440747837 | DB14: 9.440747837 | DC14: 9.440747837 | DD14: 9.440747837 | DE14: 9.440747837 | DF14: 9.440747837 | DG14: 9.440747837 | DH14: 9.440747837 | DI14: 9.440747837 | DJ14: 9.440747837 | DK14: 9.440747837 | DL14: 9.440747837 | DM14: 9.440747837 | DN14: 9.440747837 | DO14: 9.440747837 | DP14: 9.440747837 | DQ14: 9.440747837 | DS14: CES10 | DT14: 80.13057293 | DU14: 29.2534967 | DV14: 17.49730414 | DW14: 82.04850422 | DX14: 21.23958114 | DY14: 7.355973483 | DZ14: 13.06705363 | EA14: 170.7478906 | EB14: 0.539041104 | EC14: -0.4304343145 | ED14: -11.78210878 | EE14: -11.78210878 | EF14: 2 | EH14: D | EI14: =IF(EI10=1,1,IF(EI10<1,EI10,EI11*(1-(1/3.6)*EXP((-EI8-42)/92)))) -> 1 | EL14: 389 | EM14: =IF(Calculator!$C$3,OFFSET('SPD Library'!B14,0,Calculator!$C$3-1),Calculator!C15) -> 0 | EN14: =RefCalc!B14 -> 0 | EO14: =RefCalc!F14 -> 0.008412066069 | EQ14: 0 | ER14: 389 | ES14: 0.00094305225
B15: Hue-Angle Bin Averages | DS15: CES11 | DT15: 63.0642827 | DU15: 27.07373897 | DV15: 18.61096886 | DW15: 65.60438602 | DX15: 16.49988514 | DY15: 7.992506425 | DZ15: 15.19902148 | EA15: 231.010254 | EB15: 0.6022314959 | EC15: -0.5345927024 | ED15: -8.659881977 | EE15: -8.659881977 | EF15: 2 | EL15: 390 | EM15: =IF(Calculator!$C$3,OFFSET('SPD Library'!B15,0,Calculator!$C$3-1),Calculator!C16) -> 2.43e-05 | EN15: =RefCalc!B15 -> 5.120066755e-05 | EO15: =RefCalc!F15 -> 0.008760534262 | EQ15: 2.43e-05 | ER15: 390 | ES15: 0.000982118005
B16: θj | C16: =(-PI()/16+PI()/8*C10) -> 0.1963495408 | D16: 0.5890486225 | E16: 0.9817477042 | F16: 1.374446786 | G16: 1.767145868 | H16: 2.159844949 | I16: 2.552544031 | J16: 2.945243113 | K16: 3.337942194 | L16: 3.730641276 | M16: 4.123340358 | N16: 4.51603944 | O16: 4.908738521 | P16: 5.301437603 | Q16: 5.694136685 | R16: 6.086835766 | S16: =C16 -> 0.1963495408 | U16: k | V16: =1/(5*$EI$8+1) -> 0.001996007984 | W16: 0.001996007984 | X16: 0.001996007984 | Y16: 0.001996007984 | Z16: 0.001996007984 | AA16: 0.001996007984 | AB16: 0.001996007984 | AC16: 0.001996007984 | AD16: 0.001996007984 | AE16: 0.001996007984 | AF16: 0.001996007984 | AG16: 0.001996007984 | AH16: 0.001996007984 | AI16: 0.001996007984 | AJ16: 0.001996007984 | AK16: 0.001996007984 | AL16: 0.001996007984 | AM16: 0.001996007984 | AN16: 0.001996007984 | AO16: 0.001996007984 | AP16: 0.001996007984 | AQ16: 0.001996007984 | AR16: 0.001996007984 | AS16: 0.001996007984 | AT16: 0.001996007984 | AU16: 0.001996007984 | AV16: 0.001996007984 | AW16: 0.001996007984 | AX16: 0.001996007984 | AY16: 0.001996007984 | AZ16: 0.001996007984 | BA16: 0.001996007984 | BB16: =1/(5*$EI$8+1) -> 0.001996007984 | BC16: 0.001996007984 | BD16: 0.001996007984 | BE16: 0.001996007984 | BF16: 0.001996007984 | BG16: 0.001996007984 | BH16: 0.001996007984 | BI16: 0.001996007984 | BJ16: 0.001996007984 | BK16: 0.001996007984 | BL16: 0.001996007984 | BM16: 0.001996007984 | BN16: 0.001996007984 | BO16: 0.001996007984 | BP16: 0.001996007984 | BQ16: 0.001996007984 | BR16: 0.001996007984 | BS16: 0.001996007984 | BT16: 0.001996007984 | BU16: 0.001996007984 | BV16: 0.001996007984 | BW16: 0.001996007984 | BX16: 0.001996007984 | BY16: 0.001996007984 | BZ16: 0.001996007984 | CA16: 0.001996007984 | CB16: 0.001996007984 | CC16: 0.001996007984 | CD16: 0.001996007984 | CE16: 0.001996007984 | CF16: 0.001996007984 | CG16: 0.001996007984 | CH16: =1/(5*$EI$8+1) -> 0.001996007984 | CI16: 0.001996007984 | CJ16: 0.001996007984 | CK16: 0.001996007984 | CL16: 0.001996007984 | CM16: 0.001996007984 | CN16: 0.001996007984 | CO16: 0.001996007984 | CP16: 0.001996007984 | CQ16: 0.001996007984 | CR16: 0.001996007984 | CS16: 0.001996007984 | CT16: 0.001996007984 | CU16: 0.001996007984 | CV16: 0.001996007984 | CW16: 0.001996007984 | CX16: 0.001996007984 | CY16: 0.001996007984 | CZ16: 0.001996007984 | DA16: 0.001996007984 | DB16: 0.001996007984 | DC16: 0.001996007984 | DD16: 0.001996007984 | DE16: 0.001996007984 | DF16: 0.001996007984 | DG16: 0.001996007984 | DH16: 0.001996007984 | DI16: 0.001996007984 | DJ16: 0.001996007984 | DK16: 0.001996007984 | DL16: 0.001996007984 | DM16: 0.001996007984 | DN16: 0.001996007984 | DO16: 0.001996007984 | DP16: 0.001996007984 | DQ16: 0.001996007984 | DS16: CES12 | DT16: 69.63046568 | DU16: 29.60575322 | DV16: 19.65217037 | DW16: 71.50922148 | DX16: 20.46054577 | DY16: 7.86527228 | DZ16: 15.03647263 | EA16: 226.0955091 | EB16: 0.586012346 | EC16: -0.4806188945 | ED16: -12.54869241 | EE16: -12.54869241 | EF16: 2 | EH16: MCAT02 | EL16: 391 | EM16: =IF(Calculator!$C$3,OFFSET('SPD Library'!B16,0,Calculator!$C$3-1),Calculator!C17) -> 0.000126 | EN16: =RefCalc!B16 -> 0.0002654849429 | EO16: =RefCalc!F16 -> 0.009121244584 | EQ16: 0.000126 | ER16: 391 | ES16: 0.00102255619
B17: a'ref,j | C17: =DAVERAGE($DT$4:$EF$103,"a'r,i",C$9:C$10) -> 26.98252082 | D17: 20.64286479 | E17: 13.25596066 | F17: 2.890550982 | G17: -1.81805102 | H17: -12.64729529 | I17: -18.64700724 | J17: -18.53102449 | K17: -25.30487017 | L17: -18.22569801 | M17: -12.35778824 | N17: -5.193713465 | O17: 2.965968063 | P17: 6.645521971 | Q17: 16.37442291 | R17: 20.66594857 | S17: 26.98252082 | U17: FL | V17: =0.2*V16^4*5*$EI$8+0.1*(1-V16^4)^2*(5*$EI$8)^(1/3) -> 0.7937005275 | W17: 0.7937005275 | X17: 0.7937005275 | Y17: 0.7937005275 | Z17: 0.7937005275 | AA17: 0.7937005275 | AB17: 0.7937005275 | AC17: 0.7937005275 | AD17: 0.7937005275 | AE17: 0.7937005275 | AF17: 0.7937005275 | AG17: 0.7937005275 | AH17: 0.7937005275 | AI17: 0.7937005275 | AJ17: 0.7937005275 | AK17: 0.7937005275 | AL17: 0.7937005275 | AM17: 0.7937005275 | AN17: 0.7937005275 | AO17: 0.7937005275 | AP17: 0.7937005275 | AQ17: 0.7937005275 | AR17: 0.7937005275 | AS17: 0.7937005275 | AT17: 0.7937005275 | AU17: 0.7937005275 | AV17: 0.7937005275 | AW17: 0.7937005275 | AX17: 0.7937005275 | AY17: 0.7937005275 | AZ17: 0.7937005275 | BA17: 0.7937005275 | BB17: =0.2*BB16^4*5*$EI$8+0.1*(1-BB16^4)^2*(5*$EI$8)^(1/3) -> 0.7937005275 | BC17: 0.7937005275 | BD17: 0.7937005275 | BE17: 0.7937005275 | BF17: 0.7937005275 | BG17: 0.7937005275 | BH17: 0.7937005275 | BI17: 0.7937005275 | BJ17: 0.7937005275 | BK17: 0.7937005275 | BL17: 0.7937005275 | BM17: 0.7937005275 | BN17: 0.7937005275 | BO17: 0.7937005275 | BP17: 0.7937005275 | BQ17: 0.7937005275 | BR17: 0.7937005275 | BS17: 0.7937005275 | BT17: 0.7937005275 | BU17: 0.7937005275 | BV17: 0.7937005275 | BW17: 0.7937005275 | BX17: 0.7937005275 | BY17: 0.7937005275 | BZ17: 0.7937005275 | CA17: 0.7937005275 | CB17: 0.7937005275 | CC17: 0.7937005275 | CD17: 0.7937005275 | CE17: 0.7937005275 | CF17: 0.7937005275 | CG17: 0.7937005275 | CH17: =0.2*CH16^4*5*$EI$8+0.1*(1-CH16^4)^2*(5*$EI$8)^(1/3) -> 0.7937005275 | CI17: 0.7937005275 | CJ17: 0.7937005275 | CK17: 0.7937005275 | CL17: 0.7937005275 | CM17: 0.7937005275 | CN17: 0.7937005275 | CO17: 0.7937005275 | CP17: 0.7937005275 | CQ17: 0.7937005275 | CR17: 0.7937005275 | CS17: 0.7937005275 | CT17: 0.7937005275 | CU17: 0.7937005275 | CV17: 0.7937005275 | CW17: 0.7937005275 | CX17: 0.7937005275 | CY17: 0.7937005275 | CZ17: 0.7937005275 | DA17: 0.7937005275 | DB17: 0.7937005275 | DC17: 0.7937005275 | DD17: 0.7937005275 | DE17: 0.7937005275 | DF17: 0.7937005275 | DG17: 0.7937005275 | DH17: 0.7937005275 | DI17: 0.7937005275 | DJ17: 0.7937005275 | DK17: 0.7937005275 | DL17: 0.7937005275 | DM17: 0.7937005275 | DN17: =0.2*DN16^4*5*$EI$8+0.1*(1-DN16^4)^2*(5*$EI$8)^(1/3) -> 0.7937005275 | DO17: =0.2*DO16^4*5*$EI$8+0.1*(1-DO16^4)^2*(5*$EI$8)^(1/3) -> 0.7937005275 | DP17: =0.2*DP16^4*5*$EI$8+0.1*(1-DP16^4)^2*(5*$EI$8)^(1/3) -> 0.7937005275 | DQ17: =0.2*DQ16^4*5*$EI$8+0.1*(1-DQ16^4)^2*(5*$EI$8)^(1/3) -> 0.7937005275 | DS17: CES13 | DT17: 46.62442879 | DU17: 22.61016968 | DV17: 12.3721131 | DW17: 45.43334838 | DX17: 18.59371738 | DY17: 4.295065692 | DZ17: 9.098860173 | EA17: 82.78925646 | EB17: 0.5006851117 | EC17: -0.318381957 | ED17: -15.68021691 | EE17: -15.68021691 | EF17: 2 | EH17: 0.7328 | EI17: 0.4296 | EJ17: -0.1624 | EL17: 392 | EM17: =IF(Calculator!$C$3,OFFSET('SPD Library'!B17,0,Calculator!$C$3-1),Calculator!C18) -> 0.000228 | EN17: =RefCalc!B17 -> 0.0004804013252 | EO17: =RefCalc!F17 -> 0.009494542376 | EQ17: 0.000228 | ER17: 392 | ES17: 0.001064405519
B18: b'ref,j | C18: =DAVERAGE($DU$4:$EF$103,"b'r,i",C$9:C$10) -> 5.641193558 | D18: 13.38078412 | E18: 23.12118912 | F18: 16.4590006 | G18: 10.49867086 | H18: 15.56875094 | I18: 11.67611117 | J18: 3.675117374 | K18: -6.981381865 | L18: -14.2947857 | M18: -18.46555047 | N18: -20.31979932 | O18: -15.60109125 | P18: -10.92497674 | Q18: -10.036829 | R18: -3.631531987 | S18: 5.641193558 | U18: n | V18: =$EI$9/V13 -> 0.2 | W18: 0.2 | X18: 0.2 | Y18: 0.2 | Z18: 0.2 | AA18: 0.2 | AB18: 0.2 | AC18: 0.2 | AD18: 0.2 | AE18: 0.2 | AF18: 0.2 | AG18: 0.2 | AH18: 0.2 | AI18: 0.2 | AJ18: 0.2 | AK18: 0.2 | AL18: 0.2 | AM18: 0.2 | AN18: 0.2 | AO18: 0.2 | AP18: 0.2 | AQ18: 0.2 | AR18: 0.2 | AS18: 0.2 | AT18: 0.2 | AU18: 0.2 | AV18: 0.2 | AW18: 0.2 | AX18: 0.2 | AY18: 0.2 | AZ18: 0.2 | BA18: 0.2 | BB18: =$EI$9/BB13 -> 0.2 | BC18: 0.2 | BD18: 0.2 | BE18: 0.2 | BF18: 0.2 | BG18: 0.2 | BH18: 0.2 | BI18: 0.2 | BJ18: 0.2 | BK18: 0.2 | BL18: 0.2 | BM18: 0.2 | BN18: 0.2 | BO18: 0.2 | BP18: 0.2 | BQ18: 0.2 | BR18: 0.2 | BS18: 0.2 | BT18: 0.2 | BU18: 0.2 | BV18: 0.2 | BW18: 0.2 | BX18: 0.2 | BY18: 0.2 | BZ18: 0.2 | CA18: 0.2 | CB18: 0.2 | CC18: 0.2 | CD18: 0.2 | CE18: 0.2 | CF18: 0.2 | CG18: 0.2 | CH18: =$EI$9/CH13 -> 0.2 | CI18: 0.2 | CJ18: 0.2 | CK18: 0.2 | CL18: 0.2 | CM18: 0.2 | CN18: 0.2 | CO18: 0.2 | CP18: 0.2 | CQ18: 0.2 | CR18: 0.2 | CS18: 0.2 | CT18: 0.2 | CU18: 0.2 | CV18: 0.2 | CW18: 0.2 | CX18: 0.2 | CY18: 0.2 | CZ18: 0.2 | DA18: 0.2 | DB18: 0.2 | DC18: 0.2 | DD18: 0.2 | DE18: 0.2 | DF18: 0.2 | DG18: 0.2 | DH18: 0.2 | DI18: 0.2 | DJ18: 0.2 | DK18: 0.2 | DL18: 0.2 | DM18: 0.2 | DN18: 0.2 | DO18: 0.2 | DP18: 0.2 | DQ18: 0.2 | DS18: CES14 | DT18: 74.9699555 | DU18: 6.896140202 | DV18: 5.580612109 | DW18: 75.37783323 | DX18: 4.690301766 | DY18: 2.750235424 | DZ18: 3.611525942 | EA18: 13.04311963 | EB18: 0.6803479623 | EC18: -0.4112639419 | ED18: -8.595139146 | EE18: -8.595139146 | EF18: 2 | EH18: -0.7036 | EI18: 1.6975 | EJ18: 0.0061 | EL18: 393 | EM18: =IF(Calculator!$C$3,OFFSET('SPD Library'!B18,0,Calculator!$C$3-1),Calculator!C19) -> 0.00033 | EN18: =RefCalc!B18 -> 0.0006953177075 | EO18: =RefCalc!F18 -> 0.00988077993 | EQ18: 0.00033 | ER18: 393 | ES18: 0.001107705487
B19: a'test,j | C19: =DAVERAGE($DU$4:$EF$103,"a't,i",C$9:C$10) -> 19.07990283 | D19: 13.76394409 | E19: 6.793884356 | F19: 0.7955449849 | G19: -1.350489958 | H19: -9.631139415 | I19: -12.62312222 | J19: -10.13486214 | K19: -16.74703377 | L19: -9.377492461 | M19: -4.34317341 | N19: 2.209543839 | O19: 3.299570646 | P19: 3.908667251 | Q19: 13.03222857 | R19: 14.20742779 | S19: 19.07990283 | U19: Nbb | V19: =0.725*(1/V18)^0.2 -> 1.000304005 | W19: =0.725*(1/W18)^0.2 -> 1.000304005 | X19: 1.000304005 | Y19: 1.000304005 | Z19: 1.000304005 | AA19: 1.000304005 | AB19: 1.000304005 | AC19: 1.000304005 | AD19: 1.000304005 | AE19: 1.000304005 | AF19: 1.000304005 | AG19: 1.000304005 | AH19: 1.000304005 | AI19: 1.000304005 | AJ19: 1.000304005 | AK19: 1.000304005 | AL19: 1.000304005 | AM19: 1.000304005 | AN19: =0.725*(1/AN18)^0.2 -> 1.000304005 | AO19: 1.000304005 | AP19: 1.000304005 | AQ19: 1.000304005 | AR19: 1.000304005 | AS19: 1.000304005 | AT19: 1.000304005 | AU19: 1.000304005 | AV19: 1.000304005 | AW19: 1.000304005 | AX19: 1.000304005 | AY19: 1.000304005 | AZ19: 1.000304005 | BA19: 1.000304005 | BB19: 1.000304005 | BC19: 1.000304005 | BD19: 1.000304005 | BE19: 1.000304005 | BF19: 1.000304005 | BG19: 1.000304005 | BH19: 1.000304005 | BI19: 1.000304005 | BJ19: 1.000304005 | BK19: 1.000304005 | BL19: 1.000304005 | BM19: 1.000304005 | BN19: 1.000304005 | BO19: 1.000304005 | BP19: 1.000304005 | BQ19: 1.000304005 | BR19: 1.000304005 | BS19: 1.000304005 | BT19: 1.000304005 | BU19: 1.000304005 | BV19: 1.000304005 | BW19: 1.000304005 | BX19: 1.000304005 | BY19: 1.000304005 | BZ19: 1.000304005 | CA19: 1.000304005 | CB19: 1.000304005 | CC19: 1.000304005 | CD19: 1.000304005 | CE19: 1.000304005 | CF19: 1.000304005 | CG19: 1.000304005 | CH19: 1.000304005 | CI19: 1.000304005 | CJ19: 1.000304005 | CK19: 1.000304005 | CL19: 1.000304005 | CM19: 1.000304005 | CN19: 1.000304005 | CO19: 1.000304005 | CP19: 1.000304005 | CQ19: 1.000304005 | CR19: 1.000304005 | CS19: 1.000304005 | CT19: 1.000304005 | CU19: 1.000304005 | CV19: 1.000304005 | CW19: 1.000304005 | CX19: 1.000304005 | CY19: 1.000304005 | CZ19: =0.725*(1/CZ18)^0.2 -> 1.000304005 | DA19: 1.000304005 | DB19: 1.000304005 | DC19: 1.000304005 | DD19: 1.000304005 | DE19: 1.000304005 | DF19: 1.000304005 | DG19: 1.000304005 | DH19: 1.000304005 | DI19: 1.000304005 | DJ19: 1.000304005 | DK19: 1.000304005 | DL19: 1.000304005 | DM19: 1.000304005 | DN19: 1.000304005 | DO19: 1.000304005 | DP19: 1.000304005 | DQ19: 1.000304005 | DS19: CES15 | DT19: 73.59276715 | DU19: 16.4209926 | DV19: 8.856996285 | DW19: 73.04526896 | DX19: 12.58182365 | DY19: 4.012090474 | DZ19: 6.205810563 | EA19: 38.51208475 | EB19: 0.4946456277 | EC19: -0.3373202067 | ED19: -10.65467063 | EE19: -10.65467063 | EF19: 2 | EH19: 0.003 | EI19: 0.0136 | EJ19: 0.9834 | EL19: 394 | EM19: =IF(Calculator!$C$3,OFFSET('SPD Library'!B19,0,Calculator!$C$3-1),Calculator!C20) -> 0.000432 | EN19: =RefCalc!B19 -> 0.0009102340898 | EO19: =RefCalc!F19 -> 0.01028031655 | EQ19: 0.000432 | ER19: 394 | ES19: 0.001152496375
B20: b'test,j | C20: =DAVERAGE($DU$4:$EF$103,"b't,i",C$9:C$10) -> 0.9783912011 | D20: 5.719460998 | E20: 11.08744157 | F20: 8.73193439 | G20: 5.631498321 | H20: 8.786469253 | I20: 7.587870338 | J20: 3.056206683 | K20: -3.020313847 | L20: -9.485422949 | M20: -13.27640984 | N20: -14.27584698 | O20: -10.4215453 | P20: -7.909226052 | Q20: -7.986804341 | R20: -4.053727407 | S20: 0.9783912011 | U20: Ncb | V20: =0.725*(1/V18)^0.2 -> 1.000304005 | W20: =0.725*(1/W18)^0.2 -> 1.000304005 | X20: 1.000304005 | Y20: 1.000304005 | Z20: 1.000304005 | AA20: 1.000304005 | AB20: 1.000304005 | AC20: 1.000304005 | AD20: 1.000304005 | AE20: 1.000304005 | AF20: 1.000304005 | AG20: 1.000304005 | AH20: 1.000304005 | AI20: 1.000304005 | AJ20: 1.000304005 | AK20: 1.000304005 | AL20: 1.000304005 | AM20: 1.000304005 | AN20: =0.725*(1/AN18)^0.2 -> 1.000304005 | AO20: 1.000304005 | AP20: 1.000304005 | AQ20: 1.000304005 | AR20: 1.000304005 | AS20: 1.000304005 | AT20: 1.000304005 | AU20: 1.000304005 | AV20: 1.000304005 | AW20: 1.000304005 | AX20: 1.000304005 | AY20: 1.000304005 | AZ20: 1.000304005 | BA20: 1.000304005 | BB20: 1.000304005 | BC20: 1.000304005 | BD20: 1.000304005 | BE20: 1.000304005 | BF20: 1.000304005 | BG20: 1.000304005 | BH20: 1.000304005 | BI20: 1.000304005 | BJ20: 1.000304005 | BK20: 1.000304005 | BL20: 1.000304005 | BM20: 1.000304005 | BN20: 1.000304005 | BO20: 1.000304005 | BP20: 1.000304005 | BQ20: 1.000304005 | BR20: 1.000304005 | BS20: 1.000304005 | BT20: 1.000304005 | BU20: 1.000304005 | BV20: 1.000304005 | BW20: 1.000304005 | BX20: 1.000304005 | BY20: 1.000304005 | BZ20: 1.000304005 | CA20: 1.000304005 | CB20: 1.000304005 | CC20: 1.000304005 | CD20: 1.000304005 | CE20: 1.000304005 | CF20: 1.000304005 | CG20: 1.000304005 | CH20: 1.000304005 | CI20: 1.000304005 | CJ20: 1.000304005 | CK20: 1.000304005 | CL20: 1.000304005 | CM20: 1.000304005 | CN20: 1.000304005 | CO20: 1.000304005 | CP20: 1.000304005 | CQ20: 1.000304005 | CR20: 1.000304005 | CS20: 1.000304005 | CT20: 1.000304005 | CU20: 1.000304005 | CV20: 1.000304005 | CW20: 1.000304005 | CX20: 1.000304005 | CY20: 1.000304005 | CZ20: =0.725*(1/CZ18)^0.2 -> 1.000304005 | DA20: 1.000304005 | DB20: 1.000304005 | DC20: 1.000304005 | DD20: 1.000304005 | DE20: 1.000304005 | DF20: 1.000304005 | DG20: 1.000304005 | DH20: 1.000304005 | DI20: 1.000304005 | DJ20: 1.000304005 | DK20: 1.000304005 | DL20: 1.000304005 | DM20: 1.000304005 | DN20: 1.000304005 | DO20: 1.000304005 | DP20: 1.000304005 | DQ20: 1.000304005 | DS20: CES16 | DT20: 51.35058806 | DU20: 22.336175 | DV20: 13.65981176 | DW20: 49.70447653 | DX20: 14.23969546 | DY20: 5.575533287 | DZ20: 11.55933486 | EA20: 133.6182225 | EB20: 0.5488729289 | EC20: -0.4891118424 | ED20: -10.06534312 | EE20: -10.06534312 | EF20: 2 | EL20: 395 | EM20: =IF(Calculator!$C$3,OFFSET('SPD Library'!B20,0,Calculator!$C$3-1),Calculator!C21) -> 0.000534 | EN20: =RefCalc!B20 -> 0.001125150472 | EO20: =RefCalc!F20 -> 0.01069351862 | EQ20: 0.000534 | ER20: 395 | ES20: 0.001198819257
B21: ΔEj | C21: =DAVERAGE($DU$4:$EF$103,"ΔE",C$9:C$10) -> 9.68023279 | D21: 10.56403594 | E21: 13.9746192 | F21: 8.214953866 | G21: 5.09858503 | H21: 7.915365321 | I21: 7.331006563 | J21: 8.688954774 | K21: 9.862006 | L21: 10.66634568 | M21: 10.14200452 | N21: 10.37215485 | O21: 6.129201467 | P21: 4.791833989 | Q21: 5.058825214 | R21: 6.980366758 | S21: 9.68023279 | U21: z | V21: =1.48+V18^(1/2) -> 1.927213595 | W21: =1.48+W18^(1/2) -> 1.927213595 | X21: 1.927213595 | Y21: 1.927213595 | Z21: 1.927213595 | AA21: 1.927213595 | AB21: 1.927213595 | AC21: 1.927213595 | AD21: 1.927213595 | AE21: 1.927213595 | AF21: 1.927213595 | AG21: 1.927213595 | AH21: 1.927213595 | AI21: 1.927213595 | AJ21: 1.927213595 | AK21: 1.927213595 | AL21: 1.927213595 | AM21: 1.927213595 | AN21: =1.48+AN18^(1/2) -> 1.927213595 | AO21: 1.927213595 | AP21: 1.927213595 | AQ21: 1.927213595 | AR21: 1.927213595 | AS21: 1.927213595 | AT21: 1.927213595 | AU21: 1.927213595 | AV21: 1.927213595 | AW21: 1.927213595 | AX21: 1.927213595 | AY21: 1.927213595 | AZ21: 1.927213595 | BA21: 1.927213595 | BB21: 1.927213595 | BC21: 1.927213595 | BD21: 1.927213595 | BE21: 1.927213595 | BF21: 1.927213595 | BG21: 1.927213595 | BH21: 1.927213595 | BI21: 1.927213595 | BJ21: 1.927213595 | BK21: 1.927213595 | BL21: 1.927213595 | BM21: 1.927213595 | BN21: 1.927213595 | BO21: 1.927213595 | BP21: 1.927213595 | BQ21: 1.927213595 | BR21: 1.927213595 | BS21: 1.927213595 | BT21: 1.927213595 | BU21: 1.927213595 | BV21: 1.927213595 | BW21: 1.927213595 | BX21: 1.927213595 | BY21: 1.927213595 | BZ21: 1.927213595 | CA21: 1.927213595 | CB21: 1.927213595 | CC21: 1.927213595 | CD21: 1.927213595 | CE21: 1.927213595 | CF21: 1.927213595 | CG21: 1.927213595 | CH21: 1.927213595 | CI21: 1.927213595 | CJ21: 1.927213595 | CK21: 1.927213595 | CL21: 1.927213595 | CM21: 1.927213595 | CN21: 1.927213595 | CO21: 1.927213595 | CP21: 1.927213595 | CQ21: 1.927213595 | CR21: 1.927213595 | CS21: 1.927213595 | CT21: 1.927213595 | CU21: 1.927213595 | CV21: 1.927213595 | CW21: 1.927213595 | CX21: 1.927213595 | CY21: 1.927213595 | CZ21: =1.48+CZ18^(1/2) -> 1.927213595 | DA21: 1.927213595 | DB21: 1.927213595 | DC21: 1.927213595 | DD21: 1.927213595 | DE21: 1.927213595 | DF21: 1.927213595 | DG21: 1.927213595 | DH21: 1.927213595 | DI21: 1.927213595 | DJ21: 1.927213595 | DK21: 1.927213595 | DL21: 1.927213595 | DM21: 1.927213595 | DN21: 1.927213595 | DO21: 1.927213595 | DP21: 1.927213595 | DQ21: 1.927213595 | DS21: CES17 | DT21: 52.63599915 | DU21: 16.00364854 | DV21: 15.09297004 | DW21: 53.74762623 | DX21: 6.974754675 | DY21: 7.320227683 | DZ21: 11.96545708 | EA21: 143.172163 | EB21: 0.7561210803 | EC21: -0.6019133575 | ED21: 3.06187564 | EE21: 3.06187564 | EF21: 2 | EH21: invCAT02 | EL21: 396 | EM21: =IF(Calculator!$C$3,OFFSET('SPD Library'!B21,0,Calculator!$C$3-1),Calculator!C22) -> 0.000636 | EN21: =RefCalc!B21 -> 0.001340066854 | EO21: =RefCalc!F21 -> 0.01112075966 | EQ21: 0.000636 | ER21: 396 | ES21: 0.001246716007
B22: href,j | C22: =DAVERAGE($DU$4:$EF$103,"hi",C$9:C$10) -> 0.1815319137 | D22: 0.5764958668 | E22: 1.051486983 | F22: 1.388671084 | G22: 1.755697263 | H22: 2.22888642 | I22: 2.584215672 | J22: 2.960709903 | K22: 3.41244734 | L22: 3.797894983 | M22: 4.137020929 | N22: 4.474585249 | O22: 4.873165902 | P22: 5.224390374 | Q22: 5.733685869 | R22: 6.094933285 | S22: 0.1815319137 | U22: R | V22: =MMULT($EH$17:$EJ$19,V9:V11) -> 141.3151435 | W22: =MMULT($EH$17:$EJ$19,W9:W11) -> 104.0910349 | X22: =MMULT($EH$17:$EJ$19,X9:X11) -> 59.68572232 | Y22: =MMULT($EH$17:$EJ$19,Y9:Y11) -> 11.66895488 | Z22: =MMULT($EH$17:$EJ$19,Z9:Z11) -> 63.93708535 | AA22: =MMULT($EH$17:$EJ$19,AA9:AA11) -> 42.81418603 | AB22: =MMULT($EH$17:$EJ$19,AB9:AB11) -> 32.00538502 | AC22: =MMULT($EH$17:$EJ$19,AC9:AC11) -> 30.34808297 | AD22: =MMULT($EH$17:$EJ$19,AD9:AD11) -> 28.57034521 | AE22: =MMULT($EH$17:$EJ$19,AE9:AE11) -> 7.564080695 | AF22: =MMULT($EH$17:$EJ$19,AF9:AF11) -> 93.73208207 | AG22: =MMULT($EH$17:$EJ$19,AG9:AG11) -> 51.59526647 | AH22: =MMULT($EH$17:$EJ$19,AH9:AH11) -> 66.89190284 | AI22: =MMULT($EH$17:$EJ$19,AI9:AI11) -> 24.65329737 | AJ22: =MMULT($EH$17:$EJ$19,AJ9:AJ11) -> 64.83927183 | AK22: =MMULT($EH$17:$EJ$19,AK9:AK11) -> 66.20168602 | AL22: =MMULT($EH$17:$EJ$19,AL9:AL11) -> 30.47465522 | AM22: =MMULT($EH$17:$EJ$19,AM9:AM11) -> 30.76915328 | AN22: =MMULT($EH$17:$EJ$19,AN9:AN11) -> 38.08383132 | AO22: =MMULT($EH$17:$EJ$19,AO9:AO11) -> 68.77501944 | AP22: =MMULT($EH$17:$EJ$19,AP9:AP11) -> 69.1985666 | AQ22: =MMULT($EH$17:$EJ$19,AQ9:AQ11) -> 114.0962552 | AR22: =MMULT($EH$17:$EJ$19,AR9:AR11) -> 92.5290579 | AS22: =MMULT($EH$17:$EJ$19,AS9:AS11) -> 114.8832997 | AT22: =MMULT($EH$17:$EJ$19,AT9:AT11) -> 118.3805507 | AU22: =MMULT($EH$17:$EJ$19,AU9:AU11) -> 67.9068003 | AV22: =MMULT($EH$17:$EJ$19,AV9:AV11) -> 118.9120654 | AW22: =MMULT($EH$17:$EJ$19,AW9:AW11) -> 62.31648278 | AX22: =MMULT($EH$17:$EJ$19,AX9:AX11) -> 16.68610258 | AY22: =MMULT($EH$17:$EJ$19,AY9:AY11) -> 104.3683143 | AZ22: =MMULT($EH$17:$EJ$19,AZ9:AZ11) -> 46.20394355 | BA22: =MMULT($EH$17:$EJ$19,BA9:BA11) -> 108.4729716 | BB22: =MMULT($EH$17:$EJ$19,BB9:BB11) -> 70.92269448 | BC22: =MMULT($EH$17:$EJ$19,BC9:BC11) -> 108.4945773 | BD22: =MMULT($EH$17:$EJ$19,BD9:BD11) -> 41.23165424 | BE22: =MMULT($EH$17:$EJ$19,BE9:BE11) -> 16.28564128 | BF22: =MMULT($EH$17:$EJ$19,BF9:BF11) -> 77.23405638 | BG22: =MMULT($EH$17:$EJ$19,BG9:BG11) -> 21.11973645 | BH22: =MMULT($EH$17:$EJ$19,BH9:BH11) -> 94.03562956 | BI22: =MMULT($EH$17:$EJ$19,BI9:BI11) -> 10.99814808 | BJ22: =MMULT($EH$17:$EJ$19,BJ9:BJ11) -> 24.0132243 | BK22: =MMULT($EH$17:$EJ$19,BK9:BK11) -> 97.94729034 | BL22: =MMULT($EH$17:$EJ$19,BL9:BL11) -> 44.96538956 | BM22: =MMULT($EH$17:$EJ$19,BM9:BM11) -> 51.31893392 | BN22: =MMULT($EH$17:$EJ$19,BN9:BN11) -> 6.995177695 | BO22: =MMULT($EH$17:$EJ$19,BO9:BO11) -> 28.39878137 | BP22: =MMULT($EH$17:$EJ$19,BP9:BP11) -> 41.10614571 | BQ22: =MMULT($EH$17:$EJ$19,BQ9:BQ11) -> 51.34507384 | BR22: =MMULT($EH$17:$EJ$19,BR9:BR11) -> 56.99727287 | BS22: =MMULT($EH$17:$EJ$19,BS9:BS11) -> 16.26195716 | BT22: =MMULT($EH$17:$EJ$19,BT9:BT11) -> 24.20044288 | BU22: =MMULT($EH$17:$EJ$19,BU9:BU11) -> 29.79005863 | BV22: =MMULT($EH$17:$EJ$19,BV9:BV11) -> 11.65377584 | BW22: =MMULT($EH$17:$EJ$19,BW9:BW11) -> 14.05631907 | BX22: =MMULT($EH$17:$EJ$19,BX9:BX11) -> 83.18805124 | BY22: =MMULT($EH$17:$EJ$19,BY9:BY11) -> 72.89633474 | BZ22: =MMULT($EH$17:$EJ$19,BZ9:BZ11) -> 36.98738044 | CA22: =MMULT($EH$17:$EJ$19,CA9:CA11) -> 19.19592564 | CB22: =MMULT($EH$17:$EJ$19,CB9:CB11) -> 15.89506679 | CC22: =MMULT($EH$17:$EJ$19,CC9:CC11) -> 83.0001111 | CD22: =MMULT($EH$17:$EJ$19,CD9:CD11) -> 94.43271581 | CE22: =MMULT($EH$17:$EJ$19,CE9:CE11) -> 59.54009855 | CF22: =MMULT($EH$17:$EJ$19,CF9:CF11) -> 45.48120137 | CG22: =MMULT($EH$17:$EJ$19,CG9:CG11) -> 10.13889768 | CH22: =MMULT($EH$17:$EJ$19,CH9:CH11) -> 20.52204939 | CI22: =MMULT($EH$17:$EJ$19,CI9:CI11) -> 10.02556884 | CJ22: =MMULT($EH$17:$EJ$19,CJ9:CJ11) -> 10.70488095 | CK22: =MMULT($EH$17:$EJ$19,CK9:CK11) -> 12.52650056 | CL22: =MMULT($EH$17:$EJ$19,CL9:CL11) -> 33.97025531 | CM22: =MMULT($EH$17:$EJ$19,CM9:CM11) -> 25.37036643 | CN22: =MMULT($EH$17:$EJ$19,CN9:CN11) -> 45.42396795 | CO22: =MMULT($EH$17:$EJ$19,CO9:CO11) -> 7.823636621 | CP22: =MMULT($EH$17:$EJ$19,CP9:CP11) -> 63.19111498 | CQ22: =MMULT($EH$17:$EJ$19,CQ9:CQ11) -> 22.02739921 | CR22: =MMULT($EH$17:$EJ$19,CR9:CR11) -> 6.8691978 | CS22: =MMULT($EH$17:$EJ$19,CS9:CS11) -> 7.134938458 | CT22: =MMULT($EH$17:$EJ$19,CT9:CT11) -> 15.58756762 | CU22: =MMULT($EH$17:$EJ$19,CU9:CU11) -> 16.03151386 | CV22: =MMULT($EH$17:$EJ$19,CV9:CV11) -> 13.09575982 | CW22: =MMULT($EH$17:$EJ$19,CW9:CW11) -> 57.84356692 | CX22: =MMULT($EH$17:$EJ$19,CX9:CX11) -> 44.32656708 | CY22: =MMULT($EH$17:$EJ$19,CY9:CY11) -> 19.05173943 | CZ22: =MMULT($EH$17:$EJ$19,CZ9:CZ11) -> 94.4987948 | DA22: =MMULT($EH$17:$EJ$19,DA9:DA11) -> 58.41286011 | DB22: =MMULT($EH$17:$EJ$19,DB9:DB11) -> 7.209334972 | DC22: =MMULT($EH$17:$EJ$19,DC9:DC11) -> 16.7431393 | DD22: =MMULT($EH$17:$EJ$19,DD9:DD11) -> 50.10762912 | DE22: =MMULT($EH$17:$EJ$19,DE9:DE11) -> 16.65430808 | DF22: =MMULT($EH$17:$EJ$19,DF9:DF11) -> 46.93959425 | DG22: =MMULT($EH$17:$EJ$19,DG9:DG11) -> 16.78588927 | DH22: =MMULT($EH$17:$EJ$19,DH9:DH11) -> 22.37584787 | DI22: =MMULT($EH$17:$EJ$19,DI9:DI11) -> 78.19130706 | DJ22: =MMULT($EH$17:$EJ$19,DJ9:DJ11) -> 38.94112789 | DK22: =MMULT($EH$17:$EJ$19,DK9:DK11) -> 55.49321985 | DL22: =MMULT($EH$17:$EJ$19,DL9:DL11) -> 21.33714494 | DM22: =MMULT($EH$17:$EJ$19,DM9:DM11) -> 65.5722375 | DN22: =MMULT($EH$17:$EJ$19,DN9:DN11) -> 83.56154064 | DO22: =MMULT($EH$17:$EJ$19,DO9:DO11) -> 33.6646285 | DP22: =MMULT($EH$17:$EJ$19,DP9:DP11) -> 62.08193012 | DQ22: =MMULT($EH$17:$EJ$19,DQ9:DQ11) -> 44.06013746 | DS22: CES18 | DT22: 58.5782731 | DU22: 14.7609076 | DV22: 11.23712397 | DW22: 58.38576877 | DX22: 10.40522859 | DY22: 5.19018757 | DZ22: 7.454826446 | EA22: 55.57443735 | EB22: 0.6506787449 | EC22: -0.4233919533 | ED22: -10.7708625 | EE22: -10.7708625 | EF22: 2 | EH22: =MINVERSE(EH17:EJ19) -> 1.096123821 | EI22: -0.2788690002 | EJ22: 0.1827451794 | EL22: 397 | EM22: =IF(Calculator!$C$3,OFFSET('SPD Library'!B22,0,Calculator!$C$3-1),Calculator!C23) -> 0.000738 | EN22: =RefCalc!B22 -> 0.001554983237 | EO22: =RefCalc!F22 -> 0.01156242039 | EQ22: 0.000738 | ER22: 397 | ES22: 0.001296229306
U23: G | V23: 73.89953365 | W23: 43.34793769 | X23: 15.20661953 | Y23: 3.568463775 | Z23: 24.53503124 | AA23: 7.692705962 | AB23: 11.05928138 | AC23: 5.048987324 | AD23: 4.934637871 | AE23: 3.51264883 | AF23: 26.5336318 | AG23: 13.71126136 | AH23: 17.08526503 | AI23: 7.035439991 | AJ23: 30.62053299 | AK23: 26.16071724 | AL23: 9.00659692 | AM23: 10.79530876 | AN23: 14.57344524 | AO23: 27.45915455 | AP23: 19.68483178 | AQ23: 45.5669499 | AR23: 34.14201268 | AS23: 56.49362313 | AT23: 54.96033842 | AU23: 28.63044287 | AV23: 52.85640851 | AW23: 30.94937673 | AX23: 8.398854355 | AY23: 48.92460039 | AZ23: 21.92106514 | BA23: 52.10061131 | BB23: 33.82864227 | BC23: 53.83485791 | BD23: 21.53786062 | BE23: 8.869022557 | BF23: 39.54257871 | BG23: 12.03355836 | BH23: 48.68658687 | BI23: 5.635259348 | BJ23: 12.24941112 | BK23: 51.25702969 | BL23: 29.53363681 | BM23: 33.58976196 | BN23: 3.669832187 | BO23: 19.84494174 | BP23: 26.37992406 | BQ23: 27.94516418 | BR23: 40.0719236 | BS23: 11.39567748 | BT23: 16.05386342 | BU23: 18.3561897 | BV23: 8.746668623 | BW23: 14.0263293 | BX23: 51.70153741 | BY23: 46.03510389 | BZ23: 32.04494383 | CA23: 19.55125421 | CB23: 16.69383822 | CC23: 50.70880427 | CD23: 51.40366824 | CE23: 35.69915049 | CF23: 24.36132483 | CG23: 5.340353627 | CH23: 19.043419 | CI23: 8.079511335 | CJ23: 9.787124333 | CK23: 11.41550892 | CL23: 21.97088322 | CM23: 13.65060559 | CN23: 29.99124161 | CO23: 5.344579251 | CP23: 34.59662046 | CQ23: 16.85191914 | CR23: 3.502924045 | CS23: 4.677011769 | CT23: 9.90259088 | CU23: 8.618069305 | CV23: 8.334988493 | CW23: 29.87384784 | CX23: 21.66673339 | CY23: 7.400337746 | CZ23: 48.62917185 | DA23: 29.29272592 | DB23: 3.212501281 | DC23: 7.121761451 | DD23: 20.05702909 | DE23: 5.589401736 | DF23: 17.13118095 | DG23: 5.309208806 | DH23: 7.102083006 | DI23: 38.52147729 | DJ23: 13.373339 | DK23: 22.34575693 | DL23: 5.086420205 | DM23: 23.75755708 | DN23: 32.95766946 | DO23: 11.76397954 | DP23: 17.62571529 | DQ23: 9.080208476 | DS23: CES19 | DT23: 74.03400721 | DU23: 11.69177597 | DV23: 20.82066277 | DW23: 77.30228668 | DX23: 5.229512278 | DY23: 10.18216455 | DZ23: 12.86934914 | EA23: 165.6201472 | EB23: 1.059131275 | EC23: -0.587909107 | ED23: 2.131426939 | EE23: 2.131426939 | EF23: 3 | EH23: 0.454369042 | EI23: 0.4735331543 | EJ23: 0.07209780372 | EL23: 398 | EM23: =IF(Calculator!$C$3,OFFSET('SPD Library'!B23,0,Calculator!$C$3-1),Calculator!C24) -> 0.00084 | EN23: =RefCalc!B23 -> 0.001769899619 | EO23: =RefCalc!F23 -> 0.01201888879 | EQ23: 0.00084 | ER23: 398 | ES23: 0.00134740265
B24: Color Vector Graphic Elements | U24: B | V24: 11.05296287 | W24: 6.677473419 | X24: 2.520444817 | Y24: 0.6394456722 | Z24: 3.138409172 | AA24: 1.192519848 | AB24: 1.474051779 | AC24: 0.8154592042 | AD24: 0.8264181764 | AE24: 0.5572159692 | AF24: 2.689700672 | AG24: 1.16847447 | AH24: 1.460894383 | AI24: 0.7636974948 | AJ24: 4.141616447 | AK24: 3.391903247 | AL24: 0.921793892 | AM24: 0.9592012005 | AN24: 1.625665851 | AO24: 2.025104319 | AP24: 1.570799112 | AQ24: 3.116027594 | AR24: 2.28905661 | AS24: 6.667608999 | AT24: 4.41050905 | AU24: 1.391565813 | AV24: 3.766168824 | AW24: 3.297261631 | AX24: 0.6907484233 | AY24: 3.623051621 | AZ24: 2.282199522 | BA24: 3.902730179 | BB24: 2.001305411 | BC24: 5.567963074 | BD24: 1.200373527 | BE24: 0.7344232967 | BF24: 5.429940656 | BG24: 0.8665997023 | BH24: 5.5374741 | BI24: 0.7045771996 | BJ24: 1.324921048 | BK24: 6.895461852 | BL24: 1.717740676 | BM24: 2.113963016 | BN24: 0.5314486624 | BO24: 1.528182632 | BP24: 2.587566982 | BQ24: 3.53377326 | BR24: 4.212359089 | BS24: 1.114203728 | BT24: 2.002085575 | BU24: 2.461255369 | BV24: 1.012805927 | BW24: 1.771872833 | BX24: 7.589622743 | BY24: 7.037045377 | BZ24: 4.969566801 | CA24: 3.117257628 | CB24: 2.842826344 | CC24: 7.772308125 | CD24: 8.00948419 | CE24: 5.805666278 | CF24: 4.057583417 | CG24: 0.8947304179 | CH24: 4.171928322 | CI24: 1.561148811 | CJ24: 2.595805547 | CK24: 3.094813949 | CL24: 4.560783244 | CM24: 2.636252 | CN24: 6.941265099 | CO24: 1.735136462 | CP24: 5.820949099 | CQ24: 5.104549632 | CR24: 0.5951936868 | CS24: 1.608844248 | CT24: 4.14719495 | CU24: 2.664238051 | CV24: 3.507861389 | CW24: 6.512492328 | CX24: 5.436355916 | CY24: 2.888274199 | CZ24: 8.275734166 | DA24: 5.783724706 | DB24: 0.6397816455 | DC24: 1.639711356 | DD24: 5.258321302 | DE24: 1.990010384 | DF24: 4.306936807 | DG24: 1.529242683 | DH24: 1.977460212 | DI24: 6.232398386 | DJ24: 2.993347349 | DK24: 4.254444936 | DL24: 1.376112394 | DM24: 4.712125613 | DN24: 5.940173313 | DO24: 2.082149138 | DP24: 3.191939595 | DQ24: 2.013405895 | DS24: CES20 | DT24: 71.30715214 | DU24: 26.09259842 | DV24: 20.48979377 | DW24: 70.29465309 | DX24: 20.30009874 | DY24: 8.73270094 | DZ24: 13.14562432 | EA24: 172.8074387 | EB24: 0.6656958767 | EC24: -0.4206013455 | ED24: -14.86514541 | EE24: -14.86514541 | EF24: 2 | EH24: -0.009627608738 | EI24: -0.005698031216 | EJ24: 1.01532564 | EL24: 399 | EM24: =IF(Calculator!$C$3,OFFSET('SPD Library'!B24,0,Calculator!$C$3-1),Calculator!C25) -> 0.000941 | EN24: =RefCalc!B24 -> 0.001982708978 | EO24: =RefCalc!F24 -> 0.01249056015 | EQ24: 0.000941 | ER24: 399 | ES24: 0.001400280354
B25: da_relative | C25: =(C19-C17)/SQRT(C17^2+C18^2) -> -0.2866808123 | D25: -0.2796278614 | E25: -0.2424644961 | F25: -0.1253676775 | G25: 0.04388215957 | H25: 0.1503685913 | I25: 0.2738009483 | J25: 0.4444309493 | K25: 0.326009587 | L25: 0.3820000967 | M25: 0.360707222 | N25: 0.3529890336 | O25: 0.02100702732 | P25: -0.2140271439 | Q25: -0.1740207827 | R25: -0.3078036624 | S25: =C25 -> -0.2866808123 | U25: Rw | V25: =MMULT($EH$17:$EJ$19,V12:V14) -> 141.3151435 | W25: =MMULT($EH$17:$EJ$19,W12:W14) -> 141.3151435 | X25: =MMULT($EH$17:$EJ$19,X12:X14) -> 141.3151435 | Y25: =MMULT($EH$17:$EJ$19,Y12:Y14) -> 141.3151435 | Z25: =MMULT($EH$17:$EJ$19,Z12:Z14) -> 141.3151435 | AA25: =MMULT($EH$17:$EJ$19,AA12:AA14) -> 141.3151435 | AB25: =MMULT($EH$17:$EJ$19,AB12:AB14) -> 141.3151435 | AC25: =MMULT($EH$17:$EJ$19,AC12:AC14) -> 141.3151435 | AD25: =MMULT($EH$17:$EJ$19,AD12:AD14) -> 141.3151435 | AE25: =MMULT($EH$17:$EJ$19,AE12:AE14) -> 141.3151435 | AF25: =MMULT($EH$17:$EJ$19,AF12:AF14) -> 141.3151435 | AG25: =MMULT($EH$17:$EJ$19,AG12:AG14) -> 141.3151435 | AH25: =MMULT($EH$17:$EJ$19,AH12:AH14) -> 141.3151435 | AI25: =MMULT($EH$17:$EJ$19,AI12:AI14) -> 141.3151435 | AJ25: =MMULT($EH$17:$EJ$19,AJ12:AJ14) -> 141.3151435 | AK25: =MMULT($EH$17:$EJ$19,AK12:AK14) -> 141.3151435 | AL25: =MMULT($EH$17:$EJ$19,AL12:AL14) -> 141.3151435 | AM25: =MMULT($EH$17:$EJ$19,AM12:AM14) -> 141.3151435 | AN25: =MMULT($EH$17:$EJ$19,AN12:AN14) -> 141.3151435 | AO25: =MMULT($EH$17:$EJ$19,AO12:AO14) -> 141.3151435 | AP25: =MMULT($EH$17:$EJ$19,AP12:AP14) -> 141.3151435 | AQ25: =MMULT($EH$17:$EJ$19,AQ12:AQ14) -> 141.3151435 | AR25: =MMULT($EH$17:$EJ$19,AR12:AR14) -> 141.3151435 | AS25: =MMULT($EH$17:$EJ$19,AS12:AS14) -> 141.3151435 | AT25: =MMULT($EH$17:$EJ$19,AT12:AT14) -> 141.3151435 | AU25: =MMULT($EH$17:$EJ$19,AU12:AU14) -> 141.3151435 | AV25: =MMULT($EH$17:$EJ$19,AV12:AV14) -> 141.3151435 | AW25: =MMULT($EH$17:$EJ$19,AW12:AW14) -> 141.3151435 | AX25: =MMULT($EH$17:$EJ$19,AX12:AX14) -> 141.3151435 | AY25: =MMULT($EH$17:$EJ$19,AY12:AY14) -> 141.3151435 | AZ25: =MMULT($EH$17:$EJ$19,AZ12:AZ14) -> 141.3151435 | BA25: =MMULT($EH$17:$EJ$19,BA12:BA14) -> 141.3151435 | BB25: =MMULT($EH$17:$EJ$19,BB12:BB14) -> 141.3151435 | BC25: =MMULT($EH$17:$EJ$19,BC12:BC14) -> 141.3151435 | BD25: =MMULT($EH$17:$EJ$19,BD12:BD14) -> 141.3151435 | BE25: =MMULT($EH$17:$EJ$19,BE12:BE14) -> 141.3151435 | BF25: =MMULT($EH$17:$EJ$19,BF12:BF14) -> 141.3151435 | BG25: =MMULT($EH$17:$EJ$19,BG12:BG14) -> 141.3151435 | BH25: =MMULT($EH$17:$EJ$19,BH12:BH14) -> 141.3151435 | BI25: =MMULT($EH$17:$EJ$19,BI12:BI14) -> 141.3151435 | BJ25: =MMULT($EH$17:$EJ$19,BJ12:BJ14) -> 141.3151435 | BK25: =MMULT($EH$17:$EJ$19,BK12:BK14) -> 141.3151435 | BL25: =MMULT($EH$17:$EJ$19,BL12:BL14) -> 141.3151435 | BM25: =MMULT($EH$17:$EJ$19,BM12:BM14) -> 141.3151435 | BN25: =MMULT($EH$17:$EJ$19,BN12:BN14) -> 141.3151435 | BO25: =MMULT($EH$17:$EJ$19,BO12:BO14) -> 141.3151435 | BP25: =MMULT($EH$17:$EJ$19,BP12:BP14) -> 141.3151435 | BQ25: =MMULT($EH$17:$EJ$19,BQ12:BQ14) -> 141.3151435 | BR25: =MMULT($EH$17:$EJ$19,BR12:BR14) -> 141.3151435 | BS25: =MMULT($EH$17:$EJ$19,BS12:BS14) -> 141.3151435 | BT25: =MMULT($EH$17:$EJ$19,BT12:BT14) -> 141.3151435 | BU25: =MMULT($EH$17:$EJ$19,BU12:BU14) -> 141.3151435 | BV25: =MMULT($EH$17:$EJ$19,BV12:BV14) -> 141.3151435 | BW25: =MMULT($EH$17:$EJ$19,BW12:BW14) -> 141.3151435 | BX25: =MMULT($EH$17:$EJ$19,BX12:BX14) -> 141.3151435 | BY25: =MMULT($EH$17:$EJ$19,BY12:BY14) -> 141.3151435 | BZ25: =MMULT($EH$17:$EJ$19,BZ12:BZ14) -> 141.3151435 | CA25: =MMULT($EH$17:$EJ$19,CA12:CA14) -> 141.3151435 | CB25: =MMULT($EH$17:$EJ$19,CB12:CB14) -> 141.3151435 | CC25: =MMULT($EH$17:$EJ$19,CC12:CC14) -> 141.3151435 | CD25: =MMULT($EH$17:$EJ$19,CD12:CD14) -> 141.3151435 | CE25: =MMULT($EH$17:$EJ$19,CE12:CE14) -> 141.3151435 | CF25: =MMULT($EH$17:$EJ$19,CF12:CF14) -> 141.3151435 | CG25: =MMULT($EH$17:$EJ$19,CG12:CG14) -> 141.3151435 | CH25: =MMULT($EH$17:$EJ$19,CH12:CH14) -> 141.3151435 | CI25: =MMULT($EH$17:$EJ$19,CI12:CI14) -> 141.3151435 | CJ25: =MMULT($EH$17:$EJ$19,CJ12:CJ14) -> 141.3151435 | CK25: =MMULT($EH$17:$EJ$19,CK12:CK14) -> 141.3151435 | CL25: =MMULT($EH$17:$EJ$19,CL12:CL14) -> 141.3151435 | CM25: =MMULT($EH$17:$EJ$19,CM12:CM14) -> 141.3151435 | CN25: =MMULT($EH$17:$EJ$19,CN12:CN14) -> 141.3151435 | CO25: =MMULT($EH$17:$EJ$19,CO12:CO14) -> 141.3151435 | CP25: =MMULT($EH$17:$EJ$19,CP12:CP14) -> 141.3151435 | CQ25: =MMULT($EH$17:$EJ$19,CQ12:CQ14) -> 141.3151435 | CR25: =MMULT($EH$17:$EJ$19,CR12:CR14) -> 141.3151435 | CS25: =MMULT($EH$17:$EJ$19,CS12:CS14) -> 141.3151435 | CT25: =MMULT($EH$17:$EJ$19,CT12:CT14) -> 141.3151435 | CU25: =MMULT($EH$17:$EJ$19,CU12:CU14) -> 141.3151435 | CV25: =MMULT($EH$17:$EJ$19,CV12:CV14) -> 141.3151435 | CW25: =MMULT($EH$17:$EJ$19,CW12:CW14) -> 141.3151435 | CX25: =MMULT($EH$17:$EJ$19,CX12:CX14) -> 141.3151435 | CY25: =MMULT($EH$17:$EJ$19,CY12:CY14) -> 141.3151435 | CZ25: =MMULT($EH$17:$EJ$19,CZ12:CZ14) -> 141.3151435 | DA25: =MMULT($EH$17:$EJ$19,DA12:DA14) -> 141.3151435 | DB25: =MMULT($EH$17:$EJ$19,DB12:DB14) -> 141.3151435 | DC25: =MMULT($EH$17:$EJ$19,DC12:DC14) -> 141.3151435 | DD25: =MMULT($EH$17:$EJ$19,DD12:DD14) -> 141.3151435 | DE25: =MMULT($EH$17:$EJ$19,DE12:DE14) -> 141.3151435 | DF25: =MMULT($EH$17:$EJ$19,DF12:DF14) -> 141.3151435 | DG25: =MMULT($EH$17:$EJ$19,DG12:DG14) -> 141.3151435 | DH25: =MMULT($EH$17:$EJ$19,DH12:DH14) -> 141.3151435 | DI25: =MMULT($EH$17:$EJ$19,DI12:DI14) -> 141.3151435 | DJ25: =MMULT($EH$17:$EJ$19,DJ12:DJ14) -> 141.3151435 | DK25: =MMULT($EH$17:$EJ$19,DK12:DK14) -> 141.3151435 | DL25: =MMULT($EH$17:$EJ$19,DL12:DL14) -> 141.3151435 | DM25: =MMULT($EH$17:$EJ$19,DM12:DM14) -> 141.3151435 | DN25: =MMULT($EH$17:$EJ$19,DN12:DN14) -> 141.3151435 | DO25: =MMULT($EH$17:$EJ$19,DO12:DO14) -> 141.3151435 | DP25: =MMULT($EH$17:$EJ$19,DP12:DP14) -> 141.3151435 | DQ25: =MMULT($EH$17:$EJ$19,DQ12:DQ14) -> 141.3151435 | DS25: CES21 | DT25: 88.84175755 | DU25: 12.35648701 | DV25: 24.53423883 | DW25: 91.83393841 | DX25: 5.800581783 | DY25: 11.82275442 | DZ25: 14.61214822 | EA25: 213.5148755 | EB25: 1.104238913 | EC25: -0.5977985646 | ED25: 0.597879714 | EE25: 0.597879714 | EF25: 3 | EL25: 400 | EM25: =IF(Calculator!$C$3,OFFSET('SPD Library'!B25,0,Calculator!$C$3-1),Calculator!C26) -> 0.001043 | EN25: =RefCalc!B25 -> 0.00219762536 | EO25: =RefCalc!F25 -> 0.01297783714 | EQ25: 0.001043 | ER25: 400 | ES25: 0.00145490756
B26: db_relative | C26: =(C20-C18)/SQRT(C17^2+C18^2) -> -0.1691510293 | D26: -0.3114324898 | E26: -0.4515199758 | F26: -0.4623969313 | G26: -0.4568003176 | H26: -0.3381264713 | I26: -0.1858209798 | J26: -0.03276057016 | K26: 0.150896335 | L26: 0.2076327257 | M26: 0.2335434131 | N26: 0.2881770563 | O26: 0.3261571365 | P26: 0.235837329 | Q26: 0.1067403204 | R26: -0.0201212168 | S26: -0.1691510293 | U26: Gw | V26: 73.89953365 | W26: 73.89953365 | X26: 73.89953365 | Y26: 73.89953365 | Z26: 73.89953365 | AA26: 73.89953365 | AB26: 73.89953365 | AC26: 73.89953365 | AD26: 73.89953365 | AE26: 73.89953365 | AF26: 73.89953365 | AG26: 73.89953365 | AH26: 73.89953365 | AI26: 73.89953365 | AJ26: 73.89953365 | AK26: 73.89953365 | AL26: 73.89953365 | AM26: 73.89953365 | AN26: 73.89953365 | AO26: 73.89953365 | AP26: 73.89953365 | AQ26: 73.89953365 | AR26: 73.89953365 | AS26: 73.89953365 | AT26: 73.89953365 | AU26: 73.89953365 | AV26: 73.89953365 | AW26: 73.89953365 | AX26: 73.89953365 | AY26: 73.89953365 | AZ26: 73.89953365 | BA26: 73.89953365 | BB26: 73.89953365 | BC26: 73.89953365 | BD26: 73.89953365 | BE26: 73.89953365 | BF26: 73.89953365 | BG26: 73.89953365 | BH26: 73.89953365 | BI26: 73.89953365 | BJ26: 73.89953365 | BK26: 73.89953365 | BL26: 73.89953365 | BM26: 73.89953365 | BN26: 73.89953365 | BO26: 73.89953365 | BP26: 73.89953365 | BQ26: 73.89953365 | BR26: 73.89953365 | BS26: 73.89953365 | BT26: 73.89953365 | BU26: 73.89953365 | BV26: 73.89953365 | BW26: 73.89953365 | BX26: 73.89953365 | BY26: 73.89953365 | BZ26: 73.89953365 | CA26: 73.89953365 | CB26: 73.89953365 | CC26: 73.89953365 | CD26: 73.89953365 | CE26: 73.89953365 | CF26: 73.89953365 | CG26: 73.89953365 | CH26: 73.89953365 | CI26: 73.89953365 | CJ26: 73.89953365 | CK26: 73.89953365 | CL26: 73.89953365 | CM26: 73.89953365 | CN26: 73.89953365 | CO26: 73.89953365 | CP26: 73.89953365 | CQ26: 73.89953365 | CR26: 73.89953365 | CS26: 73.89953365 | CT26: 73.89953365 | CU26: 73.89953365 | CV26: 73.89953365 | CW26: 73.89953365 | CX26: 73.89953365 | CY26: 73.89953365 | CZ26: 73.89953365 | DA26: 73.89953365 | DB26: 73.89953365 | DC26: 73.89953365 | DD26: 73.89953365 | DE26: 73.89953365 | DF26: 73.89953365 | DG26: 73.89953365 | DH26: 73.89953365 | DI26: 73.89953365 | DJ26: 73.89953365 | DK26: 73.89953365 | DL26: 73.89953365 | DM26: 73.89953365 | DN26: 73.89953365 | DO26: 73.89953365 | DP26: 73.89953365 | DQ26: 73.89953365 | DS26: CES22 | DT26: 81.71771818 | DU26: 15.71961899 | DV26: 24.00866576 | DW26: 84.04901602 | DX26: 9.351559006 | DY26: 11.25740575 | DZ26: 14.44236024 | EA26: 208.5817693 | EB26: 0.9910907598 | EC26: -0.5712293573 | ED26: -6.501826579 | EE26: -6.501826579 | EF26: 3 | EH26: MHPE | EL26: 401 | EM26: =IF(Calculator!$C$3,OFFSET('SPD Library'!B26,0,Calculator!$C$3-1),Calculator!C27) -> 0.001145 | EN26: =RefCalc!B26 -> 0.002412541743 | EO26: =RefCalc!F26 -> 0.01348112986 | EQ26: 0.001145 | ER26: 401 | ES26: 0.001511330242
B27: path_x ref | C27: =COS(C22) -> 0.9835682806 | D27: 0.8383778594 | E27: 0.4962806551 | F27: 0.1811200747 | G27: -0.1838491594 | H27: -0.6116069227 | I27: -0.8486455062 | J27: -0.983685271 | K27: -0.9635425726 | L27: -0.79225393 | M27: -0.5441436198 | N27: -0.2355687359 | O27: 0.1600851564 | P27: 0.4899229736 | Q27: 0.8527860526 | R27: 0.9823328559 | S27: 0.9835682806 | U27: Bw | V27: 11.05296287 | W27: 11.05296287 | X27: 11.05296287 | Y27: 11.05296287 | Z27: 11.05296287 | AA27: 11.05296287 | AB27: 11.05296287 | AC27: 11.05296287 | AD27: 11.05296287 | AE27: 11.05296287 | AF27: 11.05296287 | AG27: 11.05296287 | AH27: 11.05296287 | AI27: 11.05296287 | AJ27: 11.05296287 | AK27: 11.05296287 | AL27: 11.05296287 | AM27: 11.05296287 | AN27: 11.05296287 | AO27: 11.05296287 | AP27: 11.05296287 | AQ27: 11.05296287 | AR27: 11.05296287 | AS27: 11.05296287 | AT27: 11.05296287 | AU27: 11.05296287 | AV27: 11.05296287 | AW27: 11.05296287 | AX27: 11.05296287 | AY27: 11.05296287 | AZ27: 11.05296287 | BA27: 11.05296287 | BB27: 11.05296287 | BC27: 11.05296287 | BD27: 11.05296287 | BE27: 11.05296287 | BF27: 11.05296287 | BG27: 11.05296287 | BH27: 11.05296287 | BI27: 11.05296287 | BJ27: 11.05296287 | BK27: 11.05296287 | BL27: 11.05296287 | BM27: 11.05296287 | BN27: 11.05296287 | BO27: 11.05296287 | BP27: 11.05296287 | BQ27: 11.05296287 | BR27: 11.05296287 | BS27: 11.05296287 | BT27: 11.05296287 | BU27: 11.05296287 | BV27: 11.05296287 | BW27: 11.05296287 | BX27: 11.05296287 | BY27: 11.05296287 | BZ27: 11.05296287 | CA27: 11.05296287 | CB27: 11.05296287 | CC27: 11.05296287 | CD27: 11.05296287 | CE27: 11.05296287 | CF27: 11.05296287 | CG27: 11.05296287 | CH27: 11.05296287 | CI27: 11.05296287 | CJ27: 11.05296287 | CK27: 11.05296287 | CL27: 11.05296287 | CM27: 11.05296287 | CN27: 11.05296287 | CO27: 11.05296287 | CP27: 11.05296287 | CQ27: 11.05296287 | CR27: 11.05296287 | CS27: 11.05296287 | CT27: 11.05296287 | CU27: 11.05296287 | CV27: 11.05296287 | CW27: 11.05296287 | CX27: 11.05296287 | CY27: 11.05296287 | CZ27: 11.05296287 | DA27: 11.05296287 | DB27: 11.05296287 | DC27: 11.05296287 | DD27: 11.05296287 | DE27: 11.05296287 | DF27: 11.05296287 | DG27: 11.05296287 | DH27: 11.05296287 | DI27: 11.05296287 | DJ27: 11.05296287 | DK27: 11.05296287 | DL27: 11.05296287 | DM27: 11.05296287 | DN27: 11.05296287 | DO27: 11.05296287 | DP27: 11.05296287 | DQ27: 11.05296287 | DS27: CES23 | DT27: 92.21043439 | DU27: 3.39661697 | DV27: 10.42088304 | DW27: 93.05286304 | DX27: 0.7667787566 | DY27: 5.806487764 | DZ27: 5.377581129 | EA27: 28.9183788 | EB27: 1.255711485 | EC27: -0.4967726443 | ED27: 10.53033478 | EE27: 10.53033478 | EF27: 4 | EH27: 0.38971 | EI27: 0.68898 | EJ27: -0.07868 | EL27: 402 | EM27: =IF(Calculator!$C$3,OFFSET('SPD Library'!B27,0,Calculator!$C$3-1),Calculator!C28) -> 0.001247 | EN27: =RefCalc!B27 -> 0.002627458125 | EO27: =RefCalc!F27 -> 0.01400085587 | EQ27: 0.001247 | ER27: 402 | ES27: 0.001569595213
B28: path_y ref | C28: =SIN(C22) -> 0.1805365264 | D28: 0.5450895017 | E28: 0.8681621458 | F28: 0.9834609898 | G28: 0.9829544682 | H28: 0.7911617863 | I28: 0.528962007 | J28: 0.1798979925 | K28: -0.2675550613 | L28: -0.6101915358 | M28: -0.8389920864 | N28: -0.9718576905 | O28: -0.9871032077 | P28: -0.8717657254 | Q28: -0.5222604221 | R28: -0.1871420855 | S28: 0.1805365264 | U28: Rc | V28: =($EI$14*(V13/V25)+1-$EI$14)*V22 -> 100 | W28: 73.65879711 | X28: 42.23589973 | Y28: 8.257398738 | Z28: 45.2443268 | AA28: 30.29695541 | AB28: 22.64823445 | AC28: 21.47546414 | AD28: 20.21746891 | AE28: 5.352632779 | AF28: 66.32840595 | AG28: 36.51078376 | AH28: 47.33526866 | AI28: 17.44561606 | AJ28: 45.88274845 | AK28: 46.84684483 | AL28: 21.56503151 | AM28: 21.77342959 | AN28: 26.94957551 | AO28: 48.66783398 | AP28: 48.96755214 | AQ28: 80.73887363 | AR28: 65.47710004 | AS28: 81.29581643 | AT28: 83.77060498 | AU28: 48.05344891 | AV28: 84.1467251 | AW28: 44.09752644 | AX28: 11.80772433 | AY28: 73.85501068 | AZ28: 32.69567747 | BA28: 76.75962309 | BB28: =($EI$14*(BB13/BB25)+1-$EI$14)*BB22 -> 50.18761097 | BC28: 76.77491215 | BD28: 29.1770954 | BE28: 11.5243426 | BF28: 54.65377203 | BG28: 14.94513321 | BH28: 66.54320776 | BI28: 7.782710194 | BJ28: 16.99267587 | BK28: 69.31124852 | BL28: 31.81922931 | BM28: 36.31524027 | BN28: 4.95005526 | BO28: 20.09606378 | BP28: 29.08828076 | BQ28: 36.33373788 | BR28: 40.33345008 | BS28: 11.5075828 | BT28: 17.1251589 | BU28: 21.08058477 | BV28: 8.246657471 | BW28: 9.946788943 | BX28: 58.86704649 | BY28: 51.5842343 | BZ28: 26.17368494 | CA28: 13.58377111 | CB28: 11.24795715 | CC28: 58.73405286 | CD28: 66.82420118 | CE28: 42.13285078 | CF28: 32.18423747 | CG28: 7.174671752 | CH28: =($EI$14*(CH13/CH25)+1-$EI$14)*CH22 -> 14.52218699 | CI28: 7.094475927 | CJ28: 7.575183154 | CK28: 8.86423086 | CL28: 24.03865181 | CM28: 17.95304155 | CN28: 32.14373691 | CO28: 5.536304479 | CP28: 44.71644963 | CQ28: 15.5874301 | CR28: 4.860907068 | CS28: 5.04895532 | CT28: 11.03035898 | CU28: 11.34451231 | CV28: 9.267060481 | CW28: 40.93232012 | CX28: 31.36717408 | CY28: 13.48173943 | CZ28: 66.8709612 | DA28: 41.33517374 | DB28: 5.101601139 | DC28: 11.84808569 | DD28: 35.45807467 | DE28: 11.78522532 | DF28: 33.21625204 | DG28: 11.8783372 | DH28: 15.83400569 | DI28: 55.33115921 | DJ28: 27.55623136 | DK28: 39.26912464 | DL28: 15.09897977 | DM28: 46.40142299 | DN28: 59.13134187 | DO28: 23.82237859 | DP28: 43.931548 | DQ28: 31.17863829 | DS28: CES24 | DT28: 91.84647802 | DU28: 4.477927497 | DV28: 21.08501829 | DW28: 94.1647405 | DX28: 0.4229612229 | DY28: 10.92052434 | DZ28: 11.18633226 | EA28: 125.1340295 | EB28: 1.361530684 | EC28: -0.5541746046 | ED28: 9.77203232 | EE28: 9.77203232 | EF28: 4 | EH28: -0.22981 | EI28: 1.1834 | EJ28: 0.04641 | EL28: 403 | EM28: =IF(Calculator!$C$3,OFFSET('SPD Library'!B28,0,Calculator!$C$3-1),Calculator!C29) -> 0.001349 | EN28: =RefCalc!B28 -> 0.002842374507 | EO28: =RefCalc!F28 -> 0.0145374403 | EQ28: 0.001349 | ER28: 403 | ES28: 0.001629750131
B29: path_x test | C29: =C27+C25 -> 0.6968874683 | D29: 0.558749998 | E29: 0.253816159 | F29: 0.05575239719 | G29: -0.1399669998 | H29: -0.4612383315 | I29: -0.5748445579 | J29: -0.5392543217 | K29: -0.6375329856 | L29: -0.4102538333 | M29: -0.1834363978 | N29: 0.1174202977 | O29: 0.1810921837 | P29: 0.2758958297 | Q29: 0.6787652699 | R29: 0.6745291935 | S29: 0.6968874683 | U29: Gc | V29: =($EI$14*(V13/V26)+1-$EI$14)*V23 -> 100 | W29: 58.65793132 | X29: 20.57742286 | Y29: 4.828804187 | Z29: 33.20052243 | AA29: 10.40968134 | AB29: 14.96529252 | AC29: 6.832231646 | AD29: 6.67749528 | AE29: 4.753276045 | AF29: 35.90500575 | AG29: 18.55392136 | AH29: 23.11958437 | AI29: 9.520276575 | AJ29: 41.43535349 | AK29: 35.40038204 | AL29: 12.18762349 | AM29: 14.6080878 | AN29: 19.72061868 | AO29: 37.15741249 | AP29: 26.63728824 | AQ29: 61.66067315 | AR29: 46.20057935 | AS29: 76.44652185 | AT29: 74.37169859 | AU29: 38.7423864 | AV29: 71.5246848 | AW29: 41.88034105 | AX29: 11.36523323 | AY29: 66.20420722 | AZ29: 29.66333353 | BA29: 70.50194871 | BB29: =($EI$14*(BB13/BB26)+1-$EI$14)*BB23 -> 45.77653011 | BC29: 72.8487113 | BD29: 29.14478557 | BE29: 12.00145944 | BF29: 53.50856326 | BG29: 16.28367293 | BH29: 65.88213006 | BI29: 7.625568214 | BJ29: 16.57576242 | BK29: 69.36042375 | BL29: 39.96457806 | BM29: 45.45328002 | BN29: 4.965974758 | BO29: 26.85394719 | BP29: 35.69701019 | BQ29: 37.81507515 | BR29: 54.22486668 | BS29: 15.42049986 | BT29: 21.72390356 | BU29: 24.83938503 | BV29: 11.8358915 | BW29: 18.98026768 | BX29: 69.9619265 | BY29: 62.29417374 | BZ29: 43.36284988 | CA29: 26.4565326 | CB29: 22.58991011 | CC29: 68.61857142 | CD29: 69.55885336 | CE29: 48.30768034 | CF29: 32.96546491 | CG29: 7.22650518 | CH29: =($EI$14*(CH13/CH26)+1-$EI$14)*CH23 -> 25.76933583 | CI29: 10.93310192 | CJ29: 13.24382422 | CK29: 15.44733553 | CL29: 29.73074679 | CM29: 18.47184267 | CN29: 40.58380362 | CO29: 7.232223246 | CP29: 46.81574938 | CQ29: 22.80382339 | CR29: 4.740116578 | CS29: 6.328878598 | CT29: 13.40007222 | CU29: 11.66187238 | CV29: 11.27881068 | CW29: 40.42494772 | CX29: 29.31917472 | CY29: 10.01405203 | CZ29: 65.80443672 | DA29: 39.63858021 | DB29: 4.34711983 | DC29: 9.637085783 | DD29: 27.14094136 | DE29: 7.56351422 | DF29: 23.18171727 | DG29: 7.184360366 | DH29: 9.610457137 | DI29: 52.12682055 | DJ29: 18.09664871 | DK29: 30.23802157 | DL29: 6.882885391 | DM29: 32.14845332 | DN29: 44.59793971 | DO29: 15.91888198 | DP29: 23.85091546 | DQ29: 12.2872338 | DS29: CES25 | DT29: 73.8382007 | DU29: 6.328981337 | DV29: 27.40516224 | DW29: 77.00778746 | DX29: 1.538293011 | DY29: 12.51413839 | DZ29: 15.96056284 | EA29: 254.7395663 | EB29: 1.343834201 | EC29: -0.6294980569 | ED29: 5.996078602 | EE29: 5.996078602 | EF29: 4 | EH29: 0 | EI29: 0 | EJ29: 1 | EL29: 404 | EM29: =IF(Calculator!$C$3,OFFSET('SPD Library'!B29,0,Calculator!$C$3-1),Calculator!C30) -> 0.001451 | EN29: =RefCalc!B29 -> 0.00305729089 | EO29: =RefCalc!F29 -> 0.01509131582 | EQ29: 0.001451 | ER29: 404 | ES29: 0.001691843504
B30: path_y test | C30: =C28+C26 -> 0.01138549714 | D30: 0.2336570119 | E30: 0.41664217 | F30: 0.5210640585 | G30: 0.5261541506 | H30: 0.4530353149 | I30: 0.3431410271 | J30: 0.1471374223 | K30: -0.1166587263 | L30: -0.4025588101 | M30: -0.6054486733 | N30: -0.6836806343 | O30: -0.6609460712 | P30: -0.6359283963 | Q30: -0.4155201016 | R30: -0.2072633023 | S30: 0.01138549714 | U30: Bc | V30: =($EI$14*(V13/V27)+1-$EI$14)*V24 -> 100 | W30: 60.41342488 | X30: 22.80334104 | Y30: 5.785287437 | Z30: 28.39427952 | AA30: 10.7891419 | AB30: 13.33625922 | AC30: 7.37774309 | AD30: 7.476892724 | AE30: 5.041326709 | AF30: 24.33465763 | AG30: 10.571595 | AH30: 13.21721967 | AI30: 6.909436898 | AJ30: 37.47064472 | AK30: 30.6877286 | AL30: 8.339790001 | AM30: 8.678226933 | AN30: 14.70796446 | AO30: 18.32182324 | AP30: 14.21156599 | AQ30: 28.1917856 | AR30: 20.70989144 | AS30: 60.32417804 | AT30: 39.90340964 | AU30: 12.58997998 | AV30: 34.07383947 | AW30: 29.83147297 | AX30: 6.249441272 | AY30: 32.77900835 | AZ30: 20.64785297 | BA30: 35.30935755 | BB30: =($EI$14*(BB13/BB27)+1-$EI$14)*BB24 -> 18.10650624 | BC30: 50.37529882 | BD30: 10.86019686 | BE30: 6.644583045 | BF30: 49.126562 | BG30: 7.840428966 | BH30: 50.09945447 | BI30: 6.374555022 | BJ30: 11.98702161 | BK30: 62.38564207 | BL30: 15.54099743 | BM30: 19.12575878 | BN30: 4.808200921 | BO30: 13.82599987 | BP30: 23.41061861 | BQ30: 31.97127596 | BR30: 38.11067801 | BS30: 10.08058872 | BT30: 18.11356465 | BU30: 22.26783351 | BV30: 9.163207542 | BW30: 16.03074989 | BX30: 68.66595711 | BY30: 63.66659746 | BZ30: 44.96139959 | CA30: 28.20291414 | CB30: 25.72003885 | CC30: 70.31877531 | CD30: 72.46458968 | CE30: 52.5258824 | CF30: 36.71036866 | CG30: 8.094937336 | CH30: =($EI$14*(CH13/CH27)+1-$EI$14)*CH24 -> 37.74488679 | CI30: 14.12425636 | CJ30: 23.48515577 | CK30: 27.99985838 | CL30: 41.26299254 | CM30: 23.8510889 | CN30: 62.80003997 | CO30: 15.69838316 | CP30: 52.6641514 | CQ30: 46.18263621 | CR30: 5.384924331 | CS30: 14.55577358 | CT30: 37.52111537 | CU30: 24.10428844 | CV30: 31.73684224 | CW30: 58.92078356 | CX30: 49.18460308 | CY30: 26.13122141 | CZ30: 74.87344584 | DA30: 52.32736937 | DB30: 5.788327104 | DC30: 14.83503904 | DD30: 47.573862 | DE30: 18.0043162 | DF30: 38.96635553 | DG30: 13.83559052 | DH30: 17.89077043 | DI30: 56.38667623 | DJ30: 27.08185475 | DK30: 38.49144331 | DL30: 12.45016753 | DM30: 42.6322396 | DN30: 53.74281434 | DO30: 18.83792756 | DP30: 28.87858788 | DQ30: 18.21598353 | DS30: CES26 | DT30: 91.33467113 | DU30: 6.434252448 | DV30: 23.73883811 | DW30: 93.44619029 | DX30: 2.640783059 | DY30: 11.97437499 | DZ30: 12.53999663 | EA30: 157.2515155 | EB30: 1.306112359 | EC30: -0.571068037 | ED30: 2.728555786 | EE30: 2.728555786 | EF30: 4 | EL30: 405 | EM30: =IF(Calculator!$C$3,OFFSET('SPD Library'!B30,0,Calculator!$C$3-1),Calculator!C31) -> 0.001553 | EN30: =RefCalc!B30 -> 0.003272207272 | EO30: =RefCalc!F30 -> 0.01566292277 | EQ30: 0.001553 | ER30: 405 | ES30: 0.001755924696
U31: Rcw | V31: =($EI$14*(V13/V25)+1-$EI$14)*V25 -> 100 | W31: 100 | X31: 100 | Y31: 100 | Z31: 100 | AA31: 100 | AB31: 100 | AC31: 100 | AD31: 100 | AE31: 100 | AF31: 100 | AG31: 100 | AH31: 100 | AI31: 100 | AJ31: 100 | AK31: 100 | AL31: 100 | AM31: 100 | AN31: 100 | AO31: 100 | AP31: 100 | AQ31: 100 | AR31: 100 | AS31: 100 | AT31: 100 | AU31: 100 | AV31: 100 | AW31: 100 | AX31: 100 | AY31: 100 | AZ31: 100 | BA31: 100 | BB31: =($EI$14*(BB13/BB25)+1-$EI$14)*BB25 -> 100 | BC31: 100 | BD31: 100 | BE31: 100 | BF31: 100 | BG31: 100 | BH31: 100 | BI31: 100 | BJ31: 100 | BK31: 100 | BL31: 100 | BM31: 100 | BN31: 100 | BO31: 100 | BP31: 100 | BQ31: 100 | BR31: 100 | BS31: 100 | BT31: 100 | BU31: 100 | BV31: 100 | BW31: 100 | BX31: 100 | BY31: 100 | BZ31: 100 | CA31: 100 | CB31: 100 | CC31: 100 | CD31: 100 | CE31: 100 | CF31: 100 | CG31: 100 | CH31: =($EI$14*(CH13/CH25)+1-$EI$14)*CH25 -> 100 | CI31: 100 | CJ31: 100 | CK31: 100 | CL31: 100 | CM31: 100 | CN31: 100 | CO31: 100 | CP31: 100 | CQ31: 100 | CR31: 100 | CS31: 100 | CT31: 100 | CU31: 100 | CV31: 100 | CW31: 100 | CX31: 100 | CY31: 100 | CZ31: 100 | DA31: 100 | DB31: 100 | DC31: 100 | DD31: 100 | DE31: 100 | DF31: 100 | DG31: 100 | DH31: 100 | DI31: 100 | DJ31: 100 | DK31: 100 | DL31: 100 | DM31: 100 | DN31: 100 | DO31: 100 | DP31: 100 | DQ31: 100 | DS31: CES27 | DT31: 74.01737358 | DU31: 1.553212413 | DV31: 11.68878664 | DW31: 74.74825929 | DX31: 0.2629390007 | DY31: 6.486455975 | DZ31: 5.409551163 | EA31: 29.26324379 | EB31: 1.438689694 | EC31: -0.4828170423 | ED31: 5.247846175 | EE31: 5.247846175 | EF31: 4 | EH31: invMPHE | EL31: 406 | EM31: =IF(Calculator!$C$3,OFFSET('SPD Library'!B31,0,Calculator!$C$3-1),Calculator!C32) -> 0.001655 | EN31: =RefCalc!B31 -> 0.003487123654 | EO31: =RefCalc!F31 -> 0.01625270916 | EQ31: 0.001655 | ER31: 406 | ES31: 0.001822043932
U32: Gcw | V32: =($EI$14*(V13/V26)+1-$EI$14)*V26 -> 100 | W32: 100 | X32: 100 | Y32: 100 | Z32: 100 | AA32: 100 | AB32: 100 | AC32: 100 | AD32: 100 | AE32: 100 | AF32: 100 | AG32: 100 | AH32: 100 | AI32: 100 | AJ32: 100 | AK32: 100 | AL32: 100 | AM32: 100 | AN32: 100 | AO32: 100 | AP32: 100 | AQ32: 100 | AR32: 100 | AS32: 100 | AT32: 100 | AU32: 100 | AV32: 100 | AW32: 100 | AX32: 100 | AY32: 100 | AZ32: 100 | BA32: 100 | BB32: =($EI$14*(BB13/BB26)+1-$EI$14)*BB26 -> 100 | BC32: 100 | BD32: 100 | BE32: 100 | BF32: 100 | BG32: 100 | BH32: 100 | BI32: 100 | BJ32: 100 | BK32: 100 | BL32: 100 | BM32: 100 | BN32: 100 | BO32: 100 | BP32: 100 | BQ32: 100 | BR32: 100 | BS32: 100 | BT32: 100 | BU32: 100 | BV32: 100 | BW32: 100 | BX32: 100 | BY32: 100 | BZ32: 100 | CA32: 100 | CB32: 100 | CC32: 100 | CD32: 100 | CE32: 100 | CF32: 100 | CG32: 100 | CH32: =($EI$14*(CH13/CH26)+1-$EI$14)*CH26 -> 100 | CI32: 100 | CJ32: 100 | CK32: 100 | CL32: 100 | CM32: 100 | CN32: 100 | CO32: 100 | CP32: 100 | CQ32: 100 | CR32: 100 | CS32: 100 | CT32: 100 | CU32: 100 | CV32: 100 | CW32: 100 | CX32: 100 | CY32: 100 | CZ32: 100 | DA32: 100 | DB32: 100 | DC32: 100 | DD32: 100 | DE32: 100 | DF32: 100 | DG32: 100 | DH32: 100 | DI32: 100 | DJ32: 100 | DK32: 100 | DL32: 100 | DM32: 100 | DN32: 100 | DO32: 100 | DP32: 100 | DQ32: 100 | DS32: CES28 | DT32: 42.46006995 | DU32: -0.6836834513 | DV32: 12.98087081 | DW32: 43.35881633 | DX32: -1.130411257 | DY32: 6.35365888 | DZ32: 6.702779178 | EA32: 44.92724871 | EB32: 1.623416243 | EC32: -0.5405029104 | ED32: 7.073320428 | EE32: 7.073320428 | EF32: 5 | EH32: =MINVERSE(EH27:EJ29) -> 1.910196834 | EI32: -1.112123893 | EJ32: 0.2019079568 | EL32: 407 | EM32: =IF(Calculator!$C$3,OFFSET('SPD Library'!B32,0,Calculator!$C$3-1),Calculator!C33) -> 0.001757 | EN32: =RefCalc!B32 -> 0.003702040037 | EO32: =RefCalc!F32 -> 0.01686113072 | EQ32: 0.001757 | ER32: 407 | ES32: 0.001890252304
U33: Bcw | V33: =($EI$14*(V13/V27)+1-$EI$14)*V27 -> 100 | W33: 100 | X33: 100 | Y33: 100 | Z33: 100 | AA33: 100 | AB33: 100 | AC33: 100 | AD33: 100 | AE33: 100 | AF33: 100 | AG33: 100 | AH33: 100 | AI33: 100 | AJ33: 100 | AK33: 100 | AL33: 100 | AM33: 100 | AN33: 100 | AO33: 100 | AP33: 100 | AQ33: 100 | AR33: 100 | AS33: 100 | AT33: 100 | AU33: 100 | AV33: 100 | AW33: 100 | AX33: 100 | AY33: 100 | AZ33: 100 | BA33: 100 | BB33: =($EI$14*(BB13/BB27)+1-$EI$14)*BB27 -> 100 | BC33: 100 | BD33: 100 | BE33: 100 | BF33: 100 | BG33: 100 | BH33: 100 | BI33: 100 | BJ33: 100 | BK33: 100 | BL33: 100 | BM33: 100 | BN33: 100 | BO33: 100 | BP33: 100 | BQ33: 100 | BR33: 100 | BS33: 100 | BT33: 100 | BU33: 100 | BV33: 100 | BW33: 100 | BX33: 100 | BY33: 100 | BZ33: 100 | CA33: 100 | CB33: 100 | CC33: 100 | CD33: 100 | CE33: 100 | CF33: 100 | CG33: 100 | CH33: =($EI$14*(CH13/CH27)+1-$EI$14)*CH27 -> 100 | CI33: 100 | CJ33: 100 | CK33: 100 | CL33: 100 | CM33: 100 | CN33: 100 | CO33: 100 | CP33: 100 | CQ33: 100 | CR33: 100 | CS33: 100 | CT33: 100 | CU33: 100 | CV33: 100 | CW33: 100 | CX33: 100 | CY33: 100 | CZ33: 100 | DA33: 100 | DB33: 100 | DC33: 100 | DD33: 100 | DE33: 100 | DF33: 100 | DG33: 100 | DH33: 100 | DI33: 100 | DJ33: 100 | DK33: 100 | DL33: 100 | DM33: 100 | DN33: 100 | DO33: 100 | DP33: 100 | DQ33: 100 | DS33: CES29 | DT33: 87.98719587 | DU33: 3.164913054 | DV33: 22.21372832 | DW33: 89.31533753 | DX33: 0.9148786842 | DY33: 11.87269653 | DZ33: 10.66599988 | EA33: 113.7635534 | EB33: 1.429273258 | EC33: -0.5329938244 | ED33: 3.702320523 | EE33: 3.702320523 | EF33: 4 | EH33: 0.3709500882 | EI33: 0.6290542574 | EJ33: -8.055142184e-06 | EL33: 408 | EM33: =IF(Calculator!$C$3,OFFSET('SPD Library'!B33,0,Calculator!$C$3-1),Calculator!C34) -> 0.001859 | EN33: =RefCalc!B33 -> 0.003916956419 | EO33: =RefCalc!F33 -> 0.01748865098 | EQ33: 0.001859 | ER33: 408 | ES33: 0.001960601774
U34: Xc | V34: =MMULT($EH$22:$EJ$24,V28:V30) -> 100 | W34: =MMULT($EH$22:$EJ$24,W28:W30) -> 75.42154563 | X34: =MMULT($EH$22:$EJ$24,X28:X30) -> 44.72457109 | Y34: =MMULT($EH$22:$EJ$24,Y28:Y30) -> 8.761761049 | Z34: =MMULT($EH$22:$EJ$24,Z28:Z30) -> 45.52370557 | AA34: =MMULT($EH$22:$EJ$24,AA28:AA30) -> 32.27794077 | AB34: =MMULT($EH$22:$EJ$24,AB28:AB30) -> 23.0890502 | AC34: =MMULT($EH$22:$EJ$24,AC28:AC30) -> 22.98271718 | AD34: =MMULT($EH$22:$EJ$24,AD28:AD30) -> 21.66506894 | AE34: =MMULT($EH$22:$EJ$24,AE28:AE30) -> 5.462885109 | AF34: =MMULT($EH$22:$EJ$24,AF28:AF30) -> 67.13839408 | AG34: =MMULT($EH$22:$EJ$24,AG28:AG30) -> 36.77813432 | AH34: =MMULT($EH$22:$EJ$24,AH28:AH30) -> 47.85336334 | AI34: =MMULT($EH$22:$EJ$24,AI28:AI30) -> 17.7303116 | AJ34: =MMULT($EH$22:$EJ$24,AJ28:AJ30) -> 45.58571763 | AK34: =MMULT($EH$22:$EJ$24,AK28:AK30) -> 47.08590787 | AL34: =MMULT($EH$22:$EJ$24,AL28:AL30) -> 21.76325077 | AM34: =MMULT($EH$22:$EJ$24,AM28:AM30) -> 21.37853613 | AN34: =MMULT($EH$22:$EJ$24,AN28:AN30) -> 26.72841207 | AO34: =MMULT($EH$22:$EJ$24,AO28:AO30) -> 46.33214653 | AP34: =MMULT($EH$22:$EJ$24,AP28:AP30) -> 48.84328159 | AQ34: =MMULT($EH$22:$EJ$24,AQ28:AQ30) -> 76.4564653 | AR34: =MMULT($EH$22:$EJ$24,AR28:AR30) -> 62.67173252 | AS34: =MMULT($EH$22:$EJ$24,AS28:AS30) -> 78.81566854 | AT34: =MMULT($EH$22:$EJ$24,AT28:AT30) -> 78.37515013 | AU34: =MMULT($EH$22:$EJ$24,AU28:AU30) -> 44.16923762 | AV34: =MMULT($EH$22:$EJ$24,AV28:AV30) -> 78.51604239 | AW34: =MMULT($EH$22:$EJ$24,AW28:AW30) -> 42.10877821 | AX34: =MMULT($EH$22:$EJ$24,AX28:AX30) -> 10.91537194 | AY34: =MMULT($EH$22:$EJ$24,AY28:AY30) -> 68.48214118 | AZ34: =MMULT($EH$22:$EJ$24,AZ28:AZ30) -> 31.33962235 | BA34: =MMULT($EH$22:$EJ$24,BA28:BA30) -> 70.92985828 | BB34: =MMULT($EH$22:$EJ$24,BB28:BB30) -> 45.55505745 | BC34: =MMULT($EH$22:$EJ$24,BC28:BC30) -> 73.04540579 | BD34: =MMULT($EH$22:$EJ$24,BD28:BD30) -> 25.8387807 | BE34: =MMULT($EH$22:$EJ$24,BE28:BE30) -> 10.49953697 | BF34: =MMULT($EH$22:$EJ$24,BF28:BF30) -> 53.96306426 | BG34: =MMULT($EH$22:$EJ$24,BG28:BG30) -> 13.27350552 | BH34: =MMULT($EH$22:$EJ$24,BH28:BH30) -> 63.72254519 | BI34: =MMULT($EH$22:$EJ$24,BI28:BI30) -> 7.569198652 | BJ34: =MMULT($EH$22:$EJ$24,BJ28:BJ30) -> 16.19418093 | BK34: =MMULT($EH$22:$EJ$24,BK28:BK30) -> 68.03191388 | BL34: =MMULT($EH$22:$EJ$24,BL28:BL30) -> 26.57297564 | BM34: =MMULT($EH$22:$EJ$24,BM28:BM30) -> 30.62562939 | BN34: =MMULT($EH$22:$EJ$24,BN28:BN30) -> 4.919692609 | BO34: =MMULT($EH$22:$EJ$24,BO28:BO30) -> 17.06567563 | BP34: =MMULT($EH$22:$EJ$24,BP28:BP30) -> 26.2077456 | BQ34: =MMULT($EH$22:$EJ$24,BQ28:BQ30) -> 35.12341995 | BR34: =MMULT($EH$22:$EJ$24,BR28:BR30) -> 36.05336373 | BS34: =MMULT($EH$22:$EJ$24,BS28:BS30) -> 10.15561525 | BT34: =MMULT($EH$22:$EJ$24,BT28:BT30) -> 16.02333796 | BU34: =MMULT($EH$22:$EJ$24,BU28:BU30) -> 20.24933589 | BV34: =MMULT($EH$22:$EJ$24,BV28:BV30) -> 7.413226472 | BW34: =MMULT($EH$22:$EJ$24,BW28:BW30) -> 8.539446295 | BX34: =MMULT($EH$22:$EJ$24,BX28:BX30) -> 57.56373207 | BY34: =MMULT($EH$22:$EJ$24,BY28:BY30) -> 50.80555782 | BZ34: =MMULT($EH$22:$EJ$24,BZ28:BZ30) -> 24.81352399 | CA34: =MMULT($EH$22:$EJ$24,CA28:CA30) -> 12.6655349 | CB34: =MMULT($EH$22:$EJ$24,CB28:CB30) -> 10.72974124 | CC34: =MMULT($EH$22:$EJ$24,CC28:CC30) -> 58.09461924 | CD34: =MMULT($EH$22:$EJ$24,CD28:CD30) -> 67.09234527 | CE34: =MMULT($EH$22:$EJ$24,CE28:CE30) -> 42.31015866 | CF34: =MMULT($EH$22:$EJ$24,CF28:CF30) -> 32.79350601 | CG34: =MMULT($EH$22:$EJ$24,CG28:CG30) -> 7.328391115 | CH34: =MMULT($EH$22:$EJ$24,CH28:CH30) -> 15.62954228 | CI34: =MMULT($EH$22:$EJ$24,CI28:CI30) -> 7.308660619 | CJ34: =MMULT($EH$22:$EJ$24,CJ28:CJ30) -> 8.901845688 | CK34: =MMULT($EH$22:$EJ$24,CK28:CK30) -> 10.52535072 | CL34: =MMULT($EH$22:$EJ$24,CL28:CL30) -> 25.59896821 | CM34: =MMULT($EH$22:$EJ$24,CM28:CM30) -> 18.88620372 | CN34: =MMULT($EH$22:$EJ$24,CN28:CN30) -> 35.39235554 | CO34: =MMULT($EH$22:$EJ$24,CO28:CO30) -> 6.920436199 | CP34: =MMULT($EH$22:$EJ$24,CP28:CP30) -> 45.5834242 | CQ34: =MMULT($EH$22:$EJ$24,CQ28:CQ30) -> 19.16612814 | CR34: =MMULT($EH$22:$EJ$24,CR28:CR30) -> 4.99035342 | CS34: =MMULT($EH$22:$EJ$24,CS28:CS30) -> 6.429349603 | CT34: =MMULT($EH$22:$EJ$24,CT28:CT30) -> 15.21057744 | CU34: =MMULT($EH$22:$EJ$24,CU28:CU30) -> 13.587798 | CV34: =MMULT($EH$22:$EJ$24,CV28:CV30) -> 12.81229001 | CW34: =MMULT($EH$22:$EJ$24,CW28:CW30) -> 44.36111553 | CX34: =MMULT($EH$22:$EJ$24,CX28:CX30) -> 35.19434688 | CY34: =MMULT($EH$22:$EJ$24,CY28:CY30) -> 16.7604018 | CZ34: =MMULT($EH$22:$EJ$24,CZ28:CZ30) -> 68.63079731 | DA34: =MMULT($EH$22:$EJ$24,DA28:DA30) -> 43.81707185 | DB34: =MMULT($EH$22:$EJ$24,DB28:DB30) -> 5.437498447 | DC34: =MMULT($EH$22:$EJ$24,DC28:DC30) -> 13.01051635 | DD34: =MMULT($EH$22:$EJ$24,DD28:DD30) -> 39.99156705 | DE34: =MMULT($EH$22:$EJ$24,DE28:DE30) -> 14.09903856 | DF34: =MMULT($EH$22:$EJ$24,DF28:DF30) -> 37.06537641 | DG34: =MMULT($EH$22:$EJ$24,DG28:DG30) -> 13.54502044 | DH34: =MMULT($EH$22:$EJ$24,DH28:DH30) -> 17.94542429 | DI34: =MMULT($EH$22:$EJ$24,DI28:DI30) -> 56.41764058 | DJ34: =MMULT($EH$22:$EJ$24,DJ28:DJ30) -> 30.10752567 | DK34: =MMULT($EH$22:$EJ$24,DK28:DK30) -> 41.64550181 | DL34: =MMULT($EH$22:$EJ$24,DL28:DL30) -> 16.90613613 | DM34: =MMULT($EH$22:$EJ$24,DM28:DM30) -> 49.6873343 | DN34: =MMULT($EH$22:$EJ$24,DN28:DN30) -> 62.19952977 | DO34: =MMULT($EH$22:$EJ$24,DO28:DO30) -> 25.11553439 | DP34: =MMULT($EH$22:$EJ$24,DP28:DP30) -> 46.78055803 | DQ34: =MMULT($EH$22:$EJ$24,DQ28:DQ30) -> 34.07800271 | DS34: CES30 | DT34: 65.37600673 | DU34: 4.063183328 | DV34: 11.69392719 | DW34: 65.76540205 | DX34: 2.400861852 | DY34: 7.157755402 | DZ34: 4.846833599 | EA34: 23.49179594 | EB34: 1.236385235 | EC34: -0.4240303938 | ED34: 0.6178071333 | EE34: 0.6178071333 | EF34: 4 | EH34: 0 | EI34: 0 | EJ34: 1 | EL34: 409 | EM34: =IF(Calculator!$C$3,OFFSET('SPD Library'!B34,0,Calculator!$C$3-1),Calculator!C35) -> 0.00196 | EN34: =RefCalc!B34 -> 0.004129765778 | EO34: =RefCalc!F34 -> 0.01813574125 | EQ34: 0.00196 | ER34: 409 | ES34: 0.002033145181
U35: Yc | V35: 100 | W35: 65.60042757 | X35: 30.57884806 | Y35: 6.45561175 | Z35: 38.32633472 | AA35: 19.47320128 | AB35: 18.33873376 | AC35: 13.52499334 | AD35: 12.88727493 | AE35: 5.046373011 | AF35: 48.89426026 | AG35: 26.13745552 | AH35: 33.4085029 | AI35: 12.93306968 | AJ35: 43.17026528 | AK35: 40.26152841 | AL35: 16.17100704 | AM35: 17.43626734 | AN35: 22.64383151 | AO35: 41.02938706 | AP35: 35.88760157 | AQ35: 67.91618354 | AR35: 53.12141097 | AS35: 77.4875056 | AT35: 76.15718275 | AU35: 41.08751389 | AV35: 74.55962546 | AW35: 42.01906453 | AX35: 11.19745012 | AY35: 67.27061203 | AZ35: 30.39114039 | BA35: 70.8079337 | BB35: 45.78584075 | BC35: 73.01237174 | BD35: 27.84118747 | BE35: 11.39845329 | BF35: 53.712978 | BG35: 15.06674258 | BH35: 65.04460706 | BI35: 7.606773361 | BJ35: 16.43435685 | BK35: 68.83521361 | BL35: 34.50269723 | BM35: 39.4030812 | BN35: 4.947366284 | BO35: 22.84408779 | BP35: 31.80838628 | BQ35: 36.72067626 | BR35: 46.75123941 | BS35: 13.25759562 | BT35: 19.37407885 | BU35: 22.94609934 | BV35: 10.01236003 | BW35: 14.66308084 | BX35: 64.82731995 | BY35: 57.52685756 | BZ35: 35.6678774 | CA35: 20.73345857 | CB35: 17.66215322 | CC35: 64.24993316 | CD35: 68.52580928 | CE35: 45.80615205 | CF35: 32.88049868 | CG35: 7.265565726 | CH35: 21.52239051 | CI35: 9.419024334 | CJ35: 11.40654672 | CK35: 13.3611859 | CL35: 27.97588464 | CM35: 18.62394734 | CN35: 38.35064044 | CO35: 7.072041796 | CP35: 46.28354951 | CQ35: 21.21047874 | CR35: 4.84148926 | CS35: 6.340462144 | CT35: 14.06242212 | CU35: 12.41474466 | CV35: 11.83971281 | CW35: 41.98899117 | CX35: 31.68197599 | CY35: 12.75167434 | CZ35: 66.94288806 | DA35: 41.32429362 | DB35: 4.793840659 | DC35: 11.0164567 | DD35: 32.39315796 | DE35: 10.23448794 | DF35: 28.87913697 | DG35: 9.796697211 | DH35: 13.03523733 | DI35: 53.88989907 | DJ35: 23.04260383 | DK35: 34.9365288 | DL35: 11.01741314 | DM35: 39.38041946 | DN35: 51.8607931 | DO35: 19.72044294 | DP35: 33.33741737 | DQ35: 21.298353 | DS35: CES31 | DT35: 89.46495654 | DU35: 1.631317521 | DV35: 22.09218354 | DW35: 90.69852242 | DX35: 0.3583238306 | DY35: 11.85497949 | DZ35: 10.38954015 | EA35: 107.9425445 | EB35: 1.497088708 | EC35: -0.527457611 | ED35: 2.49186342 | EE35: 2.49186342 | EF35: 4 | EL35: 410 | EM35: =IF(Calculator!$C$3,OFFSET('SPD Library'!B35,0,Calculator!$C$3-1),Calculator!C36) -> 0.002062 | EN35: =RefCalc!B35 -> 0.00434468216 | EO35: =RefCalc!F35 -> 0.01880288073 | EQ35: 0.002062 | ER35: 410 | ES35: 0.002107936246
U36: Zc | V36: 100 | W36: 60.29590648 | X36: 22.62893532 | Y36: 5.766936988 | Z36: 28.20466774 | AA36: 10.60349048 | AB36: 13.23732488 | AC36: 7.245124089 | AD36: 7.358786433 | AE36: 5.039970898 | AF36: 23.86443005 | AG36: 10.2763791 | AH36: 12.83232046 | AI36: 6.793122042 | AJ36: 37.36706524 | AK36: 30.5053021 | AL36: 8.190537475 | AM36: 8.518362913 | AN36: 14.56154476 | AO36: 17.92233794 | AP36: 13.8061468 | AQ36: 27.49517603 | AR36: 20.13364353 | AS36: 60.0304057 | AT36: 39.28467206 | AU36: 12.09953435 | AV36: 33.37836123 | AW36: 29.62547017 | AX36: 6.166778356 | AY36: 32.19308684 | AZ36: 20.48049074 | BA36: 34.70976213 | BB36: 17.63997725 | BC36: 49.99307947 | BD36: 10.57966278 | BE36: 6.567078981 | BF36: 49.04837941 | BG36: 7.723917785 | BH36: 49.85121027 | BI36: 6.353869543 | BJ36: 11.91268234 | BK36: 62.27922251 | BL36: 15.24511066 | BM36: 18.81025014 | BN36: 4.805936202 | BO36: 13.6914005 | BP36: 23.28594806 | BQ36: 31.89597773 | BR36: 37.99745888 | BS36: 10.0364232 | BT36: 18.10250881 | BU36: 22.26461109 | BV36: 9.156802691 | BW36: 16.07251744 | BX36: 68.75291272 | BY36: 63.79074184 | BZ36: 45.15138894 | CA36: 28.35361247 | CB36: 25.87720596 | CC36: 70.4399963 | CD36: 72.53545011 | CE36: 52.64997789 | CF36: 36.77528306 | CG36: 8.108745646 | CH36: 38.03670292 | CI36: 14.21011963 | CJ36: 23.69668619 | CK36: 28.25561338 | CL36: 41.49453285 | CM36: 23.93852411 | CN36: 63.22177567 | CO36: 15.84446012 | CP36: 52.77399314 | CQ36: 46.61040809 | CR36: 5.393643499 | CS36: 14.69417861 | CT36: 37.91360047 | CU36: 24.29803185 | CV36: 32.06974301 | CW36: 59.1993593 | CX36: 49.46933615 | CY36: 26.3448418 | CZ36: 75.00216613 | DA36: 52.50549905 | DB36: 5.803150677 | DC36: 14.89341435 | DD36: 47.80693548 | DE36: 18.12368319 | DF36: 39.11165664 | DG36: 13.89233311 | DH36: 17.95775364 | DI36: 56.42111112 | DJ36: 27.12848562 | DK36: 38.53098435 | DL36: 12.45638835 | DM36: 42.65568832 | DN36: 53.74304349 | DO36: 18.80657202 | DP36: 28.7623117 | DQ36: 18.12496636 | DS36: CES32 | DT36: 76.51615305 | DU36: 0.5344719238 | DV36: 24.49426599 | DW36: 77.78033985 | DX36: -2.717863666 | DY36: 12.49537734 | DZ36: 12.4959667 | EA36: 156.1491837 | EB36: 1.548979501 | EC36: -0.5475858443 | ED36: 13.52125379 | EE36: 13.52125379 | EF36: 4 | EL36: 411 | EM36: =IF(Calculator!$C$3,OFFSET('SPD Library'!B36,0,Calculator!$C$3-1),Calculator!C37) -> 0.002213 | EN36: =RefCalc!B36 -> 0.004662842687 | EO36: =RefCalc!F36 -> 0.01949055649 | EQ36: 0.002213 | ER36: 411 | ES36: 0.002185029575
U37: Xcw | V37: =MMULT($EH$22:$EJ$24,V31:V33) -> 100 | W37: =MMULT($EH$22:$EJ$24,W31:W33) -> 100 | X37: =MMULT($EH$22:$EJ$24,X31:X33) -> 100 | Y37: =MMULT($EH$22:$EJ$24,Y31:Y33) -> 100 | Z37: =MMULT($EH$22:$EJ$24,Z31:Z33) -> 100 | AA37: =MMULT($EH$22:$EJ$24,AA31:AA33) -> 100 | AB37: =MMULT($EH$22:$EJ$24,AB31:AB33) -> 100 | AC37: =MMULT($EH$22:$EJ$24,AC31:AC33) -> 100 | AD37: =MMULT($EH$22:$EJ$24,AD31:AD33) -> 100 | AE37: =MMULT($EH$22:$EJ$24,AE31:AE33) -> 100 | AF37: =MMULT($EH$22:$EJ$24,AF31:AF33) -> 100 | AG37: =MMULT($EH$22:$EJ$24,AG31:AG33) -> 100 | AH37: =MMULT($EH$22:$EJ$24,AH31:AH33) -> 100 | AI37: =MMULT($EH$22:$EJ$24,AI31:AI33) -> 100 | AJ37: =MMULT($EH$22:$EJ$24,AJ31:AJ33) -> 100 | AK37: =MMULT($EH$22:$EJ$24,AK31:AK33) -> 100 | AL37: =MMULT($EH$22:$EJ$24,AL31:AL33) -> 100 | AM37: =MMULT($EH$22:$EJ$24,AM31:AM33) -> 100 | AN37: =MMULT($EH$22:$EJ$24,AN31:AN33) -> 100 | AO37: =MMULT($EH$22:$EJ$24,AO31:AO33) -> 100 | AP37: =MMULT($EH$22:$EJ$24,AP31:AP33) -> 100 | AQ37: =MMULT($EH$22:$EJ$24,AQ31:AQ33) -> 100 | AR37: =MMULT($EH$22:$EJ$24,AR31:AR33) -> 100 | AS37: =MMULT($EH$22:$EJ$24,AS31:AS33) -> 100 | AT37: =MMULT($EH$22:$EJ$24,AT31:AT33) -> 100 | AU37: =MMULT($EH$22:$EJ$24,AU31:AU33) -> 100 | AV37: =MMULT($EH$22:$EJ$24,AV31:AV33) -> 100 | AW37: =MMULT($EH$22:$EJ$24,AW31:AW33) -> 100 | AX37: =MMULT($EH$22:$EJ$24,AX31:AX33) -> 100 | AY37: =MMULT($EH$22:$EJ$24,AY31:AY33) -> 100 | AZ37: =MMULT($EH$22:$EJ$24,AZ31:AZ33) -> 100 | BA37: =MMULT($EH$22:$EJ$24,BA31:BA33) -> 100 | BB37: =MMULT($EH$22:$EJ$24,BB31:BB33) -> 100 | BC37: =MMULT($EH$22:$EJ$24,BC31:BC33) -> 100 | BD37: =MMULT($EH$22:$EJ$24,BD31:BD33) -> 100 | BE37: =MMULT($EH$22:$EJ$24,BE31:BE33) -> 100 | BF37: =MMULT($EH$22:$EJ$24,BF31:BF33) -> 100 | BG37: =MMULT($EH$22:$EJ$24,BG31:BG33) -> 100 | BH37: =MMULT($EH$22:$EJ$24,BH31:BH33) -> 100 | BI37: =MMULT($EH$22:$EJ$24,BI31:BI33) -> 100 | BJ37: =MMULT($EH$22:$EJ$24,BJ31:BJ33) -> 100 | BK37: =MMULT($EH$22:$EJ$24,BK31:BK33) -> 100 | BL37: =MMULT($EH$22:$EJ$24,BL31:BL33) -> 100 | BM37: =MMULT($EH$22:$EJ$24,BM31:BM33) -> 100 | BN37: =MMULT($EH$22:$EJ$24,BN31:BN33) -> 100 | BO37: =MMULT($EH$22:$EJ$24,BO31:BO33) -> 100 | BP37: =MMULT($EH$22:$EJ$24,BP31:BP33) -> 100 | BQ37: =MMULT($EH$22:$EJ$24,BQ31:BQ33) -> 100 | BR37: =MMULT($EH$22:$EJ$24,BR31:BR33) -> 100 | BS37: =MMULT($EH$22:$EJ$24,BS31:BS33) -> 100 | BT37: =MMULT($EH$22:$EJ$24,BT31:BT33) -> 100 | BU37: =MMULT($EH$22:$EJ$24,BU31:BU33) -> 100 | BV37: =MMULT($EH$22:$EJ$24,BV31:BV33) -> 100 | BW37: =MMULT($EH$22:$EJ$24,BW31:BW33) -> 100 | BX37: =MMULT($EH$22:$EJ$24,BX31:BX33) -> 100 | BY37: =MMULT($EH$22:$EJ$24,BY31:BY33) -> 100 | BZ37: =MMULT($EH$22:$EJ$24,BZ31:BZ33) -> 100 | CA37: =MMULT($EH$22:$EJ$24,CA31:CA33) -> 100 | CB37: =MMULT($EH$22:$EJ$24,CB31:CB33) -> 100 | CC37: =MMULT($EH$22:$EJ$24,CC31:CC33) -> 100 | CD37: =MMULT($EH$22:$EJ$24,CD31:CD33) -> 100 | CE37: =MMULT($EH$22:$EJ$24,CE31:CE33) -> 100 | CF37: =MMULT($EH$22:$EJ$24,CF31:CF33) -> 100 | CG37: =MMULT($EH$22:$EJ$24,CG31:CG33) -> 100 | CH37: =MMULT($EH$22:$EJ$24,CH31:CH33) -> 100 | CI37: =MMULT($EH$22:$EJ$24,CI31:CI33) -> 100 | CJ37: =MMULT($EH$22:$EJ$24,CJ31:CJ33) -> 100 | CK37: =MMULT($EH$22:$EJ$24,CK31:CK33) -> 100 | CL37: =MMULT($EH$22:$EJ$24,CL31:CL33) -> 100 | CM37: =MMULT($EH$22:$EJ$24,CM31:CM33) -> 100 | CN37: =MMULT($EH$22:$EJ$24,CN31:CN33) -> 100 | CO37: =MMULT($EH$22:$EJ$24,CO31:CO33) -> 100 | CP37: =MMULT($EH$22:$EJ$24,CP31:CP33) -> 100 | CQ37: =MMULT($EH$22:$EJ$24,CQ31:CQ33) -> 100 | CR37: =MMULT($EH$22:$EJ$24,CR31:CR33) -> 100 | CS37: =MMULT($EH$22:$EJ$24,CS31:CS33) -> 100 | CT37: =MMULT($EH$22:$EJ$24,CT31:CT33) -> 100 | CU37: =MMULT($EH$22:$EJ$24,CU31:CU33) -> 100 | CV37: =MMULT($EH$22:$EJ$24,CV31:CV33) -> 100 | CW37: =MMULT($EH$22:$EJ$24,CW31:CW33) -> 100 | CX37: =MMULT($EH$22:$EJ$24,CX31:CX33) -> 100 | CY37: =MMULT($EH$22:$EJ$24,CY31:CY33) -> 100 | CZ37: =MMULT($EH$22:$EJ$24,CZ31:CZ33) -> 100 | DA37: =MMULT($EH$22:$EJ$24,DA31:DA33) -> 100 | DB37: =MMULT($EH$22:$EJ$24,DB31:DB33) -> 100 | DC37: =MMULT($EH$22:$EJ$24,DC31:DC33) -> 100 | DD37: =MMULT($EH$22:$EJ$24,DD31:DD33) -> 100 | DE37: =MMULT($EH$22:$EJ$24,DE31:DE33) -> 100 | DF37: =MMULT($EH$22:$EJ$24,DF31:DF33) -> 100 | DG37: =MMULT($EH$22:$EJ$24,DG31:DG33) -> 100 | DH37: =MMULT($EH$22:$EJ$24,DH31:DH33) -> 100 | DI37: =MMULT($EH$22:$EJ$24,DI31:DI33) -> 100 | DJ37: =MMULT($EH$22:$EJ$24,DJ31:DJ33) -> 100 | DK37: =MMULT($EH$22:$EJ$24,DK31:DK33) -> 100 | DL37: =MMULT($EH$22:$EJ$24,DL31:DL33) -> 100 | DM37: =MMULT($EH$22:$EJ$24,DM31:DM33) -> 100 | DN37: =MMULT($EH$22:$EJ$24,DN31:DN33) -> 100 | DO37: =MMULT($EH$22:$EJ$24,DO31:DO33) -> 100 | DP37: =MMULT($EH$22:$EJ$24,DP31:DP33) -> 100 | DQ37: =MMULT($EH$22:$EJ$24,DQ31:DQ33) -> 100 | DS37: CES33 | DT37: 90.32545987 | DU37: 1.603805135 | DV37: 14.14159573 | DW37: 90.88667558 | DX37: 0.4197979532 | DY37: 8.595534543 | DZ37: 5.698739399 | EA37: =DZ37^2 -> 32.47563074 | EB37: =MOD(ATAN2(DU37,DV37),2*PI()) -> 1.457868357 | EC37: -0.4344734932 | ED37: 3.674244919 | EE37: 3.674244919 | EF37: 4 | EL37: 412 | EM37: =IF(Calculator!$C$3,OFFSET('SPD Library'!B37,0,Calculator!$C$3-1),Calculator!C38) -> 0.002352 | EN37: =RefCalc!B37 -> 0.004955718933 | EO37: =RefCalc!F37 -> 0.02019926356 | EQ37: 0.002352 | ER37: 412 | ES37: 0.002264480663
U38: Ycw | V38: 100 | W38: 100 | X38: 100 | Y38: 100 | Z38: 100 | AA38: 100 | AB38: 100 | AC38: 100 | AD38: 100 | AE38: 100 | AF38: 100 | AG38: 100 | AH38: 100 | AI38: 100 | AJ38: 100 | AK38: 100 | AL38: 100 | AM38: 100 | AN38: 100 | AO38: 100 | AP38: 100 | AQ38: 100 | AR38: 100 | AS38: 100 | AT38: 100 | AU38: 100 | AV38: 100 | AW38: 100 | AX38: 100 | AY38: 100 | AZ38: 100 | BA38: 100 | BB38: 100 | BC38: 100 | BD38: 100 | BE38: 100 | BF38: 100 | BG38: 100 | BH38: 100 | BI38: 100 | BJ38: 100 | BK38: 100 | BL38: 100 | BM38: 100 | BN38: 100 | BO38: 100 | BP38: 100 | BQ38: 100 | BR38: 100 | BS38: 100 | BT38: 100 | BU38: 100 | BV38: 100 | BW38: 100 | BX38: 100 | BY38: 100 | BZ38: 100 | CA38: 100 | CB38: 100 | CC38: 100 | CD38: 100 | CE38: 100 | CF38: 100 | CG38: 100 | CH38: 100 | CI38: 100 | CJ38: 100 | CK38: 100 | CL38: 100 | CM38: 100 | CN38: 100 | CO38: 100 | CP38: 100 | CQ38: 100 | CR38: 100 | CS38: 100 | CT38: 100 | CU38: 100 | CV38: 100 | CW38: 100 | CX38: 100 | CY38: 100 | CZ38: 100 | DA38: 100 | DB38: 100 | DC38: 100 | DD38: 100 | DE38: 100 | DF38: 100 | DG38: 100 | DH38: 100 | DI38: 100 | DJ38: 100 | DK38: 100 | DL38: 100 | DM38: 100 | DN38: 100 | DO38: 100 | DP38: 100 | DQ38: 100 | DS38: CES34 | DT38: 62.73148144 | DU38: -4.894898413 | DV38: 22.60682633 | DW38: 64.63862485 | DX38: -4.852593255 | DY38: 11.25576532 | DZ38: 11.51023769 | EA38: 132.4855718 | EB38: 1.784027764 | EC38: -0.5357400251 | ED38: 11.10461204 | EE38: 11.10461204 | EF38: 5 | EL38: 413 | EM38: =IF(Calculator!$C$3,OFFSET('SPD Library'!B38,0,Calculator!$C$3-1),Calculator!C39) -> 0.002466 | EN38: =RefCalc!B38 -> 0.005195919596 | EO38: =RefCalc!F38 -> 0.02092950495 | EQ38: 0.002466 | ER38: 413 | ES38: 0.0023463459
U39: Zcw | V39: 100 | W39: 100 | X39: 100 | Y39: 100 | Z39: 100 | AA39: 100 | AB39: 100 | AC39: 100 | AD39: 100 | AE39: 100 | AF39: 100 | AG39: 100 | AH39: 100 | AI39: 100 | AJ39: 100 | AK39: 100 | AL39: 100 | AM39: 100 | AN39: 100 | AO39: 100 | AP39: 100 | AQ39: 100 | AR39: 100 | AS39: 100 | AT39: 100 | AU39: 100 | AV39: 100 | AW39: 100 | AX39: 100 | AY39: 100 | AZ39: 100 | BA39: 100 | BB39: 100 | BC39: 100 | BD39: 100 | BE39: 100 | BF39: 100 | BG39: 100 | BH39: 100 | BI39: 100 | BJ39: 100 | BK39: 100 | BL39: 100 | BM39: 100 | BN39: 100 | BO39: 100 | BP39: 100 | BQ39: 100 | BR39: 100 | BS39: 100 | BT39: 100 | BU39: 100 | BV39: 100 | BW39: 100 | BX39: 100 | BY39: 100 | BZ39: 100 | CA39: 100 | CB39: 100 | CC39: 100 | CD39: 100 | CE39: 100 | CF39: 100 | CG39: 100 | CH39: 100 | CI39: 100 | CJ39: 100 | CK39: 100 | CL39: 100 | CM39: 100 | CN39: 100 | CO39: 100 | CP39: 100 | CQ39: 100 | CR39: 100 | CS39: 100 | CT39: 100 | CU39: 100 | CV39: 100 | CW39: 100 | CX39: 100 | CY39: 100 | CZ39: 100 | DA39: 100 | DB39: 100 | DC39: 100 | DD39: 100 | DE39: 100 | DF39: 100 | DG39: 100 | DH39: 100 | DI39: 100 | DJ39: 100 | DK39: 100 | DL39: 100 | DM39: 100 | DN39: 100 | DO39: 100 | DP39: 100 | DQ39: 100 | DS39: CES35 | DT39: 42.61316865 | DU39: -4.652711092 | DV39: 12.59654524 | DW39: 43.68818075 | DX39: -4.451535606 | DY39: 6.686231784 | DZ39: 6.010651194 | EA39: 36.12792778 | EB39: 1.924616767 | EC39: -0.4389156416 | ED39: 13.38232315 | EE39: 13.38232315 | EF39: 5 | EL39: 414 | EM39: =IF(Calculator!$C$3,OFFSET('SPD Library'!B39,0,Calculator!$C$3-1),Calculator!C40) -> 0.002543 | EN39: =RefCalc!B39 -> 0.005358160394 | EO39: =RefCalc!F39 -> 0.02168179164 | EQ39: 0.002543 | ER39: 414 | ES39: 0.002430682572
U40: R' | V40: =MMULT($EH$27:$EJ$29,V34:V36) -> 100.001 | W40: =MMULT($EH$27:$EJ$29,W34:W36) -> 69.84583121 | X40: =MMULT($EH$27:$EJ$29,X34:X36) -> 36.7173827 | Y40: =MMULT($EH$27:$EJ$29,Y34:Y36) -> 7.40859068 | Z40: =MMULT($EH$27:$EJ$29,Z34:Z36) -> 41.92797814 | AA40: =MMULT($EH$27:$EJ$29,AA34:AA36) -> 25.16139988 | AB40: =MMULT($EH$27:$EJ$29,AB34:AB36) -> 20.59154182 | AC40: =MMULT($EH$27:$EJ$29,AC34:AC36) -> 17.70499826 | AD40: =MMULT($EH$27:$EJ$29,AD34:AD36) -> 16.74317938 | AE40: =MMULT($EH$27:$EJ$29,AE34:AE36) -> 5.209246122 | AF40: =MMULT($EH$27:$EJ$29,AF34:AF36) -> 57.97401764 | AG40: =MMULT($EH$27:$EJ$29,AG34:AG36) -> 31.53244533 | AH40: =MMULT($EH$27:$EJ$29,AH34:AH36) -> 40.65707758 | AI40: =MMULT($EH$27:$EJ$29,AI34:AI36) -> 15.28582324 | AJ40: =MMULT($EH$27:$EJ$29,AJ34:AJ36) -> 44.5686187 | AK40: =MMULT($EH$27:$EJ$29,AK34:AK36) -> 43.68907983 | AL40: =MMULT($EH$27:$EJ$29,AL34:AL36) -> 18.9784254 | AM40: =MMULT($EH$27:$EJ$29,AM34:AM36) -> 19.67444399 | AN40: =MMULT($EH$27:$EJ$29,AN34:AN36) -> 24.87177416 | AO40: =MMULT($EH$27:$EJ$29,AO34:AO36) -> 44.91439837 | AP40: =MMULT($EH$27:$EJ$29,AP34:AP36) -> 42.67428737 | AQ40: =MMULT($EH$27:$EJ$29,AQ34:AQ36) -> 74.42542078 | AR40: =MMULT($EH$27:$EJ$29,AR34:AR36) -> 59.43927554 | AS40: =MMULT($EH$27:$EJ$29,AS34:AS36) -> 79.37940347 | AT40: =MMULT($EH$27:$EJ$29,AT34:AT36) -> 79.92343753 | AU40: =MMULT($EH$27:$EJ$29,AU34:AU36) -> 44.56967755 | AV40: =MMULT($EH$27:$EJ$29,AV34:AV36) -> 79.34236817 | AW40: =MMULT($EH$27:$EJ$29,AW34:AW36) -> 43.02957504 | AX40: =MMULT($EH$27:$EJ$29,AX34:AX36) -> 11.48344666 | AY40: =MMULT($EH$27:$EJ$29,AY34:AY36) -> 70.50332944 | AZ40: =MMULT($EH$27:$EJ$29,AZ34:AZ36) -> 31.54084712 | BA40: =MMULT($EH$27:$EJ$29,BA34:BA36) -> 73.69636114 | BB40: =MMULT($EH$27:$EJ$29,BB34:BB36) -> 47.91087658 | BC40: =MMULT($EH$27:$EJ$29,BC34:BC36) -> 74.83713348 | BD40: =MMULT($EH$27:$EJ$29,BD34:BD36) -> 28.4192447 | BE40: =MMULT($EH$27:$EJ$29,BE34:BE36) -> 11.42838313 | BF40: =MMULT($EH$27:$EJ$29,BF34:BF36) -> 54.17798687 | BG40: =MMULT($EH$27:$EJ$29,BG34:BG36) -> 14.94578429 | BH40: =MMULT($EH$27:$EJ$29,BH34:BH36) -> 65.72545323 | BI40: =MMULT($EH$27:$EJ$29,BI34:BI36) -> 7.690784662 | BJ40: =MMULT($EH$27:$EJ$29,BJ34:BJ36) -> 16.69668759 | BK40: =MMULT($EH$27:$EJ$29,BK34:BK36) -> 69.03867341 | BL40: =MMULT($EH$27:$EJ$29,BL34:BL36) -> 32.92793736 | BM40: =MMULT($EH$27:$EJ$29,BM34:BM36) -> 37.60305843 | BN40: =MMULT($EH$27:$EJ$29,BN34:BN36) -> 4.947758768 | BO40: =MMULT($EH$27:$EJ$29,BO34:BO36) -> 21.31254467 | BP40: =MMULT($EH$27:$EJ$29,BP34:BP36) -> 30.29662413 | BQ40: =MMULT($EH$27:$EJ$29,BQ34:BQ36) -> 36.47818399 | BR40: =MMULT($EH$27:$EJ$29,BR34:BR36) -> 43.27138525 | BS40: =MMULT($EH$27:$EJ$29,BS34:BS36) -> 12.30229727 | BT40: =MMULT($EH$27:$EJ$29,BT34:BT36) -> 18.16850249 | BU40: =MMULT($EH$27:$EJ$29,BU34:BU36) -> 21.94899261 | BV40: =MMULT($EH$27:$EJ$29,BV34:BV36) -> 9.066867066 | BW40: =MMULT($EH$27:$EJ$29,BW34:BW36) -> 12.16589138 | BX40: =MMULT($EH$27:$EJ$29,BX34:BX36) -> 61.68840975 | BY40: =MMULT($EH$27:$EJ$29,BY34:BY36) -> 54.41523269 | BZ40: =MMULT($EH$27:$EJ$29,BZ34:BZ36) -> 30.69202132 | CA40: =MMULT($EH$27:$EJ$29,CA34:CA36) -> 16.98996166 | CB40: =MMULT($EH$27:$EJ$29,CB34:CB36) -> 14.31433922 | CC40: =MMULT($EH$27:$EJ$29,CC34:CC36) -> 61.3647541 | CD40: =MMULT($EH$27:$EJ$29,CD34:CD36) -> 67.65238073 | CE40: =MMULT($EH$27:$EJ$29,CE34:CE36) -> 43.90571431 | CF40: =MMULT($EH$27:$EJ$29,CF34:CF36) -> 32.54048394 | CG40: =MMULT($EH$27:$EJ$29,CG34:CG36) -> 7.223780668 | CH40: =MMULT($EH$27:$EJ$29,CH34:CH36) -> 17.92675775 | CI40: =MMULT($EH$27:$EJ$29,CI34:CI36) -> 8.219725302 | CJ40: =MMULT($EH$27:$EJ$29,CJ34:CJ36) -> 9.463565573 | CK40: =MMULT($EH$27:$EJ$29,CK34:CK36) -> 11.08427263 | CL40: =MMULT($EH$27:$EJ$29,CL34:CL36) -> 25.98620905 | CM40: =MMULT($EH$27:$EJ$29,CM34:CM36) -> 18.30818661 | CN40: =MMULT($EH$27:$EJ$29,CN34:CN36) -> 35.24128982 | CO40: =MMULT($EH$27:$EJ$29,CO34:CO36) -> 6.322816426 | CP40: =MMULT($EH$27:$EJ$29,CP34:CP36) -> 45.5004984 | CQ40: =MMULT($EH$27:$EJ$29,CQ34:CQ36) -> 18.41552053 | CR40: =MMULT($EH$27:$EJ$29,CR34:CR36) -> 4.856108031 | CS40: =MMULT($EH$27:$EJ$29,CS34:CS36) -> 5.717895469 | CT40: =MMULT($EH$27:$EJ$29,CT34:CT36) -> 12.63339964 | CU40: =MMULT($EH$27:$EJ$29,CU34:CU36) -> 11.93704239 | CV40: =MMULT($EH$27:$EJ$29,CV34:CV36) -> 10.6271555 | CW40: =MMULT($EH$27:$EJ$29,CW34:CW36) -> 41.55973988 | CX40: =MMULT($EH$27:$EJ$29,CX34:CX36) -> 31.65158937 | CY40: =MMULT($EH$27:$EJ$29,CY34:CY36) -> 13.24453262 | CZ40: =MMULT($EH$27:$EJ$29,CZ34:CZ36) -> 66.9672486 | DA40: =MMULT($EH$27:$EJ$29,DA34:DA36) -> 41.41643022 | DB40: =MMULT($EH$27:$EJ$29,DB34:DB36) -> 4.965315962 | DC40: =MMULT($EH$27:$EJ$29,DC34:DC36) -> 11.48863282 | DD40: =MMULT($EH$27:$EJ$29,DD34:DD36) -> 34.14190188 | DE40: =MMULT($EH$27:$EJ$29,DE34:DE36) -> 11.11992242 | DF40: =MMULT($EH$27:$EJ$29,DF34:DF36) -> 31.26459049 | DG40: =MMULT($EH$27:$EJ$29,DG34:DG36) -> 10.93530959 | DH40: =MMULT($EH$27:$EJ$29,DH34:DH36) -> 14.56161306 | DI40: =MMULT($EH$27:$EJ$29,DI34:DI36) -> 54.67636835 | DJ40: =MMULT($EH$27:$EJ$29,DJ34:DJ36) -> 25.47462777 | DK40: =MMULT($EH$27:$EJ$29,DK34:DK36) -> 37.26862028 | DL40: =MMULT($EH$27:$EJ$29,DL34:DL36) -> 13.19919898 | DM40: =MMULT($EH$27:$EJ$29,DM34:DM36) -> 43.13982289 | DN40: =MMULT($EH$27:$EJ$29,DN34:DN36) -> 55.74232532 | DO40: =MMULT($EH$27:$EJ$29,DO34:DO36) -> 21.8950646 | DP40: =MMULT($EH$27:$EJ$29,DP34:DP36) -> 38.9366464 | DQ40: =MMULT($EH$27:$EJ$29,DQ34:DQ36) -> 26.52860533 | DS40: CES36 | DT40: 80.98735532 | DU40: 1.229585258 | DV40: 4.077781155 | DW40: 81.02736745 | DX40: 0.8041200209 | DY40: 2.954406028 | DZ40: 1.201912358 | EA40: 1.444593316 | EB40: 1.277933778 | EC40: -0.2909811724 | ED40: 1.554043341 | EE40: 1.554043341 | EF40: 4 | EL40: 415 | EM40: =IF(Calculator!$C$3,OFFSET('SPD Library'!B40,0,Calculator!$C$3-1),Calculator!C41) -> 0.002572 | EN40: =RefCalc!B40 -> 0.005419264072 | EO40: =RefCalc!F40 -> 0.02245664269 | EQ40: 0.002572 | ER40: 415 | ES40: 0.002517548868
U41: G' | V41: 100 | W41: 63.0972536 | X41: 26.959064 | Y41: 5.893674184 | Z41: 36.20256036 | AA41: 16.11890082 | AB41: 17.01030715 | AC41: 11.06006509 | AD41: 10.61347294 | AE41: 4.950357243 | AF41: 43.53994145 | AG41: 22.95600857 | AH41: 29.13398889 | AI41: 11.54566054 | AJ41: 42.34584366 | AK41: 38.24043131 | AL41: 14.51547992 | AM41: 16.1164146 | AN41: 21.33005512 | AO41: 38.73836175 | AP41: 31.88545643 | AQ41: 64.07760243 | AR41: 49.39568929 | AS41: 76.37209647 | AT41: 73.93621845 | AU41: 39.03397083 | AV41: 71.73917882 | AW41: 41.42326071 | AX41: 11.02880103 | AY41: 65.36424257 | AZ41: 29.7132165 | BA41: 69.10459807 | BB41: 44.53262753 | BC41: 71.93645483 | BD41: 27.50025321 | BE41: 11.38080917 | BF41: 53.43902166 | BG41: 15.13806588 | BH41: 64.64330455 | BI41: 7.557261139 | BJ41: 16.27970077 | BK41: 68.71555637 | BL41: 35.43128195 | BM41: 40.46451411 | BN41: 4.947162201 | BO41: 23.74724847 | BP41: 32.69994316 | BQ41: 36.86382748 | BR41: 48.80345527 | BS41: 13.82096712 | BT41: 20.08509905 | BU41: 23.53421468 | BV41: 10.5699605 | BW41: 16.13576525 | BX41: 66.67875184 | BY41: 59.36218632 | BZ41: 38.60244612 | CA41: 22.94119945 | CB41: 19.63655142 | CC41: 65.95176668 | CD41: 69.04132107 | CE41: 46.92718825 | CF41: 33.08124741 | CG41: 7.290259803 | CH41: 23.6430552 | CI41: 10.12636175 | CJ41: 12.55253744 | CK41: 14.70413956 | CL41: 29.14952426 | CM41: 18.81032771 | CN41: 40.18475328 | CO41: 7.514010213 | CP41: 46.74566679 | CQ41: 22.85910167 | CR41: 4.832904266 | CS41: 6.707730898 | CT41: 14.90549773 | CU41: 12.69666863 | CV41: 12.55508055 | CW41: 42.24258645 | CX41: 31.70030942 | CY41: 12.46128759 | CZ41: 66.92902073 | DA41: 41.270348 | DB41: 4.69276374 | DC41: 10.73813146 | DD41: 31.36232098 | DE41: 9.712513116 | DF41: 27.47274852 | DG41: 9.125373512 | DH41: 12.13528125 | DI41: 53.42647235 | DJ41: 21.60863992 | DK41: 33.5615584 | DL41: 9.730908548 | DM41: 37.16379259 | DN41: 49.57220327 | DO41: 18.43818422 | DP41: 30.03571856 | DQ41: 18.21418482 | DS41: CES37 | DT41: 48.14589112 | DU41: -7.953210345 | DV41: 15.52866658 | DW41: 49.32573713 | DX41: -8.250024962 | DY41: 8.06549912 | DZ41: 7.56167998 | EA41: 57.17900412 | EB41: 2.044127018 | EC41: -0.3840696829 | ED41: 18.52812711 | EE41: 18.52812711 | EF41: 6 | EL41: 416 | EM41: =IF(Calculator!$C$3,OFFSET('SPD Library'!B41,0,Calculator!$C$3-1),Calculator!C42) -> 0.00252 | EN41: =RefCalc!B41 -> 0.005309698857 | EO41: =RefCalc!F41 -> 0.02325458522 | EQ41: 0.00252 | ER41: 416 | ES41: 0.002607003883
U42: B' | V42: 100 | W42: 60.29590648 | X42: 22.62893532 | Y42: 5.766936988 | Z42: 28.20466774 | AA42: 10.60349048 | AB42: 13.23732488 | AC42: 7.245124089 | AD42: 7.358786433 | AE42: 5.039970898 | AF42: 23.86443005 | AG42: 10.2763791 | AH42: 12.83232046 | AI42: 6.793122042 | AJ42: 37.36706524 | AK42: 30.5053021 | AL42: 8.190537475 | AM42: 8.518362913 | AN42: 14.56154476 | AO42: 17.92233794 | AP42: 13.8061468 | AQ42: 27.49517603 | AR42: 20.13364353 | AS42: 60.0304057 | AT42: 39.28467206 | AU42: 12.09953435 | AV42: 33.37836123 | AW42: 29.62547017 | AX42: 6.166778356 | AY42: 32.19308684 | AZ42: 20.48049074 | BA42: 34.70976213 | BB42: 17.63997725 | BC42: 49.99307947 | BD42: 10.57966278 | BE42: 6.567078981 | BF42: 49.04837941 | BG42: 7.723917785 | BH42: 49.85121027 | BI42: 6.353869543 | BJ42: 11.91268234 | BK42: 62.27922251 | BL42: 15.24511066 | BM42: 18.81025014 | BN42: 4.805936202 | BO42: 13.6914005 | BP42: 23.28594806 | BQ42: 31.89597773 | BR42: 37.99745888 | BS42: 10.0364232 | BT42: 18.10250881 | BU42: 22.26461109 | BV42: 9.156802691 | BW42: 16.07251744 | BX42: 68.75291272 | BY42: 63.79074184 | BZ42: 45.15138894 | CA42: 28.35361247 | CB42: 25.87720596 | CC42: 70.4399963 | CD42: 72.53545011 | CE42: 52.64997789 | CF42: 36.77528306 | CG42: 8.108745646 | CH42: 38.03670292 | CI42: 14.21011963 | CJ42: 23.69668619 | CK42: 28.25561338 | CL42: 41.49453285 | CM42: 23.93852411 | CN42: 63.22177567 | CO42: 15.84446012 | CP42: 52.77399314 | CQ42: 46.61040809 | CR42: 5.393643499 | CS42: 14.69417861 | CT42: 37.91360047 | CU42: 24.29803185 | CV42: 32.06974301 | CW42: 59.1993593 | CX42: 49.46933615 | CY42: 26.3448418 | CZ42: 75.00216613 | DA42: 52.50549905 | DB42: 5.803150677 | DC42: 14.89341435 | DD42: 47.80693548 | DE42: 18.12368319 | DF42: 39.11165664 | DG42: 13.89233311 | DH42: 17.95775364 | DI42: 56.42111112 | DJ42: 27.12848562 | DK42: 38.53098435 | DL42: 12.45638835 | DM42: 42.65568832 | DN42: 53.74304349 | DO42: 18.80657202 | DP42: 28.7623117 | DQ42: 18.12496636 | DS42: CES38 | DT42: 86.6453221 | DU42: -1.091866074 | DV42: 10.70321844 | DW42: 86.86737011 | DX42: -0.8435710099 | DY42: 7.206293956 | DZ42: 3.512753425 | EA42: 12.33943662 | EB42: 1.672457524 | EC42: -0.3529063445 | ED42: 0.851917772 | EE42: 0.851917772 | EF42: 5 | EL42: 417 | EM42: =IF(Calculator!$C$3,OFFSET('SPD Library'!B42,0,Calculator!$C$3-1),Calculator!C43) -> 0.002396 | EN42: =RefCalc!B42 -> 0.005048427961 | EO42: =RefCalc!F42 -> 0.02407615444 | EQ42: 0.002396 | ER42: 417 | ES42: 0.002699107619
U43: R'w | V43: =MMULT($EH$27:$EJ$29,V37:V39) -> 100.001 | W43: =MMULT($EH$27:$EJ$29,W37:W39) -> 100.001 | X43: =MMULT($EH$27:$EJ$29,X37:X39) -> 100.001 | Y43: =MMULT($EH$27:$EJ$29,Y37:Y39) -> 100.001 | Z43: =MMULT($EH$27:$EJ$29,Z37:Z39) -> 100.001 | AA43: =MMULT($EH$27:$EJ$29,AA37:AA39) -> 100.001 | AB43: =MMULT($EH$27:$EJ$29,AB37:AB39) -> 100.001 | AC43: =MMULT($EH$27:$EJ$29,AC37:AC39) -> 100.001 | AD43: =MMULT($EH$27:$EJ$29,AD37:AD39) -> 100.001 | AE43: =MMULT($EH$27:$EJ$29,AE37:AE39) -> 100.001 | AF43: =MMULT($EH$27:$EJ$29,AF37:AF39) -> 100.001 | AG43: =MMULT($EH$27:$EJ$29,AG37:AG39) -> 100.001 | AH43: =MMULT($EH$27:$EJ$29,AH37:AH39) -> 100.001 | AI43: =MMULT($EH$27:$EJ$29,AI37:AI39) -> 100.001 | AJ43: =MMULT($EH$27:$EJ$29,AJ37:AJ39) -> 100.001 | AK43: =MMULT($EH$27:$EJ$29,AK37:AK39) -> 100.001 | AL43: =MMULT($EH$27:$EJ$29,AL37:AL39) -> 100.001 | AM43: =MMULT($EH$27:$EJ$29,AM37:AM39) -> 100.001 | AN43: =MMULT($EH$27:$EJ$29,AN37:AN39) -> 100.001 | AO43: =MMULT($EH$27:$EJ$29,AO37:AO39) -> 100.001 | AP43: =MMULT($EH$27:$EJ$29,AP37:AP39) -> 100.001 | AQ43: =MMULT($EH$27:$EJ$29,AQ37:AQ39) -> 100.001 | AR43: =MMULT($EH$27:$EJ$29,AR37:AR39) -> 100.001 | AS43: =MMULT($EH$27:$EJ$29,AS37:AS39) -> 100.001 | AT43: =MMULT($EH$27:$EJ$29,AT37:AT39) -> 100.001 | AU43: =MMULT($EH$27:$EJ$29,AU37:AU39) -> 100.001 | AV43: =MMULT($EH$27:$EJ$29,AV37:AV39) -> 100.001 | AW43: =MMULT($EH$27:$EJ$29,AW37:AW39) -> 100.001 | AX43: =MMULT($EH$27:$EJ$29,AX37:AX39) -> 100.001 | AY43: =MMULT($EH$27:$EJ$29,AY37:AY39) -> 100.001 | AZ43: =MMULT($EH$27:$EJ$29,AZ37:AZ39) -> 100.001 | BA43: =MMULT($EH$27:$EJ$29,BA37:BA39) -> 100.001 | BB43: =MMULT($EH$27:$EJ$29,BB37:BB39) -> 100.001 | BC43: =MMULT($EH$27:$EJ$29,BC37:BC39) -> 100.001 | BD43: =MMULT($EH$27:$EJ$29,BD37:BD39) -> 100.001 | BE43: =MMULT($EH$27:$EJ$29,BE37:BE39) -> 100.001 | BF43: =MMULT($EH$27:$EJ$29,BF37:BF39) -> 100.001 | BG43: =MMULT($EH$27:$EJ$29,BG37:BG39) -> 100.001 | BH43: =MMULT($EH$27:$EJ$29,BH37:BH39) -> 100.001 | BI43: =MMULT($EH$27:$EJ$29,BI37:BI39) -> 100.001 | BJ43: =MMULT($EH$27:$EJ$29,BJ37:BJ39) -> 100.001 | BK43: =MMULT($EH$27:$EJ$29,BK37:BK39) -> 100.001 | BL43: =MMULT($EH$27:$EJ$29,BL37:BL39) -> 100.001 | BM43: =MMULT($EH$27:$EJ$29,BM37:BM39) -> 100.001 | BN43: =MMULT($EH$27:$EJ$29,BN37:BN39) -> 100.001 | BO43: =MMULT($EH$27:$EJ$29,BO37:BO39) -> 100.001 | BP43: =MMULT($EH$27:$EJ$29,BP37:BP39) -> 100.001 | BQ43: =MMULT($EH$27:$EJ$29,BQ37:BQ39) -> 100.001 | BR43: =MMULT($EH$27:$EJ$29,BR37:BR39) -> 100.001 | BS43: =MMULT($EH$27:$EJ$29,BS37:BS39) -> 100.001 | BT43: =MMULT($EH$27:$EJ$29,BT37:BT39) -> 100.001 | BU43: =MMULT($EH$27:$EJ$29,BU37:BU39) -> 100.001 | BV43: =MMULT($EH$27:$EJ$29,BV37:BV39) -> 100.001 | BW43: =MMULT($EH$27:$EJ$29,BW37:BW39) -> 100.001 | BX43: =MMULT($EH$27:$EJ$29,BX37:BX39) -> 100.001 | BY43: =MMULT($EH$27:$EJ$29,BY37:BY39) -> 100.001 | BZ43: =MMULT($EH$27:$EJ$29,BZ37:BZ39) -> 100.001 | CA43: =MMULT($EH$27:$EJ$29,CA37:CA39) -> 100.001 | CB43: =MMULT($EH$27:$EJ$29,CB37:CB39) -> 100.001 | CC43: =MMULT($EH$27:$EJ$29,CC37:CC39) -> 100.001 | CD43: =MMULT($EH$27:$EJ$29,CD37:CD39) -> 100.001 | CE43: =MMULT($EH$27:$EJ$29,CE37:CE39) -> 100.001 | CF43: =MMULT($EH$27:$EJ$29,CF37:CF39) -> 100.001 | CG43: =MMULT($EH$27:$EJ$29,CG37:CG39) -> 100.001 | CH43: =MMULT($EH$27:$EJ$29,CH37:CH39) -> 100.001 | CI43: =MMULT($EH$27:$EJ$29,CI37:CI39) -> 100.001 | CJ43: =MMULT($EH$27:$EJ$29,CJ37:CJ39) -> 100.001 | CK43: =MMULT($EH$27:$EJ$29,CK37:CK39) -> 100.001 | CL43: =MMULT($EH$27:$EJ$29,CL37:CL39) -> 100.001 | CM43: =MMULT($EH$27:$EJ$29,CM37:CM39) -> 100.001 | CN43: =MMULT($EH$27:$EJ$29,CN37:CN39) -> 100.001 | CO43: =MMULT($EH$27:$EJ$29,CO37:CO39) -> 100.001 | CP43: =MMULT($EH$27:$EJ$29,CP37:CP39) -> 100.001 | CQ43: =MMULT($EH$27:$EJ$29,CQ37:CQ39) -> 100.001 | CR43: =MMULT($EH$27:$EJ$29,CR37:CR39) -> 100.001 | CS43: =MMULT($EH$27:$EJ$29,CS37:CS39) -> 100.001 | CT43: =MMULT($EH$27:$EJ$29,CT37:CT39) -> 100.001 | CU43: =MMULT($EH$27:$EJ$29,CU37:CU39) -> 100.001 | CV43: =MMULT($EH$27:$EJ$29,CV37:CV39) -> 100.001 | CW43: =MMULT($EH$27:$EJ$29,CW37:CW39) -> 100.001 | CX43: =MMULT($EH$27:$EJ$29,CX37:CX39) -> 100.001 | CY43: =MMULT($EH$27:$EJ$29,CY37:CY39) -> 100.001 | CZ43: =MMULT($EH$27:$EJ$29,CZ37:CZ39) -> 100.001 | DA43: =MMULT($EH$27:$EJ$29,DA37:DA39) -> 100.001 | DB43: =MMULT($EH$27:$EJ$29,DB37:DB39) -> 100.001 | DC43: =MMULT($EH$27:$EJ$29,DC37:DC39) -> 100.001 | DD43: =MMULT($EH$27:$EJ$29,DD37:DD39) -> 100.001 | DE43: =MMULT($EH$27:$EJ$29,DE37:DE39) -> 100.001 | DF43: =MMULT($EH$27:$EJ$29,DF37:DF39) -> 100.001 | DG43: =MMULT($EH$27:$EJ$29,DG37:DG39) -> 100.001 | DH43: =MMULT($EH$27:$EJ$29,DH37:DH39) -> 100.001 | DI43: =MMULT($EH$27:$EJ$29,DI37:DI39) -> 100.001 | DJ43: =MMULT($EH$27:$EJ$29,DJ37:DJ39) -> 100.001 | DK43: =MMULT($EH$27:$EJ$29,DK37:DK39) -> 100.001 | DL43: =MMULT($EH$27:$EJ$29,DL37:DL39) -> 100.001 | DM43: =MMULT($EH$27:$EJ$29,DM37:DM39) -> 100.001 | DN43: =MMULT($EH$27:$EJ$29,DN37:DN39) -> 100.001 | DO43: =MMULT($EH$27:$EJ$29,DO37:DO39) -> 100.001 | DP43: =MMULT($EH$27:$EJ$29,DP37:DP39) -> 100.001 | DQ43: =MMULT($EH$27:$EJ$29,DQ37:DQ39) -> 100.001 | DS43: CES39 | DT43: 35.48312076 | DU43: 0.268344903 | DV43: 4.455836917 | DW43: 34.84180085 | DX43: 1.734666094 | DY43: 2.150481871 | DZ43: 2.806430285 | EA43: 7.876050943 | EB43: 1.510645743 | EC43: -0.3931055706 | ED43: -35.44468405 | EE43: -35.44468405 | EF43: 4 | EL43: 418 | EM43: =IF(Calculator!$C$3,OFFSET('SPD Library'!B43,0,Calculator!$C$3-1),Calculator!C44) -> 0.002247 | EN43: =RefCalc!B43 -> 0.004734481481 | EO43: =RefCalc!F43 -> 0.02492189372 | EQ43: 0.002247 | ER43: 418 | ES43: 0.002793920989
U44: G'w | V44: 100 | W44: 100 | X44: 100 | Y44: 100 | Z44: 100 | AA44: 100 | AB44: 100 | AC44: 100 | AD44: 100 | AE44: 100 | AF44: 100 | AG44: 100 | AH44: 100 | AI44: 100 | AJ44: 100 | AK44: 100 | AL44: 100 | AM44: 100 | AN44: 100 | AO44: 100 | AP44: 100 | AQ44: 100 | AR44: 100 | AS44: 100 | AT44: 100 | AU44: 100 | AV44: 100 | AW44: 100 | AX44: 100 | AY44: 100 | AZ44: 100 | BA44: 100 | BB44: 100 | BC44: 100 | BD44: 100 | BE44: 100 | BF44: 100 | BG44: 100 | BH44: 100 | BI44: 100 | BJ44: 100 | BK44: 100 | BL44: 100 | BM44: 100 | BN44: 100 | BO44: 100 | BP44: 100 | BQ44: 100 | BR44: 100 | BS44: 100 | BT44: 100 | BU44: 100 | BV44: 100 | BW44: 100 | BX44: 100 | BY44: 100 | BZ44: 100 | CA44: 100 | CB44: 100 | CC44: 100 | CD44: 100 | CE44: 100 | CF44: 100 | CG44: 100 | CH44: 100 | CI44: 100 | CJ44: 100 | CK44: 100 | CL44: 100 | CM44: 100 | CN44: 100 | CO44: 100 | CP44: 100 | CQ44: 100 | CR44: 100 | CS44: 100 | CT44: 100 | CU44: 100 | CV44: 100 | CW44: 100 | CX44: 100 | CY44: 100 | CZ44: 100 | DA44: 100 | DB44: 100 | DC44: 100 | DD44: 100 | DE44: 100 | DF44: 100 | DG44: 100 | DH44: 100 | DI44: 100 | DJ44: 100 | DK44: 100 | DL44: 100 | DM44: 100 | DN44: 100 | DO44: 100 | DP44: 100 | DQ44: 100 | DS44: CES40 | DT44: 50.36181358 | DU44: -0.160813901 | DV44: 8.836734946 | DW44: 48.88834349 | DX44: 3.081513946 | DY44: 3.944216781 | DZ44: 6.051490558 | EA44: 36.62053797 | EB44: 1.588992658 | EC44: -0.4585145459 | ED44: -39.04215862 | EE44: -39.04215862 | EF44: 5 | EL44: 419 | EM44: =IF(Calculator!$C$3,OFFSET('SPD Library'!B44,0,Calculator!$C$3-1),Calculator!C45) -> 0.002123 | EN44: =RefCalc!B44 -> 0.004473210585 | EO44: =RefCalc!F44 -> 0.02579235457 | EQ44: 0.002123 | ER44: 419 | ES44: 0.002891505821
U45: B'w | V45: 100 | W45: 100 | X45: 100 | Y45: 100 | Z45: 100 | AA45: 100 | AB45: 100 | AC45: 100 | AD45: 100 | AE45: 100 | AF45: 100 | AG45: 100 | AH45: 100 | AI45: 100 | AJ45: 100 | AK45: 100 | AL45: 100 | AM45: 100 | AN45: 100 | AO45: 100 | AP45: 100 | AQ45: 100 | AR45: 100 | AS45: 100 | AT45: 100 | AU45: 100 | AV45: 100 | AW45: 100 | AX45: 100 | AY45: 100 | AZ45: 100 | BA45: 100 | BB45: 100 | BC45: 100 | BD45: 100 | BE45: 100 | BF45: 100 | BG45: 100 | BH45: 100 | BI45: 100 | BJ45: 100 | BK45: 100 | BL45: 100 | BM45: 100 | BN45: 100 | BO45: 100 | BP45: 100 | BQ45: 100 | BR45: 100 | BS45: 100 | BT45: 100 | BU45: 100 | BV45: 100 | BW45: 100 | BX45: 100 | BY45: 100 | BZ45: 100 | CA45: 100 | CB45: 100 | CC45: 100 | CD45: 100 | CE45: 100 | CF45: 100 | CG45: 100 | CH45: 100 | CI45: 100 | CJ45: 100 | CK45: 100 | CL45: 100 | CM45: 100 | CN45: 100 | CO45: 100 | CP45: 100 | CQ45: 100 | CR45: 100 | CS45: 100 | CT45: 100 | CU45: 100 | CV45: 100 | CW45: 100 | CX45: 100 | CY45: 100 | CZ45: 100 | DA45: 100 | DB45: 100 | DC45: 100 | DD45: 100 | DE45: 100 | DF45: 100 | DG45: 100 | DH45: 100 | DI45: 100 | DJ45: 100 | DK45: 100 | DL45: 100 | DM45: 100 | DN45: 100 | DO45: 100 | DP45: 100 | DQ45: 100 | DS45: CES41 | DT45: 88.33933384 | DU45: -0.9126204132 | DV45: 4.919709446 | DW45: 87.88219652 | DX45: -1.039118253 | DY45: 3.527684238 | DZ45: 1.470615659 | EA45: 2.162710416 | EB45: 1.754214316 | EC45: -0.2762343781 | ED45: 5.9038415 | EE45: 5.9038415 | EF45: 5 | EL45: 420 | EM45: =IF(Calculator!$C$3,OFFSET('SPD Library'!B45,0,Calculator!$C$3-1),Calculator!C46) -> 0.002071 | EN45: =RefCalc!B45 -> 0.00436364537 | EO45: =RefCalc!F45 -> 0.02668809667 | EQ45: 0.002071 | ER45: 420 | ES45: 0.002991924862
U46: R'a | V46: =((400*(V17*V40/100)^0.42)/(((V17*V40/100)^0.42)+27.13))+0.1 -> 13.04726312 | W46: 11.28630275 | X46: 8.695631651 | Y46: 4.535193832 | Z46: 9.177133613 | AA46: 7.457194996 | AB46: 6.873269613 | AC46: 6.463580656 | AD46: 6.318325327 | AE46: 3.931172928 | AF46: 10.46622499 | AG46: 8.173991818 | AH46: 9.063154339 | AI46: 6.088475022 | AJ46: 9.407506067 | AK46: 9.331705543 | AL46: 6.648865685 | AM46: 6.747027569 | AN46: 7.422160456 | AO46: 9.43706038 | AP46: 9.243103233 | AQ46: 11.58001142 | AR46: 10.57260884 | AS46: 11.88568532 | AT46: 11.91854296 | AU46: 9.407596778 | AV46: 11.88344359 | AW46: 9.274265904 | AX46: 5.419635505 | AY46: 11.32917164 | AZ46: 8.174877059 | BA46: 11.53399884 | BB46: =((400*(BB17*BB40/100)^0.42)/(((BB17*BB40/100)^0.42)+27.13))+0.1 -> 9.687643795 | BC46: 11.6058753 | BD46: 7.835742556 | BE46: 5.409049668 | BF46: 10.18286451 | BG46: 6.032994409 | BH46: 11.0119412 | BI46: 4.604588564 | BJ46: 6.311180123 | BK46: 11.23334172 | BL46: 8.319138994 | BM46: 8.780235772 | BN46: 3.849962294 | BO46: 6.970191002 | BP46: 8.042215538 | BQ46: 8.672573313 | BR46: 9.295387252 | BS46: 5.573640167 | BT46: 6.531909465 | BU46: 7.054138939 | BV46: 4.923136592 | BW46: 5.548415894 | BX46: 10.73287692 | BY46: 10.20091756 | BZ46: 8.084720315 | CA46: 6.356057053 | CB46: 5.927949525 | CC46: 10.71003322 | CD46: 11.14150229 | CE46: 9.350459852 | CF46: 8.279213827 | CG46: 4.488899016 | CH46: =((400*(CH17*CH40/100)^0.42)/(((CH17*CH40/100)^0.42)+27.13))+0.1 -> 6.496402746 | CI46: 4.730725004 | CJ46: 5.00959317 | CK46: 5.342201963 | CL46: 7.555671153 | CM46: 6.552298142 | CN46: 8.551872035 | CO46: 4.252563522 | CP46: 9.486845221 | CQ46: 6.567902245 | CR46: 3.820902372 | CS46: 4.082534585 | CT46: 5.634187582 | CU46: 5.505718466 | CV46: 5.251476 | CW46: 9.144324054 | CX46: 8.186532099 | CY46: 5.743523945 | CZ46: 11.09569405 | DA46: 9.131508285 | DB46: 3.855492989 | DC46: 5.420630985 | DD46: 8.442445031 | DE46: 5.349183826 | DF46: 8.145695611 | DG46: 5.312883669 | DH46: 5.969405837 | DI46: 10.22073386 | DJ46: 7.494815339 | DK46: 8.748430104 | DL46: 5.735517253 | DM46: 9.2839045 | DN46: 10.30103925 | DO46: 7.047082375 | DP46: 8.905407084 | DQ46: 7.619418174 | DS46: CES42 | DT46: 67.55514784 | DU46: -18.96738696 | DV46: 20.85054026 | DW46: 67.61266324 | DX46: -14.10624361 | DY46: 10.89669249 | DZ46: 11.07759487 | EA46: 122.7131082 | EB46: 2.308935598 | EC46: -0.443826955 | ED46: 10.02261729 | EE46: 10.02261729 | EF46: 6 | EL46: 421 | EM46: =IF(Calculator!$C$3,OFFSET('SPD Library'!B46,0,Calculator!$C$3-1),Calculator!C47) -> 0.002077 | EN46: =RefCalc!B46 -> 0.00437628751 | EO46: =RefCalc!F46 -> 0.02760968793 | EQ46: 0.002077 | ER46: 421 | ES46: 0.003095241777
U47: G'a | V47: =((400*(V17*V41/100)^0.42)/(((V17*V41/100)^0.42)+27.13))+0.1 -> 13.0472105 | W47: 10.8314815 | X47: 7.66945875 | Y47: 4.13299035 | Z47: 8.645891276 | AA47: 6.221379338 | AB47: 6.359153229 | AC47: 5.337453449 | AD47: 5.248725149 | AE47: 3.850781567 | AF47: 9.318762036 | AG47: 7.184058446 | AH47: 7.915281996 | AI47: 5.431559936 | AJ47: 9.214156488 | AK47: 8.840385705 | AL47: 5.961703276 | AM47: 6.220988834 | AN47: 6.972520436 | AO47: 8.886960106 | AP47: 8.211065637 | AQ47: 10.8993155 | AR47: 9.808333497 | AS47: 11.70155152 | AT47: 11.549167 | AU47: 8.914440881 | AV47: 11.40910062 | AW47: 9.132119718 | AX47: 5.33131164 | AY47: 10.98740049 | AZ47: 7.978890955 | BA47: 11.23768128 | BB47: =((400*(BB17*BB41/100)^0.42)/(((BB17*BB41/100)^0.42)+27.13))+0.1 -> 9.404421959 | BC47: 11.42178238 | BD47: 7.731700705 | BE47: 5.399879381 | BF47: 10.12632702 | BG47: 6.064457779 | BH47: 10.93817428 | BI47: 4.57194406 | BJ47: 6.246560285 | BK47: 11.21203594 | BL47: 8.570575103 | BM47: 9.045699229 | BN47: 3.849774167 | BO47: 7.283779676 | BP47: 8.295679508 | BQ47: 8.709704361 | BR47: 9.760459705 | BS47: 5.843948241 | BT47: 6.803978777 | BU47: 7.257127658 | BV47: 5.239963109 | BW47: 6.224027244 | BX47: 11.07632047 | BY47: 10.56705144 | BZ47: 8.874282829 | CA47: 7.182172681 | CB47: 6.741737035 | CC47: 11.02727557 | CD47: 11.23351605 | CE47: 9.606445889 | CF47: 8.334859342 | CG47: 4.505631514 | CH47: =((400*(CH17*CH41/100)^0.42)/(((CH17*CH41/100)^0.42)+27.13))+0.1 -> 7.270762224 | CI47: 5.149393725 | CJ47: 5.619488095 | CK47: 5.993111682 | CL47: 7.916997838 | CM47: 6.624839014 | CN47: 9.020251177 | CO47: 4.561297041 | CP47: 9.591351016 | CQ47: 7.171705357 | CR47: 3.813494049 | CS47: 4.355810865 | CT47: 6.026371911 | CU47: 5.645650127 | CV47: 5.619951245 | CW47: 9.205028336 | CX47: 8.191651918 | CY47: 5.602832861 | CZ47: 11.09312981 | DA47: 9.118417207 | DB47: 3.768300178 | DC47: 5.273710581 | DD47: 8.156036574 | DE47: 5.062760588 | DF47: 7.728555101 | DG47: 4.93602597 | DH47: 5.542732496 | DI47: 10.12536284 | DJ47: 7.009428954 | DK47: 8.383830352 | DL47: 5.066657193 | DM47: 8.73842568 | DN47: 9.822535449 | DO47: 6.571190163 | DP47: 8.013986921 | DQ47: 6.538587589 | DS47: CES43 | DT47: 71.17674459 | DU47: -19.14251785 | DV47: 20.04664333 | DW47: 71.4975345 | DX47: -12.5192963 | DY47: 11.59553268 | DZ47: 10.74203151 | EA47: 115.3912411 | EB47: 2.333127778 | EC47: -0.460357977 | ED47: 3.515374611 | EE47: 3.515374611 | EF47: 6 | EL47: 422 | EM47: =IF(Calculator!$C$3,OFFSET('SPD Library'!B47,0,Calculator!$C$3-1),Calculator!C48) -> 0.002092 | EN47: =RefCalc!B47 -> 0.004407892861 | EO47: =RefCalc!F47 -> 0.02855770446 | EQ47: 0.002092 | ER47: 422 | ES47: 0.003201521151
U48: B'a | V48: =((400*(V17*V42/100)^0.42)/(((V17*V42/100)^0.42)+27.13))+0.1 -> 13.0472105 | W48: 10.63407395 | X48: 7.142239773 | Y48: 4.096702262 | Z48: 7.811631235 | AA48: 5.246716875 | AB48: 5.742252021 | AC48: 4.494280911 | AD48: 4.522785517 | AE48: 3.878882582 | AF48: 7.298379288 | AG48: 5.18028032 | AH48: 5.670112991 | AI48: 4.378239517 | AJ48: 8.757810066 | AK48: 8.064689173 | AL48: 4.723891539 | AM48: 4.799834678 | AN48: 5.969394444 | AO48: 6.495750941 | AP48: 5.841397683 | AQ48: 7.73112019 | AR48: 6.810665231 | AS48: 10.61508024 | AT48: 8.937649427 | AU48: 5.53608461 | AV48: 8.365201838 | AW48: 7.969302759 | AX48: 4.209655516 | AY48: 8.24317418 | AZ48: 6.85816318 | BA48: 8.499225419 | BB48: =((400*(BB17*BB42/100)^0.42)/(((BB17*BB42/100)^0.42)+27.13))+0.1 -> 6.453910849 | BC48: 9.856276225 | BD48: 5.241918687 | BE48: 4.318497929 | BF48: 9.780300438 | BG48: 4.612637289 | BH48: 9.844921987 | BI48: 4.261028023 | BJ48: 5.501145087 | BK48: 10.7743912 | BL48: 6.08187117 | BM48: 6.624827897 | BN48: 3.804857572 | BO48: 5.8215949 | BP48: 7.225885997 | BQ48: 8.212166832 | BR48: 8.81752726 | BS48: 5.130746823 | BT48: 6.522244483 | BU48: 7.095232816 | BV48: 4.942929908 | BW48: 6.214088141 | BX48: 11.21450224 | BY48: 10.87953166 | BZ48: 9.457237609 | CA48: 7.828379231 | CB48: 7.542764785 | CC48: 11.32505285 | CD48: 11.4601602 | CE48: 10.06543687 | CF48: 8.70119963 | CG48: 4.704665557 | CH48: =((400*(CH17*CH42/100)^0.42)/(((CH17*CH42/100)^0.42)+27.13))+0.1 -> 8.821225185 | CI48: 5.91034972 | CJ48: 7.277466899 | CK48: 7.817365706 | CL48: 9.138496065 | CM48: 7.307588636 | CN48: 10.84013269 | CO48: 6.178056163 | CP48: 10.07504322 | CQ48: 9.580080359 | CR48: 3.987009768 | CS48: 5.991459353 | CT48: 8.809617705 | CU48: 7.352033688 | CV48: 8.230322416 | CW48: 10.55529885 | CX48: 9.81426267 | CY48: 7.597908435 | CZ48: 11.61621855 | DA48: 10.05422822 | DB48: 4.107118648 | DC48: 6.02438352 | DD48: 9.679111597 | DE48: 6.525347811 | DF48: 8.921642123 | DG48: 5.85620762 | DH48: 6.500971143 | DI48: 10.35169619 | DJ48: 7.689023293 | DK48: 8.867606649 | DL48: 5.601936598 | DM48: 9.241467615 | DN48: 10.14964397 | DO48: 6.624300751 | DP48: 7.87406742 | DQ48: 6.525535805 | DS48: CES44 | DT48: 28.828745 | DU48: -0.3297637985 | DV48: 0.8467907818 | DW48: 28.71224349 | DX48: -0.2177142714 | DY48: 0.4466372934 | DZ48: 0.4315675055 | EA48: 0.1862505118 | EB48: 1.942155572 | EC48: -0.4557917336 | ED48: 4.709697082 | EE48: 4.709697082 | EF48: 5 | EL48: 423 | EM48: =IF(Calculator!$C$3,OFFSET('SPD Library'!B48,0,Calculator!$C$3-1),Calculator!C49) -> 0.002116 | EN48: =RefCalc!B48 -> 0.004458461421 | EO48: =RefCalc!F48 -> 0.02953273063 | EQ48: 0.002116 | ER48: 423 | ES48: 0.003310828498
U49: R'aw | V49: =((400*(V17*V43/100)^0.42)/(((V17*V43/100)^0.42)+27.13))+0.1 -> 13.04726312 | W49: 13.04726312 | X49: 13.04726312 | Y49: 13.04726312 | Z49: 13.04726312 | AA49: 13.04726312 | AB49: 13.04726312 | AC49: 13.04726312 | AD49: 13.04726312 | AE49: 13.04726312 | AF49: 13.04726312 | AG49: 13.04726312 | AH49: 13.04726312 | AI49: 13.04726312 | AJ49: 13.04726312 | AK49: 13.04726312 | AL49: 13.04726312 | AM49: 13.04726312 | AN49: 13.04726312 | AO49: 13.04726312 | AP49: 13.04726312 | AQ49: 13.04726312 | AR49: 13.04726312 | AS49: 13.04726312 | AT49: 13.04726312 | AU49: 13.04726312 | AV49: 13.04726312 | AW49: 13.04726312 | AX49: 13.04726312 | AY49: 13.04726312 | AZ49: 13.04726312 | BA49: 13.04726312 | BB49: =((400*(BB17*BB43/100)^0.42)/(((BB17*BB43/100)^0.42)+27.13))+0.1 -> 13.04726312 | BC49: 13.04726312 | BD49: 13.04726312 | BE49: 13.04726312 | BF49: 13.04726312 | BG49: 13.04726312 | BH49: 13.04726312 | BI49: 13.04726312 | BJ49: 13.04726312 | BK49: 13.04726312 | BL49: 13.04726312 | BM49: 13.04726312 | BN49: 13.04726312 | BO49: 13.04726312 | BP49: 13.04726312 | BQ49: 13.04726312 | BR49: 13.04726312 | BS49: 13.04726312 | BT49: 13.04726312 | BU49: 13.04726312 | BV49: 13.04726312 | BW49: 13.04726312 | BX49: 13.04726312 | BY49: 13.04726312 | BZ49: 13.04726312 | CA49: 13.04726312 | CB49: 13.04726312 | CC49: 13.04726312 | CD49: 13.04726312 | CE49: 13.04726312 | CF49: 13.04726312 | CG49: 13.04726312 | CH49: =((400*(CH17*CH43/100)^0.42)/(((CH17*CH43/100)^0.42)+27.13))+0.1 -> 13.04726312 | CI49: 13.04726312 | CJ49: 13.04726312 | CK49: 13.04726312 | CL49: 13.04726312 | CM49: 13.04726312 | CN49: 13.04726312 | CO49: 13.04726312 | CP49: 13.04726312 | CQ49: 13.04726312 | CR49: 13.04726312 | CS49: 13.04726312 | CT49: 13.04726312 | CU49: 13.04726312 | CV49: 13.04726312 | CW49: 13.04726312 | CX49: 13.04726312 | CY49: 13.04726312 | CZ49: 13.04726312 | DA49: 13.04726312 | DB49: 13.04726312 | DC49: 13.04726312 | DD49: 13.04726312 | DE49: 13.04726312 | DF49: 13.04726312 | DG49: 13.04726312 | DH49: 13.04726312 | DI49: 13.04726312 | DJ49: 13.04726312 | DK49: 13.04726312 | DL49: 13.04726312 | DM49: 13.04726312 | DN49: 13.04726312 | DO49: 13.04726312 | DP49: 13.04726312 | DQ49: 13.04726312 | DS49: CES45 | DT49: 56.94512764 | DU49: -20.47791404 | DV49: 13.30387028 | DW49: 56.6813265 | DX49: -14.18443853 | DY49: 8.080545243 | DZ49: 8.182942596 | EA49: 66.96054954 | EB49: 2.565450008 | EC49: -0.3947624605 | ED49: 3.341381596 | EE49: 3.341381596 | EF49: 7 | EL49: 424 | EM49: =IF(Calculator!$C$3,OFFSET('SPD Library'!B49,0,Calculator!$C$3-1),Calculator!C50) -> 0.002148 | EN49: =RefCalc!B49 -> 0.004525886169 | EO49: =RefCalc!F49 -> 0.03053535906 | EQ49: 0.002148 | ER49: 424 | ES49: 0.003423230254
U50: G'aw | V50: =((400*(V17*V44/100)^0.42)/(((V17*V44/100)^0.42)+27.13))+0.1 -> 13.0472105 | W50: 13.0472105 | X50: 13.0472105 | Y50: 13.0472105 | Z50: 13.0472105 | AA50: 13.0472105 | AB50: 13.0472105 | AC50: 13.0472105 | AD50: 13.0472105 | AE50: 13.0472105 | AF50: 13.0472105 | AG50: 13.0472105 | AH50: 13.0472105 | AI50: 13.0472105 | AJ50: 13.0472105 | AK50: 13.0472105 | AL50: 13.0472105 | AM50: 13.0472105 | AN50: 13.0472105 | AO50: 13.0472105 | AP50: 13.0472105 | AQ50: 13.0472105 | AR50: 13.0472105 | AS50: 13.0472105 | AT50: 13.0472105 | AU50: 13.0472105 | AV50: 13.0472105 | AW50: 13.0472105 | AX50: 13.0472105 | AY50: 13.0472105 | AZ50: 13.0472105 | BA50: 13.0472105 | BB50: =((400*(BB17*BB44/100)^0.42)/(((BB17*BB44/100)^0.42)+27.13))+0.1 -> 13.0472105 | BC50: 13.0472105 | BD50: 13.0472105 | BE50: 13.0472105 | BF50: 13.0472105 | BG50: 13.0472105 | BH50: 13.0472105 | BI50: 13.0472105 | BJ50: 13.0472105 | BK50: 13.0472105 | BL50: 13.0472105 | BM50: 13.0472105 | BN50: 13.0472105 | BO50: 13.0472105 | BP50: 13.0472105 | BQ50: 13.0472105 | BR50: 13.0472105 | BS50: 13.0472105 | BT50: 13.0472105 | BU50: 13.0472105 | BV50: 13.0472105 | BW50: 13.0472105 | BX50: 13.0472105 | BY50: 13.0472105 | BZ50: 13.0472105 | CA50: 13.0472105 | CB50: 13.0472105 | CC50: 13.0472105 | CD50: 13.0472105 | CE50: 13.0472105 | CF50: 13.0472105 | CG50: 13.0472105 | CH50: =((400*(CH17*CH44/100)^0.42)/(((CH17*CH44/100)^0.42)+27.13))+0.1 -> 13.0472105 | CI50: 13.0472105 | CJ50: 13.0472105 | CK50: 13.0472105 | CL50: 13.0472105 | CM50: 13.0472105 | CN50: 13.0472105 | CO50: 13.0472105 | CP50: 13.0472105 | CQ50: 13.0472105 | CR50: 13.0472105 | CS50: 13.0472105 | CT50: 13.0472105 | CU50: 13.0472105 | CV50: 13.0472105 | CW50: 13.0472105 | CX50: 13.0472105 | CY50: 13.0472105 | CZ50: 13.0472105 | DA50: 13.0472105 | DB50: 13.0472105 | DC50: 13.0472105 | DD50: 13.0472105 | DE50: 13.0472105 | DF50: 13.0472105 | DG50: 13.0472105 | DH50: 13.0472105 | DI50: 13.0472105 | DJ50: 13.0472105 | DK50: 13.0472105 | DL50: 13.0472105 | DM50: 13.0472105 | DN50: 13.0472105 | DO50: 13.0472105 | DP50: 13.0472105 | DQ50: 13.0472105 | DS50: CES46 | DT50: 65.55803577 | DU50: -16.81610044 | DV50: 10.04835206 | DW50: 65.93923835 | DX50: -11.06180591 | DY50: 7.095195433 | DZ50: 6.479070531 | EA50: 41.97835494 | EB50: 2.602981337 | EC50: -0.379523967 | ED50: -1.816519172 | EE50: -1.816519172 | EF50: 7 | EL50: 425 | EM50: =IF(Calculator!$C$3,OFFSET('SPD Library'!B50,0,Calculator!$C$3-1),Calculator!C51) -> 0.002186 | EN50: =RefCalc!B50 -> 0.004605953056 | EO50: =RefCalc!F50 -> 0.03156619065 | EQ50: 0.002186 | ER50: 425 | ES50: 0.003538793784
U51: B'aw | V51: =((400*(V17*V45/100)^0.42)/(((V17*V45/100)^0.42)+27.13))+0.1 -> 13.0472105 | W51: 13.0472105 | X51: 13.0472105 | Y51: 13.0472105 | Z51: 13.0472105 | AA51: 13.0472105 | AB51: 13.0472105 | AC51: 13.0472105 | AD51: 13.0472105 | AE51: 13.0472105 | AF51: 13.0472105 | AG51: 13.0472105 | AH51: 13.0472105 | AI51: 13.0472105 | AJ51: 13.0472105 | AK51: 13.0472105 | AL51: 13.0472105 | AM51: 13.0472105 | AN51: 13.0472105 | AO51: 13.0472105 | AP51: 13.0472105 | AQ51: 13.0472105 | AR51: 13.0472105 | AS51: 13.0472105 | AT51: 13.0472105 | AU51: 13.0472105 | AV51: 13.0472105 | AW51: 13.0472105 | AX51: 13.0472105 | AY51: 13.0472105 | AZ51: 13.0472105 | BA51: 13.0472105 | BB51: =((400*(BB17*BB45/100)^0.42)/(((BB17*BB45/100)^0.42)+27.13))+0.1 -> 13.0472105 | BC51: 13.0472105 | BD51: 13.0472105 | BE51: 13.0472105 | BF51: 13.0472105 | BG51: 13.0472105 | BH51: 13.0472105 | BI51: 13.0472105 | BJ51: 13.0472105 | BK51: 13.0472105 | BL51: 13.0472105 | BM51: 13.0472105 | BN51: 13.0472105 | BO51: 13.0472105 | BP51: 13.0472105 | BQ51: 13.0472105 | BR51: 13.0472105 | BS51: 13.0472105 | BT51: 13.0472105 | BU51: 13.0472105 | BV51: 13.0472105 | BW51: 13.0472105 | BX51: 13.0472105 | BY51: 13.0472105 | BZ51: 13.0472105 | CA51: 13.0472105 | CB51: 13.0472105 | CC51: 13.0472105 | CD51: 13.0472105 | CE51: 13.0472105 | CF51: 13.0472105 | CG51: 13.0472105 | CH51: =((400*(CH17*CH45/100)^0.42)/(((CH17*CH45/100)^0.42)+27.13))+0.1 -> 13.0472105 | CI51: 13.0472105 | CJ51: 13.0472105 | CK51: 13.0472105 | CL51: 13.0472105 | CM51: 13.0472105 | CN51: 13.0472105 | CO51: 13.0472105 | CP51: 13.0472105 | CQ51: 13.0472105 | CR51: 13.0472105 | CS51: 13.0472105 | CT51: 13.0472105 | CU51: 13.0472105 | CV51: 13.0472105 | CW51: 13.0472105 | CX51: 13.0472105 | CY51: 13.0472105 | CZ51: 13.0472105 | DA51: 13.0472105 | DB51: 13.0472105 | DC51: 13.0472105 | DD51: 13.0472105 | DE51: 13.0472105 | DF51: 13.0472105 | DG51: 13.0472105 | DH51: 13.0472105 | DI51: 13.0472105 | DJ51: 13.0472105 | DK51: 13.0472105 | DL51: 13.0472105 | DM51: 13.0472105 | DN51: 13.0472105 | DO51: 13.0472105 | DP51: 13.0472105 | DQ51: 13.0472105 | DS51: CES47 | DT51: 69.9863251 | DU51: -4.526066006 | DV51: 5.849153598 | DW51: 68.3011765 | DX51: -3.648992791 | DY51: 4.588152722 | DZ51: 2.280154916 | EA51: 5.199106439 | EB51: 2.229355285 | EC51: -0.2214302163 | ED51: 0.7628484111 | EE51: 0.7628484111 | EF51: 6 | EL51: 426 | EM51: =IF(Calculator!$C$3,OFFSET('SPD Library'!B51,0,Calculator!$C$3-1),Calculator!C52) -> 0.002271 | EN51: =RefCalc!B51 -> 0.004785050042 | EO51: =RefCalc!F51 -> 0.03262583459 | EQ51: 0.002271 | ER51: 426 | ES51: 0.003657587382
U52: a | V52: =V46-12*V47/11+V48/11 -> 5.261800663e-05 | W52: =W46-12*W47/11+W48/11 -> 0.4368751122 | X52: 0.9782439028 | Y52: 0.3989045649 | Z52: 0.4554005153 | AA52: 1.14720998 | AB52: 0.4580344562 | AC52: 1.049475158 | AD52: 1.003605666 | AE52: 0.08294599907 | AF52: 0.9637917976 | AG52: 0.8077717239 | AH52: 0.9437660695 | AI52: 0.5611586842 | AJ52: 0.1518635405 | AK52: 0.4208019711 | AL52: 0.5746340697 | AM52: 0.3968429022 | AN52: =AN46-12*AN47/11+AN48/11 -> 0.3584467484 | AO52: 0.3327176232 | AP52: 0.816613236 | AQ52: 0.3926781634 | AR52: 0.491760046 | AS52: 0.08536369296 | AT52: 0.1319652713 | AU52: 0.1860325991 | AV52: 0.1976248962 | AW52: 0.03643555341 | AX52: -0.0136448732 | AY52: 0.09229603455 | AZ52: 0.0941017611 | BA52: 0.04736702996 | BB52: 0.01499355363 | BC52: 0.04177418551 | BD52: -0.1223019692 | BE52: -0.08913711799 | BF52: 0.025080525 | BG52: -0.1634470499 | BH52: -0.0256196436 | BI52: 0.004379410579 | BJ52: -0.003145179014 | BK52: -0.01848011415 | BL52: -0.4776819206 | BM52: -0.4855426693 | BN52: -0.003895199554 | BO52: -0.4465145629 | BP52: -0.3507179253 | BQ52: -0.08236173263 | BR52: -0.550793584 | BS52: -0.3351445667 | BT52: -0.2976815206 | BU52: -0.2177064323 | BV52: -0.3438295355 | BW52: -0.6765149049 | BX52: -0.3308815654 | BY52: -0.3377265859 | BZ52: -0.7365666247 | CA52: -0.7673695784 | CB52: -0.7409668058 | CC52: -0.2901716894 | CD52: -0.07140974791 | CE52: -0.214259584 | CF52: -0.02234185195 | CG52: 0.001361505221 | CH52: -0.6334082997 | CI52: -0.3494909026 | CJ52: -0.4591695786 | CK52: -0.4850684443 | CL52: -0.2502813917 | CM52: -0.01047272479 | CN52: -0.3029353671 | CO52: -0.1617554174 | CP52: -0.06053377619 | CQ52: -0.3848599293 | CR52: 0.02318247894 | CS52: -0.124580963 | CT52: -0.1391619842 | CU52: 0.01519411749 | CV52: -0.1311687743 | CW52: 0.06204758289 | CX52: 0.1423902499 | CY52: 0.3220615899 | CZ52: =CZ46-12*CZ47/11+CZ48/11 -> 0.05011776276 | DA52: 0.09816480697 | DB52: 0.1179944902 | DC52: 0.2151633981 | DD52: 0.4248698232 | DE52: 0.4193857131 | DF52: 0.5256029663 | DG52: 0.4605105765 | DH52: 0.513785945 | DI52: 0.1159467802 | DJ52: 0.5471676894 | DK52: 0.4085794158 | DL52: 0.717521825 | DM52: 0.5912099052 | DN52: 0.5082409343 | DO52: 0.4807204466 | DP52: 0.8787002086 | DQ52: 1.079644059 | DS52: CES48 | DT52: 75.76316415 | DU52: -24.12348931 | DV52: 6.914159285 | DW52: 76.54217908 | DX52: -16.1382117 | DY52: 6.713020066 | DZ52: 8.025707431 | EA52: 64.41197978 | EB52: 2.86246025 | EC52: -0.3658642684 | ED52: -6.592761237 | EE52: -6.592761237 | EF52: 8 | EL52: 427 | EM52: =IF(Calculator!$C$3,OFFSET('SPD Library'!B52,0,Calculator!$C$3-1),Calculator!C53) -> 0.002425 | EN52: =RefCalc!B52 -> 0.005109531638 | EO52: =RefCalc!F52 -> 0.03371490835 | EQ52: 0.002425 | ER52: 427 | ES52: 0.003779680273
U53: b | V53: =(1/9)*(V46+V47-2*V48) -> 5.846445182e-06 | W53: =(1/9)*(W46+W47-2*W48) -> 0.09440403777 | X53: 0.2311789839 | Y53: 0.05275329521 | Z53: 0.2444180465 | AA53: 0.3539045093 | AB53: 0.1942132 | AC53: 0.3124969204 | AD53: 0.2801643825 | AE53: 0.002687703408 | AF53: 0.576469828 | AG53: 0.555276625 | AH53: 0.626467817 | AI53: 0.3070617693 | AJ53: 0.1228936026 | AK53: 0.2269681003 | AL53: 0.3514206537 | AM53: 0.374260783 | AN53: =(1/9)*(AN46+AN47-2*AN48) -> 0.2728768893 | AO53: 0.5925020671 | AP53: 0.6412637228 | AQ53: 0.7796762817 | AR53: 0.7510679859 | AS53: 0.2618973725 | AT53: 0.6213790109 | AU53: 0.8055409376 | AV53: 0.7291267253 | AW53: 0.2741977894 | AX53: 0.2590706793 | AY53: 0.6478026416 | AZ53: 0.2708268504 | BA53: 0.6414699199 | BB53: 0.6871382283 | BC53: 0.3683450256 | BD53: 0.5648450987 | BE53: 0.2413259103 | BF53: 0.08317673913 | BG53: 0.3191308455 | BH53: 0.2511412785 | BI53: 0.07271961982 | BJ53: 0.1728278037 | BK53: 0.09962169465 | BL53: 0.5251079729 | BM53: 0.5084754673 | BN53: 0.01000236864 | BO53: 0.2900867644 | BP53: 0.209569228 | BQ53: 0.1064382234 | BR53: 0.1578658263 | BS53: 0.1284549736 | BT53: 0.03237769743 | BU53: 0.0134223294 | BV53: 0.0308044317 | BW53: -0.07285923814 | BX53: -0.06886745452 | BY53: -0.1101215911 | BZ53: -0.2172746749 | CA53: -0.2353920808 | CB53: -0.268427001 | CC53: -0.1014218798 | CD53: -0.06058911935 | CE53: -0.1304408888 | CF53: -0.08759178796 | CG53: -0.04608895383 | CH53: -0.4305872668 | CI53: -0.2156200789 | CJ53: -0.4362058371 | CK53: -0.4777130853 | CL53: -0.31159146 | CM53: -0.159782235 | CN53: -0.4564602415 | CO53: -0.3935835292 | CP53: -0.1190989124 | CQ53: -0.6022836796 | CR53: -0.03773590172 | CS53: -0.393841473 | CT53: -0.662075102 | CU53: -0.3947443092 | CV53: -0.6210241763 | CW53: -0.3068050347 | CX53: -0.3611490359 | CY53: -0.4277177849 | CZ53: =(1/9)*(CZ46+CZ47-2*CZ48) -> -0.1159570274 | DA53: -0.2065034391 | DB53: -0.0656049031 | DC53: -0.1504917193 | DD53: -0.3066379544 | DE53: -0.2931945788 | DF53: -0.2187815037 | DG53: -0.1626117335 | DH53: -0.1655337725 | DI53: -0.03969952102 | DJ53: -0.09708914362 | DK53: -0.06699476024 | DL53: -0.04463319444 | DM53: -0.05117833885 | DN53: -0.01952369465 | DO53: 0.04107455963 | DP53: 0.1301399073 | DQ53: 0.1229926837 | DS53: CES49 | DT53: 44.96232177 | DU53: -18.27589997 | DV53: 7.004828607 | DW53: 43.98498965 | DX53: -11.24093723 | DY53: 5.329229502 | DZ53: 7.297500338 | EA53: 53.25351118 | EB53: 2.775580651 | EC53: -0.4169142375 | ED53: -4.394275716 | EE53: -4.394275716 | EF53: 8 | EL53: 428 | EM53: =IF(Calculator!$C$3,OFFSET('SPD Library'!B53,0,Calculator!$C$3-1),Calculator!C54) -> 0.002623 | EN53: =RefCalc!B53 -> 0.005526722263 | EO53: =RefCalc!F53 -> 0.03483403772 | EQ53: 0.002623 | ER53: 428 | ES53: 0.003905142611
U54: h | V54: =IF(V52=0,IF(V53=0,0,IF(V53>=0,(360/(2*PI()))*ATAN2(V52,V53),360+(360/(2*PI()))*ATAN2(V52,V53))),IF(V53>=0,(360/(2*PI()))*ATAN2(V52,V53),360+(360/(2*PI()))*ATAN2(V52,V53))) -> 6.340191746 | W54: =IF(W52=0,IF(W53=0,0,IF(W53>=0,(360/(2*PI()))*ATAN2(W52,W53),360+(360/(2*PI()))*ATAN2(W52,W53))),IF(W53>=0,(360/(2*PI()))*ATAN2(W52,W53),360+(360/(2*PI()))*ATAN2(W52,W53))) -> 12.19352162 | X54: 13.29622376 | Y54: 7.533389684 | Z54: 28.22290367 | AA54: 17.14454884 | AB54: 22.97764329 | AC54: 16.58168695 | AD54: 15.59749202 | AE54: 1.855908685 | AF54: 30.88478024 | AG54: 34.50532301 | AH54: 33.57603417 | AI54: 28.68714376 | AJ54: 38.98106684 | AK54: 28.34110682 | AL54: 31.44810232 | AM54: 43.3225467 | AN54: =IF(AN52=0,IF(AN53=0,0,IF(AN53>=0,(360/(2*PI()))*ATAN2(AN52,AN53),360+(360/(2*PI()))*ATAN2(AN52,AN53))),IF(AN53>=0,(360/(2*PI()))*ATAN2(AN52,AN53),360+(360/(2*PI()))*ATAN2(AN52,AN53))) -> 37.2811459 | AO54: 60.68375202 | AP54: 38.14156418 | AQ54: 63.26822927 | AR54: 56.78531765 | AS54: 71.94696837 | AT54: 78.00996188 | AU54: 76.99602808 | AV54: 74.83472574 | AW54: 82.4308475 | AX54: 93.01489909 | AY54: 81.89132545 | AZ54: 70.8396558 | BA54: 85.77686454 | BB54: 88.74998799 | BC54: 83.52970391 | BD54: 102.2172614 | BE54: 110.2724179 | BF54: 73.22021198 | BG54: 117.1198509 | BH54: 95.82475755 | BI54: 86.5536254 | BJ54: 91.04257295 | BK54: 100.5090767 | BL54: 132.2922649 | BM54: 133.6783747 | BN54: 111.2773174 | BO54: 146.989458 | BP54: 149.1398448 | BQ54: 127.7326488 | BR54: 164.0068914 | BS54: 159.029057 | BT54: 173.7925554 | BU54: 176.4719893 | BV54: 174.8804159 | BW54: 186.1469427 | BX54: 191.7573013 | BY54: 198.0594532 | BZ54: 196.4351662 | CA54: 197.0534949 | CB54: 199.9137243 | CC54: 199.2657303 | CD54: 220.3136477 | CE54: 211.3329876 | CF54: 255.6907963 | CG54: 271.6920719 | CH54: 214.2076369 | CI54: 211.6727088 | CJ54: 223.5308541 | CK54: 224.5622861 | CL54: 231.2273254 | CM54: 266.2499844 | CN54: 236.4292775 | CO54: 247.6582609 | CP54: 243.0573753 | CQ54: 237.4213778 | CR54: 301.5638551 | CS54: 252.4466593 | CT54: 258.1297602 | CU54: 272.2042858 | CV54: 258.073638 | CW54: 281.4331657 | CX54: 291.5178328 | CY54: 306.9789007 | CZ54: =IF(CZ52=0,IF(CZ53=0,0,IF(CZ53>=0,(360/(2*PI()))*ATAN2(CZ52,CZ53),360+(360/(2*PI()))*ATAN2(CZ52,CZ53))),IF(CZ53>=0,(360/(2*PI()))*ATAN2(CZ52,CZ53),360+(360/(2*PI()))*ATAN2(CZ52,CZ53))) -> 293.3744735 | DA54: 295.4248466 | DB54: 330.925953 | DC54: 325.0299071 | DD54: 324.1811824 | DE54: 325.0424166 | DF54: 337.4005477 | DG54: 340.5512709 | DH54: 342.1418736 | DI54: 341.0990865 | DJ54: 349.938193 | DK54: 350.6880759 | DL54: 356.4405224 | DM54: 355.0524998 | DN54: 357.8001072 | DO54: 4.88370483 | DP54: 8.424550716 | DQ54: 6.499097913 | DS54: CES50 | DT54: 53.30145769 | DU54: -17.00987497 | DV54: 1.850100014 | DW54: 51.02333205 | DX54: -9.003089432 | DY54: 1.592101592 | DZ54: 8.328567363 | EA54: 69.36503433 | EB54: 3.033252307 | EC54: -0.5142502716 | ED54: -3.821031136 | EE54: -3.821031136 | EF54: 8 | EL54: 429 | EM54: =IF(Calculator!$C$3,OFFSET('SPD Library'!B54,0,Calculator!$C$3-1),Calculator!C55) -> 0.002836 | EN54: =RefCalc!B54 -> 0.005975518238 | EO54: =RefCalc!F54 -> 0.03598385682 | EQ54: 0.002836 | ER54: 429 | ES54: 0.004034045484
U55: H | V55: =IF(V54<20.14,300+(100*(V54+360-237.53)/1.2)/((V54+360-237.53)/1.2+(380.14-360-V54)/0.8),IF(V54<90,(100*(V54-20.14)/0.8)/((V54-20.14)/0.8+(90-V54)/0.7),IF(V54<164.25,100+(100*(V54-90)/0.7)/((V54-90)/0.7+(164.25-V54)/1),IF(V54<237.53,200+(100*(V54-164.25)/1)/((V54-164.25)/1+(237.53-V54)/1.2),300+(100*(V54-237.53)/1.2)/((V54-237.53)/1.2+(380.14-V54)/0.8))))) -> 386.1549558 | W55: =IF(W54<20.14,300+(100*(W54+360-237.53)/1.2)/((W54+360-237.53)/1.2+(380.14-360-W54)/0.8),IF(W54<90,(100*(W54-20.14)/0.8)/((W54-20.14)/0.8+(90-W54)/0.7),IF(W54<164.25,100+(100*(W54-90)/0.7)/((W54-90)/0.7+(164.25-W54)/1),IF(W54<237.53,200+(100*(W54-164.25)/1)/((W54-164.25)/1+(237.53-W54)/1.2),300+(100*(W54-237.53)/1.2)/((W54-237.53)/1.2+(380.14-W54)/0.8))))) -> 391.8682943 | X55: 392.9702584 | Y55: 387.3013929 | Z55: 10.27244444 | AA55: 396.8820709 | AB55: 3.57230034 | AC55: 396.3034138 | AD55: 395.2970024 | AE55: 381.9270067 | AF55: 13.7216984 | AG55: 18.46731875 | AH55: 17.24324496 | AI55: 10.87160355 | AJ55: 24.42184439 | AK55: 10.42490433 | AL55: 14.45594936 | AM55: 30.29281284 | AN55: 22.14868297 | AO55: 54.75331221 | AP55: 23.29746222 | AQ55: 58.53544709 | AR55: 49.11914743 | AS55: 71.51805677 | AT55: 80.85461415 | AU55: 79.27752833 | AV55: 75.93698185 | AW55: 87.80617344 | AX55: 105.7014548 | AY55: 86.95118593 | AZ55: 69.83693774 | BA55: 93.1504199 | BB55: 97.96028803 | BC55: 89.55330324 | BD55: 121.9576244 | BE55: 134.9182938 | BF55: 73.46018971 | BG55: 145.11632 | BH55: 110.8423201 | BI55: 94.40144582 | BJ55: 101.9939135 | BK55: 119.063143 | BL55: 165.4044423 | BM55: 167.1164308 | BN55: 136.4598619 | BO55: 182.507517 | BP55: 184.8284985 | BQ55: 159.6141421 | BR55: 199.7705813 | BS55: 194.9718311 | BT55: 215.2298088 | BU55: 219.3681132 | BV55: 216.9170689 | BW55: 233.8353568 | BX55: 241.8991491 | BY55: 250.6876381 | BZ55: 248.4491179 | CA55: 249.3034184 | CB55: 253.2210027 | CC55: 252.338353 | CD55: 279.6238655 | CE55: 268.3215353 | CF55: 308.8660783 | CG55: 317.3557811 | CH55: 271.9923919 | CI55: =IF(CI54<20.14,300+(100*(CI54+360-237.53)/1.2)/((CI54+360-237.53)/1.2+(380.14-360-CI54)/0.8),IF(CI54<90,(100*(CI54-20.14)/0.8)/((CI54-20.14)/0.8+(90-CI54)/0.7),IF(CI54<164.25,100+(100*(CI54-90)/0.7)/((CI54-90)/0.7+(164.25-CI54)/1),IF(CI54<237.53,200+(100*(CI54-164.25)/1)/((CI54-164.25)/1+(237.53-CI54)/1.2),300+(100*(CI54-237.53)/1.2)/((CI54-237.53)/1.2+(380.14-CI54)/0.8))))) -> 268.7580083 | CJ55: 283.5567588 | CK55: 284.805085 | CL55: 292.7284213 | CM55: 314.3920138 | CN55: 298.7451271 | CO55: 304.8495182 | CP55: 302.6177319 | CQ55: 299.8764453 | CR55: 335.2031521 | CS55: 307.2250799 | CT55: 310.1170091 | CU55: 317.6389581 | CV55: 310.0880559 | CW55: 322.8705898 | CX55: 328.8826877 | CY55: 338.7570108 | CZ55: 330.0250787 | DA55: 331.2999974 | DB55: 355.8531369 | DC55: 351.4206113 | DD55: 350.7951713 | DE55: 351.4298531 | DF55: 360.9042044 | DG55: 363.4350383 | DH55: 364.7314399 | DI55: 363.880093 | DJ55: 371.2748393 | DK55: 371.9213042 | DL55: 376.9848009 | DM55: 375.7458326 | DN55: 378.2092269 | DO55: 384.7678881 | DP55: 388.1636403 | DQ55: 386.3071061 | DS55: CES51 | DT55: 57.50440134 | DU55: -13.31729046 | DV55: 0.8210554795 | DW55: 54.95544765 | DX55: -4.730192156 | DY55: 0.6747697058 | DZ55: 8.958617177 | EA55: 80.25682172 | EB55: 3.08001725 | EC55: -0.6762927209 | ED55: -4.590552773 | EE55: -4.590552773 | EF55: 8 | EL55: 430 | EM55: =IF(Calculator!$C$3,OFFSET('SPD Library'!B55,0,Calculator!$C$3-1),Calculator!C56) -> 0.003037 | EN55: =RefCalc!B55 -> 0.006399029932 | EO55: =RefCalc!F55 -> 0.03716500806 | EQ55: 0.003037 | ER55: 430 | ES55: 0.004166460913
U56: e | V56: =((12500/13)*$EI$13*V20)*(COS((V54*PI()/180)+2)+3.8) -> 3160.559884 | W56: 3078.998174 | X56: 3064.280379 | Y56: 3143.486692 | Z56: 2888.683188 | AA56: 3014.665468 | AB56: 2945.036588 | AC56: 3021.747143 | AD56: 3034.276271 | AE56: 3226.579544 | AF56: 2862.512052 | AG56: 2829.670588 | AH56: 2837.790797 | AI56: 2883.998167 | AJ56: 2793.638227 | AK56: 2887.485519 | AL56: 2857.190971 | AM56: 2763.704129 | AN56: 2806.71609 | AO56: 2696.39448 | AP56: 2800.002653 | AQ56: 2693.79711 | AR56: 2703.998748 | AS56: 2699.382385 | AT56: 2716.295736 | AU56: 2712.729442 | AV56: 2706.113641 | AW56: 2735.26364 | AX56: 2802.629298 | AY56: 2732.65305 | AZ56: 2697.444261 | BA56: 2753.265646 | BB56: =((12500/13)*$EI$13*BB20)*(COS((BB54*PI()/180)+2)+3.8) -> 2771.843053 | BC56: 2740.832615 | BD56: 2884.877572 | BE56: 2973.227164 | BF56: 2702.052016 | BG56: 3058.984722 | BH56: 2825.50339 | BI56: 2757.886862 | BJ56: 2787.794392 | BK56: 2868.0415 | BL56: 3277.345265 | BM56: 3298.854222 | BN56: 2985.231492 | BO56: 3514.134544 | BP56: 3549.935114 | BQ56: 3208.217402 | BR56: 3798.758914 | BS56: 3715.696191 | BT56: 3958.304846 | BU56: 4000.641986 | BV56: 3975.579136 | BW56: 4146.568469 | BX56: 4225.034267 | BY56: 4306.627174 | BZ56: 4286.313227 | CA56: 4294.106984 | CB56: 4329.176296 | CC56: 4321.375345 | CD56: 4525.997953 | CE56: 4451.641799 | CF56: 4601.340764 | CG56: 4517.346893 | CH56: =((12500/13)*$EI$13*CH20)*(COS((CH54*PI()/180)+2)+3.8) -> 4477.665616 | CI56: 4454.823043 | CJ56: 4547.518671 | CK56: 4553.825612 | CL56: 4587.477026 | CM56: 4553.853158 | CN56: 4605.000636 | CO56: 4616.046295 | CP56: 4615.978073 | CQ56: 4607.457443 | CR56: 4190.640985 | CS56: 4609.539972 | CT56: 4593.17734 | CU56: 4513.504896 | CV56: 4593.384355 | CW56: 4432.850344 | CX56: 4321.778545 | CY56: 4112.863094 | CZ56: 4298.970989 | DA56: 4272.998847 | DB56: 3730.128238 | DC56: 3828.231362 | DD56: 3842.226374 | DE56: 3828.024795 | DF56: 3621.521955 | DG56: 3568.73955 | DH56: 3542.182049 | DI56: 3559.584407 | DJ56: 3413.650237 | DK56: 3401.485491 | DL56: 3309.764888 | DM56: 3331.612627 | DN56: 3288.561072 | DO56: 3181.690264 | DP56: 3130.879569 | DQ56: 3158.273595 | DS56: CES52 | DT56: 39.41115629 | DU56: -19.92856772 | DV56: 1.785443482 | DW56: 36.36915359 | DX56: -9.56188017 | DY56: 0.9719125493 | DZ56: 10.83438156 | EA56: 117.3838238 | EB56: 3.052239054 | EC56: -0.5761657184 | ED56: -0.6842838819 | EE56: -0.6842838819 | EF56: 8 | EL56: 431 | EM56: =IF(Calculator!$C$3,OFFSET('SPD Library'!B56,0,Calculator!$C$3-1),Calculator!C57) -> 0.003209 | EN56: =RefCalc!B56 -> 0.006761437949 | EO56: =RefCalc!F56 -> 0.03837814219 | EQ56: 0.003209 | ER56: 431 | ES56: 0.00430246185
U57: A | V57: =(2*V46+V47+(1/20)*V48-0.305)*V19 -> 39.50110213 | W57: 33.64101461 | X57: 25.12046846 | Y57: 13.10719656 | Z57: 27.09397425 | AA57: 21.09951757 | AB57: 20.09391184 | AC57: 18.18985693 | AD57: 17.81192834 | AE57: 11.60559864 | AF57: 30.32034571 | AG57: 23.49319597 | AH57: 26.02800655 | AI57: 17.52774885 | AJ57: 28.17062052 | AK57: 27.61042239 | AL57: 19.19646326 | AM57: 19.65600941 | AN57: 21.8169415 | AO57: 27.78931392 | AP57: 26.69245415 | AQ57: 34.15127333 | AR57: 30.99850526 | AS57: 35.70952874 | AT57: 35.53893609 | AU57: 27.70986003 | AV57: 35.29997597 | AW57: 27.78256012 | AX57: 16.08095262 | AY57: 33.76316352 | AZ57: 24.37396078 | BA57: 34.43610578 | BB57: =(2*BB46+BB47+(1/20)*BB48-0.305)*BB19 -> 28.80615963 | BC57: 34.83193264 | BD57: 23.36738338 | BE57: 16.13380687 | BF57: 30.68539672 | BG57: 18.06156759 | BH57: 33.15938032 | BI57: 13.69333416 | BJ57: 18.84470492 | BK57: 33.92274847 | BL57: 25.21560998 | BM57: 26.64050854 | BN57: 11.43841791 | BO57: 21.21668944 | BP57: 24.44383366 | BQ57: 26.16841223 | BR57: 28.49577078 | BS57: 16.94791659 | BT57: 19.89495625 | BU57: 21.42167748 | BV57: 15.03295148 | BW57: 17.33183079 | BX57: 32.80777011 | BY57: 31.21735046 | BZ57: 25.21924978 | CA57: 19.98677997 | CB57: 18.67545002 | CC57: 32.71853821 | CD57: 33.79479928 | CE57: 28.51430328 | CF57: 25.03095419 | CG57: 13.41774064 | CH57: =(2*CH46+CH47+(1/20)*CH48-0.305)*CH19 -> 20.40583055 | CI57: 14.6058001 | CJ57: 15.70231991 | CK57: 16.76848004 | CL57: 23.18731185 | CM57: 19.79583092 | CN57: 26.36901575 | CO57: 13.07430033 | CP57: 28.77253794 | CQ57: 20.48774034 | CR57: 11.35309963 | CS57: 12.51925776 | CT57: 17.43552683 | CU57: 16.7247716 | CV57: 16.23435318 | CW57: 27.72486731 | CX57: 24.75795349 | CY57: 17.16999434 | CZ57: 33.57053133 | DA57: 27.58752937 | DB57: 11.38310155 | DC57: 16.1160896 | DD57: 25.22754918 | DE57: 15.78719355 | DF57: 24.16837349 | DG57: 15.55433084 | DH57: 17.50691329 | DI57: 30.78877245 | DJ57: 22.08522276 | DK57: 26.02698081 | DL57: 16.51780849 | DM57: 27.47165703 | DN57: 30.63640691 | DO57: 20.69786028 | DP57: 25.92138228 | DQ57: 21.80532763 | DS57: CES53 | DT57: 46.06390131 | DU57: -31.04630487 | DV57: -3.343622001 | DW57: 41.87967785 | DX57: -19.86244276 | DY57: -1.203789074 | DZ57: 12.131174 | EA57: 147.1653827 | EB57: 3.248877043 | EC57: -0.4468789466 | ED57: -2.678700034 | EE57: -2.678700034 | EF57: 9 | EL57: 432 | EM57: =IF(Calculator!$C$3,OFFSET('SPD Library'!B57,0,Calculator!$C$3-1),Calculator!C58) -> 0.003372 | EN57: =RefCalc!B57 -> 0.007104882757 | EO57: =RefCalc!F57 -> 0.03962391828 | EQ57: 0.003372 | ER57: 432 | ES57: 0.004442122183
U58: Aw | V58: =(2*V49+V50+(1/20)*V51-0.305)*V19 -> 39.50110213 | W58: 39.50110213 | X58: 39.50110213 | Y58: 39.50110213 | Z58: 39.50110213 | AA58: 39.50110213 | AB58: 39.50110213 | AC58: 39.50110213 | AD58: 39.50110213 | AE58: 39.50110213 | AF58: 39.50110213 | AG58: 39.50110213 | AH58: 39.50110213 | AI58: 39.50110213 | AJ58: 39.50110213 | AK58: 39.50110213 | AL58: 39.50110213 | AM58: 39.50110213 | AN58: 39.50110213 | AO58: 39.50110213 | AP58: 39.50110213 | AQ58: 39.50110213 | AR58: 39.50110213 | AS58: 39.50110213 | AT58: 39.50110213 | AU58: 39.50110213 | AV58: 39.50110213 | AW58: 39.50110213 | AX58: 39.50110213 | AY58: 39.50110213 | AZ58: 39.50110213 | BA58: 39.50110213 | BB58: =(2*BB49+BB50+(1/20)*BB51-0.305)*BB19 -> 39.50110213 | BC58: 39.50110213 | BD58: 39.50110213 | BE58: 39.50110213 | BF58: 39.50110213 | BG58: 39.50110213 | BH58: 39.50110213 | BI58: 39.50110213 | BJ58: 39.50110213 | BK58: 39.50110213 | BL58: 39.50110213 | BM58: 39.50110213 | BN58: 39.50110213 | BO58: 39.50110213 | BP58: 39.50110213 | BQ58: 39.50110213 | BR58: 39.50110213 | BS58: 39.50110213 | BT58: 39.50110213 | BU58: 39.50110213 | BV58: 39.50110213 | BW58: 39.50110213 | BX58: 39.50110213 | BY58: 39.50110213 | BZ58: 39.50110213 | CA58: 39.50110213 | CB58: 39.50110213 | CC58: 39.50110213 | CD58: 39.50110213 | CE58: 39.50110213 | CF58: 39.50110213 | CG58: 39.50110213 | CH58: =(2*CH49+CH50+(1/20)*CH51-0.305)*CH19 -> 39.50110213 | CI58: 39.50110213 | CJ58: 39.50110213 | CK58: 39.50110213 | CL58: 39.50110213 | CM58: 39.50110213 | CN58: 39.50110213 | CO58: 39.50110213 | CP58: 39.50110213 | CQ58: 39.50110213 | CR58: 39.50110213 | CS58: 39.50110213 | CT58: 39.50110213 | CU58: 39.50110213 | CV58: 39.50110213 | CW58: 39.50110213 | CX58: 39.50110213 | CY58: 39.50110213 | CZ58: 39.50110213 | DA58: 39.50110213 | DB58: 39.50110213 | DC58: 39.50110213 | DD58: 39.50110213 | DE58: 39.50110213 | DF58: 39.50110213 | DG58: 39.50110213 | DH58: 39.50110213 | DI58: 39.50110213 | DJ58: 39.50110213 | DK58: 39.50110213 | DL58: 39.50110213 | DM58: 39.50110213 | DN58: 39.50110213 | DO58: 39.50110213 | DP58: 39.50110213 | DQ58: 39.50110213 | DS58: CES54 | DT58: 85.85688543 | DU58: -17.34175548 | DV58: -3.609395874 | DW58: 85.45058537 | DX58: -12.10454612 | DY58: -0.4930698465 | DZ58: 6.10777615 | EA58: 37.3049295 | EB58: 3.346796272 | EC58: -0.3606781701 | ED58: -9.424689104 | EE58: -9.424689104 | EF58: 9 | EL58: 433 | EM58: =IF(Calculator!$C$3,OFFSET('SPD Library'!B58,0,Calculator!$C$3-1),Calculator!C59) -> 0.003551 | EN58: =RefCalc!B58 -> 0.007482039937 | EO58: =RefCalc!F58 -> 0.04090300371 | EQ58: 0.003551 | ER58: 433 | ES58: 0.004585516729
U59: J | V59: =100*(V57/V58)^($EI$12*V21) -> 100 | W59: 80.77205937 | X59: 54.77601018 | Y59: 23.06239752 | Z59: 60.57130167 | AA59: 43.43630089 | AB59: 40.7052916 | AC59: 35.65805633 | AD59: 34.67626389 | AE59: 19.61715413 | AF59: 70.34637741 | AG59: 50.10868193 | AH59: 57.42308024 | AI59: 33.9425193 | AJ59: 63.79279926 | AK59: 62.11143015 | AL59: 38.30572955 | AM59: 39.52992977 | AN59: 45.41120064 | AO59: 62.64714077 | AP59: 59.38056876 | AQ59: 82.40527155 | AR59: 72.44632878 | AS59: 87.44246278 | AT59: 86.88740921 | AU59: 62.40906641 | AV59: 86.11138673 | AW59: 62.62689505 | AX59: 30.26852733 | AY59: 81.1622891 | AZ59: 52.62209684 | BA59: 83.3204636 | BB59: =100*(BB57/BB58)^($EI$12*BB21) -> 65.7136826 | BC59: 84.5964384 | BD59: 49.75215711 | BE59: 30.40089244 | BF59: 71.47487103 | BG59: 35.32402152 | BH59: 79.23794177 | BI59: 24.4438392 | BJ59: 37.37516554 | BK59: 81.67281762 | BL59: 55.05205691 | BM59: 59.22695003 | BN59: 19.24226964 | BO59: 43.75735599 | BP59: 52.82279102 | BQ59: 57.83536269 | BR59: 64.77378329 | BS59: 32.45758929 | BT59: 40.170222 | BU59: 44.32043686 | BV59: 27.67400468 | BW59: 33.43893966 | BX59: 78.1226066 | BY59: 73.12724876 | BZ59: 55.06262437 | CA59: 40.41695381 | CB59: 36.92943845 | CC59: 77.84018092 | CD59: 81.26343201 | CE59: 64.82980783 | CF59: 54.51660514 | CG59: 23.79182363 | CH59: =100*(CH57/CH58)^($EI$12*CH21) -> 41.54768144 | CI59: 26.63328003 | CJ59: 29.32451377 | CK59: 32.00141672 | CL59: 49.24297552 | CM59: 39.90429191 | CN59: 58.4256742 | CO59: 22.9854597 | CP59: 65.61170957 | CQ59: 41.76960036 | CR59: 19.05164633 | CS59: 21.69703318 | CT59: 33.70524312 | CU59: 31.89054191 | CV59: 30.65308948 | CW59: 62.45401676 | CX59: 53.72736265 | CY59: 33.02437454 | CZ59: 80.54709852 | DA59: 62.04295688 | DB59: 19.1186248 | DC59: 30.35650638 | DD59: 55.08672198 | DE59: 29.53547625 | DF59: 52.03269477 | DG59: 28.95757068 | DH59: 33.88887582 | DI59: 71.79524718 | DJ59: 46.15527389 | DK59: 57.42007098 | DL59: 31.36684011 | DM59: 61.69666903 | DN59: =100*(DN57/DN58)^($EI$12*DN21) -> 71.32316881 | DO59: =100*(DO57/DO58)^($EI$12*DO21) -> 42.34021723 | DP59: =100*(DP57/DP58)^($EI$12*DP21) -> 57.11048176 | DQ59: =100*(DQ57/DQ58)^($EI$12*DQ21) -> 45.3790576 | DS59: CES55 | DT59: 82.22573199 | DU59: -17.79159661 | DV59: -5.801257613 | DW59: 80.99220254 | DX59: -11.32032267 | DY59: -2.022588417 | DZ59: 7.594558724 | EA59: 57.67732222 | EB59: 3.456789573 | EC59: -0.4366669012 | ED59: -7.929375305 | EE59: -7.929375305 | EF59: 9 | EL59: 434 | EM59: =IF(Calculator!$C$3,OFFSET('SPD Library'!B59,0,Calculator!$C$3-1),Calculator!C60) -> 0.00377 | EN59: =RefCalc!B59 -> 0.007943478052 | EO59: =RefCalc!F59 -> 0.0422160742 | EQ59: 0.00377 | ER59: 434 | ES59: 0.00473272124
U60: Q | V60: =(4/$EI$12)*((V59/100)^0.5)*(V58+4)*(V17^0.25) -> 238.0265095 | W60: 213.9222245 | X60: 176.1653641 | Y60: 114.3082445 | Z60: 185.2502409 | AA60: 156.8742796 | AB60: 151.8625763 | AC60: 142.1360236 | AD60: 140.165612 | AE60: 105.4249322 | AF60: 199.6393729 | AG60: 168.4929824 | AH60: 180.3717714 | AI60: 138.6747414 | AJ60: 190.1127123 | AK60: 187.5906087 | AL60: 147.3184691 | AM60: 149.6540069 | AN60: 160.4009072 | AO60: 188.3978556 | AP60: 183.4203444 | AQ60: 216.0741561 | AR60: 202.5972375 | AS60: 222.580195 | AT60: 221.8726405 | AU60: 188.0395361 | AV60: 220.8796063 | AW60: 188.3674108 | AX60: 130.954665 | AY60: 214.4383573 | AZ60: 172.6670236 | BA60: 217.2707017 | BB60: =(4/$EI$12)*((BB59/100)^0.5)*(BB58+4)*(BB17^0.25) -> 192.9537534 | BC60: 218.9280292 | BD60: 167.892496 | BE60: 131.2406868 | BF60: 201.2343051 | BG60: 141.4687116 | BH60: 211.8809547 | BI60: 117.6819991 | BJ60: 145.5180581 | BK60: 215.1117321 | BL60: 176.6087038 | BM60: 183.1829347 | BN60: 104.412736 | BO60: 157.4529726 | BP60: 172.9959756 | BQ60: 181.018124 | BR60: 191.5688799 | BS60: 135.6074215 | BT60: 150.8611604 | BU60: 158.4628069 | BV60: 125.2164345 | BW60: 137.6421909 | BX60: 210.384476 | BY60: 203.5471122 | BZ60: 176.6256534 | CA60: 151.3237576 | CB60: 144.6477491 | CC60: 210.003845 | CD60: 214.5719303 | CE60: 191.6517085 | CF60: 175.7477323 | CG60: 116.1018644 | CH60: =(4/$EI$12)*((CH59/100)^0.5)*(CH58+4)*(CH17^0.25) -> 153.4259159 | CI60: 122.8393913 | CJ60: 128.8963852 | CK60: 134.6511078 | CL60: 167.0311502 | CM60: 150.3609748 | CN60: 181.9395827 | CO60: 114.1174149 | CP60: 192.8039846 | CQ60: 153.8351177 | CR60: 103.894267 | CS60: 110.8729249 | CT60: 138.1891865 | CU60: 134.4176436 | CV60: 131.7839299 | CW60: 188.1072419 | CX60: 174.4709354 | CY60: 136.7863083 | CZ60: 213.6241159 | DA60: 187.4871778 | DB60: 104.0767335 | DC60: 131.1448445 | DD60: 176.6642984 | DE60: 129.3591988 | DF60: 171.6973085 | DG60: 128.0873942 | DH60: 138.5651159 | DI60: 201.6848031 | DJ60: 161.7096713 | DK60: 180.3670452 | DL60: 133.3093814 | DM60: 186.9632233 | DN60: =(4/$EI$12)*((DN59/100)^0.5)*(DN58+4)*(DN17^0.25) -> 201.0206362 | DO60: =(4/$EI$12)*((DO59/100)^0.5)*(DO58+4)*(DO17^0.25) -> 154.8823284 | DP60: =(4/$EI$12)*((DP59/100)^0.5)*(DP58+4)*(DP17^0.25) -> 179.8801495 | DQ60: =(4/$EI$12)*((DQ59/100)^0.5)*(DQ58+4)*(DQ17^0.25) -> 160.3441295 | DS60: CES56 | DT60: 67.56450768 | DU60: -30.85100677 | DV60: -9.1005243 | DW60: 64.70412707 | DX60: -20.83405716 | DY60: -3.867355904 | DZ60: 11.65792041 | EA60: 135.9071083 | EB60: 3.428440417 | EC60: -0.4259743699 | ED60: -5.919236589 | EE60: -5.919236589 | EF60: 9 | EL60: 435 | EM60: =IF(Calculator!$C$3,OFFSET('SPD Library'!B60,0,Calculator!$C$3-1),Calculator!C61) -> 0.004055 | EN60: =RefCalc!B60 -> 0.008543979709 | EO60: =RefCalc!F60 -> 0.04356381376 | EQ60: 0.004055 | ER60: 435 | ES60: 0.0048838124
U61: t | V61: =(V56*(V52^2+V53^2)^0.5)/(V46+V47+(21/20)*V48) -> 0.004204794241 | W61: 41.34727837 | X61: 129.0698857 | Y61: 97.52474168 | Z61: 57.36756119 | AA61: 188.6257362 | AB61: 76.06664859 | AC61: 200.29329 | AD61: 193.7761327 | AE61: 22.5877073 | AF61: 117.1186797 | AG61: 133.3676987 | AH61: 140.1771369 | AI61: 114.4632658 | AJ61: 19.61954619 | AK61: 51.82184156 | AL61: 109.5307555 | AM61: 83.71702581 | AN61: 61.19342729 | AO61: 72.86977491 | AP61: 123.2533622 | AQ61: 76.8580706 | AR61: 88.16890582 | AS61: 21.40803739 | AT61: 52.52283778 | AU61: 92.92469311 | AV61: 63.73274064 | AW61: 28.25843823 | AX61: 47.92573638 | AY61: 57.7328612 | AZ61: 33.11445744 | BA61: 55.87307437 | BB61: =(BB56*(BB52^2+BB53^2)^0.5)/(BB46+BB47+(21/20)*BB48) -> 73.64478097 | BC61: 30.44166708 | BD61: 79.12451837 | BE61: 49.85205992 | BF61: 7.676728628 | BG61: 64.74368079 | BH61: 22.09177027 | BI61: 14.71844925 | BJ61: 26.28393491 | BK61: 8.608014666 | BL61: 99.95394713 | BM61: 93.58829937 | BN61: 2.739981943 | BO61: 91.87450515 | BP61: 60.62116982 | BQ61: 16.60335497 | BR61: 76.87213121 | BS61: 79.35986815 | BT61: 58.72221129 | BU61: 40.09966381 | BV61: 89.38844484 | BW61: 154.200183 | BX61: 42.51807024 | BY61: 47.52279519 | BZ61: 122.4157792 | CA61: 158.411158 | CB61: 165.7040236 | CC61: 39.49997001 | CD61: 12.31862141 | CE61: 37.82008569 | CF61: 16.15295203 | CG61: 14.94791146 | CH61: =(CH56*(CH52^2+CH53^2)^0.5)/(CH46+CH47+(21/20)*CH48) -> 148.9166782 | CI61: 113.7254862 | CJ61: 157.6372603 | CK61: 158.6347832 | CL61: 73.13847875 | CM61: 34.97277755 | CN61: 87.13022664 | CO61: 128.3754807 | CP61: 20.79420097 | CQ61: 138.3758757 | CR61: 15.70077532 | CS61: 129.2715086 | CT61: 148.6074135 | CU61: 94.48356433 | CV61: 149.4130989 | CW61: 47.14375474 | CX61: 62.87631466 | CY61: 113.9545936 | CZ61: 15.79325039 | DA61: 33.91599516 | DB61: 42.18997513 | DC61: 59.05888933 | DD61: 75.22729918 | DE61: 113.4667348 | DF61: 81.68141799 | DG61: 106.2873359 | DH61: 104.2660975 | DI61: 13.97530978 | DJ61: 84.02157447 | DK61: 53.25881099 | DL61: 142.6150242 | DM61: 71.30699621 | DN61: 54.33970121 | DO61: 74.61321954 | DP61: 110.4178955 | DQ61: 163.3458071 | DS61: CES57 | DT61: 53.55664605 | DU61: -32.46863047 | DV61: -9.959814282 | DW61: 49.83787128 | DX61: -21.77721847 | DY61: -4.750769048 | DZ61: 12.46072745 | EA61: 155.2697286 | EB61: 3.439232289 | EC61: -0.4335212435 | ED61: -4.747046417 | EE61: -4.747046417 | EF61: 9 | EL61: 436 | EM61: =IF(Calculator!$C$3,OFFSET('SPD Library'!B61,0,Calculator!$C$3-1),Calculator!C62) -> 0.004683 | EN61: =RefCalc!B61 -> 0.009867190376 | EO61: =RefCalc!F61 -> 0.04494691471 | EQ61: 0.004683 | ER61: 436 | ES61: 0.005038867824
U62: s | V62: =100*(V64/V60)^0.5 -> 0.5079183831 | W62: =100*(W64/W60)^0.5 -> 31.80606281 | X62: 53.08600102 | Y62: 46.796186 | Z62: 36.85603986 | AA62: 62.96935156 | AB62: 41.84525527 | AC62: 64.69320612 | AD62: 63.73733819 | AE62: 24.22987997 | AF62: 50.8148409 | AG62: 53.87429381 | AH62: 55.09517007 | AI62: 50.2931172 | AJ62: 22.74148528 | AK62: 35.20785554 | AL62: 49.3060296 | AM62: 43.68929136 | AN62: =100*(AN64/AN60)^0.5 -> 37.94250015 | AO62: 41.04451585 | AP62: 51.99579746 | AQ62: 42.04061492 | AR62: 44.71989217 | AS62: 23.65202771 | AT62: 35.42137998 | AU62: 45.78970078 | AV62: 38.64310029 | AW62: 26.7994243 | AX62: 33.99106344 | AY62: 36.9614654 | AZ62: 28.78171937 | BA62: 36.42083937 | BB62: 41.24038237 | BC62: 27.71210967 | BD62: 42.5940347 | BE62: 34.59921085 | BF62: 14.90864177 | BG62: 38.91774054 | BH62: 23.98902118 | BI62: 19.98235725 | BJ62: 25.93996985 | BK62: 15.69694526 | BL62: 47.31717105 | BM62: 45.93656265 | BN62: 9.377676782 | BO62: 45.55610135 | BP62: 37.78241686 | BQ62: 21.09584513 | BR62: 42.0440757 | BS62: 42.65099984 | BT62: 37.24516265 | BU62: 31.37054934 | BV62: 44.99719235 | BW62: 57.51048031 | BX62: 32.2082323 | BY62: 33.86216209 | BZ62: 51.83649461 | CA62: 58.21198256 | CB62: 59.40303973 | CC62: 31.15855719 | CD62: 18.44428156 | CE62: 30.55511506 | CF62: 20.83637434 | CG62: 20.12194822 | CH62: 56.61523282 | CI62: 50.14698254 | CJ62: 58.0838359 | CK62: 58.2489476 | CL62: 41.11255429 | CM62: 29.49764544 | CN62: 44.48204799 | CO62: 52.95728747 | CP62: 23.34440457 | CQ62: 54.77545158 | CR62: 20.57184716 | CS62: 53.12330206 | CT62: 56.56229317 | CU62: 46.13378798 | CV62: 56.70008339 | CW62: 33.74035677 | CX62: 38.40855601 | CY62: 50.19241833 | CZ62: =100*(CZ64/CZ60)^0.5 -> 20.62628333 | DA62: 29.09315687 | DB62: 32.09615183 | DC62: 37.34110526 | DD62: 41.63683947 | DE62: 50.09560725 | DF62: 43.20801006 | DG62: 48.64357431 | DH62: 48.2251068 | DI62: 19.52187125 | DJ62: 43.76074042 | DK62: 35.64387849 | DL62: 55.52431004 | DM62: 40.64604172 | DN62: 35.96760792 | DO62: 41.4835482 | DP62: 49.48533949 | DQ62: 59.02111239 | DS62: CES58 | DT62: 49.88457895 | DU62: -31.82879614 | DV62: -11.53048723 | DW62: 45.9688283 | DX62: -22.24897751 | DY62: -5.941390001 | DZ62: 11.76197415 | EA62: 138.344036 | EB62: 3.489152708 | EC62: -0.4066244109 | ED62: -4.962283233 | EE62: -4.962283233 | EF62: 9 | EL62: 437 | EM62: =IF(Calculator!$C$3,OFFSET('SPD Library'!B62,0,Calculator!$C$3-1),Calculator!C63) -> 0.005711 | EN62: =RefCalc!B62 -> 0.01203321039 | EO62: =RefCalc!F62 -> 0.0463660777 | EQ62: 0.005711 | ER62: 437 | ES62: 0.005197966056
U63: C | V63: =(V61^0.9)*((V59/100)^0.5)*((1.64-0.29^V18)^0.73) -> 0.006505774769 | W63: 22.92775663 | X63: 52.59765484 | Y63: 26.52065858 | Z63: 26.66011093 | AA63: 65.90160921 | AB63: 28.17273687 | AC63: 63.0242003 | AD63: 60.32747597 | AE63: 6.557400184 | AF63: 54.61515493 | AG63: 51.81205659 | AH63: 58.00714077 | AI63: 37.16210501 | AJ63: 10.41680758 | AK63: 24.6363334 | AL63: 37.94399846 | AM63: 30.26385052 | AN63: 24.46496181 | AO63: 33.6257564 | AP63: 52.53755093 | AQ63: 40.46008377 | AR63: 42.92604212 | AS63: 13.19195343 | AT63: 29.49310781 | AU63: 41.77059051 | AV63: 34.94502669 | AW63: 14.3331792 | AX63: 16.03010293 | AY63: 31.03749531 | AZ63: 15.15404959 | BA63: 30.53422495 | BB63: =(BB61^0.9)*((BB59/100)^0.5)*((1.64-0.29^BB18)^0.73) -> 34.76837797 | BC63: 17.81256157 | BD63: 32.27116762 | BE63: 16.6451117 | BF63: 4.738752319 | BG63: 22.70081597 | BH63: 12.91822397 | BI63: 4.978394501 | BJ63: 10.37389044 | BK63: 5.615393794 | BL63: 41.8924229 | BM63: 40.95319925 | BN63: 0.9728140376 | BO63: 34.62021796 | BP63: 26.1638291 | BQ63: 8.534965097 | BR63: 35.87735447 | BS63: 26.13531411 | BT63: 22.17190592 | BU63: 16.52180244 | BV63: 26.86074157 | BW63: 48.23157001 | BX63: 23.12242094 | BY63: 24.72749635 | BZ63: 50.28180558 | CA63: 54.32725113 | CB63: 54.07728142 | CC63: 21.60069664 | CD63: 7.733609291 | CE63: 18.95685878 | CF63: 8.083880128 | CG63: 4.980409821 | CH63: =(CH61^0.9)*((CH59/100)^0.5)*((1.64-0.29^CH18)^0.73) -> 52.10161107 | CI63: 32.72752021 | CJ63: 46.072009 | CK63: 48.402961 | CL63: 29.91108895 | CM63: 13.86103523 | CN63: 38.14016571 | CO63: 33.90698871 | CP63: 11.13185242 | CQ63: 48.90049487 | CR63: 4.65826289 | CS63: 33.14984193 | CT63: 46.83967897 | CU63: 30.30960951 | CV63: 44.88649376 | CW63: 22.68771143 | CX63: 27.26872814 | CY63: 36.50940065 | CZ63: 9.62893088 | DA63: 16.81276342 | DB63: 11.35913909 | DC63: 19.37364744 | DD63: 32.44816471 | DE63: 34.3939805 | DF63: 33.96079521 | DG63: 32.11021266 | DH63: 34.14177832 | DI63: 8.143327414 | DJ63: 32.80886074 | DK63: 24.27800141 | DL63: 43.54245253 | DM63: 32.72491572 | DN63: 27.55177522 | DO63: 28.23836146 | DP63: 46.66832146 | DQ63: 59.17709995 | DS63: CES59 | DT63: 85.65597269 | DU63: -15.80600087 | DV63: -5.524571757 | DW63: 84.52381518 | DX63: -9.081671697 | DY63: -2.863234641 | DZ63: 7.319911109 | EA63: 53.58109864 | EB63: 3.477843081 | EC63: -0.4783744498 | ED63: -1.766909296 | EE63: -1.766909296 | EF63: 9 | EL63: 438 | EM63: =IF(Calculator!$C$3,OFFSET('SPD Library'!B63,0,Calculator!$C$3-1),Calculator!C64) -> 0.006829 | EN63: =RefCalc!B63 -> 0.0143888625 | EO63: =RefCalc!F63 -> 0.04782201161 | EQ63: 0.006829 | ER63: 438 | ES63: 0.005361186571
U64: M | V64: =V63*V17^0.25 -> 0.006140633691 | W64: 21.64092054 | X64: 49.64557534 | Y64: 25.0321684 | Z64: 25.16379389 | AA64: 62.20283612 | AB64: 26.59152266 | AC64: 59.48692377 | AD64: 56.94155495 | AE64: 6.189361594 | AF64: 51.54984185 | AG64: 48.90406932 | AH64: 54.75145016 | AI64: 35.07635634 | AJ64: 9.832157098 | AK64: 23.25360226 | AL64: 35.81436549 | AM64: 28.56527112 | AN64: 23.09184902 | AO64: 31.73848773 | AP64: 49.5888448 | AQ64: 38.18923378 | AR64: 40.51678852 | AS64: 12.45154599 | AT64: 27.83778687 | AU64: 39.42618742 | AV64: 32.98371307 | AW64: 13.52871967 | AX64: 15.13040239 | AY64: 29.29549456 | AZ64: 14.30351815 | BA64: 28.8204706 | BB64: =BB63*BB17^0.25 -> 32.81697888 | BC64: 16.81281932 | BD64: 30.45992618 | BE64: 15.71089337 | BF64: 4.47278659 | BG64: 21.42671708 | BH64: 12.19317977 | BI64: 4.69897869 | BJ64: 9.791648718 | BK64: 5.300225961 | BL64: 39.54118189 | BM64: 38.65467282 | BN64: 0.9182141816 | BO64: 32.67713445 | BP64: 24.69536622 | BQ64: 8.055934318 | BR64: 33.86371331 | BS64: 24.66845166 | BT64: 20.92749248 | BU64: 15.59450493 | BV64: 25.353164 | BW64: 45.52454002 | BX64: 21.82465919 | BY64: 23.33964864 | BZ64: 47.4597047 | CA64: 51.27809684 | CB64: 51.04215686 | CC64: 20.3883427 | CD64: 7.299555157 | CE64: 17.89289206 | CF64: 7.630166803 | CG64: 4.700880899 | CH64: =CH63*CH17^0.25 -> 49.17737236 | CI64: 30.89066566 | CJ64: 43.48618585 | CK64: 45.68631157 | CL64: 28.23230854 | CM64: 13.08307511 | CN64: 35.99952271 | CO64: 32.00393568 | CP64: 10.50706956 | CQ64: 46.15592101 | CR64: 4.396814686 | CS64: 31.28928429 | CT64: 44.21076982 | CU64: 28.60846185 | CV64: 42.36720847 | CW64: 21.41434804 | CX64: 25.73825204 | CY64: 34.46028546 | CZ64: 9.088500521 | DA64: 15.86913553 | DB64: 10.72159961 | DC64: 18.28628817 | DD64: 30.62698918 | DE64: 32.46359472 | DF64: 32.05472226 | DG64: 30.30800492 | DH64: 32.22554757 | DI64: 7.68627757 | DJ64: 30.9674409 | DK64: 22.91538191 | DL64: 41.09860247 | DM64: 30.88820735 | DN64: =DN63*DN17^0.25 -> 26.00541291 | DO64: =DO63*DO17^0.25 -> 26.65346403 | DP64: =DP63*DP17^0.25 -> 44.04902987 | DQ64: =DQ63*DQ17^0.25 -> 55.85574457 | DS64: CES60 | DT64: 88.05708681 | DU64: -5.148565738 | DV64: -4.3684101 | DW64: 87.38403651 | DX64: -2.391209218 | DY64: -2.085677404 | DZ64: 3.642372887 | EA64: 13.26688025 | EB64: 3.84519854 | EC64: -0.5492063093 | ED64: 0.7821700531 | EE64: 0.7821700531 | EF64: 10 | EL64: 439 | EM64: =IF(Calculator!$C$3,OFFSET('SPD Library'!B64,0,Calculator!$C$3-1),Calculator!C65) -> 0.007727 | EN64: =RefCalc!B64 -> 0.01628096947 | EO64: =RefCalc!F64 -> 0.04931543363 | EQ64: 0.007727 | ER64: 439 | ES64: 0.005528609768
DS65: CES61 | DT65: 75.80823855 | DU65: -12.81765294 | DV65: -7.803366413 | DW65: 74.08923871 | DX65: -5.924030117 | DY65: -4.931636154 | DZ65: 7.663147573 | EA65: 58.72383073 | EB65: 3.688456451 | EC65: -0.5290340871 | ED65: 8.443714397 | EE65: 8.443714397 | EF65: 10 | EL65: 440 | EM65: =IF(Calculator!$C$3,OFFSET('SPD Library'!B65,0,Calculator!$C$3-1),Calculator!C66) -> 0.008095 | EN65: =RefCalc!B65 -> 0.01705635407 | EO65: =RefCalc!F65 -> 0.0508470692 | EQ65: 0.008095 | ER65: 440 | ES65: 0.005700316975
B66: Polygon Area Calculation | U66: ac | V66: =V63*COS(PI()*V$34/180) -> -0.001129715933 | W66: 5.771041091 | X66: 37.37051596 | Y66: 26.21116948 | Z66: 18.67844973 | AA66: 55.71766875 | AB66: 25.91600092 | AC66: 58.02150771 | AD66: 56.06581152 | AE66: 6.527616972 | AF66: 21.21834671 | AG66: 41.49938054 | AH66: 38.92455127 | AI66: 35.39692372 | AJ66: 7.290113392 | AK66: 16.77490454 | AL66: 35.23949555 | AM66: 28.18146877 | AN66: 21.85084317 | AO66: 23.21780039 | AP66: 34.57605995 | AQ66: 9.475109369 | AR66: 19.70682685 | AS66: 2.558791555 | AT66: 5.942942503 | AU66: 29.96141031 | AV66: 6.957329593 | AW66: 10.63340033 | AX66: 15.74008542 | AY66: 11.38428063 | AZ66: 12.94306402 | BA66: 9.976307403 | BB66: =BB63*COS(PI()*BB$34/180) -> 24.3456372 | BC66: 5.194388057 | BD66: 29.04482468 | BE66: 16.36641228 | BF66: 2.787839564 | BG66: 22.09436701 | BH66: 5.719135445 | BI66: 4.935015241 | BJ66: 9.962275381 | BK66: 2.10066318 | BL66: 37.4671306 | BM66: 35.24081105 | BN66: 0.9692300735 | BO66: 33.09585497 | BP66: 23.47415283 | BQ66: 6.980872671 | BR66: 29.00573593 | BS66: 25.7258389 | BT66: 21.3105128 | BU66: 15.50067818 | BV66: 26.63622348 | BW66: 47.69686841 | BX66: 12.40196812 | BY66: 15.6266434 | BZ66: 45.63971118 | CA66: 53.00528502 | CB66: 53.1318098 | CC66: 11.4163583 | CD66: 3.010284349 | CE66: 14.01881994 | CF66: 6.795535953 | CG66: 4.939726636 | CH66: =CH63*COS(PI()*CH$34/180) -> 50.17509048 | CI66: 32.46161646 | CJ66: 45.51706619 | CK66: 47.58854152 | CL66: 26.97502565 | CM66: 13.11480322 | CN66: 31.09205672 | CO66: 33.65995692 | CP66: 7.790849665 | CQ66: 46.18997091 | CR66: 4.640605082 | CS66: 32.94135227 | CT66: 45.19879485 | CU66: 29.46127553 | CV66: 43.76890129 | CW66: 16.22051916 | CX66: 22.28405285 | CY66: 34.95844568 | CZ66: 3.508553974 | DA66: 12.13131611 | DB66: 11.30802479 | DC66: 18.87630188 | DD66: 24.85980583 | DE66: 33.35789977 | DF66: 27.09895878 | DG66: 31.21710528 | DH66: 32.48079554 | DI66: 4.504360045 | DJ66: 28.38247104 | DK66: 18.14223653 | DL66: 41.66065422 | DM66: 21.17165773 | DN66: 12.8499799 | DO66: 25.5685304 | DP66: 31.95820635 | DQ66: 49.01494306 | DS66: CES62 | DT66: 67.07957414 | DU66: -1.738638738 | DV66: -6.816376548 | DW66: 65.98398984 | DX66: -0.9764092649 | DY66: -2.562585902 | DZ66: 4.458254545 | EA66: 19.87603359 | EB66: 4.462646262 | EC66: -0.6291237308 | ED66: -6.548887106 | EE66: -6.548887106 | EF66: 12 | EL66: 441 | EM66: =IF(Calculator!$C$3,OFFSET('SPD Library'!B66,0,Calculator!$C$3-1),Calculator!C67) -> 0.007927 | EN66: =RefCalc!B66 -> 0.01670237414 | EO66: =RefCalc!F66 -> 0.05241765199 | EQ66: 0.007927 | ER66: 441 | ES66: 0.005876390442
B67: a'ref,j Difference | C67: =D17-C17 -> -6.33965603 | D67: -7.386904133 | E67: -10.36540967 | F67: -4.708602003 | G67: -10.82924427 | H67: -5.999711946 | I67: 0.1159827496 | J67: -6.773845686 | K67: 7.079172167 | L67: 5.867909764 | M67: 7.164074779 | N67: 8.159681528 | O67: 3.679553908 | P67: 9.728900943 | Q67: 4.291525651 | R67: 6.316572254 | U67: bc | V67: =V63*SIN(PI()*V$34/180) -> 0.006406937432 | W67: 22.18957207 | X67: 37.01294141 | Y67: 4.039792814 | Z67: 19.02306575 | AA67: 35.19323067 | AB67: 11.04825775 | AC67: 24.6080163 | AD67: 22.27171156 | AE67: 0.624270646 | AF67: 50.32491342 | AG67: 31.02080951 | AH67: 43.00822815 | AI67: 11.31723641 | AJ67: 7.440707416 | AK67: 18.04304577 | AL67: 14.06858104 | AM67: 11.03202003 | AN67: 11.00340898 | AO67: 24.32334761 | AP67: 39.55616685 | AQ67: 39.33498038 | AR67: 38.13510283 | AS67: 12.94141496 | AT67: 28.88814363 | AU67: 29.1049158 | AV67: 34.2454443 | AW67: 9.61097411 | AX67: 3.035442447 | AY67: 28.87428388 | AZ67: 7.881770922 | BA67: 28.85848547 | BB67: =BB63*SIN(PI()*BB$34/180) -> 24.8219672 | BC67: 17.03835915 | BD67: 14.065078 | BE67: 3.033198413 | BF67: 3.831934773 | BG67: 5.212100519 | BH67: 11.5832638 | BI67: 0.6557715909 | BJ67: 2.893211396 | BK67: 5.207673345 | BL67: 18.74004325 | BM67: 20.86264043 | BN67: 0.08342791201 | BO67: 10.15991513 | BP67: 11.55465717 | BQ67: 4.910503635 | BR67: 21.11520416 | BS67: 4.608237917 | BT67: 6.120086319 | BU67: 5.71829797 | BV67: 3.465694179 | BW67: 7.16191941 | BX67: 19.51505924 | BY67: 19.16395293 | BZ67: 21.10158135 | CA67: 11.91175787 | CB67: 10.06792696 | CC67: 18.33730783 | CD67: 7.1236859 | CE67: 12.76068894 | CF67: 4.378334048 | CG67: 0.6352816281 | CH67: =CH63*SIN(PI()*CH$34/180) -> 14.03702855 | CI67: 4.163416372 | CJ67: 7.129284569 | CK67: 8.841795619 | CL67: 12.9236695 | CM67: 4.486672955 | CN67: 22.08973177 | CO67: 4.085484496 | CP67: 7.951150851 | CQ67: 16.0544382 | CR67: 0.4052130543 | CS67: 3.712052085 | CT67: 12.28920137 | CU67: 7.120791568 | CV67: 9.953923967 | CW67: 15.86275537 | CX67: 15.71637753 | CY67: 10.52821975 | CZ67: 8.96695929 | DA67: 11.6404546 | DB67: 1.076390429 | DC67: 4.361587139 | DD67: 20.85361953 | DE67: 8.378330207 | DF67: 20.4690509 | DG67: 7.520511591 | DH67: 10.5194557 | DI67: 6.784137525 | DJ67: 16.45772405 | DK67: 16.13321439 | DL67: 12.66234821 | DM67: 24.95357725 | DN67: 24.37167073 | DO67: 11.98562937 | DP67: 34.00889993 | DQ67: 33.15817419 | DS67: CES63 | DT67: 34.67176804 | DU67: 0.1318607648 | DV67: -4.46368079 | DW67: 34.74453352 | DX67: 2.595548516 | DY67: -0.4396346252 | DZ67: 4.718898143 | EA67: 22.26799968 | EB67: 4.741921206 | EC67: -0.4228472579 | ED67: 78.69439867 | EE67: 78.69439867 | EF67: 13 | EL67: 442 | EM67: =IF(Calculator!$C$3,OFFSET('SPD Library'!B67,0,Calculator!$C$3-1),Calculator!C68) -> 0.007515 | EN67: =RefCalc!B67 -> 0.01583428052 | EO67: =RefCalc!F67 -> 0.05402792391 | EQ67: 0.007515 | ER67: 442 | ES67: 0.006056913341
B68: b'ref,j Difference | C68: =(C18+D18)/2 -> 9.51098884 | D68: 18.25098662 | E68: 19.79009486 | F68: 13.47883573 | G68: 13.0337109 | H68: 13.62243106 | I68: 7.675614271 | J68: -1.653132246 | K68: -10.63808378 | L68: -16.38016808 | M68: -19.39267489 | N68: -17.96044529 | O68: -13.263034 | P68: -10.48090287 | Q68: -6.834180491 | R68: 1.004830786 | U68: aM | V68: =V64*COS(PI()*V$34/180) -> -0.00106630985 | W68: 5.447137446 | X68: 35.27307008 | Y68: 24.74004959 | Z68: 17.63010891 | AA68: 52.59047632 | AB68: 24.46144757 | AC68: 54.76501074 | AD68: 52.91907934 | AE68: 6.161249986 | AF68: 20.02745243 | AG68: 39.1701993 | AH68: 36.7398841 | AI68: 33.41024706 | AJ68: 6.88095077 | AK68: 15.8334015 | AL68: 33.26165466 | AM68: 26.59976448 | AN68: 20.62444958 | AO68: 21.91468539 | AP68: 32.63545484 | AQ68: 8.943312348 | AR68: 18.60076765 | AS68: 2.415177621 | AT68: 5.609390773 | AU68: 28.27980558 | AV68: 6.566844691 | AW68: 10.03659343 | AX68: 14.85666231 | AY68: 10.74533006 | AZ68: 12.21662566 | BA68: 9.416380298 | BB68: =BB64*COS(PI()*BB$34/180) -> 22.97922159 | BC68: 4.902849459 | BD68: 27.41466395 | BE68: 15.44783615 | BF68: 2.631370154 | BG68: 20.85430549 | BH68: 5.39814504 | BI68: 4.658034121 | BJ68: 9.403135833 | BK68: 1.982762016 | BL68: 35.36426216 | BM68: 33.26289632 | BN68: 0.9148313699 | BO68: 31.23832738 | BP68: 22.15664988 | BQ68: 6.589066398 | BR68: 27.37776908 | BS68: 24.28195852 | BT68: 20.11444563 | BU68: 14.63069197 | BV68: 25.14124715 | BW68: 45.01984891 | BX68: 11.70589914 | BY68: 14.74958731 | BZ68: 43.07815104 | CA68: 50.03032699 | CB68: 50.14975048 | CC68: 10.77560735 | CD68: 2.841330073 | CE68: 13.23200404 | CF68: 6.41413183 | CG68: 4.662481086 | CH68: =CH64*COS(PI()*CH$34/180) -> 47.35897907 | CI68: 30.63968594 | CJ68: 42.96238959 | CK68: 44.91760194 | CL68: 25.46103381 | CM68: 12.37872588 | CN68: 29.34699368 | CO68: 31.77076872 | CP68: 7.353582876 | CQ68: 43.59752707 | CR68: 4.380147935 | CS68: 31.09249625 | CT68: 42.66198144 | CU68: 27.8077412 | CV68: 41.31234164 | CW68: 15.31013138 | CX68: 21.03334508 | CY68: 32.99637891 | CZ68: 3.311633972 | DA68: 11.45043766 | DB68: 10.67335413 | DC68: 17.81685647 | DD68: 23.46453215 | DE68: 31.48566474 | DF68: 25.5780111 | DG68: 29.46502381 | DH68: 30.65778858 | DI68: 4.251549744 | DJ68: 26.78948535 | DK68: 17.12399104 | DL68: 39.32242139 | DM68: 19.9833839 | DN68: 12.12876595 | DO68: 24.13347907 | DP68: 30.16453007 | DQ68: 46.26394571 | DS68: CES64 | DT68: 54.71739281 | DU68: -27.27677728 | DV68: -18.54259406 | DW68: 49.79308353 | DX68: -16.268304 | DY68: -12.95673504 | DZ68: 13.29049009 | EA68: 176.6371268 | EB68: 3.738628547 | EC68: -0.4589047651 | ED68: 4.327596476 | EE68: 4.327596476 | EF68: 10 | EL68: 443 | EM68: =IF(Calculator!$C$3,OFFSET('SPD Library'!B68,0,Calculator!$C$3-1),Calculator!C69) -> 0.007 | EN68: =RefCalc!B68 -> 0.01474916349 | EO68: =RefCalc!F68 -> 0.05567863503 | EQ68: 0.007 | ER68: 443 | ES68: 0.006241969761
B69: a'test,j Difference | C69: =D19-C19 -> -5.315958736 | D69: -6.970059735 | E69: -5.998339371 | F69: -2.146034943 | G69: -8.280649457 | H69: -2.991982803 | I69: 2.488260079 | J69: -6.612171631 | K69: 7.369541309 | L69: 5.034319051 | M69: 6.552717249 | N69: 1.090026808 | O69: 0.609096605 | P69: 9.123561321 | Q69: 1.175199218 | R69: 4.872475036 | U69: bM | V69: =V64*SIN(PI()*V$34/180) -> 0.006047343668 | W69: 20.9441671 | X69: 34.93556465 | Y69: 3.813056668 | Z69: 17.95538312 | AA69: 33.21798642 | AB69: 10.42816669 | AC69: 23.22687448 | AD69: 21.02169646 | AE69: 0.5892330272 | AF69: 47.50039309 | AG69: 29.27974527 | AH69: 40.59436181 | AI69: 10.68204874 | AJ69: 7.023092602 | AK69: 17.03036743 | AL69: 13.27897227 | AM69: 10.41284033 | AN69: 10.38583509 | AO69: 22.95818302 | AP69: 37.33604982 | AQ69: 37.12727759 | AR69: 35.99474399 | AS69: 12.21506916 | AT69: 27.26677673 | AU69: 27.47138241 | AV69: 32.32339522 | AW69: 9.071551587 | AX69: 2.865076155 | AY69: 27.25369486 | AZ69: 7.439401116 | BA69: 27.23878315 | BB69: =BB64*SIN(PI()*BB$34/180) -> 23.42881725 | BC69: 16.08206954 | BD69: 13.27566584 | BE69: 2.862958069 | BF69: 3.616864802 | BG69: 4.919567798 | BH69: 10.93314516 | BI69: 0.61896596 | BJ69: 2.730827919 | BK69: 4.915389102 | BL69: 17.68824545 | BM69: 19.69171041 | BN69: 0.07874546314 | BO69: 9.589682917 | BP69: 10.9061441 | BQ69: 4.634898246 | BR69: 19.93009882 | BS69: 4.349597399 | BT69: 5.776592271 | BU69: 5.397354569 | BV69: 3.271179713 | BW69: 6.759951764 | BX69: 18.41976313 | BY69: 18.08836291 | BZ69: 19.91724061 | CA69: 11.24320227 | CB69: 9.502857642 | CC69: 17.30811383 | CD69: 6.723864135 | CE69: 12.04448651 | CF69: 4.132597042 | CG69: 0.5996260103 | CH69: =CH64*SIN(PI()*CH$34/180) -> 13.24919068 | CI69: 3.929741769 | CJ69: 6.729148576 | CK69: 8.345543767 | CL69: 12.19831967 | CM69: 4.234855354 | CN69: 20.8499304 | CO69: 3.856183873 | CP69: 7.504887048 | CQ69: 15.15337183 | CR69: 0.3824701933 | CS69: 3.503710612 | CT69: 11.5994615 | CU69: 6.72113225 | CV69: 9.395253147 | CW69: 14.97244733 | CX69: 14.83428504 | CY69: 9.937316182 | CZ69: 8.463682541 | DA69: 10.98712609 | DB69: 1.015977277 | DC69: 4.116790065 | DD69: 19.68319581 | DE69: 7.90809067 | DF69: 19.32021136 | DG69: 7.098417712 | DH69: 9.929044025 | DI69: 6.403373146 | DJ69: 15.53402299 | DK69: 15.22772665 | DL69: 11.95166522 | DM69: 23.55304059 | DN69: 23.00379397 | DO69: 11.31292769 | DP69: 32.10012707 | DQ69: 31.29714889 | DS69: CES65 | DT69: 38.16193377 | DU69: -19.90134751 | DV69: -12.27823125 | DW69: 38.21544298 | DX69: -11.80666539 | DY69: -5.223926084 | DZ69: 10.73731638 | EA69: =DZ69^2 -> 115.2899631 | EB69: =MOD(ATAN2(DU69,DV69),2*PI()) -> 3.694385705 | EC69: -0.5140287603 | ED69: -7.805442606 | EE69: -7.805442606 | EF69: 10 | EL69: 444 | EM69: =IF(Calculator!$C$3,OFFSET('SPD Library'!B69,0,Calculator!$C$3-1),Calculator!C70) -> 0.006519 | EN69: =RefCalc!B69 -> 0.01373568526 | EO69: =RefCalc!F69 -> 0.05737054362 | EQ69: 0.006519 | ER69: 444 | ES69: 0.006431644711
B70: b'test,j Difference | C70: =(C20+D20)/2 -> 3.3489261 | D70: 8.403451285 | E70: 9.909687981 | F70: 7.181716356 | G70: 7.208983787 | H70: 8.187169795 | I70: 5.322038511 | J70: 0.01794641783 | K70: -6.252868398 | L70: -11.38091639 | M70: -13.77612841 | N70: -12.34869614 | O70: -9.165385678 | P70: -7.948015196 | Q70: -6.020265874 | R70: -1.537668103 | U70: as | V70: =V62*COS(PI()*V$34/180) -> -0.08819910162 | W70: 8.005759063 | X70: 37.71748483 | Y70: 46.25008684 | Z70: 25.82186134 | AA70: 53.23854021 | AB70: 38.4933022 | AC70: 59.55803231 | AD70: 59.23479364 | AE70: 24.1198297 | AF70: 19.74189973 | AG70: 43.15114989 | AH70: 36.97053059 | AI70: 47.90421943 | AJ70: 15.91543331 | AK70: 23.97306476 | AL70: 45.79168462 | AM70: 40.68313777 | AN70: 33.88828589 | AO70: 28.34028072 | AP70: 34.21952067 | AQ70: 9.845244674 | AR70: 20.53036171 | AS70: 4.587691207 | AT70: 7.137505683 | AU70: 32.84425708 | AV70: 7.693592213 | AW70: 19.88177245 | AX70: 33.37609525 | AY70: 13.55714083 | AZ70: 24.58244801 | BA70: 11.89961396 | BB70: =BB62*COS(PI()*BB$34/180) -> 28.87748713 | BC70: 8.081232502 | BD70: 38.33565258 | BE70: 34.01989482 | BF70: 8.770853291 | BG70: 37.87805884 | BH70: 10.62038108 | BI70: 19.8082409 | BJ70: 24.91072413 | BK70: 5.872071694 | BL70: 42.31883727 | BM70: 39.5290662 | BN70: 9.343128291 | BO70: 43.55022042 | BP70: 33.89833438 | BQ70: 17.25459999 | BR70: 33.99134009 | BS70: 41.98276501 | BT70: 35.79816359 | BU70: 29.43170344 | BV70: 44.621079 | BW70: 56.87291148 | BX70: 17.27524428 | BY70: 21.39933313 | BZ70: 47.0508689 | CA70: 56.79548777 | CB70: 58.36445408 | CC70: 16.46786023 | CD70: 7.179381583 | CE70: 22.59586682 | CF70: 17.51563961 | CG70: 19.95757923 | CH70: =CH62*COS(PI()*CH$34/180) -> 54.52181557 | CI70: 49.73954957 | CJ70: 57.38420922 | CK70: 57.26886133 | CL70: 37.07695859 | CM70: 27.90959036 | CN70: 36.26199134 | CO70: 52.57146336 | CP70: 16.33804866 | CQ70: 51.73928243 | CR70: 20.49386665 | CS70: 52.7891931 | CT70: 54.58080716 | CU70: 44.84255195 | CV70: 55.28835391 | CW70: 24.12257866 | CX70: 31.3875399 | CY70: 48.06019543 | CZ70: 7.515728301 | DA70: 20.9922827 | DB70: 31.95172429 | DC70: 36.38251278 | DD70: 31.89960831 | DE70: 48.58653234 | DF70: 34.47775814 | DG70: 47.29061115 | DH70: 45.87897616 | DI70: 10.79823178 | DJ70: 37.85678379 | DK70: 26.63562224 | DL70: 53.12468515 | DM70: 26.29629641 | DN70: 16.77507293 | DO70: 37.56143445 | DP70: 33.88728459 | DQ70: 48.88574238 | DS70: CES66 | DT70: 41.36136085 | DU70: -21.9053031 | DV70: -20.80978688 | DW70: 36.26920763 | DX70: -9.723390401 | DY70: -15.36942639 | DZ70: 14.28028514 | EA70: 203.9265436 | EB70: 3.901349384 | EC70: -0.4817287554 | ED70: 14.14986018 | EE70: =IF(ED70>-180,IF(ED70<180,ED70,ED70-360),ED70+360) -> 14.14986018 | EF70: =FLOOR((EB70/2/PI())*16,1)+1 -> 10 | EL70: 445 | EM70: =IF(Calculator!$C$3,OFFSET('SPD Library'!B70,0,Calculator!$C$3-1),Calculator!C71) -> 0.006213 | EN70: =RefCalc!B70 -> 0.01309093611 | EO70: =RefCalc!F70 -> 0.0591044161 | EQ70: =EM70/MAX($EM$5:$EM$405) -> 0.006213 | ER70: =EL70 -> 445 | ES70: =EO70/MAX($EO$5:$EO$405) -> 0.00662602411
U71: bs | V71: =V62*SIN(PI()*V$34/180) -> 0.5002019615 | W71: 30.78203133 | X71: 37.35659036 | Y71: 7.128288136 | Z71: 26.29827278 | AA71: 33.62732627 | AB71: 16.41009064 | AC71: 25.25968537 | AD71: 23.53056529 | AE71: 2.306707292 | AF71: 46.82312944 | AG71: 32.255508 | AH71: 40.84920603 | AI71: 15.31611562 | AJ71: 16.24420312 | AK71: 25.78536906 | AL71: 18.2813067 | AM71: 15.92596874 | AN71: 17.06509294 | AO71: 29.68974183 | AP71: 39.14827401 | AQ71: 40.87156053 | AR71: 39.72874279 | AS71: 23.20283397 | AT71: 34.69481477 | AU71: 31.90535181 | AV71: 37.86948427 | AW71: 17.9700937 | AX71: 6.436509939 | AY71: 34.38537272 | AZ71: 14.96965662 | BA71: 34.42203841 | BB71: =BB62*SIN(PI()*BB$34/180) -> 29.44248419 | BC71: 26.50763482 | BD71: 18.56420032 | BE71: 6.30493044 | BF71: 12.05569293 | BG71: 8.935501525 | BH71: 21.51001262 | BI71: 2.632146208 | BJ71: 7.234490934 | BK71: 14.55722723 | BL71: 21.16673543 | BM71: 23.40129726 | BN71: 0.8042235856 | BO71: 13.36924348 | BP71: 16.68574092 | BQ71: 12.13727567 | BR71: 24.74455698 | BS71: 7.520321119 | BT71: 10.28074046 | BU71: 10.85754107 | BV71: 5.805740962 | BW71: 8.539747413 | BX71: 27.18338027 | BY71: 26.24337179 | BZ71: 21.75403201 | CA71: 12.76352156 | CB71: 11.05945878 | CC71: 26.45118647 | CD71: 16.98964397 | CE71: 20.5679814 | CF71: 11.28524987 | CG71: 2.566677138 | CH71: =CH62*SIN(PI()*CH$34/180) -> 15.25307228 | CI71: 6.379425229 | CJ71: 8.988021231 | CK71: 10.64036743 | CL71: 17.76348112 | CM71: 9.548081065 | CN71: 25.76277503 | CO71: 6.38087265 | CP71: 16.67421335 | CQ71: 17.98323523 | CR71: 1.789504203 | CS71: 5.948639652 | CT71: 14.84009767 | CU71: 10.83844674 | CV71: 12.573678 | CW71: 23.59052508 | CX71: 22.13683614 | CY71: 14.47399301 | CZ71: 19.20826364 | DA71: 20.14288569 | DB71: 3.041426852 | DC71: 8.406598964 | DD71: 26.75894974 | DE71: 12.20322665 | DF71: 26.04258681 | DG71: 11.39277925 | DH71: 14.8586834 | DI71: 16.26350662 | DJ71: 21.95145378 | DK71: 23.68606557 | DL71: 16.14672824 | DM71: 30.99363649 | DN71: 31.81612402 | DO71: 17.60748174 | DP71: 36.06176323 | DQ71: 33.07077108 | DS71: CES67 | DT71: 44.446052 | DU71: -22.30454148 | DV71: -21.96632548 | DW71: 39.19104903 | DX71: -10.15135564 | DY71: -16.34513662 | DZ71: 14.38446198 | EA71: 206.9127465 | EB71: 3.919351269 | EC71: -0.4713380739 | ED71: 13.59483788 | EE71: 13.59483788 | EF71: 10 | EL71: 446 | EM71: =IF(Calculator!$C$3,OFFSET('SPD Library'!B71,0,Calculator!$C$3-1),Calculator!C72) -> 0.006068 | EN71: =RefCalc!B71 -> 0.01278541772 | EO71: =RefCalc!F71 -> 0.060881027 | EQ71: 0.006068 | ER71: 446 | ES71: 0.006825194788
DS72: CES68 | DT72: 62.25403941 | DU72: -13.64932517 | DV72: -16.99292596 | DW72: 58.99897101 | DX72: -4.091188888 | DY72: -11.95880409 | DZ72: 11.28254503 | EA72: 127.2958224 | EB72: 4.035678148 | EC72: -0.4811363011 | ED72: 19.8865055 | EE72: 19.8865055 | EF72: 11 | EL72: 447 | EM72: =IF(Calculator!$C$3,OFFSET('SPD Library'!B72,0,Calculator!$C$3-1),Calculator!C73) -> 0.005963 | EN72: =RefCalc!B72 -> 0.01256418027 | EO72: =RefCalc!F72 -> 0.06270115895 | EQ72: 0.005963 | ER72: 447 | ES72: 0.007029244484
U73: CAM02-UCS Conversion | DS73: CES69 | DT73: 53.02564151 | DU73: -0.748843653 | DV73: -11.42509852 | DW73: 50.47450633 | DX73: 5.450855663 | DY73: -6.853626895 | DZ73: 8.114364741 | EA73: 65.84291515 | EB73: 4.64693886 | EC73: -0.2591692796 | ED73: 42.24609676 | EE73: 42.24609676 | EF73: 12 | EL73: 448 | EM73: =IF(Calculator!$C$3,OFFSET('SPD Library'!B73,0,Calculator!$C$3-1),Calculator!C74) -> 0.005875 | EN73: =RefCalc!B73 -> 0.01237876222 | EO73: =RefCalc!F73 -> 0.06456560261 | EQ73: 0.005875 | ER73: 448 | ES73: 0.007238261839
U74: Mc | V74: =(1/0.0228)*LN(1+0.0228*V64) -> 0.006140203867 | W74: 17.59053056 | X74: 33.20274422 | Y74: 19.80450304 | Z74: 19.88822183 | AA74: 38.72954653 | AB74: 20.78618983 | AC74: 37.59181502 | AD74: 36.49805078 | AE74: 5.789824415 | AF74: 34.08698757 | AG74: 32.85354629 | AH74: 35.53460882 | AI74: 25.77380367 | AJ74: 8.871300987 | AK74: 18.65731441 | AL74: 26.1819627 | AM74: 21.99805699 | AN74: 18.55147833 | AO74: 23.87881119 | AP74: 33.17612607 | AQ74: 27.4701956 | AR74: 28.69708091 | AS74: 10.96046578 | AT74: 21.55527385 | AU74: 28.1264808 | AV74: 24.59536621 | AW74: 11.79153094 | AX74: 12.99886264 | AY74: 22.43805697 | AZ74: 12.37971696 | BA74: 22.15233104 | BB74: =(1/0.0228)*LN(1+0.0228*BB64) -> 24.50009646 | BC74: 14.23224932 | BD74: 23.13068583 | BE74: 13.42835331 | BF74: 4.259128908 | BG74: 17.44686335 | BH74: 10.7587665 | BI74: 4.463909902 | BJ74: 8.838198098 | BK74: 5.00364038 | BL74: 28.18699695 | BM74: 27.71829537 | BN74: 0.9087347198 | BO74: 24.42003128 | BP74: 19.58955367 | BQ74: 7.395800924 | BR74: 25.09478702 | BS74: 19.57233107 | BT74: 17.11019336 | BU74: 13.34257686 | BV74: 20.00838874 | BW74: 31.22583633 | BX74: 17.71339103 | BY74: 18.71351116 | BZ74: 32.16526327 | CA74: 33.96188842 | CB74: 33.85298214 | CC74: 16.74367213 | CD74: 6.752091229 | CE74: 15.00615721 | CF74: 7.034618249 | CG74: 4.465628002 | CH74: =(1/0.0228)*LN(1+0.0228*CH64) -> 32.98257681 | CI74: 23.38415265 | CJ74: 30.21406186 | CK74: 31.30514376 | CL74: 21.79595399 | CM74: 11.44961323 | CN74: 26.28377142 | CO74: 24.03254595 | CP74: 9.419185732 | CQ74: 31.53455762 | CR74: 4.190133365 | CS74: 23.61742019 | CT74: 30.57640205 | CU74: 22.02420498 | CV74: 29.64855084 | CW74: 17.43855299 | CX74: 20.25173983 | CY74: 25.43015 | CZ74: 8.259578205 | DA74: 13.54470685 | DB74: 9.591914516 | DC74: 15.28467997 | DD74: 23.22916731 | DE74: 24.29749063 | DF74: 24.06189779 | DG74: 23.04093784 | DH74: 24.16048151 | DI74: 7.082388056 | DJ74: 23.4291773 | DK74: 18.43572284 | DL74: 28.99847522 | DM74: 23.38271021 | DN74: 20.41977866 | DO74: 20.82473472 | DP74: 30.49578043 | DQ74: 36.02304044 | DS74: CES70 | DT74: 70.49331142 | DU74: -14.53402838 | DV74: -21.89974108 | DW74: 67.18878508 | DX74: -5.535657173 | DY74: -15.35645465 | DZ74: 11.6062559 | EA74: 134.7051759 | EB74: 4.12646934 | EC74: -0.4506558838 | ED74: 13.74762741 | EE74: 13.74762741 | EF74: 11 | EL74: 449 | EM74: =IF(Calculator!$C$3,OFFSET('SPD Library'!B74,0,Calculator!$C$3-1),Calculator!C75) -> 0.005778 | EN74: =RefCalc!B74 -> 0.01217438095 | EO74: =RefCalc!F74 -> 0.06647515671 | EQ74: 0.005778 | ER74: 449 | ES74: 0.007452336392
U75: J' | V75: =(1+100*0.007)*V59/(1+0.007*V59) -> 100 | W75: 87.71695005 | X75: 67.31029246 | Y75: 33.75653016 | Z75: 72.31129008 | AA75: 56.62472988 | AB75: 53.85399712 | AC75: 48.51023173 | AD75: 47.43545751 | AE75: 29.32258266 | AF75: 80.13057293 | AG75: 63.0642827 | AH75: 69.63046568 | AI75: 46.62442879 | AJ75: 74.9699555 | AK75: 73.59276715 | AL75: 51.35058806 | AM75: 52.63599915 | AN75: 58.5782731 | AO75: 74.03400721 | AP75: 71.30715214 | AQ75: 88.84175755 | AR75: 81.71771818 | AS75: 92.21043439 | AT75: 91.84647802 | AU75: 73.8382007 | AV75: 91.33467113 | AW75: 74.01737358 | AX75: 42.46006995 | AY75: 87.98719587 | AZ75: 65.37600673 | BA75: 89.46495654 | BB75: =(1+100*0.007)*BB59/(1+0.007*BB59) -> 76.51615305 | BC75: 90.32545987 | BD75: 62.73148144 | BE75: 42.61316865 | BF75: 80.98735532 | BG75: 48.14589112 | BH75: 86.6453221 | BI75: 35.48312076 | BJ75: 50.36181358 | BK75: 88.33933384 | BL75: 67.55514784 | BM75: 71.17674459 | BN75: 28.828745 | BO75: 56.94512764 | BP75: 65.55803577 | BQ75: 69.9863251 | BR75: 75.76316415 | BS75: 44.96232177 | BT75: 53.30145769 | BU75: 57.50440134 | BV75: 39.41115629 | BW75: 46.06390131 | BX75: 85.85688543 | BY75: 82.22573199 | BZ75: 67.56450768 | CA75: 53.55664605 | CB75: 49.88457895 | CC75: 85.65597269 | CD75: 88.05708681 | CE75: 75.80823855 | CF75: 67.07957414 | CG75: 34.67176804 | CH75: =(1+100*0.007)*CH59/(1+0.007*CH59) -> 54.71739281 | CI75: 38.16193377 | CJ75: 41.36136085 | CK75: 44.446052 | CL75: 62.25403941 | CM75: 53.02564151 | CN75: 70.49331142 | CO75: 33.65952406 | CP75: 76.43478697 | CQ75: 54.94353432 | CR75: 28.57675866 | CS75: 32.02154825 | CT75: 46.36071833 | CU75: 44.32016311 | CV75: 42.90422317 | CW75: 73.87520532 | CX75: 66.37386682 | CY75: 45.60004578 | CZ75: 87.56072889 | DA75: 73.53620257 | DB75: 28.66536557 | DC75: 42.56185606 | DD75: 67.58584773 | DE75: 41.60793781 | DF75: 64.83925351 | DG75: 40.93102817 | DH75: 46.56487098 | DI75: 81.2289516 | DJ75: 59.30371209 | DK75: 69.62786287 | DL75: 43.7233786 | DM75: 73.24956023 | DN75: 80.87270423 | DO75: 55.5225203 | DP75: 69.35966987 | DQ75: 58.54680581 | DS75: CES71 | DT75: 33.65952406 | DU75: -9.13549314 | DV75: -22.2284959 | DW75: 30.23164083 | DX75: 1.327141965 | DY75: -15.12249316 | DZ75: 13.1039075 | EA75: 171.7123917 | EB75: 4.322452072 | EC75: -0.4332255825 | ED75: 27.35713689 | EE75: 27.35713689 | EF75: 12 | EL75: 450 | EM75: =IF(Calculator!$C$3,OFFSET('SPD Library'!B75,0,Calculator!$C$3-1),Calculator!C76) -> 0.00565 | EN75: =RefCalc!B75 -> 0.01190468196 | EO75: =RefCalc!F75 -> 0.06843062792 | EQ75: 0.00565 | ER75: 450 | ES75: 0.00767155858
U76: a' | V76: =V74*COS(V54*PI()/180) -> 0.006102648751 | W76: 17.19368436 | X76: 32.31271255 | Y76: 19.633563 | Z76: 17.52380028 | AA76: 37.00856437 | AB76: 19.13695628 | AC76: 36.02851571 | AD76: 35.15398586 | AE76: 5.786787271 | AF76: 29.2534967 | AG76: 27.07373897 | AH76: 29.60575322 | AI76: 22.61016968 | AJ76: 6.896140202 | AK76: 16.4209926 | AL76: 22.336175 | AM76: 16.00364854 | AN76: 14.7609076 | AO76: 11.69177597 | AP76: 26.09259842 | AQ76: 12.35648701 | AR76: 15.71961899 | AS76: 3.39661697 | AT76: 4.477927497 | AU76: 6.328981337 | AV76: 6.434252448 | AW76: 1.553212413 | AX76: -0.6836834513 | AY76: 3.164913054 | AZ76: 4.063183328 | BA76: 1.631317521 | BB76: =BB74*COS(BB54*PI()/180) -> 0.5344719238 | BC76: 1.603805135 | BD76: -4.894898413 | BE76: -4.652711092 | BF76: 1.229585258 | BG76: -7.953210345 | BH76: -1.091866074 | BI76: 0.268344903 | BJ76: -0.160813901 | BK76: -0.9126204132 | BL76: -18.96738696 | BM76: -19.14251785 | BN76: -0.3297637985 | BO76: -20.47791404 | BP76: -16.81610044 | BQ76: -4.526066006 | BR76: -24.12348931 | BS76: -18.27589997 | BT76: -17.00987497 | BU76: -13.31729046 | BV76: -19.92856772 | BW76: -31.04630487 | BX76: -17.34175548 | BY76: -17.79159661 | BZ76: -30.85100677 | CA76: -32.46863047 | CB76: -31.82879614 | CC76: -15.80600087 | CD76: -5.148565738 | CE76: -12.81765294 | CF76: -1.738638738 | CG76: 0.1318607648 | CH76: =CH74*COS(CH54*PI()/180) -> -27.27677728 | CI76: -19.90134751 | CJ76: -21.9053031 | CK76: -22.30454148 | CL76: -13.64932517 | CM76: -0.748843653 | CN76: -14.53402838 | CO76: -9.13549314 | CP76: -4.267814485 | CQ76: -16.97998494 | CR76: 2.193318993 | CS76: -7.122861625 | CT76: -6.28944075 | CU76: 0.8471071832 | CV76: -6.127002882 | CW76: 3.4567526 | CX76: 7.428151704 | CY76: 15.29676629 | CZ76: 3.27689656 | DA76: 5.81510604 | DB76: 8.383260645 | DC76: 12.52505128 | DD76: 18.8358734 | DE76: 19.91365097 | DF76: 22.21427827 | DG76: 21.72621776 | DH76: 22.99639994 | DI76: 6.70050707 | DJ76: 23.06883326 | DK76: 18.19277804 | DL76: 28.9425339 | DM76: 23.29558952 | DN76: 20.40472904 | DO76: 20.74913154 | DP76: 30.16672019 | DQ76: 35.79154334 | DS76: CES72 | DT76: 76.43478697 | DU76: -4.267814485 | DV76: -8.39683389 | DW76: 75.5699399 | DX76: -1.134234325 | DY76: -4.853868037 | DZ76: 4.808314892 | EA76: 23.1198921 | EB76: 4.242151471 | EC76: -0.4975838597 | ED76: 13.78996335 | EE76: 13.78996335 | EF76: 11 | EL76: 451 | EM76: =IF(Calculator!$C$3,OFFSET('SPD Library'!B76,0,Calculator!$C$3-1),Calculator!C77) -> 0.005427 | EN76: =RefCalc!B76 -> 0.01143481575 | EO76: =RefCalc!F76 -> 0.0704328309 | EQ76: 0.005427 | ER76: 451 | ES76: 0.007896019729
U77: b' | V77: =V74*SIN(V54*PI()/180) -> 0.0006780720835 | W77: 3.71537124 | X77: 7.636152939 | Y77: 2.596448464 | Z77: 9.405200232 | AA77: 11.41682695 | AB77: 8.114344819 | AC77: 10.72802926 | AD77: 9.813510501 | AE77: 0.1875095609 | AF77: 17.49730414 | AG77: 18.61096886 | AH77: 19.65217037 | AI77: 12.3721131 | AJ77: 5.580612109 | AK77: 8.856996285 | AL77: 13.65981176 | AM77: 15.09297004 | AN77: 11.23712397 | AO77: 20.82066277 | AP77: 20.48979377 | AQ77: 24.53423883 | AR77: 24.00866576 | AS77: 10.42088304 | AT77: 21.08501829 | AU77: 27.40516224 | AV77: 23.73883811 | AW77: 11.68878664 | AX77: 12.98087081 | AY77: 22.21372832 | AZ77: 11.69392719 | BA77: 22.09218354 | BB77: =BB74*SIN(BB54*PI()/180) -> 24.49426599 | BC77: 14.14159573 | BD77: 22.60682633 | BE77: 12.59654524 | BF77: 4.077781155 | BG77: 15.52866658 | BH77: 10.70321844 | BI77: 4.455836917 | BJ77: 8.836734946 | BK77: 4.919709446 | BL77: 20.85054026 | BM77: 20.04664333 | BN77: 0.8467907818 | BO77: 13.30387028 | BP77: 10.04835206 | BQ77: 5.849153598 | BR77: 6.914159285 | BS77: 7.004828607 | BT77: 1.850100014 | BU77: 0.8210554795 | BV77: 1.785443482 | BW77: -3.343622001 | BX77: -3.609395874 | BY77: -5.801257613 | BZ77: -9.1005243 | CA77: -9.959814282 | CB77: -11.53048723 | CC77: -5.524571757 | CD77: -4.3684101 | CE77: -7.803366413 | CF77: -6.816376548 | CG77: -4.46368079 | CH77: =CH74*SIN(CH54*PI()/180) -> -18.54259406 | CI77: -12.27823125 | CJ77: -20.80978688 | CK77: -21.96632548 | CL77: -16.99292596 | CM77: -11.42509852 | CN77: -21.89974108 | CO77: -22.2284959 | CP77: -8.39683389 | CQ77: -26.57270095 | CR77: -3.570233804 | CS77: -22.51771255 | CT77: -29.92255499 | CU77: -22.00790799 | CV77: -29.0085574 | CW77: -17.09251274 | CX77: -18.84026349 | CY77: -20.31505525 | CZ77: -7.581726786 | DA77: -12.23289113 | DB77: -4.661090542 | DC77: -8.76039567 | DD77: -13.5942667 | DE77: -13.92172963 | DF77: -9.246662436 | DG77: -7.671784563 | DH77: -7.40907935 | DI77: -2.294215681 | DJ77: -4.093321498 | DK77: -2.983069522 | DL77: -1.80036021 | DM77: -2.016592692 | DN77: -0.7838323762 | DO77: 1.772883693 | DP77: 4.467842536 | DQ77: 4.077360433 | DS77: CES73 | DT77: 54.94353432 | DU77: -16.97998494 | DV77: -26.57270095 | DW77: 49.8063781 | DX77: -6.611613253 | DY77: -20.93651256 | DZ77: 12.87090226 | EA77: 165.6601251 | EB77: 4.143784757 | EC77: -0.3826297039 | ED77: 15.05284739 | EE77: 15.05284739 | EF77: 11 | EL77: 452 | EM77: =IF(Calculator!$C$3,OFFSET('SPD Library'!B77,0,Calculator!$C$3-1),Calculator!C78) -> 0.005119 | EN77: =RefCalc!B77 -> 0.01078585256 | EO77: =RefCalc!F77 -> 0.07248258818 | EQ77: 0.005119 | ER77: 452 | ES77: 0.008125812054
DS78: CES74 | DT78: 28.57675866 | DU78: 2.193318993 | DV78: -3.570233804 | DW78: 28.01319456 | DX78: -0.8558409363 | DY78: -1.749363434 | DZ78: 3.59590735 | EA78: 12.93054967 | EB78: 5.263282177 | EC78: -0.54708595 | ED78: -57.63311875 | EE78: -57.63311875 | EF78: 14 | EL78: 453 | EM78: =IF(Calculator!$C$3,OFFSET('SPD Library'!B78,0,Calculator!$C$3-1),Calculator!C79) -> 0.004802 | EN78: =RefCalc!B78 -> 0.01011792616 | EO78: =RefCalc!F78 -> 0.07458073019 | EQ78: 0.004802 | ER78: 453 | ES78: 0.00836102865
U79: CIECAM02 Calculations: Test SPD | DS79: CES75 | DT79: 32.02154825 | DU79: -7.122861625 | DV79: -22.51771255 | DW79: 29.51028321 | DX79: 0.4015017329 | DY79: -14.98468706 | DZ79: 10.93933129 | EA79: 119.668969 | EB79: 4.406025391 | EC79: -0.4288703136 | ED79: 19.08816431 | EE79: 19.08816431 | EF79: 12 | EL79: 454 | EM79: =IF(Calculator!$C$3,OFFSET('SPD Library'!B79,0,Calculator!$C$3-1),Calculator!C80) -> 0.004554 | EN79: =RefCalc!B79 -> 0.009595384363 | EO79: =RefCalc!F79 -> 0.07672809517 | EQ79: 0.004554 | ER79: 454 | ES79: 0.00860176349
